Workbook

Sheet Baseline & Counterfactual
B2: Baseline | Q2: Counterfactual
C3: Mean Total Energy Intake (kcal/day) | D3: Mean Fruit (g/d) Consumers | E3: SD Fruit (g/d) Consumers | F3: % consuming <1 fruit portion daily | G3: Mean Veg (g/d) Consumers | H3: SD Veg (g/d) Consumers | I3: % consuming <1 veg portion daily | J3: Mean Fibre (g/d) | K3: SD Fibre (g/d) | L3: Mean Salt (g/d) | M3: SD Salt (g/d) | R3: Mean Total Energy Intake (kcal/day) | S3: Mean Fruit (g/d) Consumers | T3: SD Fruit (g/d) Consumers | U3: % consuming <1 fruit portion daily | V3: Mean Veg (g/d) Consumers | W3: SD FVeg (g/d) Consumers | X3: % consuming <1 veg portion daily | Y3: Mean Fibre (g/d) | Z3: SD Fibre (g/d) | AA3: Mean Salt (g/d) | AB3: SD Salt (g/d) | AD3: Monte Carlo Analysis?
B4: M15-19 | C4: 2000 | D4: 188.6 | E4: 37.72 | F4: 0 | G4: 168 | H4: 33.6 | I4: 0 | J4: 15.5 | K4: 1.55 | L4: 9 | M4: 0.9 | Q4: M15-19 | R4: 2000 | S4: 188.6 | T4: 37.72 | U4: 0 | V4: 168 | W4: 33.6 | X4: 0 | Y4: 15.5 | Z4: 1.55 | AA4: 9 | AB4: 0.9 | AD4: No
B5: M20-24 | C5: 2000 | D5: 188.6 | E5: 37.72 | F5: 0 | G5: 168 | H5: 33.6 | I5: 0 | J5: 15.5 | K5: 1.55 | L5: 9 | M5: 0.9 | Q5: M20-24 | R5: 2000 | S5: 188.6 | T5: 37.72 | U5: 0 | V5: 168 | W5: 33.6 | X5: 0 | Y5: 15.5 | Z5: 1.55 | AA5: 9 | AB5: 0.9
B6: M25-29 | C6: 2000 | D6: 188.6 | E6: 37.72 | F6: 0 | G6: 168 | H6: 33.6 | I6: 0 | J6: 15.5 | K6: 1.55 | L6: 9 | M6: 0.9 | Q6: M25-29 | R6: 2000 | S6: 188.6 | T6: 37.72 | U6: 0 | V6: 168 | W6: 33.6 | X6: 0 | Y6: 15.5 | Z6: 1.55 | AA6: 9 | AB6: 0.9
B7: M30-34 | C7: 2000 | D7: 188.6 | E7: 37.72 | F7: 0 | G7: 168 | H7: 33.6 | I7: 0 | J7: 15.5 | K7: 1.55 | L7: 9 | M7: 0.9 | Q7: M30-34 | R7: 2000 | S7: 188.6 | T7: 37.72 | U7: 0 | V7: 168 | W7: 33.6 | X7: 0 | Y7: 15.5 | Z7: 1.55 | AA7: 9 | AB7: 0.9
B8: M35-39 | C8: 2000 | D8: 188.6 | E8: 37.72 | F8: 0 | G8: 168 | H8: 33.6 | I8: 0 | J8: 15.5 | K8: 1.55 | L8: 9 | M8: 0.9 | Q8: M35-39 | R8: 2000 | S8: 188.6 | T8: 37.72 | U8: 0 | V8: 168 | W8: 33.6 | X8: 0 | Y8: 15.5 | Z8: 1.55 | AA8: 9 | AB8: 0.9
B9: M40-44 | C9: 2000 | D9: 188.6 | E9: 37.72 | F9: 0 | G9: 168 | H9: 33.6 | I9: 0 | J9: 15.5 | K9: 1.55 | L9: 9 | M9: 0.9 | Q9: M40-44 | R9: 2000 | S9: 188.6 | T9: 37.72 | U9: 0 | V9: 168 | W9: 33.6 | X9: 0 | Y9: 15.5 | Z9: 1.55 | AA9: 9 | AB9: 0.9
B10: M45-49 | C10: 2000 | D10: 188.6 | E10: 37.72 | F10: 0 | G10: 168 | H10: 33.6 | I10: 0 | J10: 15.5 | K10: 1.55 | L10: 9 | M10: 0.9 | Q10: M45-49 | R10: 2000 | S10: 188.6 | T10: 37.72 | U10: 0 | V10: 168 | W10: 33.6 | X10: 0 | Y10: 15.5 | Z10: 1.55 | AA10: 9 | AB10: 0.9
B11: M50-54 | C11: 2000 | D11: 188.6 | E11: 37.72 | F11: 0 | G11: 168 | H11: 33.6 | I11: 0 | J11: 15.5 | K11: 1.55 | L11: 9 | M11: 0.9 | Q11: M50-54 | R11: 2000 | S11: 188.6 | T11: 37.72 | U11: 0 | V11: 168 | W11: 33.6 | X11: 0 | Y11: 15.5 | Z11: 1.55 | AA11: 9 | AB11: 0.9
B12: M55-59 | C12: 2000 | D12: 188.6 | E12: 37.72 | F12: 0 | G12: 168 | H12: 33.6 | I12: 0 | J12: 15.5 | K12: 1.55 | L12: 9 | M12: 0.9 | Q12: M55-59 | R12: 2000 | S12: 188.6 | T12: 37.72 | U12: 0 | V12: 168 | W12: 33.6 | X12: 0 | Y12: 15.5 | Z12: 1.55 | AA12: 9 | AB12: 0.9
B13: M60-64 | C13: 2000 | D13: 188.6 | E13: 37.72 | F13: 0 | G13: 168 | H13: 33.6 | I13: 0 | J13: 15.5 | K13: 1.55 | L13: 9 | M13: 0.9 | Q13: M60-64 | R13: 2000 | S13: 188.6 | T13: 37.72 | U13: 0 | V13: 168 | W13: 33.6 | X13: 0 | Y13: 15.5 | Z13: 1.55 | AA13: 9 | AB13: 0.9
B14: M65-69 | C14: 2000 | D14: 188.6 | E14: 37.72 | F14: 0 | G14: 168 | H14: 33.6 | I14: 0 | J14: 15.5 | K14: 1.55 | L14: 9 | M14: 0.9 | Q14: M65-69 | R14: 2000 | S14: 188.6 | T14: 37.72 | U14: 0 | V14: 168 | W14: 33.6 | X14: 0 | Y14: 15.5 | Z14: 1.55 | AA14: 9 | AB14: 0.9
B15: M70-74 | C15: 2000 | D15: 188.6 | E15: 37.72 | F15: 0 | G15: 168 | H15: 33.6 | I15: 0 | J15: 15.5 | K15: 1.55 | L15: 9 | M15: 0.9 | Q15: M70-74 | R15: 2000 | S15: 188.6 | T15: 37.72 | U15: 0 | V15: 168 | W15: 33.6 | X15: 0 | Y15: 15.5 | Z15: 1.55 | AA15: 9 | AB15: 0.9
B16: M75-79 | C16: 2000 | D16: 188.6 | E16: 37.72 | F16: 0 | G16: 168 | H16: 33.6 | I16: 0 | J16: 15.5 | K16: 1.55 | L16: 9 | M16: 0.9 | Q16: M75-79 | R16: 2000 | S16: 188.6 | T16: 37.72 | U16: 0 | V16: 168 | W16: 33.6 | X16: 0 | Y16: 15.5 | Z16: 1.55 | AA16: 9 | AB16: 0.9
B17: M80-84 | C17: 2000 | D17: 188.6 | E17: 37.72 | F17: 0 | G17: 168 | H17: 33.6 | I17: 0 | J17: 15.5 | K17: 1.55 | L17: 9 | M17: 0.9 | Q17: M80-84 | R17: 2000 | S17: 188.6 | T17: 37.72 | U17: 0 | V17: 168 | W17: 33.6 | X17: 0 | Y17: 15.5 | Z17: 1.55 | AA17: 9 | AB17: 0.9
B18: M85+ | C18: 2000 | D18: 188.6 | E18: 37.72 | F18: 0 | G18: 168 | H18: 33.6 | I18: 0 | J18: 15.5 | K18: 1.55 | L18: 9 | M18: 0.9 | Q18: M85+ | R18: 2000 | S18: 188.6 | T18: 37.72 | U18: 0 | V18: 168 | W18: 33.6 | X18: 0 | Y18: 15.5 | Z18: 1.55 | AA18: 9 | AB18: 0.9
B20: F15-19 | C20: 2000 | D20: 188.6 | E20: 37.72 | F20: 0 | G20: 168 | H20: 33.6 | I20: 0 | J20: 15.5 | K20: 1.55 | L20: 9 | M20: 0.9 | Q20: F15-19 | R20: 2000 | S20: 188.6 | T20: 37.72 | U20: 0 | V20: 168 | W20: 33.6 | X20: 0 | Y20: 15.5 | Z20: 1.55 | AA20: 9 | AB20: 0.9
B21: F20-24 | C21: 2000 | D21: 188.6 | E21: 37.72 | F21: 0 | G21: 168 | H21: 33.6 | I21: 0 | J21: 15.5 | K21: 1.55 | L21: 9 | M21: 0.9 | Q21: F20-24 | R21: 2000 | S21: 188.6 | T21: 37.72 | U21: 0 | V21: 168 | W21: 33.6 | X21: 0 | Y21: 15.5 | Z21: 1.55 | AA21: 9 | AB21: 0.9
B22: F25-29 | C22: 2000 | D22: 188.6 | E22: 37.72 | F22: 0 | G22: 168 | H22: 33.6 | I22: 0 | J22: 15.5 | K22: 1.55 | L22: 9 | M22: 0.9 | Q22: F25-29 | R22: 2000 | S22: 188.6 | T22: 37.72 | U22: 0 | V22: 168 | W22: 33.6 | X22: 0 | Y22: 15.5 | Z22: 1.55 | AA22: 9 | AB22: 0.9
B23: F30-34 | C23: 2000 | D23: 188.6 | E23: 37.72 | F23: 0 | G23: 168 | H23: 33.6 | I23: 0 | J23: 15.5 | K23: 1.55 | L23: 9 | M23: 0.9 | Q23: F30-34 | R23: 2000 | S23: 188.6 | T23: 37.72 | U23: 0 | V23: 168 | W23: 33.6 | X23: 0 | Y23: 15.5 | Z23: 1.55 | AA23: 9 | AB23: 0.9
B24: F35-39 | C24: 2000 | D24: 188.6 | E24: 37.72 | F24: 0 | G24: 168 | H24: 33.6 | I24: 0 | J24: 15.5 | K24: 1.55 | L24: 9 | M24: 0.9 | Q24: F35-39 | R24: 2000 | S24: 188.6 | T24: 37.72 | U24: 0 | V24: 168 | W24: 33.6 | X24: 0 | Y24: 15.5 | Z24: 1.55 | AA24: 9 | AB24: 0.9
B25: F40-44 | C25: 2000 | D25: 188.6 | E25: 37.72 | F25: 0 | G25: 168 | H25: 33.6 | I25: 0 | J25: 15.5 | K25: 1.55 | L25: 9 | M25: 0.9 | Q25: F40-44 | R25: 2000 | S25: 188.6 | T25: 37.72 | U25: 0 | V25: 168 | W25: 33.6 | X25: 0 | Y25: 15.5 | Z25: 1.55 | AA25: 9 | AB25: 0.9
B26: F45-49 | C26: 2000 | D26: 188.6 | E26: 37.72 | F26: 0 | G26: 168 | H26: 33.6 | I26: 0 | J26: 15.5 | K26: 1.55 | L26: 9 | M26: 0.9 | Q26: F45-49 | R26: 2000 | S26: 188.6 | T26: 37.72 | U26: 0 | V26: 168 | W26: 33.6 | X26: 0 | Y26: 15.5 | Z26: 1.55 | AA26: 9 | AB26: 0.9
B27: F50-54 | C27: 2000 | D27: 188.6 | E27: 37.72 | F27: 0 | G27: 168 | H27: 33.6 | I27: 0 | J27: 15.5 | K27: 1.55 | L27: 9 | M27: 0.9 | Q27: F50-54 | R27: 2000 | S27: 188.6 | T27: 37.72 | U27: 0 | V27: 168 | W27: 33.6 | X27: 0 | Y27: 15.5 | Z27: 1.55 | AA27: 9 | AB27: 0.9
B28: F55-59 | C28: 2000 | D28: 188.6 | E28: 37.72 | F28: 0 | G28: 168 | H28: 33.6 | I28: 0 | J28: 15.5 | K28: 1.55 | L28: 9 | M28: 0.9 | Q28: F55-59 | R28: 2000 | S28: 188.6 | T28: 37.72 | U28: 0 | V28: 168 | W28: 33.6 | X28: 0 | Y28: 15.5 | Z28: 1.55 | AA28: 9 | AB28: 0.9
B29: F60-64 | C29: 2000 | D29: 188.6 | E29: 37.72 | F29: 0 | G29: 168 | H29: 33.6 | I29: 0 | J29: 15.5 | K29: 1.55 | L29: 9 | M29: 0.9 | Q29: F60-64 | R29: 2000 | S29: 188.6 | T29: 37.72 | U29: 0 | V29: 168 | W29: 33.6 | X29: 0 | Y29: 15.5 | Z29: 1.55 | AA29: 9 | AB29: 0.9
B30: F65-69 | C30: 2000 | D30: 188.6 | E30: 37.72 | F30: 0 | G30: 168 | H30: 33.6 | I30: 0 | J30: 15.5 | K30: 1.55 | L30: 9 | M30: 0.9 | Q30: F65-69 | R30: 2000 | S30: 188.6 | T30: 37.72 | U30: 0 | V30: 168 | W30: 33.6 | X30: 0 | Y30: 15.5 | Z30: 1.55 | AA30: 9 | AB30: 0.9
B31: F70-74 | C31: 2000 | D31: 188.6 | E31: 37.72 | F31: 0 | G31: 168 | H31: 33.6 | I31: 0 | J31: 15.5 | K31: 1.55 | L31: 9 | M31: 0.9 | Q31: F70-74 | R31: 2000 | S31: 188.6 | T31: 37.72 | U31: 0 | V31: 168 | W31: 33.6 | X31: 0 | Y31: 15.5 | Z31: 1.55 | AA31: 9 | AB31: 0.9
B32: F75-79 | C32: 2000 | D32: 188.6 | E32: 37.72 | F32: 0 | G32: 168 | H32: 33.6 | I32: 0 | J32: 15.5 | K32: 1.55 | L32: 9 | M32: 0.9 | Q32: F75-79 | R32: 2000 | S32: 188.6 | T32: 37.72 | U32: 0 | V32: 168 | W32: 33.6 | X32: 0 | Y32: 15.5 | Z32: 1.55 | AA32: 9 | AB32: 0.9
B33: F80-84 | C33: 2000 | D33: 188.6 | E33: 37.72 | F33: 0 | G33: 168 | H33: 33.6 | I33: 0 | J33: 15.5 | K33: 1.55 | L33: 9 | M33: 0.9 | Q33: F80-84 | R33: 2000 | S33: 188.6 | T33: 37.72 | U33: 0 | V33: 168 | W33: 33.6 | X33: 0 | Y33: 15.5 | Z33: 1.55 | AA33: 9 | AB33: 0.9
B34: F85+ | C34: 2000 | D34: 188.6 | E34: 37.72 | F34: 0 | G34: 168 | H34: 33.6 | I34: 0 | J34: 15.5 | K34: 1.55 | L34: 9 | M34: 0.9 | Q34: F85+ | R34: 2000 | S34: 188.6 | T34: 37.72 | U34: 0 | V34: 168 | W34: 33.6 | X34: 0 | Y34: 15.5 | Z34: 1.55 | AA34: 9 | AB34: 0.9
C38: Mean Total fat (% total energy) | D38: SD Total fat (% total energy) | E38: Mean Saturated fat (% total energy) | F38: SD Saturated fat (% total energy) | G38: Mean MUFA (% total energy) | H38: SD MUFA (% total energy) | I38: Mean PUFA (% total energy) | J38: SD PUFA (% total energy) | K38: Mean Dietary cholesterol (mg/d) | L38: SD Dietary cholesterol (mg/d) | R38: Mean Total fat (% total energy) | S38: SD Total fat (% total energy) | T38: Mean Saturated fat (% total energy) | U38: SD Saturated fat (% total energy) | V38: Mean MUFA (% total energy) | W38: SD MUFA (% total energy) | X38: Mean PUFA (% total energy) | Y38: SD PUFA (% total energy) | Z38: Mean Dietary cholesterol (mg/d) | AA38: SD Dietary cholesterol (mg/d)
B39: M15-19 | C39: 37.3 | D39: 3.73 | E39: 14.1 | F39: 1.41 | G39: 13.7 | H39: 1.37 | I39: 6.8 | J39: 0.68 | K39: 0 | L39: 0 | Q39: M15-19 | R39: 37.3 | S39: 3.73 | T39: 14.1 | U39: 1.41 | V39: 13.7 | W39: 1.37 | X39: 6.8 | Y39: 0.68 | Z39: 0 | AA39: 0
B40: M20-24 | C40: 37.3 | D40: 3.73 | E40: 14.1 | F40: 1.41 | G40: 13.7 | H40: 1.37 | I40: 6.8 | J40: 0.68 | K40: 0 | L40: 0 | Q40: M20-24 | R40: 37.3 | S40: 3.73 | T40: 14.1 | U40: 1.41 | V40: 13.7 | W40: 1.37 | X40: 6.8 | Y40: 0.68 | Z40: 0 | AA40: 0
B41: M25-29 | C41: 37.3 | D41: 3.73 | E41: 14.1 | F41: 1.41 | G41: 13.7 | H41: 1.37 | I41: 6.8 | J41: 0.68 | K41: 0 | L41: 0 | Q41: M25-29 | R41: 37.3 | S41: 3.73 | T41: 14.1 | U41: 1.41 | V41: 13.7 | W41: 1.37 | X41: 6.8 | Y41: 0.68 | Z41: 0 | AA41: 0
B42: M30-34 | C42: 37.3 | D42: 3.73 | E42: 14.1 | F42: 1.41 | G42: 13.7 | H42: 1.37 | I42: 6.8 | J42: 0.68 | K42: 0 | L42: 0 | Q42: M30-34 | R42: 37.3 | S42: 3.73 | T42: 14.1 | U42: 1.41 | V42: 13.7 | W42: 1.37 | X42: 6.8 | Y42: 0.68 | Z42: 0 | AA42: 0
B43: M35-39 | C43: 37.3 | D43: 3.73 | E43: 14.1 | F43: 1.41 | G43: 13.7 | H43: 1.37 | I43: 6.8 | J43: 0.68 | K43: 0 | L43: 0 | Q43: M35-39 | R43: 37.3 | S43: 3.73 | T43: 14.1 | U43: 1.41 | V43: 13.7 | W43: 1.37 | X43: 6.8 | Y43: 0.68 | Z43: 0 | AA43: 0
B44: M40-44 | C44: 37.3 | D44: 3.73 | E44: 14.1 | F44: 1.41 | G44: 13.7 | H44: 1.37 | I44: 6.8 | J44: 0.68 | K44: 0 | L44: 0 | Q44: M40-44 | R44: 37.3 | S44: 3.73 | T44: 14.1 | U44: 1.41 | V44: 13.7 | W44: 1.37 | X44: 6.8 | Y44: 0.68 | Z44: 0 | AA44: 0
B45: M45-49 | C45: 37.3 | D45: 3.73 | E45: 14.1 | F45: 1.41 | G45: 13.7 | H45: 1.37 | I45: 6.8 | J45: 0.68 | K45: 0 | L45: 0 | Q45: M45-49 | R45: 37.3 | S45: 3.73 | T45: 14.1 | U45: 1.41 | V45: 13.7 | W45: 1.37 | X45: 6.8 | Y45: 0.68 | Z45: 0 | AA45: 0
B46: M50-54 | C46: 37.3 | D46: 3.73 | E46: 14.1 | F46: 1.41 | G46: 13.7 | H46: 1.37 | I46: 6.8 | J46: 0.68 | K46: 0 | L46: 0 | Q46: M50-54 | R46: 37.3 | S46: 3.73 | T46: 14.1 | U46: 1.41 | V46: 13.7 | W46: 1.37 | X46: 6.8 | Y46: 0.68 | Z46: 0 | AA46: 0
B47: M55-59 | C47: 37.3 | D47: 3.73 | E47: 14.1 | F47: 1.41 | G47: 13.7 | H47: 1.37 | I47: 6.8 | J47: 0.68 | K47: 0 | L47: 0 | Q47: M55-59 | R47: 37.3 | S47: 3.73 | T47: 14.1 | U47: 1.41 | V47: 13.7 | W47: 1.37 | X47: 6.8 | Y47: 0.68 | Z47: 0 | AA47: 0
B48: M60-64 | C48: 37.3 | D48: 3.73 | E48: 14.1 | F48: 1.41 | G48: 13.7 | H48: 1.37 | I48: 6.8 | J48: 0.68 | K48: 0 | L48: 0 | Q48: M60-64 | R48: 37.3 | S48: 3.73 | T48: 14.1 | U48: 1.41 | V48: 13.7 | W48: 1.37 | X48: 6.8 | Y48: 0.68 | Z48: 0 | AA48: 0
B49: M65-69 | C49: 37.3 | D49: 3.73 | E49: 14.1 | F49: 1.41 | G49: 13.7 | H49: 1.37 | I49: 6.8 | J49: 0.68 | K49: 0 | L49: 0 | Q49: M65-69 | R49: 37.3 | S49: 3.73 | T49: 14.1 | U49: 1.41 | V49: 13.7 | W49: 1.37 | X49: 6.8 | Y49: 0.68 | Z49: 0 | AA49: 0
B50: M70-74 | C50: 37.3 | D50: 3.73 | E50: 14.1 | F50: 1.41 | G50: 13.7 | H50: 1.37 | I50: 6.8 | J50: 0.68 | K50: 0 | L50: 0 | Q50: M70-74 | R50: 37.3 | S50: 3.73 | T50: 14.1 | U50: 1.41 | V50: 13.7 | W50: 1.37 | X50: 6.8 | Y50: 0.68 | Z50: 0 | AA50: 0
B51: M75-79 | C51: 37.3 | D51: 3.73 | E51: 14.1 | F51: 1.41 | G51: 13.7 | H51: 1.37 | I51: 6.8 | J51: 0.68 | K51: 0 | L51: 0 | Q51: M75-79 | R51: 37.3 | S51: 3.73 | T51: 14.1 | U51: 1.41 | V51: 13.7 | W51: 1.37 | X51: 6.8 | Y51: 0.68 | Z51: 0 | AA51: 0
B52: M80-84 | C52: 37.3 | D52: 3.73 | E52: 14.1 | F52: 1.41 | G52: 13.7 | H52: 1.37 | I52: 6.8 | J52: 0.68 | K52: 0 | L52: 0 | Q52: M80-84 | R52: 37.3 | S52: 3.73 | T52: 14.1 | U52: 1.41 | V52: 13.7 | W52: 1.37 | X52: 6.8 | Y52: 0.68 | Z52: 0 | AA52: 0
B53: M85+ | C53: 37.3 | D53: 3.73 | E53: 14.1 | F53: 1.41 | G53: 13.7 | H53: 1.37 | I53: 6.8 | J53: 0.68 | K53: 0 | L53: 0 | Q53: M85+ | R53: 37.3 | S53: 3.73 | T53: 14.1 | U53: 1.41 | V53: 13.7 | W53: 1.37 | X53: 6.8 | Y53: 0.68 | Z53: 0 | AA53: 0
B55: F15-19 | C55: 37.3 | D55: 3.73 | E55: 14.1 | F55: 1.41 | G55: 13.7 | H55: 1.37 | I55: 6.8 | J55: 0.68 | K55: 0 | L55: 0 | Q55: F15-19 | R55: 37.3 | S55: 3.73 | T55: 14.1 | U55: 1.41 | V55: 13.7 | W55: 1.37 | X55: 6.8 | Y55: 0.68 | Z55: 0 | AA55: 0
B56: F20-24 | C56: 37.3 | D56: 3.73 | E56: 14.1 | F56: 1.41 | G56: 13.7 | H56: 1.37 | I56: 6.8 | J56: 0.68 | K56: 0 | L56: 0 | Q56: F20-24 | R56: 37.3 | S56: 3.73 | T56: 14.1 | U56: 1.41 | V56: 13.7 | W56: 1.37 | X56: 6.8 | Y56: 0.68 | Z56: 0 | AA56: 0
B57: F25-29 | C57: 37.3 | D57: 3.73 | E57: 14.1 | F57: 1.41 | G57: 13.7 | H57: 1.37 | I57: 6.8 | J57: 0.68 | K57: 0 | L57: 0 | Q57: F25-29 | R57: 37.3 | S57: 3.73 | T57: 14.1 | U57: 1.41 | V57: 13.7 | W57: 1.37 | X57: 6.8 | Y57: 0.68 | Z57: 0 | AA57: 0
B58: F30-34 | C58: 37.3 | D58: 3.73 | E58: 14.1 | F58: 1.41 | G58: 13.7 | H58: 1.37 | I58: 6.8 | J58: 0.68 | K58: 0 | L58: 0 | Q58: F30-34 | R58: 37.3 | S58: 3.73 | T58: 14.1 | U58: 1.41 | V58: 13.7 | W58: 1.37 | X58: 6.8 | Y58: 0.68 | Z58: 0 | AA58: 0
B59: F35-39 | C59: 37.3 | D59: 3.73 | E59: 14.1 | F59: 1.41 | G59: 13.7 | H59: 1.37 | I59: 6.8 | J59: 0.68 | K59: 0 | L59: 0 | Q59: F35-39 | R59: 37.3 | S59: 3.73 | T59: 14.1 | U59: 1.41 | V59: 13.7 | W59: 1.37 | X59: 6.8 | Y59: 0.68 | Z59: 0 | AA59: 0
B60: F40-44 | C60: 37.3 | D60: 3.73 | E60: 14.1 | F60: 1.41 | G60: 13.7 | H60: 1.37 | I60: 6.8 | J60: 0.68 | K60: 0 | L60: 0 | Q60: F40-44 | R60: 37.3 | S60: 3.73 | T60: 14.1 | U60: 1.41 | V60: 13.7 | W60: 1.37 | X60: 6.8 | Y60: 0.68 | Z60: 0 | AA60: 0
B61: F45-49 | C61: 37.3 | D61: 3.73 | E61: 14.1 | F61: 1.41 | G61: 13.7 | H61: 1.37 | I61: 6.8 | J61: 0.68 | K61: 0 | L61: 0 | Q61: F45-49 | R61: 37.3 | S61: 3.73 | T61: 14.1 | U61: 1.41 | V61: 13.7 | W61: 1.37 | X61: 6.8 | Y61: 0.68 | Z61: 0 | AA61: 0
B62: F50-54 | C62: 37.3 | D62: 3.73 | E62: 14.1 | F62: 1.41 | G62: 13.7 | H62: 1.37 | I62: 6.8 | J62: 0.68 | K62: 0 | L62: 0 | Q62: F50-54 | R62: 37.3 | S62: 3.73 | T62: 14.1 | U62: 1.41 | V62: 13.7 | W62: 1.37 | X62: 6.8 | Y62: 0.68 | Z62: 0 | AA62: 0
B63: F55-59 | C63: 37.3 | D63: 3.73 | E63: 14.1 | F63: 1.41 | G63: 13.7 | H63: 1.37 | I63: 6.8 | J63: 0.68 | K63: 0 | L63: 0 | Q63: F55-59 | R63: 37.3 | S63: 3.73 | T63: 14.1 | U63: 1.41 | V63: 13.7 | W63: 1.37 | X63: 6.8 | Y63: 0.68 | Z63: 0 | AA63: 0
B64: F60-64 | C64: 37.3 | D64: 3.73 | E64: 14.1 | F64: 1.41 | G64: 13.7 | H64: 1.37 | I64: 6.8 | J64: 0.68 | K64: 0 | L64: 0 | Q64: F60-64 | R64: 37.3 | S64: 3.73 | T64: 14.1 | U64: 1.41 | V64: 13.7 | W64: 1.37 | X64: 6.8 | Y64: 0.68 | Z64: 0 | AA64: 0
B65: F65-69 | C65: 37.3 | D65: 3.73 | E65: 14.1 | F65: 1.41 | G65: 13.7 | H65: 1.37 | I65: 6.8 | J65: 0.68 | K65: 0 | L65: 0 | Q65: F65-69 | R65: 37.3 | S65: 3.73 | T65: 14.1 | U65: 1.41 | V65: 13.7 | W65: 1.37 | X65: 6.8 | Y65: 0.68 | Z65: 0 | AA65: 0
B66: F70-74 | C66: 37.3 | D66: 3.73 | E66: 14.1 | F66: 1.41 | G66: 13.7 | H66: 1.37 | I66: 6.8 | J66: 0.68 | K66: 0 | L66: 0 | Q66: F70-74 | R66: 37.3 | S66: 3.73 | T66: 14.1 | U66: 1.41 | V66: 13.7 | W66: 1.37 | X66: 6.8 | Y66: 0.68 | Z66: 0 | AA66: 0
B67: F75-79 | C67: 37.3 | D67: 3.73 | E67: 14.1 | F67: 1.41 | G67: 13.7 | H67: 1.37 | I67: 6.8 | J67: 0.68 | K67: 0 | L67: 0 | Q67: F75-79 | R67: 37.3 | S67: 3.73 | T67: 14.1 | U67: 1.41 | V67: 13.7 | W67: 1.37 | X67: 6.8 | Y67: 0.68 | Z67: 0 | AA67: 0
B68: F80-84 | C68: 37.3 | D68: 3.73 | E68: 14.1 | F68: 1.41 | G68: 13.7 | H68: 1.37 | I68: 6.8 | J68: 0.68 | K68: 0 | L68: 0 | Q68: F80-84 | R68: 37.3 | S68: 3.73 | T68: 14.1 | U68: 1.41 | V68: 13.7 | W68: 1.37 | X68: 6.8 | Y68: 0.68 | Z68: 0 | AA68: 0
B69: F85+ | C69: 37.3 | D69: 3.73 | E69: 14.1 | F69: 1.41 | G69: 13.7 | H69: 1.37 | I69: 6.8 | J69: 0.68 | K69: 0 | L69: 0 | Q69: F85+ | R69: 37.3 | S69: 3.73 | T69: 14.1 | U69: 1.41 | V69: 13.7 | W69: 1.37 | X69: 6.8 | Y69: 0.68 | Z69: 0 | AA69: 0
B73: Physical Activity (hrs/week) and Energy Balance | C73: Mean METhrs/wk in active pop | D73: SD METhrs/wk in active pop | E73: % sedentary | F73: MET value for non-MVPA time | G73: MET value for MVPA time | H73: Mean height (m) | I73: Mean BMI | J73: SD BMI | L73: Disable obesity? | Q73: Physical Activity (hrs/week) and Energy Balance | R73: Mean METhrs/wk in active pop | S73: SD METhrs/wk in active pop | T73: % sedentary | U73: MET value for non-MVPA time | V73: MET value for MVPA time
B74: M15-19 | C74: 30 | D74: 35 | E74: 0 | F74: 1.1 | G74: 6 | H74: 1.776 | I74: 20 | J74: 5 | L74: No | Q74: M15-19 | R74: 30 | S74: 35 | T74: 0 | U74: 1.1 | V74: 6
B75: M20-24 | C75: 30 | D75: 35 | E75: 0 | F75: 1.1 | G75: 6 | H75: 1.776 | I75: 20 | J75: 5 | Q75: M20-24 | R75: 30 | S75: 35 | T75: 0 | U75: 1.1 | V75: 6
B76: M25-29 | C76: 30 | D76: 35 | E76: 0 | F76: 1.1 | G76: 6 | H76: 1.776 | I76: 20 | J76: 5 | Q76: M25-29 | R76: 30 | S76: 35 | T76: 0 | U76: 1.1 | V76: 6
B77: M30-34: | C77: 30 | D77: 35 | E77: 0 | F77: 1.1 | G77: 6 | H77: 1.776 | I77: 20 | J77: 5 | Q77: M30-34: | R77: 30 | S77: 35 | T77: 0 | U77: 1.1 | V77: 6
B78: M35-39 | C78: 30 | D78: 35 | E78: 0 | F78: 1.1 | G78: 6 | H78: 1.776 | I78: 20 | J78: 5 | Q78: M35-39 | R78: 30 | S78: 35 | T78: 0 | U78: 1.1 | V78: 6
B79: M40-44 | C79: 30 | D79: 35 | E79: 0 | F79: 1.1 | G79: 6 | H79: 1.776 | I79: 20 | J79: 5 | Q79: M40-44 | R79: 30 | S79: 35 | T79: 0 | U79: 1.1 | V79: 6
B80: M45-49 | C80: 30 | D80: 35 | E80: 0 | F80: 1.1 | G80: 6 | H80: 1.776 | I80: 20 | J80: 5 | Q80: M45-49 | R80: 30 | S80: 35 | T80: 0 | U80: 1.1 | V80: 6
B81: M50-54 | C81: 30 | D81: 35 | E81: 0 | F81: 1.1 | G81: 6 | H81: 1.776 | I81: 20 | J81: 5 | Q81: M50-54 | R81: 30 | S81: 35 | T81: 0 | U81: 1.1 | V81: 6
B82: M55-59 | C82: 30 | D82: 35 | E82: 0 | F82: 1.1 | G82: 6 | H82: 1.776 | I82: 20 | J82: 5 | Q82: M55-59 | R82: 30 | S82: 35 | T82: 0 | U82: 1.1 | V82: 6
B83: M60-64 | C83: 30 | D83: 35 | E83: 0 | F83: 1.1 | G83: 6 | H83: 1.776 | I83: 20 | J83: 5 | Q83: M60-64 | R83: 30 | S83: 35 | T83: 0 | U83: 1.1 | V83: 6
B84: M65-69 | C84: 30 | D84: 35 | E84: 0 | F84: 1.1 | G84: 6 | H84: 1.776 | I84: 20 | J84: 5 | Q84: M65-69 | R84: 30 | S84: 35 | T84: 0 | U84: 1.1 | V84: 6
B85: M70-74 | C85: 30 | D85: 35 | E85: 0 | F85: 1.1 | G85: 6 | H85: 1.776 | I85: 20 | J85: 5 | Q85: M70-74 | R85: 30 | S85: 35 | T85: 0 | U85: 1.1 | V85: 6
B86: M75-79 | C86: 30 | D86: 35 | E86: 0 | F86: 1.1 | G86: 6 | H86: 1.776 | I86: 20 | J86: 5 | Q86: M75-79 | R86: 30 | S86: 35 | T86: 0 | U86: 1.1 | V86: 6
B87: M80-84 | C87: 30 | D87: 35 | E87: 0 | F87: 1.1 | G87: 6 | H87: 1.776 | I87: 20 | J87: 5 | Q87: M80-84 | R87: 30 | S87: 35 | T87: 0 | U87: 1.1 | V87: 6
B88: M85+ | C88: 30 | D88: 35 | E88: 0 | F88: 1.1 | G88: 6 | H88: 1.776 | I88: 20 | J88: 5 | Q88: M85+ | R88: 30 | S88: 35 | T88: 0 | U88: 1.1 | V88: 6
B90: F15-19 | C90: 30 | D90: 35 | E90: 0 | F90: 1.1 | G90: 6 | H90: 1.776 | I90: 20 | J90: 5 | Q90: F15-19 | R90: 30 | S90: 35 | T90: 0 | U90: 1.1 | V90: 6
B91: F20-24 | C91: 30 | D91: 35 | E91: 0 | F91: 1.1 | G91: 6 | H91: 1.776 | I91: 20 | J91: 5 | Q91: F20-24 | R91: 30 | S91: 35 | T91: 0 | U91: 1.1 | V91: 6
B92: F25-29 | C92: 30 | D92: 35 | E92: 0 | F92: 1.1 | G92: 6 | H92: 1.776 | I92: 20 | J92: 5 | Q92: F25-29 | R92: 30 | S92: 35 | T92: 0 | U92: 1.1 | V92: 6
B93: F30-34 | C93: 30 | D93: 35 | E93: 0 | F93: 1.1 | G93: 6 | H93: 1.776 | I93: 20 | J93: 5 | Q93: F30-34 | R93: 30 | S93: 35 | T93: 0 | U93: 1.1 | V93: 6
B94: F35-39 | C94: 30 | D94: 35 | E94: 0 | F94: 1.1 | G94: 6 | H94: 1.776 | I94: 20 | J94: 5 | Q94: F35-39 | R94: 30 | S94: 35 | T94: 0 | U94: 1.1 | V94: 6
B95: F40-44 | C95: 30 | D95: 35 | E95: 0 | F95: 1.1 | G95: 6 | H95: 1.776 | I95: 20 | J95: 5 | Q95: F40-44 | R95: 30 | S95: 35 | T95: 0 | U95: 1.1 | V95: 6
B96: F45-49 | C96: 30 | D96: 35 | E96: 0 | F96: 1.1 | G96: 6 | H96: 1.776 | I96: 20 | J96: 5 | Q96: F45-49 | R96: 30 | S96: 35 | T96: 0 | U96: 1.1 | V96: 6
B97: F50-54 | C97: 30 | D97: 35 | E97: 0 | F97: 1.1 | G97: 6 | H97: 1.776 | I97: 20 | J97: 5 | Q97: F50-54 | R97: 30 | S97: 35 | T97: 0 | U97: 1.1 | V97: 6
B98: F55-59 | C98: 30 | D98: 35 | E98: 0 | F98: 1.1 | G98: 6 | H98: 1.776 | I98: 20 | J98: 5 | Q98: F55-59 | R98: 30 | S98: 35 | T98: 0 | U98: 1.1 | V98: 6
B99: F60-64 | C99: 30 | D99: 35 | E99: 0 | F99: 1.1 | G99: 6 | H99: 1.776 | I99: 20 | J99: 5 | Q99: F60-64 | R99: 30 | S99: 35 | T99: 0 | U99: 1.1 | V99: 6
B100: F65-69 | C100: 30 | D100: 35 | E100: 0 | F100: 1.1 | G100: 6 | H100: 1.776 | I100: 20 | J100: 5 | Q100: F65-69 | R100: 30 | S100: 35 | T100: 0 | U100: 1.1 | V100: 6
B101: F70-74 | C101: 30 | D101: 35 | E101: 0 | F101: 1.1 | G101: 6 | H101: 1.776 | I101: 20 | J101: 5 | Q101: F70-74 | R101: 30 | S101: 35 | T101: 0 | U101: 1.1 | V101: 6
B102: F75-79 | C102: 30 | D102: 35 | E102: 0 | F102: 1.1 | G102: 6 | H102: 1.776 | I102: 20 | J102: 5 | Q102: F75-79 | R102: 30 | S102: 35 | T102: 0 | U102: 1.1 | V102: 6
B103: F80-84 | C103: 30 | D103: 35 | E103: 0 | F103: 1.1 | G103: 6 | H103: 1.776 | I103: 20 | J103: 5 | Q103: F80-84 | R103: 30 | S103: 35 | T103: 0 | U103: 1.1 | V103: 6
B104: F85+ | C104: 30 | D104: 35 | E104: 0 | F104: 1.1 | G104: 6 | H104: 1.776 | I104: 20 | J104: 5 | Q104: F85+ | R104: 30 | S104: 35 | T104: 0 | U104: 1.1 | V104: 6
B108: Alcohol consumption (g/day) | C108: % low alcohol consumers (<1g/d) | D108: Mean alcohol consumption (g/d), drinkers | E108: SD alcohol consumption (g/d), drinkers | G108: Smoking prevalence (%) | H108: Never smoked | I108: Former smokers | J108: Current smokers | Q108: Alcohol consumption (g/day) | R108: % low alcohol consumers (<1g/d) | S108: Mean alcohol consumption (g/d), drinkers | T108: SD alcohol consumption (g/d), drinkers | V108: Smoking prevalence (%) | W108: Never smoked | X108: Former smokers | Y108: Current smokers
B109: M15-19 | C109: 20 | D109: 10 | E109: 10 | G109: M15-19 | H109: 0.5 | I109: 0.2 | J109: 0.3 | Q109: M15-19 | R109: 20 | S109: 10 | T109: 10 | V109: M15-19 | W109: 0.5 | X109: 0.2 | Y109: 0.3
B110: M20-24 | C110: 20 | D110: 10 | E110: 10 | G110: M20-24 | H110: 0.5 | I110: 0.2 | J110: 0.3 | Q110: M20-24 | R110: 20 | S110: 10 | T110: 10 | V110: M20-24 | W110: 0.5 | X110: 0.2 | Y110: 0.3
B111: M25-29 | C111: 20 | D111: 10 | E111: 10 | G111: M25-29 | H111: 0.5 | I111: 0.2 | J111: 0.3 | Q111: M25-29 | R111: 20 | S111: 10 | T111: 10 | V111: M25-29 | W111: 0.5 | X111: 0.2 | Y111: 0.3
B112: M30-34: | C112: 20 | D112: 10 | E112: 10 | G112: M30-34: | H112: 0.5 | I112: 0.2 | J112: 0.3 | Q112: M30-34: | R112: 20 | S112: 10 | T112: 10 | V112: M30-34: | W112: 0.5 | X112: 0.2 | Y112: 0.3
B113: M35-39 | C113: 20 | D113: 10 | E113: 10 | G113: M35-39 | H113: 0.5 | I113: 0.2 | J113: 0.3 | Q113: M35-39 | R113: 20 | S113: 10 | T113: 10 | V113: M35-39 | W113: 0.5 | X113: 0.2 | Y113: 0.3
B114: M40-44 | C114: 20 | D114: 10 | E114: 10 | G114: M40-44 | H114: 0.5 | I114: 0.2 | J114: 0.3 | Q114: M40-44 | R114: 20 | S114: 10 | T114: 10 | V114: M40-44 | W114: 0.5 | X114: 0.2 | Y114: 0.3
B115: M45-49 | C115: 20 | D115: 10 | E115: 10 | G115: M45-49 | H115: 0.5 | I115: 0.2 | J115: 0.3 | Q115: M45-49 | R115: 20 | S115: 10 | T115: 10 | V115: M45-49 | W115: 0.5 | X115: 0.2 | Y115: 0.3
B116: M50-54 | C116: 20 | D116: 10 | E116: 10 | G116: M50-54 | H116: 0.5 | I116: 0.2 | J116: 0.3 | Q116: M50-54 | R116: 20 | S116: 10 | T116: 10 | V116: M50-54 | W116: 0.5 | X116: 0.2 | Y116: 0.3
B117: M55-59 | C117: 20 | D117: 10 | E117: 10 | G117: M55-59 | H117: 0.5 | I117: 0.2 | J117: 0.3 | Q117: M55-59 | R117: 20 | S117: 10 | T117: 10 | V117: M55-59 | W117: 0.5 | X117: 0.2 | Y117: 0.3
B118: M60-64 | C118: 20 | D118: 10 | E118: 10 | G118: M60-64 | H118: 0.5 | I118: 0.2 | J118: 0.3 | Q118: M60-64 | R118: 20 | S118: 10 | T118: 10 | V118: M60-64 | W118: 0.5 | X118: 0.2 | Y118: 0.3
B119: M65-69 | C119: 20 | D119: 10 | E119: 10 | G119: M65-69 | H119: 0.5 | I119: 0.2 | J119: 0.3 | Q119: M65-69 | R119: 20 | S119: 10 | T119: 10 | V119: M65-69 | W119: 0.5 | X119: 0.2 | Y119: 0.3
B120: M70-74 | C120: 20 | D120: 10 | E120: 10 | G120: M70-74 | H120: 0.5 | I120: 0.2 | J120: 0.3 | Q120: M70-74 | R120: 20 | S120: 10 | T120: 10 | V120: M70-74 | W120: 0.5 | X120: 0.2 | Y120: 0.3
B121: M75-79 | C121: 20 | D121: 10 | E121: 10 | G121: M75-79 | H121: 0.5 | I121: 0.2 | J121: 0.3 | Q121: M75-79 | R121: 20 | S121: 10 | T121: 10 | V121: M75-79 | W121: 0.5 | X121: 0.2 | Y121: 0.3
B122: M80-84 | C122: 20 | D122: 10 | E122: 10 | G122: M80-84 | H122: 0.5 | I122: 0.2 | J122: 0.3 | Q122: M80-84 | R122: 20 | S122: 10 | T122: 10 | V122: M80-84 | W122: 0.5 | X122: 0.2 | Y122: 0.3
B123: M85+ | C123: 20 | D123: 10 | E123: 10 | G123: M85+ | H123: 0.5 | I123: 0.2 | J123: 0.3 | Q123: M85+ | R123: 20 | S123: 10 | T123: 10 | V123: M85+ | W123: 0.5 | X123: 0.2 | Y123: 0.3
B125: F15-19 | C125: 20 | D125: 10 | E125: 10 | G125: F15-19 | H125: 0.5 | I125: 0.2 | J125: 0.3 | Q125: F15-19 | R125: 20 | S125: 10 | T125: 10 | V125: F15-19 | W125: 0.5 | X125: 0.2 | Y125: 0.3
B126: F20-24 | C126: 20 | D126: 10 | E126: 10 | G126: F20-24 | H126: 0.5 | I126: 0.2 | J126: 0.3 | Q126: F20-24 | R126: 20 | S126: 10 | T126: 10 | V126: F20-24 | W126: 0.5 | X126: 0.2 | Y126: 0.3
B127: F25-29 | C127: 20 | D127: 10 | E127: 10 | G127: F25-29 | H127: 0.5 | I127: 0.2 | J127: 0.3 | Q127: F25-29 | R127: 20 | S127: 10 | T127: 10 | V127: F25-29 | W127: 0.5 | X127: 0.2 | Y127: 0.3
B128: F30-34 | C128: 20 | D128: 10 | E128: 10 | G128: F30-34 | H128: 0.5 | I128: 0.2 | J128: 0.3 | Q128: F30-34 | R128: 20 | S128: 10 | T128: 10 | V128: F30-34 | W128: 0.5 | X128: 0.2 | Y128: 0.3
B129: F35-39 | C129: 20 | D129: 10 | E129: 10 | G129: F35-39 | H129: 0.5 | I129: 0.2 | J129: 0.3 | Q129: F35-39 | R129: 20 | S129: 10 | T129: 10 | V129: F35-39 | W129: 0.5 | X129: 0.2 | Y129: 0.3
B130: F40-44 | C130: 20 | D130: 10 | E130: 10 | G130: F40-44 | H130: 0.5 | I130: 0.2 | J130: 0.3 | Q130: F40-44 | R130: 20 | S130: 10 | T130: 10 | V130: F40-44 | W130: 0.5 | X130: 0.2 | Y130: 0.3
B131: F45-49 | C131: 20 | D131: 10 | E131: 10 | G131: F45-49 | H131: 0.5 | I131: 0.2 | J131: 0.3 | Q131: F45-49 | R131: 20 | S131: 10 | T131: 10 | V131: F45-49 | W131: 0.5 | X131: 0.2 | Y131: 0.3
B132: F50-54 | C132: 20 | D132: 10 | E132: 10 | G132: F50-54 | H132: 0.5 | I132: 0.2 | J132: 0.3 | Q132: F50-54 | R132: 20 | S132: 10 | T132: 10 | V132: F50-54 | W132: 0.5 | X132: 0.2 | Y132: 0.3
B133: F55-59 | C133: 20 | D133: 10 | E133: 10 | G133: F55-59 | H133: 0.5 | I133: 0.2 | J133: 0.3 | Q133: F55-59 | R133: 20 | S133: 10 | T133: 10 | V133: F55-59 | W133: 0.5 | X133: 0.2 | Y133: 0.3
B134: F60-64 | C134: 20 | D134: 10 | E134: 10 | G134: F60-64 | H134: 0.5 | I134: 0.2 | J134: 0.3 | Q134: F60-64 | R134: 20 | S134: 10 | T134: 10 | V134: F60-64 | W134: 0.5 | X134: 0.2 | Y134: 0.3
B135: F65-69 | C135: 20 | D135: 10 | E135: 10 | G135: F65-69 | H135: 0.5 | I135: 0.2 | J135: 0.3 | Q135: F65-69 | R135: 20 | S135: 10 | T135: 10 | V135: F65-69 | W135: 0.5 | X135: 0.2 | Y135: 0.3
B136: F70-74 | C136: 20 | D136: 10 | E136: 10 | G136: F70-74 | H136: 0.5 | I136: 0.2 | J136: 0.3 | Q136: F70-74 | R136: 20 | S136: 10 | T136: 10 | V136: F70-74 | W136: 0.5 | X136: 0.2 | Y136: 0.3
B137: F75-79 | C137: 20 | D137: 10 | E137: 10 | G137: F75-79 | H137: 0.5 | I137: 0.2 | J137: 0.3 | Q137: F75-79 | R137: 20 | S137: 10 | T137: 10 | V137: F75-79 | W137: 0.5 | X137: 0.2 | Y137: 0.3
B138: F80-84 | C138: 20 | D138: 10 | E138: 10 | G138: F80-84 | H138: 0.5 | I138: 0.2 | J138: 0.3 | Q138: F80-84 | R138: 20 | S138: 10 | T138: 10 | V138: F80-84 | W138: 0.5 | X138: 0.2 | Y138: 0.3
B139: F85+ | C139: 20 | D139: 10 | E139: 10 | G139: F85+ | H139: 0.5 | I139: 0.2 | J139: 0.3 | Q139: F85+ | R139: 20 | S139: 10 | T139: 10 | V139: F85+ | W139: 0.5 | X139: 0.2 | Y139: 0.3

Sheet Population & Mortality
A1: =Monte_Carlo_Answer -> No
A2: Population:
B3: Male | C3: Female
A4: 15-19 | B4: 1000 | C4: 1000
A5: 20-24 | B5: 1000 | C5: 1000
A6: 25-29 | B6: 1000 | C6: 1000
A7: 30-34 | B7: 1000 | C7: 1000
A8: 35-39 | B8: 1000 | C8: 1000
A9: 40-44 | B9: 1000 | C9: 1000
A10: 45-49 | B10: 1000 | C10: 1000
A11: 50-54 | B11: 1000 | C11: 1000
A12: 55-59 | B12: 1000 | C12: 1000
A13: 60-64 | B13: 1000 | C13: 1000
A14: 65-69 | B14: 1000 | C14: 1000
A15: 70-74 | B15: 1000 | C15: 1000
A16: 75-79 | B16: 1000 | C16: 1000
A17: 80-84 | B17: 1000 | C17: 1000
A18: 85+ | B18: 1000 | C18: 1000
A20: Mortality:
B21: I60-I69: Cerebrovascular diseases | C21: I20-I25: Ischaemic heart diseases | D21: C00-C14: Lip, oral cavity and pharynx | E21: C15: Oesophagus | F21: C16: Stomach | G21: C34: Bronchus and lung | H21: C25: Pancreas | I21: C18-20: Colorectum | J21: C50: Breast | K21: C54.1: Endometrium | L21: C23: Gallbladder | M21: C64: Kidney | N21: I10-I15: Hypertensive disease | O21: E11,E14: Diabetes | P21: C67: Bladder cancer | Q21: C22: Liver cancer | R21: C53: Cervix cancer | S21: J40-J44: Chronic obstructive pulmonary disease | T21: K70, K74: Liver disease | U21: I50: Heart failure | V21: I71: Aortic aneurysm | W21: I26: Pulmonary embolism | X21: I05-09: Rheumatic heart disease | Y21: N18: Chronic renal failure | Z21: Total
A22: M15-19 | B22: 1 | C22: 1 | D22: 1 | E22: 1 | F22: 1 | G22: 1 | H22: 1 | I22: 1 | J22: 1 | K22: 1 | L22: 1 | M22: 1 | N22: 1 | O22: 1 | P22: 1 | Q22: 1 | R22: 1 | S22: 1 | T22: 1 | U22: 1 | V22: 1 | W22: 1 | X22: 1 | Y22: 1 | Z22: 0
A23: M20-24 | B23: 1 | C23: 1 | D23: 1 | E23: 1 | F23: 1 | G23: 1 | H23: 1 | I23: 1 | J23: 1 | K23: 1 | L23: 1 | M23: 1 | N23: 1 | O23: 1 | P23: 1 | Q23: 1 | R23: 1 | S23: 1 | T23: 1 | U23: 1 | V23: 1 | W23: 1 | X23: 1 | Y23: 1 | Z23: 0
A24: M25-29 | B24: 1 | C24: 1 | D24: 1 | E24: 1 | F24: 1 | G24: 1 | H24: 1 | I24: 1 | J24: 1 | K24: 1 | L24: 1 | M24: 1 | N24: 1 | O24: 1 | P24: 1 | Q24: 1 | R24: 1 | S24: 1 | T24: 1 | U24: 1 | V24: 1 | W24: 1 | X24: 1 | Y24: 1 | Z24: 0
A25: M30-34 | B25: 1 | C25: 1 | D25: 1 | E25: 1 | F25: 1 | G25: 1 | H25: 1 | I25: 1 | J25: 1 | K25: 1 | L25: 1 | M25: 1 | N25: 1 | O25: 1 | P25: 1 | Q25: 1 | R25: 1 | S25: 1 | T25: 1 | U25: 1 | V25: 1 | W25: 1 | X25: 1 | Y25: 1 | Z25: 0
A26: M35-39 | B26: 1 | C26: 1 | D26: 1 | E26: 1 | F26: 1 | G26: 1 | H26: 1 | I26: 1 | J26: 1 | K26: 1 | L26: 1 | M26: 1 | N26: 1 | O26: 1 | P26: 1 | Q26: 1 | R26: 1 | S26: 1 | T26: 1 | U26: 1 | V26: 1 | W26: 1 | X26: 1 | Y26: 1 | Z26: 0
A27: M40-44 | B27: 1 | C27: 1 | D27: 1 | E27: 1 | F27: 1 | G27: 1 | H27: 1 | I27: 1 | J27: 1 | K27: 1 | L27: 1 | M27: 1 | N27: 1 | O27: 1 | P27: 1 | Q27: 1 | R27: 1 | S27: 1 | T27: 1 | U27: 1 | V27: 1 | W27: 1 | X27: 1 | Y27: 1 | Z27: 0
A28: M45-49 | B28: 1 | C28: 1 | D28: 1 | E28: 1 | F28: 1 | G28: 1 | H28: 1 | I28: 1 | J28: 1 | K28: 1 | L28: 1 | M28: 1 | N28: 1 | O28: 1 | P28: 1 | Q28: 1 | R28: 1 | S28: 1 | T28: 1 | U28: 1 | V28: 1 | W28: 1 | X28: 1 | Y28: 1 | Z28: 0
A29: M50-54 | B29: 1 | C29: 1 | D29: 1 | E29: 1 | F29: 1 | G29: 1 | H29: 1 | I29: 1 | J29: 1 | K29: 1 | L29: 1 | M29: 1 | N29: 1 | O29: 1 | P29: 1 | Q29: 1 | R29: 1 | S29: 1 | T29: 1 | U29: 1 | V29: 1 | W29: 1 | X29: 1 | Y29: 1 | Z29: 0
A30: M55-59 | B30: 1 | C30: 1 | D30: 1 | E30: 1 | F30: 1 | G30: 1 | H30: 1 | I30: 1 | J30: 1 | K30: 1 | L30: 1 | M30: 1 | N30: 1 | O30: 1 | P30: 1 | Q30: 1 | R30: 1 | S30: 1 | T30: 1 | U30: 1 | V30: 1 | W30: 1 | X30: 1 | Y30: 1 | Z30: 0
A31: M60-64 | B31: 1 | C31: 1 | D31: 1 | E31: 1 | F31: 1 | G31: 1 | H31: 1 | I31: 1 | J31: 1 | K31: 1 | L31: 1 | M31: 1 | N31: 1 | O31: 1 | P31: 1 | Q31: 1 | R31: 1 | S31: 1 | T31: 1 | U31: 1 | V31: 1 | W31: 1 | X31: 1 | Y31: 1 | Z31: 0
A32: M65-69 | B32: 1 | C32: 1 | D32: 1 | E32: 1 | F32: 1 | G32: 1 | H32: 1 | I32: 1 | J32: 1 | K32: 1 | L32: 1 | M32: 1 | N32: 1 | O32: 1 | P32: 1 | Q32: 1 | R32: 1 | S32: 1 | T32: 1 | U32: 1 | V32: 1 | W32: 1 | X32: 1 | Y32: 1 | Z32: 0
A33: M70-74 | B33: 1 | C33: 1 | D33: 1 | E33: 1 | F33: 1 | G33: 1 | H33: 1 | I33: 1 | J33: 1 | K33: 1 | L33: 1 | M33: 1 | N33: 1 | O33: 1 | P33: 1 | Q33: 1 | R33: 1 | S33: 1 | T33: 1 | U33: 1 | V33: 1 | W33: 1 | X33: 1 | Y33: 1 | Z33: 0
A34: M75-79 | B34: 1 | C34: 1 | D34: 1 | E34: 1 | F34: 1 | G34: 1 | H34: 1 | I34: 1 | J34: 1 | K34: 1 | L34: 1 | M34: 1 | N34: 1 | O34: 1 | P34: 1 | Q34: 1 | R34: 1 | S34: 1 | T34: 1 | U34: 1 | V34: 1 | W34: 1 | X34: 1 | Y34: 1 | Z34: 0
A35: M80-84 | B35: 1 | C35: 1 | D35: 1 | E35: 1 | F35: 1 | G35: 1 | H35: 1 | I35: 1 | J35: 1 | K35: 1 | L35: 1 | M35: 1 | N35: 1 | O35: 1 | P35: 1 | Q35: 1 | R35: 1 | S35: 1 | T35: 1 | U35: 1 | V35: 1 | W35: 1 | X35: 1 | Y35: 1 | Z35: 0
A36: M85+ | B36: 1 | C36: 1 | D36: 1 | E36: 1 | F36: 1 | G36: 1 | H36: 1 | I36: 1 | J36: 1 | K36: 1 | L36: 1 | M36: 1 | N36: 1 | O36: 1 | P36: 1 | Q36: 1 | R36: 1 | S36: 1 | T36: 1 | U36: 1 | V36: 1 | W36: 1 | X36: 1 | Y36: 1 | Z36: 0
A37: Total | B37: 0 | C37: 0 | D37: 0 | E37: 0 | F37: 0 | G37: 0 | H37: 0 | I37: 0 | J37: 0 | K37: 0 | L37: 0 | M37: 0 | N37: 0 | O37: 0 | P37: 0 | Q37: 0 | R37: 0 | S37: 0 | T37: 0 | U37: 0 | V37: 0 | W37: 0 | X37: 0 | Y37: 0 | Z37: 0
A39: F15-19 | B39: 1 | C39: 1 | D39: 1 | E39: 1 | F39: 1 | G39: 1 | H39: 1 | I39: 1 | J39: 1 | K39: 1 | L39: 1 | M39: 1 | N39: 1 | O39: 1 | P39: 1 | Q39: 1 | R39: 1 | S39: 1 | T39: 1 | U39: 1 | V39: 1 | W39: 1 | X39: 1 | Y39: 1 | Z39: 0
A40: F20-24 | B40: 1 | C40: 1 | D40: 1 | E40: 1 | F40: 1 | G40: 1 | H40: 1 | I40: 1 | J40: 1 | K40: 1 | L40: 1 | M40: 1 | N40: 1 | O40: 1 | P40: 1 | Q40: 1 | R40: 1 | S40: 1 | T40: 1 | U40: 1 | V40: 1 | W40: 1 | X40: 1 | Y40: 1 | Z40: 0
A41: F25-29 | B41: 1 | C41: 1 | D41: 1 | E41: 1 | F41: 1 | G41: 1 | H41: 1 | I41: 1 | J41: 1 | K41: 1 | L41: 1 | M41: 1 | N41: 1 | O41: 1 | P41: 1 | Q41: 1 | R41: 1 | S41: 1 | T41: 1 | U41: 1 | V41: 1 | W41: 1 | X41: 1 | Y41: 1 | Z41: 0
A42: F30-34 | B42: 1 | C42: 1 | D42: 1 | E42: 1 | F42: 1 | G42: 1 | H42: 1 | I42: 1 | J42: 1 | K42: 1 | L42: 1 | M42: 1 | N42: 1 | O42: 1 | P42: 1 | Q42: 1 | R42: 1 | S42: 1 | T42: 1 | U42: 1 | V42: 1 | W42: 1 | X42: 1 | Y42: 1 | Z42: 0
A43: F35-39 | B43: 1 | C43: 1 | D43: 1 | E43: 1 | F43: 1 | G43: 1 | H43: 1 | I43: 1 | J43: 1 | K43: 1 | L43: 1 | M43: 1 | N43: 1 | O43: 1 | P43: 1 | Q43: 1 | R43: 1 | S43: 1 | T43: 1 | U43: 1 | V43: 1 | W43: 1 | X43: 1 | Y43: 1 | Z43: 0
A44: F40-44 | B44: 1 | C44: 1 | D44: 1 | E44: 1 | F44: 1 | G44: 1 | H44: 1 | I44: 1 | J44: 1 | K44: 1 | L44: 1 | M44: 1 | N44: 1 | O44: 1 | P44: 1 | Q44: 1 | R44: 1 | S44: 1 | T44: 1 | U44: 1 | V44: 1 | W44: 1 | X44: 1 | Y44: 1 | Z44: 0
A45: F45-49 | B45: 1 | C45: 1 | D45: 1 | E45: 1 | F45: 1 | G45: 1 | H45: 1 | I45: 1 | J45: 1 | K45: 1 | L45: 1 | M45: 1 | N45: 1 | O45: 1 | P45: 1 | Q45: 1 | R45: 1 | S45: 1 | T45: 1 | U45: 1 | V45: 1 | W45: 1 | X45: 1 | Y45: 1 | Z45: 0
A46: F50-54 | B46: 1 | C46: 1 | D46: 1 | E46: 1 | F46: 1 | G46: 1 | H46: 1 | I46: 1 | J46: 1 | K46: 1 | L46: 1 | M46: 1 | N46: 1 | O46: 1 | P46: 1 | Q46: 1 | R46: 1 | S46: 1 | T46: 1 | U46: 1 | V46: 1 | W46: 1 | X46: 1 | Y46: 1 | Z46: 0
A47: F55-59 | B47: 1 | C47: 1 | D47: 1 | E47: 1 | F47: 1 | G47: 1 | H47: 1 | I47: 1 | J47: 1 | K47: 1 | L47: 1 | M47: 1 | N47: 1 | O47: 1 | P47: 1 | Q47: 1 | R47: 1 | S47: 1 | T47: 1 | U47: 1 | V47: 1 | W47: 1 | X47: 1 | Y47: 1 | Z47: 0
A48: F60-64 | B48: 1 | C48: 1 | D48: 1 | E48: 1 | F48: 1 | G48: 1 | H48: 1 | I48: 1 | J48: 1 | K48: 1 | L48: 1 | M48: 1 | N48: 1 | O48: 1 | P48: 1 | Q48: 1 | R48: 1 | S48: 1 | T48: 1 | U48: 1 | V48: 1 | W48: 1 | X48: 1 | Y48: 1 | Z48: 0
A49: F65-69 | B49: 1 | C49: 1 | D49: 1 | E49: 1 | F49: 1 | G49: 1 | H49: 1 | I49: 1 | J49: 1 | K49: 1 | L49: 1 | M49: 1 | N49: 1 | O49: 1 | P49: 1 | Q49: 1 | R49: 1 | S49: 1 | T49: 1 | U49: 1 | V49: 1 | W49: 1 | X49: 1 | Y49: 1 | Z49: 0
A50: F70-74 | B50: 1 | C50: 1 | D50: 1 | E50: 1 | F50: 1 | G50: 1 | H50: 1 | I50: 1 | J50: 1 | K50: 1 | L50: 1 | M50: 1 | N50: 1 | O50: 1 | P50: 1 | Q50: 1 | R50: 1 | S50: 1 | T50: 1 | U50: 1 | V50: 1 | W50: 1 | X50: 1 | Y50: 1 | Z50: 0
A51: F75-79 | B51: 1 | C51: 1 | D51: 1 | E51: 1 | F51: 1 | G51: 1 | H51: 1 | I51: 1 | J51: 1 | K51: 1 | L51: 1 | M51: 1 | N51: 1 | O51: 1 | P51: 1 | Q51: 1 | R51: 1 | S51: 1 | T51: 1 | U51: 1 | V51: 1 | W51: 1 | X51: 1 | Y51: 1 | Z51: 0
A52: F80-84 | B52: 1 | C52: 1 | D52: 1 | E52: 1 | F52: 1 | G52: 1 | H52: 1 | I52: 1 | J52: 1 | K52: 1 | L52: 1 | M52: 1 | N52: 1 | O52: 1 | P52: 1 | Q52: 1 | R52: 1 | S52: 1 | T52: 1 | U52: 1 | V52: 1 | W52: 1 | X52: 1 | Y52: 1 | Z52: 0
A53: F85+ | B53: 1 | C53: 1 | D53: 1 | E53: 1 | F53: 1 | G53: 1 | H53: 1 | I53: 1 | J53: 1 | K53: 1 | L53: 1 | M53: 1 | N53: 1 | O53: 1 | P53: 1 | Q53: 1 | R53: 1 | S53: 1 | T53: 1 | U53: 1 | V53: 1 | W53: 1 | X53: 1 | Y53: 1 | Z53: 0
A54: Total | B54: 0 | C54: 0 | D54: 0 | E54: 0 | F54: 0 | G54: 0 | H54: 0 | I54: 0 | J54: 0 | K54: 0 | L54: 0 | M54: 0 | N54: 0 | O54: 0 | P54: 0 | Q54: 0 | R54: 0 | S54: 0 | T54: 0 | U54: 0 | V54: 0 | W54: 0 | X54: 0 | Y54: 0 | Z54: 0

Sheet Results
A1: =Monte_Carlo_Answer -> No
L2: I60-I69: Cerebrovascular diseases | N2: I20-I25: Ischaemic heart diseases | P2: C00-C14: Lip, oral cavity and pharynx | R2: C15: Oesophagus | T2: C16: Stomach | V2: C34: Bronchus and lung | X2: C25: Pancreas | Z2: C18-20: Colorectum | AB2: C50: Breast | AD2: C54.1: Endometrium | AF2: C23: Gallbladder | AH2: C64: Kidney | AJ2: I10-I15: Hypertensive disease | AL2: E11,E14: Diabetes | AN2: C67: Bladder cancer | AP2: C22: Liver cancer | AR2: C53: Cervix cancer | AT2: J40-J44: Chronic obstructive pulmonary disease | AV2: K70, K74: Liver disease | AX2: I50: Heart failure | AZ2: I71: Aortic aneurysm | BB2: I26: Pulmonary embolism | BD2: I05-09: Rheumatic heart disease | BF2: N18: Chronic renal failure | BH2: Total baseline | BI2: Total counterfactual | BJ2: Change
A3: Deaths averted or delayed: | D3: Deaths averted or delayed by cause: | G3: Deaths averted or delayed by behavioural risk factor: | K3: M15-19 | L3: =b_m_stroke_deaths -> 1 | M3: =d_m_smoking_stroke -> 1 | N3: =b_m_ischaemic_heart_diseases_deaths -> 1 | O3: =d_m_smoking_CHD -> 1 | P3: =b_m_cancer_MLP_deaths -> 1 | Q3: =d_m_smoking_cancer_MLP -> 1 | R3: =b_m_cancer_oesophagus_deaths -> 1 | S3: =d_m_smoking_cancer_oesophagus -> 1 | T3: =b_m_cancer_stomach_deaths -> 1 | U3: =d_m_smoking_cancer_stomach -> 1 | V3: =b_m_cancer_bronchuslung_deaths -> 1 | W3: =d_m_smoking_cancer_bronchuslung -> 1 | X3: =b_m_cancer_pancreas_deaths -> 1 | Y3: =d_m_smoking_cancer_pancreas -> 1 | Z3: =b_m_cancer_colorectum_deaths -> 1 | AA3: =d_m_smoking_cancer_colorectum -> 1 | AB3: =b_m_cancer_breast_deaths -> 1 | AC3: =d_m_smoking_cancer_breast -> 1 | AD3: =b_m_cancer_endometrium_deaths -> 1 | AE3: =d_m_smoking_cancer_endometrium -> 1 | AF3: =b_m_cancer_gallbladder_deaths -> 1 | AG3: =d_m_smoking_cancer_gallbladder -> 1 | AH3: =b_m_cancer_kidney_deaths -> 1 | AI3: =d_m_smoking_cancer_kidney -> 1 | AJ3: =b_m_hypertensive_disease_deaths -> 1 | AK3: =d_m_smoking_hypertensive_disease -> 1 | AL3: =b_m_diabetes_deaths -> 1 | AM3: =d_m_smoking_diabetes -> 1 | AN3: =b_m_cancer_bladder_deaths -> 1 | AO3: =d_m_smoking_cancer_bladder -> 1 | AP3: =b_m_cancer_liver_deaths -> 1 | AQ3: =d_m_smoking_cancer_liver -> 1 | AR3: =b_m_cancer_cervix_deaths -> 1 | AS3: =d_m_smoking_cancer_cervix -> 1 | AT3: =b_m_COPD_deaths -> 1 | AU3: =d_m_smoking_COPD -> 1 | AV3: =b_m_liver_disease_deaths -> 1 | AW3: =d_m_smoking_liver_disease -> 1 | AX3: =b_m_heart_failure_deaths -> 1 | AY3: =d_m_smoking_heart_failure -> 1 | AZ3: =b_m_aortic_aneurysm_deaths -> 1 | BA3: =d_m_smoking_aortic_aneurysm -> 1 | BB3: =b_m_pulmonary_embolism_deaths -> 1 | BC3: =d_m_smoking_pulmonary_embolism -> 1 | BD3: =b_m_rheumatic_heart_disease_deaths -> 1 | BE3: =d_m_smoking_rheumatic_heart_disease -> 1 | BF3: =b_m_chronic_renal_failure_deaths -> 1 | BG3: =d_m_smoking_chronic_renal_failure -> 1 | BH3: =SUM(L3,N3,P3,R3,T3,V3,X3,Z3,AB3,AD3,AF3,AH3,AJ3,AL3,AN3,AP3,AR3,AT3,AV3,AX3,AZ3,BB3,BD3,BF3) -> 24 | BI3: =SUM(M3,O3,Q3,S3,U3,W3,Y3,AA3,AC3,AE3,AG3,AI3,AK3,AM3,AO3,AQ3,AS3,AU3,AW3,AY3,BA3,BC3,BE3,BG3) -> 24 | BJ3: =BH3-BI3 -> 0
A4: Total | B4: =BJ37 -> 0 | D4: Cardiovascular disease | E4: =SUM(E5:E11) -> 0 | G4: Diet (excluding obesity) | H4: =c_diet_exc_BMI_death_change -> 0 | K4: M20-24 | L4: 1 | M4: 1 | N4: 1 | O4: 1 | P4: 1 | Q4: 1 | R4: 1 | S4: 1 | T4: 1 | U4: 1 | V4: 1 | W4: 1 | X4: 1 | Y4: 1 | Z4: 1 | AA4: 1 | AB4: 1 | AC4: 1 | AD4: 1 | AE4: 1 | AF4: 1 | AG4: 1 | AH4: 1 | AI4: 1 | AJ4: 1 | AK4: 1 | AL4: 1 | AM4: 1 | AN4: 1 | AO4: 1 | AP4: 1 | AQ4: 1 | AR4: 1 | AS4: 1 | AT4: 1 | AU4: 1 | AV4: 1 | AW4: 1 | AX4: 1 | AY4: 1 | AZ4: 1 | BA4: 1 | BB4: 1 | BC4: 1 | BD4: 1 | BE4: 1 | BF4: 1 | BG4: 1 | BH4: =SUM(L4,N4,P4,R4,T4,V4,X4,Z4,AB4,AD4,AF4,AH4,AJ4,AL4,AN4,AP4,AR4,AT4,AV4,AX4,AZ4,BB4,BD4,BF4) -> 24 | BI4: =SUM(M4,O4,Q4,S4,U4,W4,Y4,AA4,AC4,AE4,AG4,AI4,AK4,AM4,AO4,AQ4,AS4,AU4,AW4,AY4,BA4,BC4,BE4,BG4) -> 24 | BJ4: =BH4-BI4 -> 0
A5: Under 75 | B5: =SUM(BJ3:BJ14)+SUM(BJ20:BJ31) -> 0 | D5: Coronary heart disease | E5: =N37-O37 -> 0 | G5: Diet (including obesity) | H5: =IF(disable_obesity_answer="No", c_diet_inc_BMI_death_change, IF(disable_obesity_answer="Yes", "Disabled", "Error")) -> 0 | K5: M25-29 | L5: 1 | M5: 1 | N5: 1 | O5: 1 | P5: 1 | Q5: 1 | R5: 1 | S5: 1 | T5: 1 | U5: 1 | V5: 1 | W5: 1 | X5: 1 | Y5: 1 | Z5: 1 | AA5: 1 | AB5: 1 | AC5: 1 | AD5: 1 | AE5: 1 | AF5: 1 | AG5: 1 | AH5: 1 | AI5: 1 | AJ5: 1 | AK5: 1 | AL5: 1 | AM5: 1 | AN5: 1 | AO5: 1 | AP5: 1 | AQ5: 1 | AR5: 1 | AS5: 1 | AT5: 1 | AU5: 1 | AV5: 1 | AW5: 1 | AX5: 1 | AY5: 1 | AZ5: 1 | BA5: 1 | BB5: 1 | BC5: 1 | BD5: 1 | BE5: 1 | BF5: 1 | BG5: 1 | BH5: 24 | BI5: 24 | BJ5: 0
D6: Stroke | E6: =L37-M37 -> 0 | G6: Fruit and vegetables | H6: =c_fruitveg_death_change -> 0 | K6: M30-34 | L6: 1 | M6: 1 | N6: 1 | O6: 1 | P6: 1 | Q6: 1 | R6: 1 | S6: 1 | T6: 1 | U6: 1 | V6: 1 | W6: 1 | X6: 1 | Y6: 1 | Z6: 1 | AA6: 1 | AB6: 1 | AC6: 1 | AD6: 1 | AE6: 1 | AF6: 1 | AG6: 1 | AH6: 1 | AI6: 1 | AJ6: 1 | AK6: 1 | AL6: 1 | AM6: 1 | AN6: 1 | AO6: 1 | AP6: 1 | AQ6: 1 | AR6: 1 | AS6: 1 | AT6: 1 | AU6: 1 | AV6: 1 | AW6: 1 | AX6: 1 | AY6: 1 | AZ6: 1 | BA6: 1 | BB6: 1 | BC6: 1 | BD6: 1 | BE6: 1 | BF6: 1 | BG6: 1 | BH6: 24 | BI6: 24 | BJ6: 0
A7: Male | B7: =BJ18 -> 0 | D7: Heart failure | E7: =AX37-AY37 -> 0 | G7: Fibre | H7: =c_fibre_death_change -> 0 | K7: M35-39 | L7: 1 | M7: 1 | N7: 1 | O7: 1 | P7: 1 | Q7: 1 | R7: 1 | S7: 1 | T7: 1 | U7: 1 | V7: 1 | W7: 1 | X7: 1 | Y7: 1 | Z7: 1 | AA7: 1 | AB7: 1 | AC7: 1 | AD7: 1 | AE7: 1 | AF7: 1 | AG7: 1 | AH7: 1 | AI7: 1 | AJ7: 1 | AK7: 1 | AL7: 1 | AM7: 1 | AN7: 1 | AO7: 1 | AP7: 1 | AQ7: 1 | AR7: 1 | AS7: 1 | AT7: 1 | AU7: 1 | AV7: 1 | AW7: 1 | AX7: 1 | AY7: 1 | AZ7: 1 | BA7: 1 | BB7: 1 | BC7: 1 | BD7: 1 | BE7: 1 | BF7: 1 | BG7: 1 | BH7: 24 | BI7: 24 | BJ7: 0
A8: Female | B8: =BJ35 -> 0 | D8: Aortic aneurysm | E8: =AZ37-BA37 -> 0 | G8: Fats | H8: =c_cholesterol_death_change -> 0 | K8: M40-44 | L8: 1 | M8: 1 | N8: 1 | O8: 1 | P8: 1 | Q8: 1 | R8: 1 | S8: 1 | T8: 1 | U8: 1 | V8: 1 | W8: 1 | X8: 1 | Y8: 1 | Z8: 1 | AA8: 1 | AB8: 1 | AC8: 1 | AD8: 1 | AE8: 1 | AF8: 1 | AG8: 1 | AH8: 1 | AI8: 1 | AJ8: 1 | AK8: 1 | AL8: 1 | AM8: 1 | AN8: 1 | AO8: 1 | AP8: 1 | AQ8: 1 | AR8: 1 | AS8: 1 | AT8: 1 | AU8: 1 | AV8: 1 | AW8: 1 | AX8: 1 | AY8: 1 | AZ8: 1 | BA8: 1 | BB8: 1 | BC8: 1 | BD8: 1 | BE8: 1 | BF8: 1 | BG8: 1 | BH8: 24 | BI8: 24 | BJ8: 0
D9: Pulmonary embolism | E9: =BB37-BC37 -> 0 | G9: Salt | H9: =c_salt_death_change -> 0 | K9: M45-49 | L9: 1 | M9: 1 | N9: 1 | O9: 1 | P9: 1 | Q9: 1 | R9: 1 | S9: 1 | T9: 1 | U9: 1 | V9: 1 | W9: 1 | X9: 1 | Y9: 1 | Z9: 1 | AA9: 1 | AB9: 1 | AC9: 1 | AD9: 1 | AE9: 1 | AF9: 1 | AG9: 1 | AH9: 1 | AI9: 1 | AJ9: 1 | AK9: 1 | AL9: 1 | AM9: 1 | AN9: 1 | AO9: 1 | AP9: 1 | AQ9: 1 | AR9: 1 | AS9: 1 | AT9: 1 | AU9: 1 | AV9: 1 | AW9: 1 | AX9: 1 | AY9: 1 | AZ9: 1 | BA9: 1 | BB9: 1 | BC9: 1 | BD9: 1 | BE9: 1 | BF9: 1 | BG9: 1 | BH9: 24 | BI9: 24 | BJ9: 0
A10: Male under 75 | B10: =SUM(BJ3:BJ14) -> 0 | D10: Rheumatic heart disease | E10: =BD37-BE37 -> 0 | K10: M50-54 | L10: 1 | M10: 1 | N10: 1 | O10: 1 | P10: 1 | Q10: 1 | R10: 1 | S10: 1 | T10: 1 | U10: 1 | V10: 1 | W10: 1 | X10: 1 | Y10: 1 | Z10: 1 | AA10: 1 | AB10: 1 | AC10: 1 | AD10: 1 | AE10: 1 | AF10: 1 | AG10: 1 | AH10: 1 | AI10: 1 | AJ10: 1 | AK10: 1 | AL10: 1 | AM10: 1 | AN10: 1 | AO10: 1 | AP10: 1 | AQ10: 1 | AR10: 1 | AS10: 1 | AT10: 1 | AU10: 1 | AV10: 1 | AW10: 1 | AX10: 1 | AY10: 1 | AZ10: 1 | BA10: 1 | BB10: 1 | BC10: 1 | BD10: 1 | BE10: 1 | BF10: 1 | BG10: 1 | BH10: 24 | BI10: 24 | BJ10: 0
A11: Female under 75 | B11: =SUM(BJ20:BJ31) -> 0 | D11: Hypertensive disease | E11: =AJ37-AK37 -> 0 | G11: Physical activity (excluding obesity) | H11: =c_activity_death_change -> 0 | K11: M55-59 | L11: 1 | M11: 1 | N11: 1 | O11: 1 | P11: 1 | Q11: 1 | R11: 1 | S11: 1 | T11: 1 | U11: 1 | V11: 1 | W11: 1 | X11: 1 | Y11: 1 | Z11: 1 | AA11: 1 | AB11: 1 | AC11: 1 | AD11: 1 | AE11: 1 | AF11: 1 | AG11: 1 | AH11: 1 | AI11: 1 | AJ11: 1 | AK11: 1 | AL11: 1 | AM11: 1 | AN11: 1 | AO11: 1 | AP11: 1 | AQ11: 1 | AR11: 1 | AS11: 1 | AT11: 1 | AU11: 1 | AV11: 1 | AW11: 1 | AX11: 1 | AY11: 1 | AZ11: 1 | BA11: 1 | BB11: 1 | BC11: 1 | BD11: 1 | BE11: 1 | BF11: 1 | BG11: 1 | BH11: 24 | BI11: 24 | BJ11: 0
G12: Physical activity (including obesity) | H12: =IF(disable_obesity_answer="Yes", "Disabled", IF(disable_obesity_answer="No", c_BMIactivity_death_change, "Error")) -> 0 | K12: M60-64 | L12: 1 | M12: 1 | N12: 1 | O12: 1 | P12: 1 | Q12: 1 | R12: 1 | S12: 1 | T12: 1 | U12: 1 | V12: 1 | W12: 1 | X12: 1 | Y12: 1 | Z12: 1 | AA12: 1 | AB12: 1 | AC12: 1 | AD12: 1 | AE12: 1 | AF12: 1 | AG12: 1 | AH12: 1 | AI12: 1 | AJ12: 1 | AK12: 1 | AL12: 1 | AM12: 1 | AN12: 1 | AO12: 1 | AP12: 1 | AQ12: 1 | AR12: 1 | AS12: 1 | AT12: 1 | AU12: 1 | AV12: 1 | AW12: 1 | AX12: 1 | AY12: 1 | AZ12: 1 | BA12: 1 | BB12: 1 | BC12: 1 | BD12: 1 | BE12: 1 | BF12: 1 | BG12: 1 | BH12: 24 | BI12: 24 | BJ12: 0
D13: Diabetes | E13: =AL37-AM37 -> 0 | K13: M65-69 | L13: 1 | M13: 1 | N13: 1 | O13: 1 | P13: 1 | Q13: 1 | R13: 1 | S13: 1 | T13: 1 | U13: 1 | V13: 1 | W13: 1 | X13: 1 | Y13: 1 | Z13: 1 | AA13: 1 | AB13: 1 | AC13: 1 | AD13: 1 | AE13: 1 | AF13: 1 | AG13: 1 | AH13: 1 | AI13: 1 | AJ13: 1 | AK13: 1 | AL13: 1 | AM13: 1 | AN13: 1 | AO13: 1 | AP13: 1 | AQ13: 1 | AR13: 1 | AS13: 1 | AT13: 1 | AU13: 1 | AV13: 1 | AW13: 1 | AX13: 1 | AY13: 1 | AZ13: 1 | BA13: 1 | BB13: 1 | BC13: 1 | BD13: 1 | BE13: 1 | BF13: 1 | BG13: 1 | BH13: 24 | BI13: 24 | BJ13: 0
G14: Obesity | H14: =IF(disable_obesity_answer="Yes", "Disabled", IF(disable_obesity_answer="No", c_BMI_death_change, "Error")) -> 0 | K14: M70-74 | L14: 1 | M14: 1 | N14: 1 | O14: 1 | P14: 1 | Q14: 1 | R14: 1 | S14: 1 | T14: 1 | U14: 1 | V14: 1 | W14: 1 | X14: 1 | Y14: 1 | Z14: 1 | AA14: 1 | AB14: 1 | AC14: 1 | AD14: 1 | AE14: 1 | AF14: 1 | AG14: 1 | AH14: 1 | AI14: 1 | AJ14: 1 | AK14: 1 | AL14: 1 | AM14: 1 | AN14: 1 | AO14: 1 | AP14: 1 | AQ14: 1 | AR14: 1 | AS14: 1 | AT14: 1 | AU14: 1 | AV14: 1 | AW14: 1 | AX14: 1 | AY14: 1 | AZ14: 1 | BA14: 1 | BB14: 1 | BC14: 1 | BD14: 1 | BE14: 1 | BF14: 1 | BG14: 1 | BH14: 24 | BI14: 24 | BJ14: 0
D15: Cancer | E15: =SUM(E16:E28) -> 0 | K15: M75-79 | L15: 1 | M15: 1 | N15: 1 | O15: 1 | P15: 1 | Q15: 1 | R15: 1 | S15: 1 | T15: 1 | U15: 1 | V15: 1 | W15: 1 | X15: 1 | Y15: 1 | Z15: 1 | AA15: 1 | AB15: 1 | AC15: 1 | AD15: 1 | AE15: 1 | AF15: 1 | AG15: 1 | AH15: 1 | AI15: 1 | AJ15: 1 | AK15: 1 | AL15: 1 | AM15: 1 | AN15: 1 | AO15: 1 | AP15: 1 | AQ15: 1 | AR15: 1 | AS15: 1 | AT15: 1 | AU15: 1 | AV15: 1 | AW15: 1 | AX15: 1 | AY15: 1 | AZ15: 1 | BA15: 1 | BB15: 1 | BC15: 1 | BD15: 1 | BE15: 1 | BF15: 1 | BG15: 1 | BH15: 24 | BI15: 24 | BJ15: 0
D16: Mouth, larynx and pharynx | E16: =P37-Q37 -> 0 | G16: Alcohol consumption | H16: =c_alcohol_death_change -> 0 | K16: M80-84 | L16: 1 | M16: 1 | N16: 1 | O16: 1 | P16: 1 | Q16: 1 | R16: 1 | S16: 1 | T16: 1 | U16: 1 | V16: 1 | W16: 1 | X16: 1 | Y16: 1 | Z16: 1 | AA16: 1 | AB16: 1 | AC16: 1 | AD16: 1 | AE16: 1 | AF16: 1 | AG16: 1 | AH16: 1 | AI16: 1 | AJ16: 1 | AK16: 1 | AL16: 1 | AM16: 1 | AN16: 1 | AO16: 1 | AP16: 1 | AQ16: 1 | AR16: 1 | AS16: 1 | AT16: 1 | AU16: 1 | AV16: 1 | AW16: 1 | AX16: 1 | AY16: 1 | AZ16: 1 | BA16: 1 | BB16: 1 | BC16: 1 | BD16: 1 | BE16: 1 | BF16: 1 | BG16: 1 | BH16: 24 | BI16: 24 | BJ16: 0
D17: Oesophagus | E17: =R37-S37 -> 0 | K17: M85+ | L17: 1 | M17: 1 | N17: 1 | O17: 1 | P17: 1 | Q17: 1 | R17: 1 | S17: 1 | T17: 1 | U17: 1 | V17: 1 | W17: 1 | X17: 1 | Y17: 1 | Z17: 1 | AA17: 1 | AB17: 1 | AC17: 1 | AD17: 1 | AE17: 1 | AF17: 1 | AG17: 1 | AH17: 1 | AI17: 1 | AJ17: 1 | AK17: 1 | AL17: 1 | AM17: 1 | AN17: 1 | AO17: 1 | AP17: 1 | AQ17: 1 | AR17: 1 | AS17: 1 | AT17: 1 | AU17: 1 | AV17: 1 | AW17: 1 | AX17: 1 | AY17: 1 | AZ17: 1 | BA17: 1 | BB17: 1 | BC17: 1 | BD17: 1 | BE17: 1 | BF17: 1 | BG17: 1 | BH17: 24 | BI17: 24 | BJ17: 0
D18: Stomach | E18: =T37-U37 -> 0 | G18: Smoking | H18: =c_smoking_death_change -> 0 | K18: M Total | L18: =SUM(L3:L17) -> 15 | M18: =SUM(M3:M17) -> 15 | N18: =SUM(N3:N17) -> 15 | O18: 15 | P18: 15 | Q18: 15 | R18: 15 | S18: 15 | T18: 15 | U18: 15 | V18: 15 | W18: 15 | X18: 15 | Y18: 15 | Z18: 15 | AA18: 15 | AB18: 15 | AC18: 15 | AD18: 15 | AE18: 15 | AF18: 15 | AG18: 15 | AH18: 15 | AI18: 15 | AJ18: 15 | AK18: 15 | AL18: 15 | AM18: 15 | AN18: 15 | AO18: 15 | AP18: 15 | AQ18: 15 | AR18: 15 | AS18: 15 | AT18: 15 | AU18: 15 | AV18: 15 | AW18: 15 | AX18: 15 | AY18: 15 | AZ18: 15 | BA18: 15 | BB18: 15 | BC18: 15 | BD18: 15 | BE18: 15 | BF18: 15 | BG18: 15 | BH18: =SUM(BH3:BH17) -> 360 | BI18: =SUM(BI3:BI17) -> 360 | BJ18: =SUM(BJ3:BJ17) -> 0
D19: Lung | E19: =V37-W37 -> 0
D20: Pancreas | E20: =X37-Y37 -> 0 | K20: F15-19 | L20: =b_f_stroke_deaths -> 1 | M20: =d_f_smoking_stroke -> 1 | N20: =b_f_ischaemic_heart_diseases_deaths -> 1 | O20: =d_f_smoking_CHD -> 1 | P20: =b_f_cancer_MLP_deaths -> 1 | Q20: =d_f_smoking_cancer_MLP -> 1 | R20: =b_f_cancer_oesophagus_deaths -> 1 | S20: =d_f_smoking_cancer_oesophagus -> 1 | T20: =b_f_cancer_stomach_deaths -> 1 | U20: =d_f_smoking_cancer_stomach -> 1 | V20: =b_f_cancer_bronchuslung_deaths -> 1 | W20: =d_f_smoking_cancer_bronchuslung -> 1 | X20: =b_f_cancer_pancreas_deaths -> 1 | Y20: =d_f_smoking_cancer_pancreas -> 1 | Z20: =b_f_cancer_colorectum_deaths -> 1 | AA20: =d_f_smoking_cancer_colorectum -> 1 | AB20: =b_f_cancer_breast_deaths -> 1 | AC20: =d_f_smoking_cancer_breast -> 1 | AD20: =b_f_cancer_endometrium_deaths -> 1 | AE20: =d_f_smoking_cancer_endometrium -> 1 | AF20: =b_f_cancer_gallbladder_deaths -> 1 | AG20: =d_f_smoking_cancer_gallbladder -> 1 | AH20: =b_f_cancer_kidney_deaths -> 1 | AI20: =d_f_smoking_cancer_kidney -> 1 | AJ20: =b_f_hypertensive_disease_deaths -> 1 | AK20: =d_f_smoking_hypertensive_disease -> 1 | AL20: =b_f_diabetes_deaths -> 1 | AM20: =d_f_smoking_diabetes -> 1 | AN20: =b_f_cancer_bladder_deaths -> 1 | AO20: =d_f_smoking_cancer_bladder -> 1 | AP20: =b_f_cancer_liver_deaths -> 1 | AQ20: =d_f_smoking_cancer_liver -> 1 | AR20: =b_f_cancer_cervix_deaths -> 1 | AS20: =d_f_smoking_cancer_cervix -> 1 | AT20: =b_f_COPD_deaths -> 1 | AU20: =d_f_smoking_COPD -> 1 | AV20: =b_f_liver_disease_deaths -> 1 | AW20: =d_f_smoking_liver_disease -> 1 | AX20: =b_f_heart_failure_deaths -> 1 | AY20: =d_f_smoking_heart_failure -> 1 | AZ20: =b_f_aortic_aneurysm_deaths -> 1 | BA20: =d_f_smoking_aortic_aneurysm -> 1 | BB20: =b_f_pulmonary_embolism_deaths -> 1 | BC20: =d_f_smoking_pulmonary_embolism -> 1 | BD20: =b_f_rheumatic_heart_disease_deaths -> 1 | BE20: =d_f_smoking_rheumatic_heart_disease -> 1 | BF20: =b_f_chronic_renal_failure_deaths -> 1 | BG20: =d_f_smoking_chronic_renal_failure -> 1 | BH20: =SUM(L20,N20,P20,R20,T20,V20,X20,Z20,AB20,AD20,AF20,AH20,AJ20,AL20,AN20,AP20,AR20,AT20,AV20,AX20,AZ20,BB20,BD20,BF20) -> 24 | BI20: =SUM(M20,O20,Q20,S20,U20,W20,Y20,AA20,AC20,AE20,AG20,AI20,AK20,AM20,AO20,AQ20,AS20,AU20,AW20,AY20,BA20,BC20,BE20,BG20) -> 24 | BJ20: =BH20-BI20 -> 0
D21: Colorectum | E21: =Z37-AA37 -> 0 | K21: F20-24 | L21: 1 | M21: 1 | N21: 1 | O21: 1 | P21: 1 | Q21: 1 | R21: 1 | S21: 1 | T21: 1 | U21: 1 | V21: 1 | W21: 1 | X21: 1 | Y21: 1 | Z21: 1 | AA21: 1 | AB21: 1 | AC21: 1 | AD21: 1 | AE21: 1 | AF21: 1 | AG21: 1 | AH21: 1 | AI21: 1 | AJ21: 1 | AK21: 1 | AL21: 1 | AM21: 1 | AN21: 1 | AO21: 1 | AP21: 1 | AQ21: 1 | AR21: 1 | AS21: 1 | AT21: 1 | AU21: 1 | AV21: 1 | AW21: 1 | AX21: 1 | AY21: 1 | AZ21: 1 | BA21: 1 | BB21: 1 | BC21: 1 | BD21: 1 | BE21: 1 | BF21: 1 | BG21: 1 | BH21: =SUM(L21,N21,P21,R21,T21,V21,X21,Z21,AB21,AD21,AF21,AH21,AJ21,AL21,AN21,AP21,AR21,AT21,AV21,AX21,AZ21,BB21,BD21,BF21) -> 24 | BI21: 24 | BJ21: =BH21-BI21 -> 0
D22: Breast | E22: =AB37-AC37 -> 0 | K22: F25-29 | L22: 1 | M22: 1 | N22: 1 | O22: 1 | P22: 1 | Q22: 1 | R22: 1 | S22: 1 | T22: 1 | U22: 1 | V22: 1 | W22: 1 | X22: 1 | Y22: 1 | Z22: 1 | AA22: 1 | AB22: 1 | AC22: 1 | AD22: 1 | AE22: 1 | AF22: 1 | AG22: 1 | AH22: 1 | AI22: 1 | AJ22: 1 | AK22: 1 | AL22: 1 | AM22: 1 | AN22: 1 | AO22: 1 | AP22: 1 | AQ22: 1 | AR22: 1 | AS22: 1 | AT22: 1 | AU22: 1 | AV22: 1 | AW22: 1 | AX22: 1 | AY22: 1 | AZ22: 1 | BA22: 1 | BB22: 1 | BC22: 1 | BD22: 1 | BE22: 1 | BF22: 1 | BG22: 1 | BH22: 24 | BI22: 24 | BJ22: 0
D23: Endometrium | E23: =AD37-AE37 -> 0 | K23: F30-34 | L23: 1 | M23: 1 | N23: 1 | O23: 1 | P23: 1 | Q23: 1 | R23: 1 | S23: 1 | T23: 1 | U23: 1 | V23: 1 | W23: 1 | X23: 1 | Y23: 1 | Z23: 1 | AA23: 1 | AB23: 1 | AC23: 1 | AD23: 1 | AE23: 1 | AF23: 1 | AG23: 1 | AH23: 1 | AI23: 1 | AJ23: 1 | AK23: 1 | AL23: 1 | AM23: 1 | AN23: 1 | AO23: 1 | AP23: 1 | AQ23: 1 | AR23: 1 | AS23: 1 | AT23: 1 | AU23: 1 | AV23: 1 | AW23: 1 | AX23: 1 | AY23: 1 | AZ23: 1 | BA23: 1 | BB23: 1 | BC23: 1 | BD23: 1 | BE23: 1 | BF23: 1 | BG23: 1 | BH23: 24 | BI23: 24 | BJ23: 0
D24: Gallbladder | E24: =AF37-AG37 -> 0 | K24: F35-39 | L24: 1 | M24: 1 | N24: 1 | O24: 1 | P24: 1 | Q24: 1 | R24: 1 | S24: 1 | T24: 1 | U24: 1 | V24: 1 | W24: 1 | X24: 1 | Y24: 1 | Z24: 1 | AA24: 1 | AB24: 1 | AC24: 1 | AD24: 1 | AE24: 1 | AF24: 1 | AG24: 1 | AH24: 1 | AI24: 1 | AJ24: 1 | AK24: 1 | AL24: 1 | AM24: 1 | AN24: 1 | AO24: 1 | AP24: 1 | AQ24: 1 | AR24: 1 | AS24: 1 | AT24: 1 | AU24: 1 | AV24: 1 | AW24: 1 | AX24: 1 | AY24: 1 | AZ24: 1 | BA24: 1 | BB24: 1 | BC24: 1 | BD24: 1 | BE24: 1 | BF24: 1 | BG24: 1 | BH24: 24 | BI24: 24 | BJ24: 0
D25: Kidney | E25: =AH37-AI37 -> 0 | K25: F40-44 | L25: 1 | M25: 1 | N25: 1 | O25: 1 | P25: 1 | Q25: 1 | R25: 1 | S25: 1 | T25: 1 | U25: 1 | V25: 1 | W25: 1 | X25: 1 | Y25: 1 | Z25: 1 | AA25: 1 | AB25: 1 | AC25: 1 | AD25: 1 | AE25: 1 | AF25: 1 | AG25: 1 | AH25: 1 | AI25: 1 | AJ25: 1 | AK25: 1 | AL25: 1 | AM25: 1 | AN25: 1 | AO25: 1 | AP25: 1 | AQ25: 1 | AR25: 1 | AS25: 1 | AT25: 1 | AU25: 1 | AV25: 1 | AW25: 1 | AX25: 1 | AY25: 1 | AZ25: 1 | BA25: 1 | BB25: 1 | BC25: 1 | BD25: 1 | BE25: 1 | BF25: 1 | BG25: 1 | BH25: 24 | BI25: 24 | BJ25: 0
D26: Bladder | E26: =AN37-AO37 -> 0 | K26: F45-49 | L26: 1 | M26: 1 | N26: 1 | O26: 1 | P26: 1 | Q26: 1 | R26: 1 | S26: 1 | T26: 1 | U26: 1 | V26: 1 | W26: 1 | X26: 1 | Y26: 1 | Z26: 1 | AA26: 1 | AB26: 1 | AC26: 1 | AD26: 1 | AE26: 1 | AF26: 1 | AG26: 1 | AH26: 1 | AI26: 1 | AJ26: 1 | AK26: 1 | AL26: 1 | AM26: 1 | AN26: 1 | AO26: 1 | AP26: 1 | AQ26: 1 | AR26: 1 | AS26: 1 | AT26: 1 | AU26: 1 | AV26: 1 | AW26: 1 | AX26: 1 | AY26: 1 | AZ26: 1 | BA26: 1 | BB26: 1 | BC26: 1 | BD26: 1 | BE26: 1 | BF26: 1 | BG26: 1 | BH26: 24 | BI26: 24 | BJ26: =BH26-BI26 -> 0
D27: Liver | E27: =AP37-AQ37 -> 0 | K27: F50-54 | L27: 1 | M27: 1 | N27: 1 | O27: 1 | P27: 1 | Q27: 1 | R27: 1 | S27: 1 | T27: 1 | U27: 1 | V27: 1 | W27: 1 | X27: 1 | Y27: 1 | Z27: 1 | AA27: 1 | AB27: 1 | AC27: 1 | AD27: 1 | AE27: 1 | AF27: 1 | AG27: 1 | AH27: 1 | AI27: 1 | AJ27: 1 | AK27: 1 | AL27: 1 | AM27: 1 | AN27: 1 | AO27: 1 | AP27: 1 | AQ27: 1 | AR27: 1 | AS27: 1 | AT27: 1 | AU27: 1 | AV27: 1 | AW27: 1 | AX27: 1 | AY27: 1 | AZ27: 1 | BA27: 1 | BB27: 1 | BC27: 1 | BD27: 1 | BE27: 1 | BF27: 1 | BG27: 1 | BH27: 24 | BI27: 24 | BJ27: 0
D28: Cervix | E28: =AR37-AS37 -> 0 | K28: F55-59 | L28: 1 | M28: 1 | N28: 1 | O28: 1 | P28: 1 | Q28: 1 | R28: 1 | S28: 1 | T28: 1 | U28: 1 | V28: 1 | W28: 1 | X28: 1 | Y28: 1 | Z28: 1 | AA28: 1 | AB28: 1 | AC28: 1 | AD28: 1 | AE28: 1 | AF28: 1 | AG28: 1 | AH28: 1 | AI28: 1 | AJ28: 1 | AK28: 1 | AL28: 1 | AM28: 1 | AN28: 1 | AO28: 1 | AP28: 1 | AQ28: 1 | AR28: 1 | AS28: 1 | AT28: 1 | AU28: 1 | AV28: 1 | AW28: 1 | AX28: 1 | AY28: 1 | AZ28: 1 | BA28: 1 | BB28: 1 | BC28: 1 | BD28: 1 | BE28: 1 | BF28: 1 | BG28: 1 | BH28: 24 | BI28: 24 | BJ28: 0
K29: F60-64 | L29: 1 | M29: 1 | N29: 1 | O29: 1 | P29: 1 | Q29: 1 | R29: 1 | S29: 1 | T29: 1 | U29: 1 | V29: 1 | W29: 1 | X29: 1 | Y29: 1 | Z29: 1 | AA29: 1 | AB29: 1 | AC29: 1 | AD29: 1 | AE29: 1 | AF29: 1 | AG29: 1 | AH29: 1 | AI29: 1 | AJ29: 1 | AK29: 1 | AL29: 1 | AM29: 1 | AN29: 1 | AO29: 1 | AP29: 1 | AQ29: 1 | AR29: 1 | AS29: 1 | AT29: 1 | AU29: 1 | AV29: 1 | AW29: 1 | AX29: 1 | AY29: 1 | AZ29: 1 | BA29: 1 | BB29: 1 | BC29: 1 | BD29: 1 | BE29: 1 | BF29: 1 | BG29: 1 | BH29: 24 | BI29: 24 | BJ29: 0
D30: Chronic obstructive pulmonary disease | E30: =AT37-AU37 -> 0 | K30: F65-69 | L30: 1 | M30: 1 | N30: 1 | O30: 1 | P30: 1 | Q30: 1 | R30: 1 | S30: 1 | T30: 1 | U30: 1 | V30: 1 | W30: 1 | X30: 1 | Y30: 1 | Z30: 1 | AA30: 1 | AB30: 1 | AC30: 1 | AD30: 1 | AE30: 1 | AF30: 1 | AG30: 1 | AH30: 1 | AI30: 1 | AJ30: 1 | AK30: 1 | AL30: 1 | AM30: 1 | AN30: 1 | AO30: 1 | AP30: 1 | AQ30: 1 | AR30: 1 | AS30: 1 | AT30: 1 | AU30: 1 | AV30: 1 | AW30: 1 | AX30: 1 | AY30: 1 | AZ30: 1 | BA30: 1 | BB30: 1 | BC30: 1 | BD30: 1 | BE30: 1 | BF30: 1 | BG30: 1 | BH30: 24 | BI30: 24 | BJ30: 0
K31: F70-74 | L31: 1 | M31: 1 | N31: 1 | O31: 1 | P31: 1 | Q31: 1 | R31: 1 | S31: 1 | T31: 1 | U31: 1 | V31: 1 | W31: 1 | X31: 1 | Y31: 1 | Z31: 1 | AA31: 1 | AB31: 1 | AC31: 1 | AD31: 1 | AE31: 1 | AF31: 1 | AG31: 1 | AH31: 1 | AI31: 1 | AJ31: 1 | AK31: 1 | AL31: 1 | AM31: 1 | AN31: 1 | AO31: 1 | AP31: 1 | AQ31: 1 | AR31: 1 | AS31: 1 | AT31: 1 | AU31: 1 | AV31: 1 | AW31: 1 | AX31: 1 | AY31: 1 | AZ31: 1 | BA31: 1 | BB31: 1 | BC31: 1 | BD31: 1 | BE31: 1 | BF31: 1 | BG31: 1 | BH31: 24 | BI31: 24 | BJ31: 0
D32: Kidney disease | E32: =BF37-BG37 -> 0 | K32: F75-79 | L32: 1 | M32: 1 | N32: 1 | O32: 1 | P32: 1 | Q32: 1 | R32: 1 | S32: 1 | T32: 1 | U32: 1 | V32: 1 | W32: 1 | X32: 1 | Y32: 1 | Z32: 1 | AA32: 1 | AB32: 1 | AC32: 1 | AD32: 1 | AE32: 1 | AF32: 1 | AG32: 1 | AH32: 1 | AI32: 1 | AJ32: 1 | AK32: 1 | AL32: 1 | AM32: 1 | AN32: 1 | AO32: 1 | AP32: 1 | AQ32: 1 | AR32: 1 | AS32: 1 | AT32: 1 | AU32: 1 | AV32: 1 | AW32: 1 | AX32: 1 | AY32: 1 | AZ32: 1 | BA32: 1 | BB32: 1 | BC32: 1 | BD32: 1 | BE32: 1 | BF32: 1 | BG32: 1 | BH32: 24 | BI32: 24 | BJ32: 0
K33: F80-84 | L33: 1 | M33: 1 | N33: 1 | O33: 1 | P33: 1 | Q33: 1 | R33: 1 | S33: 1 | T33: 1 | U33: 1 | V33: 1 | W33: 1 | X33: 1 | Y33: 1 | Z33: 1 | AA33: 1 | AB33: 1 | AC33: 1 | AD33: 1 | AE33: 1 | AF33: 1 | AG33: 1 | AH33: 1 | AI33: 1 | AJ33: 1 | AK33: 1 | AL33: 1 | AM33: 1 | AN33: 1 | AO33: 1 | AP33: 1 | AQ33: 1 | AR33: 1 | AS33: 1 | AT33: 1 | AU33: 1 | AV33: 1 | AW33: 1 | AX33: 1 | AY33: 1 | AZ33: 1 | BA33: 1 | BB33: 1 | BC33: 1 | BD33: 1 | BE33: 1 | BF33: 1 | BG33: 1 | BH33: 24 | BI33: 24 | BJ33: 0
D34: Liver disease | E34: =AV37-AW37 -> 0 | K34: F85+ | L34: 1 | M34: 1 | N34: 1 | O34: 1 | P34: 1 | Q34: 1 | R34: 1 | S34: 1 | T34: 1 | U34: 1 | V34: 1 | W34: 1 | X34: 1 | Y34: 1 | Z34: 1 | AA34: 1 | AB34: 1 | AC34: 1 | AD34: 1 | AE34: 1 | AF34: 1 | AG34: 1 | AH34: 1 | AI34: 1 | AJ34: 1 | AK34: 1 | AL34: 1 | AM34: 1 | AN34: 1 | AO34: 1 | AP34: 1 | AQ34: 1 | AR34: 1 | AS34: 1 | AT34: 1 | AU34: 1 | AV34: 1 | AW34: 1 | AX34: 1 | AY34: 1 | AZ34: 1 | BA34: 1 | BB34: 1 | BC34: 1 | BD34: 1 | BE34: 1 | BF34: 1 | BG34: 1 | BH34: 24 | BI34: 24 | BJ34: 0
K35: F Total | L35: =SUM(L20:L34) -> 15 | M35: =SUM(M20:M34) -> 15 | N35: =SUM(N20:N34) -> 15 | O35: 15 | P35: 15 | Q35: 15 | R35: 15 | S35: 15 | T35: 15 | U35: 15 | V35: 15 | W35: 15 | X35: 15 | Y35: 15 | Z35: 15 | AA35: 15 | AB35: 15 | AC35: 15 | AD35: 15 | AE35: 15 | AF35: 15 | AG35: 15 | AH35: 15 | AI35: 15 | AJ35: 15 | AK35: 15 | AL35: 15 | AM35: 15 | AN35: 15 | AO35: 15 | AP35: 15 | AQ35: 15 | AR35: 15 | AS35: 15 | AT35: 15 | AU35: 15 | AV35: 15 | AW35: 15 | AX35: 15 | AY35: 15 | AZ35: 15 | BA35: 15 | BB35: 15 | BC35: 15 | BD35: 15 | BE35: 15 | BF35: 15 | BG35: 15 | BH35: =SUM(BH20:BH34) -> 360 | BI35: =SUM(BI20:BI34) -> 360 | BJ35: =SUM(BJ20:BJ34) -> 0
K37: Total | L37: =L18+L35 -> 30 | M37: =M18+M35 -> 30 | N37: =N18+N35 -> 30 | O37: 30 | P37: 30 | Q37: 30 | R37: 30 | S37: 30 | T37: 30 | U37: 30 | V37: 30 | W37: 30 | X37: 30 | Y37: 30 | Z37: 30 | AA37: 30 | AB37: 30 | AC37: 30 | AD37: 30 | AE37: 30 | AF37: 30 | AG37: 30 | AH37: 30 | AI37: 30 | AJ37: 30 | AK37: 30 | AL37: 30 | AM37: 30 | AN37: 30 | AO37: 30 | AP37: 30 | AQ37: 30 | AR37: 30 | AS37: 30 | AT37: 30 | AU37: 30 | AV37: 30 | AW37: 30 | AX37: 30 | AY37: 30 | AZ37: 30 | BA37: 30 | BB37: 30 | BC37: 30 | BD37: 30 | BE37: 30 | BF37: 30 | BG37: 30 | BH37: =BH18+BH35 -> 720 | BI37: =BI18+BI35 -> 720 | BJ37: =BJ18+BJ35 -> 0

Sheet MC_Results
A1: =Monte_Carlo_Answer -> No | S1: Results | T1: Total | U1: Under 75 | V1: Male | W1: Female | X1: Male under 75 | Y1: Female under 75 | Z1: Cardiovascular disease | AA1: Coronary heart disease | AB1: Stroke | AC1: Heart failure | AD1: Aortic aneurysm | AE1: Pulmonary embolism | AF1: Rheumatic heart disease | AG1: Hypertensive disease | AH1: Diabetes | AI1: Cancer | AJ1: Mouth, larynx and pharynx | AK1: Oesophagus | AL1: Stomach | AM1: Lung | AN1: Pancreas | AO1: Colorectum | AP1: Breast | AQ1: Endometrium | AR1: Gallbladder | AS1: Kidney | AT1: Bladder | AU1: Liver | AV1: Cervix | AW1: Chronic obstructive pulmonary disease | AX1: Kidney disease | AY1: Liver disease | AZ1: Diet (excluding energy balance) | BA1: Diet (including energy balance) | BB1: Fruit and vegetables | BC1: Fibre | BD1: Fats | BE1: Salt | BF1: Activity excl obesity | BG1: Activity inc obesity | BH1: Obesity | BI1: Alcohol consumption | BJ1: Smoking
A2: Deaths averted or delayed: | F2: Deaths averted or delayed by cause: | K2: Deaths averted or delayed by behavioural risk factor: | T2: =T_total -> 0 | U2: =T_under75 -> 0 | V2: =T_male -> 0 | W2: =T_female -> 0 | X2: =T_male_under75 -> 0 | Y2: =T_female_under75 -> 0 | Z2: =T_cardiovascular -> 0 | AA2: =T_CHD -> 0 | AB2: =T_stroke -> 0 | AC2: =T_heart_failure -> 0 | AD2: =T_aortic_aneurysm -> 0 | AE2: =T_pulmonary_embolism -> 0 | AF2: =T_rheumatic_heart_disease -> 0 | AG2: =T_hypertensive_disease -> 0 | AH2: =T_diabetes -> 0 | AI2: =T_cancers -> 0 | AJ2: =T_cancer_MLP -> 0 | AK2: =T_cancer_oesophagus -> 0 | AL2: =T_cancer_stomach -> 0 | AM2: =T_cancer_bronchuslung -> 0 | AN2: =T_cancer_pancreas -> 0 | AO2: =T_cancer_colorectum -> 0 | AP2: =T_cancer_breast -> 0 | AQ2: =T_cancer_endometrium -> 0 | AR2: =T_cancer_gallbladder -> 0 | AS2: =T_cancer_kidney -> 0 | AT2: =T_cancer_bladder -> 0 | AU2: =T_cancer_liver -> 0 | AV2: =T_cancer_cervix -> 0 | AW2: =T_COPD -> 0 | AX2: =T_kidney_disease -> 0 | AY2: =T_liver_disease -> 0 | AZ2: =T_diet_exc_obesity -> 0 | BA2: =T_diet_inc_obesity -> 0 | BB2: =T_fruitveg -> 0 | BC2: =T_fibre -> 0 | BD2: =T_fats -> 0 | BE2: =T_salt -> 0 | BF2: =T_activity_exc_obesity -> 0 | BG2: =T_activity_inc_obesity -> 0 | BH2: =T_obesity -> 0 | BI2: =T_alcohol -> 0 | BJ2: =T_smoking -> 0
B3: 2.5th | C3: Mean | D3: 97.5th | G3: 2.5th | H3: Mean | I3: 97.5th | L3: 2.5th | M3: Mean | N3: 97.5th
A4: Total | B4: =PERCENTILE($T$2:$T$5002,0.025) -> 0 | C4: =PERCENTILE($T$2:$T$5002,0.5) -> 0 | D4: =PERCENTILE($T$2:$T$5002,0.975) -> 0 | F4: Cardiovascular disease | G4: =PERCENTILE($Z$2:$Z$5002,0.025) -> 0 | H4: =PERCENTILE($Z$2:$Z$5002,0.5) -> 0 | I4: =PERCENTILE($Z$2:$Z$5002,0.975) -> 0 | K4: Diet (excluding obesity) | L4: =PERCENTILE($AZ$2:$AZ$5002,0.025) -> 0 | M4: =PERCENTILE($AZ$2:$AZ$5002,0.5) -> 0 | N4: =PERCENTILE($AZ$2:$AZ$5002,0.975) -> 0
A5: Under 75 | B5: =PERCENTILE($U$2:$U$5002,0.025) -> 0 | C5: =PERCENTILE($U$2:$U$5002,0.5) -> 0 | D5: =PERCENTILE($U$2:$U$5002,0.975) -> 0 | F5: Coronary heart disease | G5: =PERCENTILE($AA$2:$AA$5002,0.025) -> 0 | H5: =PERCENTILE($AA$2:$AA$5002,0.5) -> 0 | I5: =PERCENTILE($AA$2:$AA$5002,0.975) -> 0 | K5: Diet (including obesity) | L5: =PERCENTILE($BA$2:$BA$5002,0.025) -> 0 | M5: =PERCENTILE($BA$2:$BA$5002,0.5) -> 0 | N5: =PERCENTILE($BA$2:$BA$5002,0.975) -> 0
F6: Stroke | G6: =PERCENTILE($AB$2:$AB$5002,0.025) -> 0 | H6: =PERCENTILE($AB$2:$AB$5002,0.5) -> 0 | I6: =PERCENTILE($AB$2:$AB$5002,0.975) -> 0 | K6: Fruit and vegetables | L6: =PERCENTILE($BB$2:$BB$5002,0.025) -> 0 | M6: =PERCENTILE($BB$2:$BB$5002,0.5) -> 0 | N6: =PERCENTILE($BB$2:$BB$5002,0.975) -> 0
A7: Male | B7: =PERCENTILE($V$2:$V$5002,0.025) -> 0 | C7: =PERCENTILE($V$2:$V$5002,0.5) -> 0 | D7: =PERCENTILE($V$2:$V$5002,0.975) -> 0 | F7: Heart failure | G7: =PERCENTILE($AC$2:$AC$5002,0.025) -> 0 | H7: =PERCENTILE($AC$2:$AC$5002,0.5) -> 0 | I7: =PERCENTILE($AC$2:$AC$5002,0.975) -> 0 | K7: Fibre | L7: =PERCENTILE($BC$2:$BC$5002,0.025) -> 0 | M7: =PERCENTILE($BC$2:$BC$5002,0.5) -> 0 | N7: =PERCENTILE($BC$2:$BC$5002,0.975) -> 0
A8: Female | B8: =PERCENTILE($W$2:$W$5002,0.025) -> 0 | C8: =PERCENTILE($W$2:$W$5002,0.5) -> 0 | D8: =PERCENTILE($W$2:$W$5002,0.975) -> 0 | F8: Aortic aneurysm | G8: =PERCENTILE($AD$2:$AD$5002,0.025) -> 0 | H8: =PERCENTILE($AD$2:$AD$5002,0.5) -> 0 | I8: =PERCENTILE($AD$2:$AD$5002,0.975) -> 0 | K8: Fats | L8: =PERCENTILE($BD$2:$BD$5002,0.025) -> 0 | M8: =PERCENTILE($BD$2:$BD$5002,0.5) -> 0 | N8: =PERCENTILE($BD$2:$BD$5002,0.975) -> 0
F9: Pulmonary embolism | G9: =PERCENTILE($AE$2:$AE$5002,0.025) -> 0 | H9: =PERCENTILE($AE$2:$AE$5002,0.5) -> 0 | I9: =PERCENTILE($AE$2:$AE$5002,0.975) -> 0 | K9: Salt | L9: =PERCENTILE($BE$2:$BE$5002,0.025) -> 0 | M9: =PERCENTILE($BE$2:$BE$5002,0.5) -> 0 | N9: =PERCENTILE($BE$2:$BE$5002,0.975) -> 0
A10: Male under 75 | B10: =PERCENTILE($X$2:$X$5002,0.025) -> 0 | C10: =PERCENTILE($X$2:$X$5002,0.5) -> 0 | D10: =PERCENTILE($X$2:$X$5002,0.975) -> 0 | F10: Rheumatic heart disease | G10: =PERCENTILE($AF$2:$AF$5002,0.025) -> 0 | H10: =PERCENTILE($AF$2:$AF$5002,0.5) -> 0 | I10: =PERCENTILE($AF$2:$AF$5002,0.975) -> 0
A11: Female under 75 | B11: =PERCENTILE($Y$2:$Y$5002,0.025) -> 0 | C11: =PERCENTILE($Y$2:$Y$5002,0.5) -> 0 | D11: =PERCENTILE($Y$2:$Y$5002,0.975) -> 0 | F11: Hypertensive disease | G11: =PERCENTILE($AG$2:$AG$5002,0.025) -> 0 | H11: =PERCENTILE($AG$2:$AG$5002,0.5) -> 0 | I11: =PERCENTILE($AG$2:$AG$5002,0.975) -> 0 | K11: Physical activity (excluding obesity) | L11: =PERCENTILE($BF$2:$BF$5002,0.025) -> 0 | M11: =PERCENTILE($BF$2:$BF$5002,0.5) -> 0 | N11: =PERCENTILE($BF$2:$BF$5002,0.975) -> 0
K12: Physical activity (including obesity) | L12: =PERCENTILE($BG$2:$BG$5002,0.025) -> 0 | M12: =PERCENTILE($BG$2:$BG$5002,0.5) -> 0 | N12: =PERCENTILE($BG$2:$BG$5002,0.975) -> 0
F13: Diabetes | G13: =PERCENTILE($AH$2:$AH$5002,0.025) -> 0 | H13: =PERCENTILE($AH$2:$AH$5002,0.5) -> 0 | I13: =PERCENTILE($AH$2:$AH$5002,0.975) -> 0
K14: Obesity | L14: =PERCENTILE($BH$2:$BH$5002,0.025) -> 0 | M14: =PERCENTILE($BH$2:$BH$5002,0.5) -> 0 | N14: =PERCENTILE($BH$2:$BH$5002,0.975) -> 0
F15: Cancer | G15: =PERCENTILE($AI$2:$AI$5002,0.025) -> 0 | H15: =PERCENTILE($AI$2:$AI$5002,0.5) -> 0 | I15: =PERCENTILE($AI$2:$AI$5002,0.975) -> 0 | K15: Alcohol consumption | L15: =PERCENTILE($BI$2:$BI$5002,0.025) -> 0 | M15: =PERCENTILE($BI$2:$BI$5002,0.5) -> 0 | N15: =PERCENTILE($BI$2:$BI$5002,0.975) -> 0
F16: Mouth, larynx and pharynx | G16: =PERCENTILE($AJ$2:$AJ$5002,0.025) -> 0 | H16: =PERCENTILE($AJ$2:$AJ$5002,0.5) -> 0 | I16: =PERCENTILE($AJ$2:$AJ$5002,0.975) -> 0
F17: Oesophagus | G17: =PERCENTILE($AK$2:$AK$5002,0.025) -> 0 | H17: =PERCENTILE($AK$2:$AK$5002,0.5) -> 0 | I17: =PERCENTILE($AK$2:$AK$5002,0.975) -> 0 | K17: Smoking | L17: =PERCENTILE($BJ$2:$BJ$5002,0.025) -> 0 | M17: =PERCENTILE($BJ$2:$BJ$5002,0.5) -> 0 | N17: =PERCENTILE($BJ$2:$BJ$5002,0.975) -> 0
F18: Stomach | G18: =PERCENTILE($AL$2:$AL$5002,0.025) -> 0 | H18: =PERCENTILE($AL$2:$AL$5002,0.5) -> 0 | I18: =PERCENTILE($AL$2:$AL$5002,0.975) -> 0
F19: Lung | G19: =PERCENTILE($AM$2:$AM$5002,0.025) -> 0 | H19: =PERCENTILE($AM$2:$AM$5002,0.5) -> 0 | I19: =PERCENTILE($AM$2:$AM$5002,0.975) -> 0
F20: Pancreas | G20: =PERCENTILE($AN$2:$AN$5002,0.025) -> 0 | H20: =PERCENTILE($AN$2:$AN$5002,0.5) -> 0 | I20: =PERCENTILE($AN$2:$AN$5002,0.975) -> 0
F21: Colorectum | G21: =PERCENTILE($AO$2:$AO$5002,0.025) -> 0 | H21: =PERCENTILE($AO$2:$AO$5002,0.5) -> 0 | I21: =PERCENTILE($AO$2:$AO$5002,0.975) -> 0
F22: Breast | G22: =PERCENTILE($AP$2:$AP$5002,0.025) -> 0 | H22: =PERCENTILE($AP$2:$AP$5002,0.5) -> 0 | I22: =PERCENTILE($AP$2:$AP$5002,0.975) -> 0
F23: Endometrium | G23: =PERCENTILE($AQ$2:$AQ$5002,0.025) -> 0 | H23: =PERCENTILE($AQ$2:$AQ$5002,0.5) -> 0 | I23: =PERCENTILE($AQ$2:$AQ$5002,0.975) -> 0
F24: Gallbladder | G24: =PERCENTILE($AR$2:$AR$5002,0.025) -> 0 | H24: =PERCENTILE($AR$2:$AR$5002,0.5) -> 0 | I24: =PERCENTILE($AR$2:$AR$5002,0.975) -> 0
F25: Kidney | G25: =PERCENTILE($AS$2:$AS$5002,0.025) -> 0 | H25: =PERCENTILE($AS$2:$AS$5002,0.5) -> 0 | I25: =PERCENTILE($AS$2:$AS$5002,0.975) -> 0
F26: Bladder | G26: =PERCENTILE($AT$2:$AT$5002,0.025) -> 0 | H26: =PERCENTILE($AT$2:$AT$5002,0.5) -> 0 | I26: =PERCENTILE($AT$2:$AT$5002,0.975) -> 0
F27: Liver | G27: =PERCENTILE($AU$2:$AU$5002,0.025) -> 0 | H27: =PERCENTILE($AU$2:$AU$5002,0.5) -> 0 | I27: =PERCENTILE($AU$2:$AU$5002,0.975) -> 0
F28: Cervix | G28: =PERCENTILE($AV$2:$AV$5002,0.025) -> 0 | H28: =PERCENTILE($AV$2:$AV$5002,0.5) -> 0 | I28: =PERCENTILE($AV$2:$AV$5002,0.975) -> 0 | M28: NOTE: TO STOP MONTE CARLO ANALYSIS PRESS ESC
F30: Chronic obstructive pulmonary disease | G30: =PERCENTILE($AW$2:$AW$5002,0.025) -> 0 | H30: =PERCENTILE($AW$2:$AW$5002,0.5) -> 0 | I30: =PERCENTILE($AW$2:$AW$5002,0.975) -> 0
F32: Kidney disease | G32: =PERCENTILE($AX$2:$AX$5002,0.025) -> 0 | H32: =PERCENTILE($AX$2:$AX$5002,0.5) -> 0 | I32: =PERCENTILE($AX$2:$AX$5002,0.975) -> 0
F34: Liver disease | G34: =PERCENTILE($AY$2:$AY$5002,0.025) -> 0 | H34: =PERCENTILE($AY$2:$AY$5002,0.5) -> 0 | I34: =PERCENTILE($AY$2:$AY$5002,0.975) -> 0

Sheet Parameters
A1: =Monte_Carlo_Answer -> No | B1: Mean: | C1: Standard deviation: | D1: Distributon | E1: Randomised Estimate | F1: CI low | G1: CI high | H1: Mean | I1: SD | J1: Original Estimate | K1: Lower limit of estimate | L1: Upper limit of estimate | M1: Meta-analysis Reference
A2: DIET
A3: CHD relative risk per 106g increase in fruit intake | B3: 0.93 | C3: 0.0179 | D3: Lognormal | E3: =IF('Baseline & Counterfactual'!$AD$4="Yes",IF(D3="Lognormal",LOGINV(RAND(),H3,I3),IF(D3="Normal",NORMINV(RAND(),H3,I3),"Error")), IF('Baseline & Counterfactual'!$AD$4="No", J3, "Error")) -> 0.93 | F3: 0.89 | G3: 0.96 | H3: =IF(D3="Normal",J3,IF(D3="Lognormal",LN(J3),"ERROR")) -> -0.07257069283 | I3: =IF(D3="Normal",AVERAGE((J3-F3)/1.96,(G3-J3)/1.96),IF(D3="Lognormal",AVERAGE((LN(J3)-LN(F3))/1.96,(LN(G3)-LN(J3))/1.96),"ERROR")) -> 0.01931424024 | J3: 0.93 | K3: 0 | L3: 530 | M3: Dauchet L, Amouyel P, Hercberg S, Dallongeville J. Fruit and vegetable consumption and risk of coronary heart disease: a meta-analysis of cohort studies. J Nutr. 2006 Oct;136(10):2588-93.
A4: CHD relative risk per 106g increase in vegetable intake | B4: 0.89 | C4: 0.030612245 | D4: Lognormal | E4: =IF('Baseline & Counterfactual'!$AD$4="Yes",IF(D4="Lognormal",LOGINV(RAND(),H4,I4),IF(D4="Normal",NORMINV(RAND(),H4,I4),"Error")), IF('Baseline & Counterfactual'!$AD$4="No", J4, "Error")) -> 0.89 | F4: 0.83 | G4: 0.95 | H4: =IF(D4="Normal",J4,IF(D4="Lognormal",LN(J4),"ERROR")) -> -0.1165338163 | I4: =IF(D4="Normal",AVERAGE((J4-F4)/1.96,(G4-J4)/1.96),IF(D4="Lognormal",AVERAGE((LN(J4)-LN(F4))/1.96,(LN(G4)-LN(J4))/1.96),"ERROR")) -> 0.03444803158 | J4: 0.89 | K4: 0 | L4: 583 | M4: Dauchet L, Amouyel P, Hercberg S, Dallongeville J. Fruit and vegetable consumption and risk of coronary heart disease: a meta-analysis of cohort studies. J Nutr. 2006 Oct;136(10):2588-93.
A5: Stroke relative risk per 106g increase in fruit intake | B5: 0.89 | C5: 0.0204 | D5: Lognormal | E5: =IF('Baseline & Counterfactual'!$AD$4="Yes",IF(D5="Lognormal",LOGINV(RAND(),H5,I5),IF(D5="Normal",NORMINV(RAND(),H5,I5),"Error")), IF('Baseline & Counterfactual'!$AD$4="No", J5, "Error")) -> 0.89 | F5: 0.85 | G5: 0.93 | H5: -0.1165338163 | I5: 0.02294597874 | J5: 0.89 | K5: 0 | L5: 530 | M5: Dauchet L, Amouyel P, Dallongeville J. Fruit and vegetable consumption and risk of stroke: a meta-analysis of cohort studies. Neurology. 2005 Oct 25;65(8):1193-7.
A6: Lung cancer reduction per 80g increase in fruit intake | B6: -0.0619 | C6: 0.0191 | D6: Lognormal | E6: =IF('Baseline & Counterfactual'!$AD$4="Yes",IF(D6="Lognormal",LOGINV(RAND(),H6,I6),IF(D6="Normal",NORMINV(RAND(),H6,I6),"Error")), IF('Baseline & Counterfactual'!$AD$4="No", J6, "Error")) -> 0.9399768798 | F6: 0.9 | G6: 0.97 | H6: -0.0619 | I6: 0.01910747657 | J6: 0.9399768798 | K6: 0 | L6: 400 | M6: World Cancer Research Fund/American Institute for Cancer Research. Food, Nutrition, Physical Activity, and the Prevention of Cancer: a Global Perspective. Washington DC: AICR, 2007. pg 97
A7: Blood pressure (mmHg) reduction for 6g salt / day reduction | B7: 2.5 | C7: 0.1786 | D7: Normal | E7: =IF('Baseline & Counterfactual'!$AD$4="Yes",IF(D7="Lognormal",LOGINV(RAND(),H7,I7),IF(D7="Normal",NORMINV(RAND(),H7,I7),"Error")), IF('Baseline & Counterfactual'!$AD$4="No", J7, "Error")) -> 5.8 | F7: 2.5 | G7: 9.2 | H7: 5.8 | I7: 1.709183673 | J7: 5.8 | K7: ? | L7: ? | M7: He FJ, Li J, MacGregor GA. Effect of longer term modest salt reduction on blood pressure: Cochrane systematic review and meta-analysis of randomised trials. BMJ 2013;346:f1325. doi: 10.1136/bmj.f1325
A8: <40: CHD relative risk for 20mmHg reduction in BP | B8: -0.7133 | C8: 0.0417 | D8: Lognormal | E8: =IF('Baseline & Counterfactual'!$AD$4="Yes",IF(D8="Lognormal",LOGINV(RAND(),H8,I8),IF(D8="Normal",NORMINV(RAND(),H8,I8),"Error")), IF('Baseline & Counterfactual'!$AD$4="No", J8, "Error")) -> 0.4900244457 | F8: 0.45 | G8: 0.53 | H8: -0.7133 | I8: 0.04174219994 | J8: 0.4900244457 | K8: ? | L8: ? | M8: Prospective Studies Collaboration. Age-specific relevance of usual blood pressure to vascular mortality: a meta-analysis of individual data for one million adults in 61 prospective studies. Lancer 2002; 360:1903-13
A9: 40-49: CHD relative risk for 20mmHg reduction in BP | B9: -0.7133 | C9: 0.0417 | D9: Lognormal | E9: =IF('Baseline & Counterfactual'!$AD$4="Yes",IF(D9="Lognormal",LOGINV(RAND(),H9,I9),IF(D9="Normal",NORMINV(RAND(),H9,I9),"Error")), IF('Baseline & Counterfactual'!$AD$4="No", J9, "Error")) -> 0.4900244457 | F9: 0.45 | G9: 0.53 | H9: -0.7133 | I9: 0.04174219994 | J9: 0.4900244457 | K9: ? | L9: ? | M9: Prospective Studies Collaboration. Age-specific relevance of usual blood pressure to vascular mortality: a meta-analysis of individual data for one million adults in 61 prospective studies. Lancer 2002; 360:1903-14
A10: 50-59: CHD relative risk for 20mmHg reduction in BP | B10: -0.6931 | C10: 0.0152 | D10: Lognormal | E10: =IF('Baseline & Counterfactual'!$AD$4="Yes",IF(D10="Lognormal",LOGINV(RAND(),H10,I10),IF(D10="Normal",NORMINV(RAND(),H10,I10),"Error")), IF('Baseline & Counterfactual'!$AD$4="No", J10, "Error")) -> 0.5000235908 | F10: 0.49 | G10: 0.52 | H10: -0.6931 | I10: 0.01515903583 | J10: 0.5000235908 | K10: ? | L10: ? | M10: Prospective Studies Collaboration. Age-specific relevance of usual blood pressure to vascular mortality: a meta-analysis of individual data for one million adults in 61 prospective studies. Lancer 2002; 360:1903-15
A11: 60-69: CHD relative risk for 20mmHg reduction in BP | B11: -0.6162 | C11: 0.0094 | D11: Lognormal | E11: =IF('Baseline & Counterfactual'!$AD$4="Yes",IF(D11="Lognormal",LOGINV(RAND(),H11,I11),IF(D11="Normal",NORMINV(RAND(),H11,I11),"Error")), IF('Baseline & Counterfactual'!$AD$4="No", J11, "Error")) -> 0.5399925153 | F11: 0.53 | G11: 0.55 | H11: -0.6162 | I11: 0.009449304 | J11: 0.5399925153 | K11: ? | L11: ? | M11: Prospective Studies Collaboration. Age-specific relevance of usual blood pressure to vascular mortality: a meta-analysis of individual data for one million adults in 61 prospective studies. Lancer 2002; 360:1903-16
A12: 70-79: CHD relative risk for 20mmHg reduction in BP | B12: -0.5108 | C12: 0.0129 | D12: Lognormal | E12: =IF('Baseline & Counterfactual'!$AD$4="Yes",IF(D12="Lognormal",LOGINV(RAND(),H12,I12),IF(D12="Normal",NORMINV(RAND(),H12,I12),"Error")), IF('Baseline & Counterfactual'!$AD$4="No", J12, "Error")) -> 0.6000153745 | F12: 0.58 | G12: 0.61 | H12: -0.5108 | I12: 0.01286501368 | J12: 0.6000153745 | K12: ? | L12: ? | M12: Prospective Studies Collaboration. Age-specific relevance of usual blood pressure to vascular mortality: a meta-analysis of individual data for one million adults in 61 prospective studies. Lancer 2002; 360:1903-17
A13: 80-89: CHD relative risk for 20mmHg reduction in BP | B13: -0.4005 | C13: 0.0229 | D13: Lognormal | E13: =IF('Baseline & Counterfactual'!$AD$4="Yes",IF(D13="Lognormal",LOGINV(RAND(),H13,I13),IF(D13="Normal",NORMINV(RAND(),H13,I13),"Error")), IF('Baseline & Counterfactual'!$AD$4="No", J13, "Error")) -> 0.6699849698 | F13: 0.64 | G13: 0.7 | H13: =IF(D13="Normal",J13,IF(D13="Lognormal",LN(J13),"ERROR")) -> -0.4005 | I13: =IF(D13="Normal",AVERAGE((J13-F13)/1.96,(G13-J13)/1.96),IF(D13="Lognormal",AVERAGE((LN(J13)-LN(F13))/1.96,(LN(G13)-LN(J13))/1.96),"ERROR")) -> 0.02286024456 | J13: 0.6699849698 | K13: ? | L13: ? | M13: Prospective Studies Collaboration. Age-specific relevance of usual blood pressure to vascular mortality: a meta-analysis of individual data for one million adults in 61 prospective studies. Lancer 2002; 360:1903-18
A14: 90+: CHD relative risk for 20mmHg reduction in BP | B14: -0.4005 | C14: 0.0229 | D14: Lognormal | E14: =IF('Baseline & Counterfactual'!$AD$4="Yes",IF(D14="Lognormal",LOGINV(RAND(),H14,I14),IF(D14="Normal",NORMINV(RAND(),H14,I14),"Error")), IF('Baseline & Counterfactual'!$AD$4="No", J14, "Error")) -> 0.6699849698 | F14: 0.64 | G14: 0.7 | H14: =IF(D14="Normal",J14,IF(D14="Lognormal",LN(J14),"ERROR")) -> -0.4005 | I14: =IF(D14="Normal",AVERAGE((J14-F14)/1.96,(G14-J14)/1.96),IF(D14="Lognormal",AVERAGE((LN(J14)-LN(F14))/1.96,(LN(G14)-LN(J14))/1.96),"ERROR")) -> 0.02286024456 | J14: 0.6699849698 | K14: ? | L14: ? | M14: Prospective Studies Collaboration. Age-specific relevance of usual blood pressure to vascular mortality: a meta-analysis of individual data for one million adults in 61 prospective studies. Lancer 2002; 360:1903-19
A15: <40: Stroke relative risk for 20mmHg reduction in BP | B15: -1.0217 | C15: 0.0569 | D15: Lognormal | E15: =IF('Baseline & Counterfactual'!$AD$4="Yes",IF(D15="Lognormal",LOGINV(RAND(),H15,I15),IF(D15="Normal",NORMINV(RAND(),H15,I15),"Error")), IF('Baseline & Counterfactual'!$AD$4="No", J15, "Error")) -> 0.3599824495 | F15: 0.32 | G15: 0.4 | H15: -1.0217 | I15: 0.05692437534 | J15: 0.3599824495 | K15: ? | L15: ? | M15: Prospective Studies Collaboration. Age-specific relevance of usual blood pressure to vascular mortality: a meta-analysis of individual data for one million adults in 61 prospective studies. Lancer 2002; 360:1903-20
A16: 40-49: Stroke relative risk for 20mmHg reduction in BP | B16: -1.0217 | C16: 0.0569 | D16: Lognormal | E16: =IF('Baseline & Counterfactual'!$AD$4="Yes",IF(D16="Lognormal",LOGINV(RAND(),H16,I16),IF(D16="Normal",NORMINV(RAND(),H16,I16),"Error")), IF('Baseline & Counterfactual'!$AD$4="No", J16, "Error")) -> 0.3599824495 | F16: 0.32 | G16: 0.4 | H16: -1.0217 | I16: 0.05692437534 | J16: 0.3599824495 | K16: ? | L16: ? | M16: Prospective Studies Collaboration. Age-specific relevance of usual blood pressure to vascular mortality: a meta-analysis of individual data for one million adults in 61 prospective studies. Lancer 2002; 360:1903-21
A17: 50-59: Stroke relative risk for 20mmHg reduction in BP | B17: -0.9676 | C17: 0.0341 | D17: Lognormal | E17: =IF('Baseline & Counterfactual'!$AD$4="Yes",IF(D17="Lognormal",LOGINV(RAND(),H17,I17),IF(D17="Normal",NORMINV(RAND(),H17,I17),"Error")), IF('Baseline & Counterfactual'!$AD$4="No", J17, "Error")) -> 0.37999393 | F17: 0.35 | G17: 0.4 | H17: -0.9676 | I17: 0.03406413077 | J17: 0.37999393 | K17: ? | L17: ? | M17: Prospective Studies Collaboration. Age-specific relevance of usual blood pressure to vascular mortality: a meta-analysis of individual data for one million adults in 61 prospective studies. Lancer 2002; 360:1903-22
A18: 60-69: Stroke relative risk for 20mmHg reduction in BP | B18: -0.844 | C18: 0.0237 | D18: Lognormal | E18: =IF('Baseline & Counterfactual'!$AD$4="Yes",IF(D18="Lognormal",LOGINV(RAND(),H18,I18),IF(D18="Normal",NORMINV(RAND(),H18,I18),"Error")), IF('Baseline & Counterfactual'!$AD$4="No", J18, "Error")) -> 0.4299871304 | F18: 0.41 | G18: 0.45 | H18: -0.844 | I18: 0.0237475569 | J18: 0.4299871304 | K18: ? | L18: ? | M18: Prospective Studies Collaboration. Age-specific relevance of usual blood pressure to vascular mortality: a meta-analysis of individual data for one million adults in 61 prospective studies. Lancer 2002; 360:1903-23
A19: 70-79: Stroke relative risk for 20mmHg reduction in BP | B19: -0.6931 | C19: 0.0204 | D19: Lognormal | E19: =IF('Baseline & Counterfactual'!$AD$4="Yes",IF(D19="Lognormal",LOGINV(RAND(),H19,I19),IF(D19="Normal",NORMINV(RAND(),H19,I19),"Error")), IF('Baseline & Counterfactual'!$AD$4="No", J19, "Error")) -> 0.5000235908 | F19: 0.48 | G19: 0.52 | H19: -0.6931 | I19: 0.02041905808 | J19: 0.5000235908 | K19: ? | L19: ? | M19: Prospective Studies Collaboration. Age-specific relevance of usual blood pressure to vascular mortality: a meta-analysis of individual data for one million adults in 61 prospective studies. Lancer 2002; 360:1903-24
A20: 80-89: Stroke relative risk for 20mmHg reduction in BP | B20: -0.4005 | C20: 0.0305 | D20: Lognormal | E20: =IF('Baseline & Counterfactual'!$AD$4="Yes",IF(D20="Lognormal",LOGINV(RAND(),H20,I20),IF(D20="Normal",NORMINV(RAND(),H20,I20),"Error")), IF('Baseline & Counterfactual'!$AD$4="No", J20, "Error")) -> 0.6699849698 | F20: 0.63 | G20: 0.71 | H20: -0.4005 | I20: 0.0304962119 | J20: 0.6699849698 | K20: ? | L20: ? | M20: Prospective Studies Collaboration. Age-specific relevance of usual blood pressure to vascular mortality: a meta-analysis of individual data for one million adults in 61 prospective studies. Lancer 2002; 360:1903-25
A21: 90+: Stroke relative risk for 20mmHg reduction in BP | B21: -0.4005 | C21: 0.0305 | D21: Lognormal | E21: =IF('Baseline & Counterfactual'!$AD$4="Yes",IF(D21="Lognormal",LOGINV(RAND(),H21,I21),IF(D21="Normal",NORMINV(RAND(),H21,I21),"Error")), IF('Baseline & Counterfactual'!$AD$4="No", J21, "Error")) -> 0.6699849698 | F21: 0.63 | G21: 0.71 | H21: -0.4005 | I21: 0.0304962119 | J21: 0.6699849698 | K21: ? | L21: ? | M21: Prospective Studies Collaboration. Age-specific relevance of usual blood pressure to vascular mortality: a meta-analysis of individual data for one million adults in 61 prospective studies. Lancer 2002; 360:1903-26
A22: Heart failure RR for 20mmHg reduction in BP | B22: -0.6349 | C22: 0.0526 | D22: Lognormal | E22: =IF('Baseline & Counterfactual'!$AD$4="Yes",IF(D22="Lognormal",LOGINV(RAND(),H22,I22),IF(D22="Normal",NORMINV(RAND(),H22,I22),"Error")), IF('Baseline & Counterfactual'!$AD$4="No", J22, "Error")) -> 0.5299884845 | F22: 0.48 | G22: 0.59 | H22: -0.6349 | I22: 0.05263684515 | J22: 0.5299884845 | K22: ? | L22: ? | M22: Prospective Studies Collaboration. Age-specific relevance of usual blood pressure to vascular mortality: a meta-analysis of individual data for one million adults in 61 prospective studies. Lancer 2002; 360:1903-27
A23: Aortic aneurysm RR for 20mmHg reduction in BP | B23: -0.5978 | C23: 0.06 | D23: Lognormal | E23: =IF('Baseline & Counterfactual'!$AD$4="Yes",IF(D23="Lognormal",LOGINV(RAND(),H23,I23),IF(D23="Normal",NORMINV(RAND(),H23,I23),"Error")), IF('Baseline & Counterfactual'!$AD$4="No", J23, "Error")) -> 0.5500203508 | F23: 0.49 | G23: 0.62 | H23: -0.5978 | I23: 0.06002910381 | J23: 0.5500203508 | K23: ? | L23: ? | M23: Prospective Studies Collaboration. Age-specific relevance of usual blood pressure to vascular mortality: a meta-analysis of individual data for one million adults in 61 prospective studies. Lancer 2002; 360:1903-28
A24: Hypertensive disease RR for 20mmHg reduction in BP | B24: -1.5141 | C24: 0.0569 | D24: Lognormal | E24: =IF('Baseline & Counterfactual'!$AD$4="Yes",IF(D24="Lognormal",LOGINV(RAND(),H24,I24),IF(D24="Normal",NORMINV(RAND(),H24,I24),"Error")), IF('Baseline & Counterfactual'!$AD$4="No", J24, "Error")) -> 0.2200061013 | F24: 0.2 | G24: 0.25 | H24: -1.5141 | I24: 0.05692437534 | J24: 0.2200061013 | K24: ? | L24: ? | M24: Prospective Studies Collaboration. Age-specific relevance of usual blood pressure to vascular mortality: a meta-analysis of individual data for one million adults in 61 prospective studies. Lancer 2002; 360:1903-29
A25: Rheumatic heart disease RR for 20mmHg reduction in BP | B25: -0.3011 | C25: 0.0964 | D25: Lognormal | E25: =IF('Baseline & Counterfactual'!$AD$4="Yes",IF(D25="Lognormal",LOGINV(RAND(),H25,I25),IF(D25="Normal",NORMINV(RAND(),H25,I25),"Error")), IF('Baseline & Counterfactual'!$AD$4="No", J25, "Error")) -> 0.7400037687 | F25: 0.61 | G25: 0.89 | H25: -0.3011 | I25: 0.09636798611 | J25: 0.7400037687 | K25: ? | L25: ? | M25: Prospective Studies Collaboration. Age-specific relevance of usual blood pressure to vascular mortality: a meta-analysis of individual data for one million adults in 61 prospective studies. Lancer 2002; 360:1903-30
A26: Pulmonary embolism RR for 20mmHg reduction in BP | B26: -0.3285 | C26: 0.0948 | D26: Lognormal | E26: =IF('Baseline & Counterfactual'!$AD$4="Yes",IF(D26="Lognormal",LOGINV(RAND(),H26,I26),IF(D26="Normal",NORMINV(RAND(),H26,I26),"Error")), IF('Baseline & Counterfactual'!$AD$4="No", J26, "Error")) -> 0.7200029282 | F26: 0.6 | G26: 0.87 | H26: -0.3285 | I26: 0.09478662154 | J26: 0.7200029282 | K26: ? | L26: ? | M26: Prospective Studies Collaboration. Age-specific relevance of usual blood pressure to vascular mortality: a meta-analysis of individual data for one million adults in 61 prospective studies. Lancer 2002; 360:1903-31
A27: Decrease in Total Serum Cholesterol (mmol/l) for a 1% decrease in total fat as a % of total energy | B27: 0.02 | C27: 0.005 | D27: Normal | E27: =IF('Baseline & Counterfactual'!$AD$4="Yes",IF(D27="Lognormal",LOGINV(RAND(),H27,I27),IF(D27="Normal",NORMINV(RAND(),H27,I27),"Error")), IF('Baseline & Counterfactual'!$AD$4="No", J27, "Error")) -> 0.02 | F27: 0.0102 | G27: 0.0298 | H27: =IF(D27="Normal",J27,IF(D27="Lognormal",LN(J27),"ERROR")) -> 0.02 | I27: =IF(D27="Normal",AVERAGE((J27-F27)/1.96,(G27-J27)/1.96),IF(D27="Lognormal",AVERAGE((LN(J27)-LN(F27))/1.96,(LN(G27)-LN(J27))/1.96),"ERROR")) -> 0.005 | J27: 0.02 | K27: ? | L27: ? | M27: Clarke R, Frost C, Collins R, Appleby P, Peto R. Dietary lipids and blood cholesterol: quantitative analysis of metabolic ward studies. BMJ 1997; 314
A28: Decrease in Total Serum Cholesterol (mmol/l) for a 1% decrease in saturated fat as a % of total energy | B28: 0.052 | C28: 0.003 | D28: Normal | E28: =IF('Baseline & Counterfactual'!$AD$4="Yes",IF(D28="Lognormal",LOGINV(RAND(),H28,I28),IF(D28="Normal",NORMINV(RAND(),H28,I28),"Error")), IF('Baseline & Counterfactual'!$AD$4="No", J28, "Error")) -> 0.052 | F28: 0.04612 | G28: 0.05788 | H28: =IF(D28="Normal",J28,IF(D28="Lognormal",LN(J28),"ERROR")) -> 0.052 | I28: =IF(D28="Normal",AVERAGE((J28-F28)/1.96,(G28-J28)/1.96),IF(D28="Lognormal",AVERAGE((LN(J28)-LN(F28))/1.96,(LN(G28)-LN(J28))/1.96),"ERROR")) -> 0.003 | J28: 0.052 | K28: ? | L28: ? | M28: Clarke R, Frost C, Collins R, Appleby P, Peto R. Dietary lipids and blood cholesterol: quantitative analysis of metabolic ward studies. BMJ 1997; 315
A29: Decrease in Total Serum Cholesterol (mmol/l) for a 1% decrease in PUFA as a % of total energy | B29: -0.026 | C29: 0.004 | D29: Normal | E29: =IF('Baseline & Counterfactual'!$AD$4="Yes",IF(D29="Lognormal",LOGINV(RAND(),H29,I29),IF(D29="Normal",NORMINV(RAND(),H29,I29),"Error")), IF('Baseline & Counterfactual'!$AD$4="No", J29, "Error")) -> -0.026 | F29: -0.03384 | G29: -0.01816 | H29: -0.026 | I29: 0.004 | J29: -0.026 | K29: ? | L29: ? | M29: Clarke R, Frost C, Collins R, Appleby P, Peto R. Dietary lipids and blood cholesterol: quantitative analysis of metabolic ward studies. BMJ 1997; 316
A30: Decrease in Total Serum Cholesterol (mmol/l) for a 1% decrease in MUFA as a % of total energy | B30: 0.005 | C30: 0.003 | D30: Normal | E30: =IF('Baseline & Counterfactual'!$AD$4="Yes",IF(D30="Lognormal",LOGINV(RAND(),H30,I30),IF(D30="Normal",NORMINV(RAND(),H30,I30),"Error")), IF('Baseline & Counterfactual'!$AD$4="No", J30, "Error")) -> 0.005 | F30: -0.00088 | G30: 0.01088 | H30: 0.005 | I30: 0.003 | J30: 0.005 | K30: ? | L30: ? | M30: Clarke R, Frost C, Collins R, Appleby P, Peto R. Dietary lipids and blood cholesterol: quantitative analysis of metabolic ward studies. BMJ 1997; 317
A31: Decrease in Total Serum Cholesterol (mmol/l) for a 1mg/d decrease in dietary cholesterol | B31: 0.0007 | C31: 0.0001 | D31: Normal | E31: =IF('Baseline & Counterfactual'!$AD$4="Yes",IF(D31="Lognormal",LOGINV(RAND(),H31,I31),IF(D31="Normal",NORMINV(RAND(),H31,I31),"Error")), IF('Baseline & Counterfactual'!$AD$4="No", J31, "Error")) -> 0.0007 | F31: 0.000504 | G31: 0.000896 | H31: 0.0007 | I31: 0.0001 | J31: 0.0007 | K31: ? | L31: ? | M31: Clarke R, Frost C, Collins R, Appleby P, Peto R. Dietary lipids and blood cholesterol: quantitative analysis of metabolic ward studies. BMJ 1997; 318
A32: <40: CHD relative risk for 1 mmol/l decrease in Total Serum Cholesterol | B32: -0.821 | C32: 0.0341 | D32: Lognormal | E32: =IF('Baseline & Counterfactual'!$AD$4="Yes",IF(D32="Lognormal",LOGINV(RAND(),H32,I32),IF(D32="Normal",NORMINV(RAND(),H32,I32),"Error")), IF('Baseline & Counterfactual'!$AD$4="No", J32, "Error")) -> 0.439991443 | F32: 0.42 | G32: 0.48 | H32: -0.821 | I32: 0.03406413077 | J32: 0.439991443 | K32: ? | L32: ? | M32: Prospective studies collaboration. Blood cholesterol and vascular mortality by age, sex, and blood pressure: a meta-analysis of individual data from 61 prosspective studies with 55000 vascular deaths. Lancet 2007; 370:1829-39
A33: 40-49: CHD relative risk for 1 mmol/l decrease in Total Serum Cholesterol | B33: -0.821 | C33: 0.0341 | D33: Lognormal | E33: =IF('Baseline & Counterfactual'!$AD$4="Yes",IF(D33="Lognormal",LOGINV(RAND(),H33,I33),IF(D33="Normal",NORMINV(RAND(),H33,I33),"Error")), IF('Baseline & Counterfactual'!$AD$4="No", J33, "Error")) -> 0.439991443 | F33: 0.42 | G33: 0.48 | H33: -0.821 | I33: 0.03406413077 | J33: 0.439991443 | K33: ? | L33: ? | M33: Prospective studies collaboration. Blood cholesterol and vascular mortality by age, sex, and blood pressure: a meta-analysis of individual data from 61 prosspective studies with 55000 vascular deaths. Lancet 2007; 370:1829-40
A34: 50-59: CHD relative risk for 1 mmol/l decrease in Total Serum Cholesterol | B34: -0.5447 | C34: 0.0218 | D34: Lognormal | E34: =IF('Baseline & Counterfactual'!$AD$4="Yes",IF(D34="Lognormal",LOGINV(RAND(),H34,I34),IF(D34="Normal",NORMINV(RAND(),H34,I34),"Error")), IF('Baseline & Counterfactual'!$AD$4="No", J34, "Error")) -> 0.580015762 | F34: 0.56 | G34: 0.61 | H34: -0.5447 | I34: 0.02181688098 | J34: 0.580015762 | K34: ? | L34: ? | M34: Prospective studies collaboration. Blood cholesterol and vascular mortality by age, sex, and blood pressure: a meta-analysis of individual data from 61 prosspective studies with 55000 vascular deaths. Lancet 2007; 370:1829-41
A35: 60-69: CHD relative risk for 1 mmol/l decrease in Total Serum Cholesterol | B35: -0.3285 | C35: 0.0178 | D35: Lognormal | E35: =IF('Baseline & Counterfactual'!$AD$4="Yes",IF(D35="Lognormal",LOGINV(RAND(),H35,I35),IF(D35="Normal",NORMINV(RAND(),H35,I35),"Error")), IF('Baseline & Counterfactual'!$AD$4="No", J35, "Error")) -> 0.7200029282 | F35: 0.69 | G35: 0.74 | H35: -0.3285 | I35: 0.01784657873 | J35: 0.7200029282 | K35: ? | L35: ? | M35: Prospective studies collaboration. Blood cholesterol and vascular mortality by age, sex, and blood pressure: a meta-analysis of individual data from 61 prosspective studies with 55000 vascular deaths. Lancet 2007; 370:1829-42
A36: 70-79: CHD relative risk for 1 mmol/l decrease in Total Serum Cholesterol | B36: -0.1985 | C36: 0.0155 | D36: Lognormal | E36: =IF('Baseline & Counterfactual'!$AD$4="Yes",IF(D36="Lognormal",LOGINV(RAND(),H36,I36),IF(D36="Normal",NORMINV(RAND(),H36,I36),"Error")), IF('Baseline & Counterfactual'!$AD$4="No", J36, "Error")) -> 0.8199597707 | F36: 0.8 | G36: 0.85 | H36: -0.1985 | I36: 0.01546546475 | J36: 0.8199597707 | K36: ? | L36: ? | M36: Prospective studies collaboration. Blood cholesterol and vascular mortality by age, sex, and blood pressure: a meta-analysis of individual data from 61 prosspective studies with 55000 vascular deaths. Lancet 2007; 370:1829-43
A37: 80-89: CHD relative risk for 1 mmol/l decrease in Total Serum Cholesterol | B37: -0.1625 | C37: 0.0209 | D37: Lognormal | E37: =IF('Baseline & Counterfactual'!$AD$4="Yes",IF(D37="Lognormal",LOGINV(RAND(),H37,I37),IF(D37="Normal",NORMINV(RAND(),H37,I37),"Error")), IF('Baseline & Counterfactual'!$AD$4="No", J37, "Error")) -> 0.8500160902 | F37: 0.82 | G37: 0.89 | H37: -0.1625 | I37: 0.02089722512 | J37: 0.8500160902 | K37: ? | L37: ? | M37: Prospective studies collaboration. Blood cholesterol and vascular mortality by age, sex, and blood pressure: a meta-analysis of individual data from 61 prosspective studies with 55000 vascular deaths. Lancet 2007; 370:1829-44
A38: 90+: CHD relative risk for 1 mmol/l decrease in Total Serum Cholesterol | B38: -0.1625 | C38: 0.0209 | D38: Lognormal | E38: =IF('Baseline & Counterfactual'!$AD$4="Yes",IF(D38="Lognormal",LOGINV(RAND(),H38,I38),IF(D38="Normal",NORMINV(RAND(),H38,I38),"Error")), IF('Baseline & Counterfactual'!$AD$4="No", J38, "Error")) -> 0.8500160902 | F38: 0.82 | G38: 0.89 | H38: -0.1625 | I38: 0.02089722512 | J38: 0.8500160902 | K38: ? | L38: ? | M38: Prospective studies collaboration. Blood cholesterol and vascular mortality by age, sex, and blood pressure: a meta-analysis of individual data from 61 prosspective studies with 55000 vascular deaths. Lancet 2007; 370:1829-45
A39: <40: Stroke relative risk for 1 mmol/l decrease in Total Serum Cholesterol | B39: -0.1054 | C39: 0.0367 | D39: Lognormal | E39: =IF('Baseline & Counterfactual'!$AD$4="Yes",IF(D39="Lognormal",LOGINV(RAND(),H39,I39),IF(D39="Normal",NORMINV(RAND(),H39,I39),"Error")), IF('Baseline & Counterfactual'!$AD$4="No", J39, "Error")) -> 0.8999644648 | F39: 0.84 | G39: 0.97 | H39: -0.1054 | I39: 0.03670769889 | J39: 0.8999644648 | K39: ? | L39: ? | M39: Prospective studies collaboration. Blood cholesterol and vascular mortality by age, sex, and blood pressure: a meta-analysis of individual data from 61 prosspective studies with 55000 vascular deaths. Lancet 2007; 370:1829-46
A40: 40-49: Stroke relative risk for 1 mmol/l decrease in Total Serum Cholesterol | B40: -0.1054 | C40: 0.0367 | D40: Lognormal | E40: =IF('Baseline & Counterfactual'!$AD$4="Yes",IF(D40="Lognormal",LOGINV(RAND(),H40,I40),IF(D40="Normal",NORMINV(RAND(),H40,I40),"Error")), IF('Baseline & Counterfactual'!$AD$4="No", J40, "Error")) -> 0.8999644648 | F40: 0.84 | G40: 0.97 | H40: -0.1054 | I40: 0.03670769889 | J40: 0.8999644648 | K40: ? | L40: ? | M40: Prospective studies collaboration. Blood cholesterol and vascular mortality by age, sex, and blood pressure: a meta-analysis of individual data from 61 prosspective studies with 55000 vascular deaths. Lancet 2007; 370:1829-47
A41: 50-59: Stroke relative risk for 1 mmol/l decrease in Total Serum Cholesterol | B41: 0.0198 | C41: 0.0274 | D41: Lognormal | E41: =IF('Baseline & Counterfactual'!$AD$4="Yes",IF(D41="Lognormal",LOGINV(RAND(),H41,I41),IF(D41="Normal",NORMINV(RAND(),H41,I41),"Error")), IF('Baseline & Counterfactual'!$AD$4="No", J41, "Error")) -> 0.9 | F41: 0.84 | G41: 0.97 | H41: -0.1053605157 | I41: 0.03670769889 | J41: 0.9 | K41: ? | L41: ? | M41: Prospective studies collaboration. Blood cholesterol and vascular mortality by age, sex, and blood pressure: a meta-analysis of individual data from 61 prosspective studies with 55000 vascular deaths. Lancet 2007; 370:1829-48
A42: 60-69: Stroke relative risk for 1 mmol/l decrease in Total Serum Cholesterol | B42: 0.0198 | C42: 0.0274 | D42: Lognormal | E42: =IF('Baseline & Counterfactual'!$AD$4="Yes",IF(D42="Lognormal",LOGINV(RAND(),H42,I42),IF(D42="Normal",NORMINV(RAND(),H42,I42),"Error")), IF('Baseline & Counterfactual'!$AD$4="No", J42, "Error")) -> 1.01999732 | F42: 0.97 | G42: 1.08 | H42: 0.0198 | I42: 0.02740312465 | J42: 1.01999732 | K42: ? | L42: ? | M42: Prospective studies collaboration. Blood cholesterol and vascular mortality by age, sex, and blood pressure: a meta-analysis of individual data from 61 prosspective studies with 55000 vascular deaths. Lancet 2007; 370:1829-49
A43: 70-79: Stroke relative risk for 1 mmol/l decrease in Total Serum Cholesterol | B43: 0.0392 | C43: 0.0245 | D43: Lognormal | E43: =IF('Baseline & Counterfactual'!$AD$4="Yes",IF(D43="Lognormal",LOGINV(RAND(),H43,I43),IF(D43="Normal",NORMINV(RAND(),H43,I43),"Error")), IF('Baseline & Counterfactual'!$AD$4="No", J43, "Error")) -> 1.039978459 | F43: 0.99 | G43: 1.09 | H43: 0.0392 | I43: 0.02454796737 | J43: 1.039978459 | K43: ? | L43: ? | M43: Prospective studies collaboration. Blood cholesterol and vascular mortality by age, sex, and blood pressure: a meta-analysis of individual data from 61 prosspective studies with 55000 vascular deaths. Lancet 2007; 370:1829-50
A44: 80-89: Stroke relative risk for 1 mmol/l decrease in Total Serum Cholesterol | B44: 0.0583 | C44: 0.0312 | D44: Lognormal | E44: =IF('Baseline & Counterfactual'!$AD$4="Yes",IF(D44="Lognormal",LOGINV(RAND(),H44,I44),IF(D44="Normal",NORMINV(RAND(),H44,I44),"Error")), IF('Baseline & Counterfactual'!$AD$4="No", J44, "Error")) -> 1.060032958 | F44: 1 | G44: 1.13 | H44: =IF(D44="Normal",J44,IF(D44="Lognormal",LN(J44),"ERROR")) -> 0.0583 | I44: =IF(D44="Normal",AVERAGE((J44-F44)/1.96,(G44-J44)/1.96),IF(D44="Lognormal",AVERAGE((LN(J44)-LN(F44))/1.96,(LN(G44)-LN(J44))/1.96),"ERROR")) -> 0.03117796753 | J44: 1.060032958 | K44: ? | L44: ? | M44: Prospective studies collaboration. Blood cholesterol and vascular mortality by age, sex, and blood pressure: a meta-analysis of individual data from 61 prosspective studies with 55000 vascular deaths. Lancet 2007; 370:1829-51
A45: 90+: Stroke relative risk for 1 mmol/l decrease in Total Serum Cholesterol | B45: 0.0583 | C45: 0.0312 | D45: Lognormal | E45: =IF('Baseline & Counterfactual'!$AD$4="Yes",IF(D45="Lognormal",LOGINV(RAND(),H45,I45),IF(D45="Normal",NORMINV(RAND(),H45,I45),"Error")), IF('Baseline & Counterfactual'!$AD$4="No", J45, "Error")) -> 1.060032958 | F45: 1 | G45: 1.13 | H45: =IF(D45="Normal",J45,IF(D45="Lognormal",LN(J45),"ERROR")) -> 0.0583 | I45: =IF(D45="Normal",AVERAGE((J45-F45)/1.96,(G45-J45)/1.96),IF(D45="Lognormal",AVERAGE((LN(J45)-LN(F45))/1.96,(LN(G45)-LN(J45))/1.96),"ERROR")) -> 0.03117796753 | J45: 1.060032958 | K45: ? | L45: ? | M45: Prospective studies collaboration. Blood cholesterol and vascular mortality by age, sex, and blood pressure: a meta-analysis of individual data from 61 prosspective studies with 55000 vascular deaths. Lancet 2007; 370:1829-52
A46: OBESITY | E46: Estimate | F46: CI low | G46: CI high | H46: Mean | I46: SD | J46: Estimate
A47: CHD RR for 5 BMI increase: BMI 15-25, men | B47: 0.239 | C47: 0.0461 | D47: Lognormal | E47: =IF('Baseline & Counterfactual'!$AD$4="Yes",IF(D47="Lognormal",LOGINV(RAND(),H47,I47),IF(D47="Normal",NORMINV(RAND(),H47,I47),"Error")), IF('Baseline & Counterfactual'!$AD$4="No", J47, "Error")) -> 1.269978537 | F47: 1.16 | G47: 1.39 | H47: =IF(D47="Normal",J47,IF(D47="Lognormal",LN(J47),"ERROR")) -> 0.239 | I47: =IF(D47="Normal",AVERAGE((J47-F47)/1.96,(G47-J47)/1.96),IF(D47="Lognormal",AVERAGE((LN(J47)-LN(F47))/1.96,(LN(G47)-LN(J47))/1.96),"ERROR")) -> 0.04614381174 | J47: 1.269978537 | K47: 0 | L47: 50 | M47: Prospective studies collaboration. Body-mass index and cause specific mortality in 900000 adults: collaborative analyses of 57 prospective studies. Lancet 2009; 373:1083-96
A48: CHD RR for 5 BMI increase: BMI 15-25, women | B48: 0.01 | C48: 0.0807 | D48: Lognormal | E48: =IF('Baseline & Counterfactual'!$AD$4="Yes",IF(D48="Lognormal",LOGINV(RAND(),H48,I48),IF(D48="Normal",NORMINV(RAND(),H48,I48),"Error")), IF('Baseline & Counterfactual'!$AD$4="No", J48, "Error")) -> 1.010050167 | F48: 0.86 | G48: 1.18 | H48: =IF(D48="Normal",J48,IF(D48="Lognormal",LN(J48),"ERROR")) -> 0.01 | I48: =IF(D48="Normal",AVERAGE((J48-F48)/1.96,(G48-J48)/1.96),IF(D48="Lognormal",AVERAGE((LN(J48)-LN(F48))/1.96,(LN(G48)-LN(J48))/1.96),"ERROR")) -> 0.08069829801 | J48: 1.010050167 | K48: 0 | L48: 50 | M48: Prospective studies collaboration. Body-mass index and cause specific mortality in 900000 adults: collaborative analyses of 57 prospective studies. Lancet 2009; 373:1083-97
A49: CHD RR for 5 BMI increase: BMI 25-50, men | B49: 0.3507 | C49: 0.0235 | D49: Lognormal | E49: =IF('Baseline & Counterfactual'!$AD$4="Yes",IF(D49="Lognormal",LOGINV(RAND(),H49,I49),IF(D49="Normal",NORMINV(RAND(),H49,I49),"Error")), IF('Baseline & Counterfactual'!$AD$4="No", J49, "Error")) -> 1.420061244 | F49: 1.35 | G49: 1.48 | H49: 0.3507 | I49: 0.02345344269 | J49: 1.420061244 | K49: 0 | L49: 50 | M49: Prospective studies collaboration. Body-mass index and cause specific mortality in 900000 adults: collaborative analyses of 57 prospective studies. Lancet 2009; 373:1083-98
A50: CHD RR for 5 BMI increase: BMI 25-50, women | B50: 0.3001 | C50: 0.0283 | D50: Lognormal | E50: =IF('Baseline & Counterfactual'!$AD$4="Yes",IF(D50="Lognormal",LOGINV(RAND(),H50,I50),IF(D50="Normal",NORMINV(RAND(),H50,I50),"Error")), IF('Baseline & Counterfactual'!$AD$4="No", J50, "Error")) -> 1.3499938 | F50: 1.28 | G50: 1.43 | H50: 0.3001 | I50: 0.02826897101 | J50: 1.3499938 | K50: 0 | L50: 50 | M50: Prospective studies collaboration. Body-mass index and cause specific mortality in 900000 adults: collaborative analyses of 57 prospective studies. Lancet 2009; 373:1083-99
A51: Stroke RR for 5 BMI increase: BMI 15-25 | B51: -0.0834 | C51: 0.0582 | D51: Lognormal | E51: =IF('Baseline & Counterfactual'!$AD$4="Yes",IF(D51="Lognormal",LOGINV(RAND(),H51,I51),IF(D51="Normal",NORMINV(RAND(),H51,I51),"Error")), IF('Baseline & Counterfactual'!$AD$4="No", J51, "Error")) -> 0.9199830804 | F51: 0.82 | G51: 1.03 | H51: -0.0834 | I51: 0.05816575025 | J51: 0.9199830804 | K51: 0 | L51: 50 | M51: Prospective studies collaboration. Body-mass index and cause specific mortality in 900000 adults: collaborative analyses of 57 prospective studies. Lancet 2009; 373:1083-100
A52: Stroke RR for 5 BMI increase: BMI 25-50 | B52: 0.3293 | C52: 0.0311 | D52: Lognormal | E52: =IF('Baseline & Counterfactual'!$AD$4="Yes",IF(D52="Lognormal",LOGINV(RAND(),H52,I52),IF(D52="Normal",NORMINV(RAND(),H52,I52),"Error")), IF('Baseline & Counterfactual'!$AD$4="No", J52, "Error")) -> 1.389994791 | F52: 1.31 | G52: 1.48 | H52: 0.3293 | I52: 0.0311262629 | J52: 1.389994791 | K52: 0 | L52: 50 | M52: Prospective studies collaboration. Body-mass index and cause specific mortality in 900000 adults: collaborative analyses of 57 prospective studies. Lancet 2009; 373:1083-101
A53: Heart failure RR for 5 BMI increase: BMI 15-25 | B53: -0.0726 | C53: 0.171 | D53: Lognormal | E53: =IF('Baseline & Counterfactual'!$AD$4="Yes",IF(D53="Lognormal",LOGINV(RAND(),H53,I53),IF(D53="Normal",NORMINV(RAND(),H53,I53),"Error")), IF('Baseline & Counterfactual'!$AD$4="No", J53, "Error")) -> 0.9299727447 | F53: 0.66 | G53: 1.29 | H53: -0.0726 | I53: 0.1709585873 | J53: 0.9299727447 | K53: 0 | L53: 50 | M53: Prospective studies collaboration. Body-mass index and cause specific mortality in 900000 adults: collaborative analyses of 57 prospective studies. Lancet 2009; 373:1083-102
A54: Heart failure RR for 5 BMI increase: BMI 25-50 | B54: 0.6206 | C54: 0.0928 | D54: Lognormal | E54: =IF('Baseline & Counterfactual'!$AD$4="Yes",IF(D54="Lognormal",LOGINV(RAND(),H54,I54),IF(D54="Normal",NORMINV(RAND(),H54,I54),"Error")), IF('Baseline & Counterfactual'!$AD$4="No", J54, "Error")) -> 1.860043733 | F54: 1.55 | G54: 2.23 | H54: 0.6206 | I54: 0.09279251391 | J54: 1.860043733 | K54: 0 | L54: 50 | M54: Prospective studies collaboration. Body-mass index and cause specific mortality in 900000 adults: collaborative analyses of 57 prospective studies. Lancet 2009; 373:1083-103
A55: Hypertensive disease RR for 5 BMI increase: BMI 15-25 | B55: 0.157 | C55: 0.2109 | D55: Lognormal | E55: =IF('Baseline & Counterfactual'!$AD$4="Yes",IF(D55="Lognormal",LOGINV(RAND(),H55,I55),IF(D55="Normal",NORMINV(RAND(),H55,I55),"Error")), IF('Baseline & Counterfactual'!$AD$4="No", J55, "Error")) -> 1.169995614 | F55: 0.77 | G55: 1.76 | H55: 0.157 | I55: 0.2108873911 | J55: 1.169995614 | K55: 0 | L55: 50 | M55: Prospective studies collaboration. Body-mass index and cause specific mortality in 900000 adults: collaborative analyses of 57 prospective studies. Lancet 2009; 373:1083-104
A56: Hypertensive disease RR for 5 BMI increase: BMI 25-50 | B56: 0.708 | C56: 0.0763 | D56: Lognormal | E56: =IF('Baseline & Counterfactual'!$AD$4="Yes",IF(D56="Lognormal",LOGINV(RAND(),H56,I56),IF(D56="Normal",NORMINV(RAND(),H56,I56),"Error")), IF('Baseline & Counterfactual'!$AD$4="No", J56, "Error")) -> 2.029927341 | F56: 1.75 | G56: 2.36 | H56: 0.708 | I56: 0.07628720181 | J56: 2.029927341 | K56: 0 | L56: 50 | M56: Prospective studies collaboration. Body-mass index and cause specific mortality in 900000 adults: collaborative analyses of 57 prospective studies. Lancet 2009; 373:1083-105
A57: Diabetes RR for 5 BMI increase: BMI 15-25 | B57: -0.0408 | C57: 0.2464 | D57: Lognormal | E57: =IF('Baseline & Counterfactual'!$AD$4="Yes",IF(D57="Lognormal",LOGINV(RAND(),H57,I57),IF(D57="Normal",NORMINV(RAND(),H57,I57),"Error")), IF('Baseline & Counterfactual'!$AD$4="No", J57, "Error")) -> 0.960021115 | F57: 0.59 | G57: 1.55 | H57: -0.0408 | I57: 0.2463999166 | J57: 0.960021115 | K57: 0 | L57: 50 | M57: Prospective studies collaboration. Body-mass index and cause specific mortality in 900000 adults: collaborative analyses of 57 prospective studies. Lancet 2009; 373:1083-106
A58: Diabetes RR for 5 BMI increase: BMI 25-50 | B58: 0.7701 | C58: 0.0672 | D58: Lognormal | E58: =IF('Baseline & Counterfactual'!$AD$4="Yes",IF(D58="Lognormal",LOGINV(RAND(),H58,I58),IF(D58="Normal",NORMINV(RAND(),H58,I58),"Error")), IF('Baseline & Counterfactual'!$AD$4="No", J58, "Error")) -> 2.159982241 | F58: 1.89 | G58: 2.46 | H58: 0.7701 | I58: 0.0672409492 | J58: 2.159982241 | K58: 0 | L58: 50 | M58: Prospective studies collaboration. Body-mass index and cause specific mortality in 900000 adults: collaborative analyses of 57 prospective studies. Lancet 2009; 373:1083-107
A59: Kidney disease RR for 5 BMI increase: BMI 15-25 | B59: 0.131 | C59: 0.2225 | D59: Lognormal | E59: =IF('Baseline & Counterfactual'!$AD$4="Yes",IF(D59="Lognormal",LOGINV(RAND(),H59,I59),IF(D59="Normal",NORMINV(RAND(),H59,I59),"Error")), IF('Baseline & Counterfactual'!$AD$4="No", J59, "Error")) -> 1.139967781 | F59: 0.74 | G59: 1.77 | H59: 0.131 | I59: 0.2224705713 | J59: 1.139967781 | K59: 0 | L59: 50 | M59: Prospective studies collaboration. Body-mass index and cause specific mortality in 900000 adults: collaborative analyses of 57 prospective studies. Lancet 2009; 373:1083-108
A60: Kidney disease RR for 5 BMI increase: BMI 25-50 | B60: 0.4637 | C60: 0.1146 | D60: Lognormal | E60: =IF('Baseline & Counterfactual'!$AD$4="Yes",IF(D60="Lognormal",LOGINV(RAND(),H60,I60),IF(D60="Normal",NORMINV(RAND(),H60,I60),"Error")), IF('Baseline & Counterfactual'!$AD$4="No", J60, "Error")) -> 1.589945915 | F60: 1.27 | G60: 1.99 | H60: 0.4637 | I60: 0.1145708516 | J60: 1.589945915 | K60: 0 | L60: 50 | M60: Prospective studies collaboration. Body-mass index and cause specific mortality in 900000 adults: collaborative analyses of 57 prospective studies. Lancet 2009; 373:1083-109
A61: Liver disease RR for 5 BMI increase: BMI 15-25 | B61: -0.3147 | C61: 0.1572 | D61: Lognormal | E61: =IF('Baseline & Counterfactual'!$AD$4="Yes",IF(D61="Lognormal",LOGINV(RAND(),H61,I61),IF(D61="Normal",NORMINV(RAND(),H61,I61),"Error")), IF('Baseline & Counterfactual'!$AD$4="No", J61, "Error")) -> 0.7300078438 | F61: 0.54 | G61: 1 | H61: -0.3147 | I61: 0.1571903417 | J61: 0.7300078438 | K61: 0 | L61: 50 | M61: Prospective studies collaboration. Body-mass index and cause specific mortality in 900000 adults: collaborative analyses of 57 prospective studies. Lancet 2009; 373:1083-110
A62: Liver disease RR for 5 BMI increase: BMI 25-50 | B62: 0.5822 | C62: 0.0767 | D62: Lognormal | E62: =IF('Baseline & Counterfactual'!$AD$4="Yes",IF(D62="Lognormal",LOGINV(RAND(),H62,I62),IF(D62="Normal",NORMINV(RAND(),H62,I62),"Error")), IF('Baseline & Counterfactual'!$AD$4="No", J62, "Error")) -> 1.789972041 | F62: 1.54 | G62: 2.08 | H62: 0.5822 | I62: 0.0766799687 | J62: 1.789972041 | K62: 0 | L62: 50 | M62: Prospective studies collaboration. Body-mass index and cause specific mortality in 900000 adults: collaborative analyses of 57 prospective studies. Lancet 2009; 373:1083-111
A63: Pancreas cancer relative risk for 5.0 BMI increase | B63: 0.131 | C63: 0.0335 | D63: Lognormal | E63: =IF('Baseline & Counterfactual'!$AD$4="Yes",IF(D63="Lognormal",LOGINV(RAND(),H63,I63),IF(D63="Normal",NORMINV(RAND(),H63,I63),"Error")), IF('Baseline & Counterfactual'!$AD$4="No", J63, "Error")) -> 1.1 | F63: 1.02 | G63: 1.19 | H63: 0.0953101798 | I63: 0.03932415302 | J63: 1.1 | K63: 0 | L63: 50 | M63: Norat T, Aune D, Vieira AR, Chan D, Rosenblatt DN, Vieira R. WCRF/AICR Systematic Literature Review Continuous Update Project Report: The Associations between Food, Nutrition and Physical Activity and the Risk of Pancreatic Cancer (2011)
A64: Colorectal cancer relative risk for 1.0 BMI increase | B64: 0.0296 | C64: 0.005 | D64: Lognormal | E64: =IF('Baseline & Counterfactual'!$AD$4="Yes",IF(D64="Lognormal",LOGINV(RAND(),H64,I64),IF(D64="Normal",NORMINV(RAND(),H64,I64),"Error")), IF('Baseline & Counterfactual'!$AD$4="No", J64, "Error")) -> 1.030042435 | F64: 1.02 | G64: 1.04 | H64: 0.0296 | I64: 0.004953593331 | J64: 1.030042435 | K64: 0 | L64: 50 | M64: World Cancer Research Fund/American Institute for Cancer Research. Food, Nutrition, Physical Activity, and the Prevention of Cancer: a Global Perspective. Washington DC: AICR, 2007. pg 216
A65: Breast cancer relative risk for 2.0 BMI increase, premenopausal (under 60) | B65: -0.0619 | C65: 0.0082 | D65: Lognormal | E65: =IF('Baseline & Counterfactual'!$AD$4="Yes",IF(D65="Lognormal",LOGINV(RAND(),H65,I65),IF(D65="Normal",NORMINV(RAND(),H65,I65),"Error")), IF('Baseline & Counterfactual'!$AD$4="No", J65, "Error")) -> 0.94 | F65: 0.92 | G65: 0.95 | H65: -0.06187540372 | I65: 0.008185794528 | J65: 0.94 | K65: 0 | L65: 50 | M65: World Cancer Research Fund/American Institute for Cancer Research. Food, Nutrition, Physical Activity, and the Prevention of Cancer: a Global Perspective. Washington DC: AICR, 2007. pg 220
A66: Breast cancer relative risk for 2.0 BMI increase, postmenopausal (over 60) | B66: 0.0296 | C66: 0.0075 | D66: Lognormal | E66: =IF('Baseline & Counterfactual'!$AD$4="Yes",IF(D66="Lognormal",LOGINV(RAND(),H66,I66),IF(D66="Normal",NORMINV(RAND(),H66,I66),"Error")), IF('Baseline & Counterfactual'!$AD$4="No", J66, "Error")) -> 1.03 | F66: 1.01 | G66: 1.04 | H66: 0.02955880224 | I66: 0.00746693426 | J66: 1.03 | K66: 0 | L66: 50 | M66: World Cancer Research Fund/American Institute for Cancer Research. Food, Nutrition, Physical Activity, and the Prevention of Cancer: a Global Perspective. Washington DC: AICR, 2007. pg 219
A67: Endometrial cancer relative risk for 5.0 BMI increase | B67: 0.4187 | C67: 0.0618 | D67: Lognormal | E67: =IF('Baseline & Counterfactual'!$AD$4="Yes",IF(D67="Lognormal",LOGINV(RAND(),H67,I67),IF(D67="Normal",NORMINV(RAND(),H67,I67),"Error")), IF('Baseline & Counterfactual'!$AD$4="No", J67, "Error")) -> 1.519984291 | F67: 1.35 | G67: 1.72 | H67: 0.4187 | I67: 0.06179073938 | J67: 1.519984291 | K67: 0 | L67: 50 | M67: World Cancer Research Fund/American Institute for Cancer Research. Food, Nutrition, Physical Activity, and the Prevention of Cancer: a Global Perspective. Washington DC: AICR, 2007. pg 221
A68: Gallbladder cancer relative risk for 5.0 BMI increase | B68: 0.207 | C68: 0.0352 | D68: Lognormal | E68: =IF('Baseline & Counterfactual'!$AD$4="Yes",IF(D68="Lognormal",LOGINV(RAND(),H68,I68),IF(D68="Normal",NORMINV(RAND(),H68,I68),"Error")), IF('Baseline & Counterfactual'!$AD$4="No", J68, "Error")) -> 1.229982572 | F68: 1.15 | G68: 1.32 | H68: 0.207 | I68: 0.03517086587 | J68: 1.229982572 | K68: 0 | L68: 50 | M68: World Cancer Research Fund/American Institute for Cancer Research. Food, Nutrition, Physical Activity, and the Prevention of Cancer: a Global Perspective. Washington DC: AICR, 2007. pg 223
A69: Kidney cancer relative risk for 5.0 BMI increase | B69: 0.27 | C69: 0.0291 | D69: Lognormal | E69: =IF('Baseline & Counterfactual'!$AD$4="Yes",IF(D69="Lognormal",LOGINV(RAND(),H69,I69),IF(D69="Normal",NORMINV(RAND(),H69,I69),"Error")), IF('Baseline & Counterfactual'!$AD$4="No", J69, "Error")) -> 1.309964451 | F69: 1.24 | G69: 1.39 | H69: 0.27 | I69: 0.029130706 | J69: 1.309964451 | K69: 0 | L69: 50 | M69: World Cancer Research Fund/American Institute for Cancer Research. Food, Nutrition, Physical Activity, and the Prevention of Cancer: a Global Perspective. Washington DC: AICR, 2007. pg 223
A70: Colorectal cancer relative risk for 10g/day fibre increase (men) | D70: Lognormal | E70: =IF('Baseline & Counterfactual'!$AD$4="Yes",IF(D70="Lognormal",LOGINV(RAND(),H70,I70),IF(D70="Normal",NORMINV(RAND(),H70,I70),"Error")), IF('Baseline & Counterfactual'!$AD$4="No", J70, "Error")) -> 0.88 | F70: 0.78 | G70: 0.99 | H70: -0.1278333715 | I70: 0.06081913863 | J70: 0.88 | K70: 0 | L70: 50 | M70: Norat T, Chan D, Lau R, Aune D, Vieira R. WCRF/AICR Systematic Literature Review Continuous Update Project Report: The Associations between Food, Nutrition and Physical Activity and the Risk of Colorectal Cancer (2010)
A71: Colorectal cancer relative risk for 10g/day fibre increase (women) | D71: Lognormal | E71: =IF('Baseline & Counterfactual'!$AD$4="Yes",IF(D71="Lognormal",LOGINV(RAND(),H71,I71),IF(D71="Normal",NORMINV(RAND(),H71,I71),"Error")), IF('Baseline & Counterfactual'!$AD$4="No", J71, "Error")) -> 0.92 | F71: 0.87 | G71: 0.98 | H71: -0.08338160894 | I71: 0.03037228572 | J71: 0.92 | K71: 0 | L71: 50 | M71: Norat T, Chan D, Lau R, Aune D, Vieira R. WCRF/AICR Systematic Literature Review Continuous Update Project Report: The Associations between Food, Nutrition and Physical Activity and the Risk of Colorectal Cancer (2010)
A72: First stroke incidence relative risk for 7g/day increase in fibre | D72: Lognormal | E72: =IF('Baseline & Counterfactual'!$AD$4="Yes",IF(D72="Lognormal",LOGINV(RAND(),H72,I72),IF(D72="Normal",NORMINV(RAND(),H72,I72),"Error")), IF('Baseline & Counterfactual'!$AD$4="No", J72, "Error")) -> 0.93 | F72: 0.88 | G72: 0.98 | H72: -0.07257069283 | I72: 0.02745680209 | J72: 0.93 | K72: 5 | L72: 35 | M72: Threapleton DE, Greenwood DC, Evans CE, Cleghorn CL, Nykjaer C, Woodhead C, Cade JE, Gale CP, Burley VJ. Dietary fiber intake and risk of first stroke: a systematic review and meta-analysis. Stroke 2013; 44:1360-1368
A73: CHD mortality relative risk for 10g/day increase in dietary fibre | B73: -0.2107 | C73: 0.0625 | D73: Lognormal | E73: =IF('Baseline & Counterfactual'!$AD$4="Yes",IF(D73="Lognormal",LOGINV(RAND(),H73,I73),IF(D73="Normal",NORMINV(RAND(),H73,I73),"Error")), IF('Baseline & Counterfactual'!$AD$4="No", J73, "Error")) -> 0.8100170355 | F73: 0.72 | G73: 0.92 | H73: -0.2107 | I73: 0.06253123929 | J73: 0.8100170355 | K73: 12 | L73: 27 | M73: Pereira M, O'Reilly E, Augustsson K, Fraser GE, Goldbourt U, Heitmann BL, Hallmans G, Knekt P, Pietinen P, Spiegelman D, Stevens J, Virtamo J, Willett WC, Ascherio A. Dietary fiber and risk of coronary heart disease: a pooled analysis of cohort studies. Arch Int Med. 2004;164(4):370-6
A74: SMOKING | E74: Estimate | F74: CI low | G74: CI high | H74: Mean | I74: SD | J74: Estimate
A75: COPD relative risk for male current smokers | B75: =H75 -> 2.379546134 | C75: 0.1284839628 | D75: Lognormal | E75: =IF('Baseline & Counterfactual'!$AD$4="Yes",IF(D75="Lognormal",LOGINV(RAND(),H75,I75),IF(D75="Normal",NORMINV(RAND(),H75,I75),"Error")), IF('Baseline & Counterfactual'!$AD$4="No", J75, "Error")) -> 10.8 | F75: 8.4 | G75: 13.9 | H75: =IF(D75="Normal",J75,IF(D75="Lognormal",LN(J75),"ERROR")) -> 2.379546134 | I75: =IF(D75="Normal",AVERAGE((J75-F75)/1.96,(G75-J75)/1.96),IF(D75="Lognormal",AVERAGE((LN(J75)-LN(F75))/1.96,(LN(G75)-LN(J75))/1.96),"ERROR")) -> 0.1284839628 | J75: 10.8 | K75: cat | L75: cat | M75: Thun MJ, Apicella LF, Henley SJ. Smoking vs other risk factors as the cause of smoking-attributable deaths: confounding in the courtroom. JAMA. 2000 Aug 9;284(6):706-12.
A76: COPD relative risk for male former smokers | B76: 2.054123734 | C76: 0.1209422486 | D76: Lognormal | E76: =IF('Baseline & Counterfactual'!$AD$4="Yes",IF(D76="Lognormal",LOGINV(RAND(),H76,I76),IF(D76="Normal",NORMINV(RAND(),H76,I76),"Error")), IF('Baseline & Counterfactual'!$AD$4="No", J76, "Error")) -> 7.8 | F76: 6.1 | G76: 9.8 | H76: =IF(D76="Normal",J76,IF(D76="Lognormal",LN(J76),"ERROR")) -> 2.054123734 | I76: =IF(D76="Normal",AVERAGE((J76-F76)/1.96,(G76-J76)/1.96),IF(D76="Lognormal",AVERAGE((LN(J76)-LN(F76))/1.96,(LN(G76)-LN(J76))/1.96),"ERROR")) -> 0.1209422486 | J76: 7.8 | K76: cat | L76: cat | M76: Thun MJ, Apicella LF, Henley SJ. Smoking vs other risk factors as the cause of smoking-attributable deaths: confounding in the courtroom. JAMA. 2000 Aug 9;284(6):706-12.
A77: COPD relative risk for female current smokers | B77: 2.509599262 | C77: 0.1093777221 | D77: Lognormal | E77: =IF('Baseline & Counterfactual'!$AD$4="Yes",IF(D77="Lognormal",LOGINV(RAND(),H77,I77),IF(D77="Normal",NORMINV(RAND(),H77,I77),"Error")), IF('Baseline & Counterfactual'!$AD$4="No", J77, "Error")) -> 12.3 | F77: 9.9 | G77: 15.2 | H77: 2.509599262 | I77: 0.1093777221 | J77: 12.3 | K77: cat | L77: cat | M77: Thun MJ, Apicella LF, Henley SJ. Smoking vs other risk factors as the cause of smoking-attributable deaths: confounding in the courtroom. JAMA. 2000 Aug 9;284(6):706-12.
A78: COPD relative risk for female former smokers | B78: 2.186051277 | C78: 0.1139924297 | D78: Lognormal | E78: =IF('Baseline & Counterfactual'!$AD$4="Yes",IF(D78="Lognormal",LOGINV(RAND(),H78,I78),IF(D78="Normal",NORMINV(RAND(),H78,I78),"Error")), IF('Baseline & Counterfactual'!$AD$4="No", J78, "Error")) -> 8.9 | F78: 7.1 | G78: 11.1 | H78: 2.186051277 | I78: 0.1139924297 | J78: 8.9 | K78: cat | L78: cat | M78: Thun MJ, Apicella LF, Henley SJ. Smoking vs other risk factors as the cause of smoking-attributable deaths: confounding in the courtroom. JAMA. 2000 Aug 9;284(6):706-12.
A79: IHD relative risk 35-64y males current smokers | B79: 0.955511445 | C79: 0.04827602032 | D79: Lognormal | E79: =IF('Baseline & Counterfactual'!$AD$4="Yes",IF(D79="Lognormal",LOGINV(RAND(),H79,I79),IF(D79="Normal",NORMINV(RAND(),H79,I79),"Error")), IF('Baseline & Counterfactual'!$AD$4="No", J79, "Error")) -> 2.6 | F79: 2.4 | G79: 2.9 | H79: 0.955511445 | I79: 0.04827602032 | J79: 2.6 | K79: cat | L79: cat | M79: Thun MJ, Apicella LF, Henley SJ. Smoking vs other risk factors as the cause of smoking-attributable deaths: confounding in the courtroom. JAMA. 2000 Aug 9;284(6):706-12.
A80: IHD relative risk 35-64y males former smokers | B80: 0.4700036292 | C80: 0.04952959552 | D80: Lognormal | E80: =IF('Baseline & Counterfactual'!$AD$4="Yes",IF(D80="Lognormal",LOGINV(RAND(),H80,I80),IF(D80="Normal",NORMINV(RAND(),H80,I80),"Error")), IF('Baseline & Counterfactual'!$AD$4="No", J80, "Error")) -> 1.6 | F80: 1.4 | G80: 1.7 | H80: 0.4700036292 | I80: 0.04952959552 | J80: 1.6 | K80: cat | L80: cat | M80: Thun MJ, Apicella LF, Henley SJ. Smoking vs other risk factors as the cause of smoking-attributable deaths: confounding in the courtroom. JAMA. 2000 Aug 9;284(6):706-12.
A81: IHD relative risk >65y males current smokers | B81: 0.4054651081 | C81: 0.05296922571 | D81: Lognormal | E81: =IF('Baseline & Counterfactual'!$AD$4="Yes",IF(D81="Lognormal",LOGINV(RAND(),H81,I81),IF(D81="Normal",NORMINV(RAND(),H81,I81),"Error")), IF('Baseline & Counterfactual'!$AD$4="No", J81, "Error")) -> 1.5 | F81: 1.3 | G81: 1.6 | H81: 0.4054651081 | I81: 0.05296922571 | J81: 1.5 | K81: cat | L81: cat | M81: Thun MJ, Apicella LF, Henley SJ. Smoking vs other risk factors as the cause of smoking-attributable deaths: confounding in the courtroom. JAMA. 2000 Aug 9;284(6):706-12.
A82: IHD relative risk >65y males former smokers | B82: 0.1823215568 | C82: 0.02219677984 | D82: Lognormal | E82: =IF('Baseline & Counterfactual'!$AD$4="Yes",IF(D82="Lognormal",LOGINV(RAND(),H82,I82),IF(D82="Normal",NORMINV(RAND(),H82,I82),"Error")), IF('Baseline & Counterfactual'!$AD$4="No", J82, "Error")) -> 1.2 | F82: 1.1 | G82: 1.2 | H82: 0.1823215568 | I82: 0.02219677984 | J82: 1.2 | K82: cat | L82: cat | M82: Thun MJ, Apicella LF, Henley SJ. Smoking vs other risk factors as the cause of smoking-attributable deaths: confounding in the courtroom. JAMA. 2000 Aug 9;284(6):706-12.
A83: IHD relative risk 35-64y females current smokers | B83: 1.16315081 | C83: 0.06411082354 | D83: Lognormal | E83: =IF('Baseline & Counterfactual'!$AD$4="Yes",IF(D83="Lognormal",LOGINV(RAND(),H83,I83),IF(D83="Normal",NORMINV(RAND(),H83,I83),"Error")), IF('Baseline & Counterfactual'!$AD$4="No", J83, "Error")) -> 3.2 | F83: 2.8 | G83: 3.6 | H83: 1.16315081 | I83: 0.06411082354 | J83: 3.2 | K83: cat | L83: cat | M83: Thun MJ, Apicella LF, Henley SJ. Smoking vs other risk factors as the cause of smoking-attributable deaths: confounding in the courtroom. JAMA. 2000 Aug 9;284(6):706-12.
A84: IHD relative risk 35-64y females former smokers | B84: 0.3364722366 | C84: 0.08885374854 | D84: Lognormal | E84: =IF('Baseline & Counterfactual'!$AD$4="Yes",IF(D84="Lognormal",LOGINV(RAND(),H84,I84),IF(D84="Normal",NORMINV(RAND(),H84,I84),"Error")), IF('Baseline & Counterfactual'!$AD$4="No", J84, "Error")) -> 1.4 | F84: 1.2 | G84: 1.7 | H84: 0.3364722366 | I84: 0.08885374854 | J84: 1.4 | K84: cat | L84: cat | M84: Thun MJ, Apicella LF, Henley SJ. Smoking vs other risk factors as the cause of smoking-attributable deaths: confounding in the courtroom. JAMA. 2000 Aug 9;284(6):706-12.
A85: IHD relative risk >65y females current smokers | B85: =H85 -> 0.5306282511 | C85: =I85 -> 0.04383935126 | D85: Lognormal | E85: =IF('Baseline & Counterfactual'!$AD$4="Yes",IF(D85="Lognormal",LOGINV(RAND(),H85,I85),IF(D85="Normal",NORMINV(RAND(),H85,I85),"Error")), IF('Baseline & Counterfactual'!$AD$4="No", J85, "Error")) -> 1.7 | F85: 1.6 | G85: 1.9 | H85: 0.5306282511 | I85: 0.04383935126 | J85: 1.7 | K85: cat | L85: cat | M85: Thun MJ, Apicella LF, Henley SJ. Smoking vs other risk factors as the cause of smoking-attributable deaths: confounding in the courtroom. JAMA. 2000 Aug 9;284(6):706-12.
A86: IHD relative risk >65y females former smokers | B86: =H86 -> 0.3364722366 | C86: 0.03650531726 | D86: Lognormal | E86: =IF('Baseline & Counterfactual'!$AD$4="Yes",IF(D86="Lognormal",LOGINV(RAND(),H86,I86),IF(D86="Normal",NORMINV(RAND(),H86,I86),"Error")), IF('Baseline & Counterfactual'!$AD$4="No", J86, "Error")) -> 1.4 | F86: 1.3 | G86: 1.5 | H86: 0.3364722366 | I86: 0.03650531726 | J86: 1.4 | K86: cat | L86: cat | M86: Thun MJ, Apicella LF, Henley SJ. Smoking vs other risk factors as the cause of smoking-attributable deaths: confounding in the courtroom. JAMA. 2000 Aug 9;284(6):706-12.
A87: Stroke relative risk 35-64y males current smokers | B87: 0.8754687374 | C87: 0.1303126591 | D87: Lognormal | E87: =IF('Baseline & Counterfactual'!$AD$4="Yes",IF(D87="Lognormal",LOGINV(RAND(),H87,I87),IF(D87="Normal",NORMINV(RAND(),H87,I87),"Error")), IF('Baseline & Counterfactual'!$AD$4="No", J87, "Error")) -> 2.4 | F87: 1.8 | G87: 3 | H87: 0.8754687374 | I87: 0.1303126591 | J87: 2.4 | K87: cat | L87: cat | M87: Thun MJ, Apicella LF, Henley SJ. Smoking vs other risk factors as the cause of smoking-attributable deaths: confounding in the courtroom. JAMA. 2000 Aug 9;284(6):706-12.
A88: Stroke relative risk 35-64y males former smokers | B88: 0 | C88: 0.1427591296 | D88: Lognormal | E88: =IF('Baseline & Counterfactual'!$AD$4="Yes",IF(D88="Lognormal",LOGINV(RAND(),H88,I88),IF(D88="Normal",NORMINV(RAND(),H88,I88),"Error")), IF('Baseline & Counterfactual'!$AD$4="No", J88, "Error")) -> 1 | F88: 0.8 | G88: 1.4 | H88: 0 | I88: 0.1427591296 | J88: 1 | K88: cat | L88: cat | M88: Thun MJ, Apicella LF, Henley SJ. Smoking vs other risk factors as the cause of smoking-attributable deaths: confounding in the courtroom. JAMA. 2000 Aug 9;284(6):706-12.
A89: Stroke relative risk >65y males current smokers | B89: 0.4054651081 | C89: 0.1034349766 | D89: Lognormal | E89: =IF('Baseline & Counterfactual'!$AD$4="Yes",IF(D89="Lognormal",LOGINV(RAND(),H89,I89),IF(D89="Normal",NORMINV(RAND(),H89,I89),"Error")), IF('Baseline & Counterfactual'!$AD$4="No", J89, "Error")) -> 1.5 | F89: 1.2 | G89: 1.8 | H89: 0.4054651081 | I89: 0.1034349766 | J89: 1.5 | K89: cat | L89: cat | M89: Thun MJ, Apicella LF, Henley SJ. Smoking vs other risk factors as the cause of smoking-attributable deaths: confounding in the courtroom. JAMA. 2000 Aug 9;284(6):706-12.
A90: Stroke relative risk >65y males former smokers | B90: 0 | C90: 0.07338828379 | D90: Lognormal | E90: =IF('Baseline & Counterfactual'!$AD$4="Yes",IF(D90="Lognormal",LOGINV(RAND(),H90,I90),IF(D90="Normal",NORMINV(RAND(),H90,I90),"Error")), IF('Baseline & Counterfactual'!$AD$4="No", J90, "Error")) -> 1 | F90: 0.9 | G90: 1.2 | H90: 0 | I90: 0.07338828379 | J90: 1 | K90: cat | L90: cat | M90: Thun MJ, Apicella LF, Henley SJ. Smoking vs other risk factors as the cause of smoking-attributable deaths: confounding in the courtroom. JAMA. 2000 Aug 9;284(6):706-12.
A91: Stroke relative risk 35-64y females current smokers | B91: 1.335001067 | C91: 0.1061633666 | D91: Lognormal | E91: =IF('Baseline & Counterfactual'!$AD$4="Yes",IF(D91="Lognormal",LOGINV(RAND(),H91,I91),IF(D91="Normal",NORMINV(RAND(),H91,I91),"Error")), IF('Baseline & Counterfactual'!$AD$4="No", J91, "Error")) -> 3.8 | F91: 3.1 | G91: 4.7 | H91: 1.335001067 | I91: 0.1061633666 | J91: 3.8 | K91: cat | L91: cat | M91: Thun MJ, Apicella LF, Henley SJ. Smoking vs other risk factors as the cause of smoking-attributable deaths: confounding in the courtroom. JAMA. 2000 Aug 9;284(6):706-12.
A92: Stroke relative risk 35-64y females former smokers | B92: 0.4054651081 | C92: 0.152509439 | D92: Lognormal | E92: =IF('Baseline & Counterfactual'!$AD$4="Yes",IF(D92="Lognormal",LOGINV(RAND(),H92,I92),IF(D92="Normal",NORMINV(RAND(),H92,I92),"Error")), IF('Baseline & Counterfactual'!$AD$4="No", J92, "Error")) -> 1.5 | F92: 1.1 | G92: 2 | H92: 0.4054651081 | I92: 0.152509439 | J92: 1.5 | K92: cat | L92: cat | M92: Thun MJ, Apicella LF, Henley SJ. Smoking vs other risk factors as the cause of smoking-attributable deaths: confounding in the courtroom. JAMA. 2000 Aug 9;284(6):706-12.
A93: Stroke relative risk >65y females current smokers | B93: 0.4700036292 | C93: 0.07790348203 | D93: Lognormal | E93: =IF('Baseline & Counterfactual'!$AD$4="Yes",IF(D93="Lognormal",LOGINV(RAND(),H93,I93),IF(D93="Normal",NORMINV(RAND(),H93,I93),"Error")), IF('Baseline & Counterfactual'!$AD$4="No", J93, "Error")) -> 1.6 | F93: 1.4 | G93: 1.9 | H93: 0.4700036292 | I93: 0.07790348203 | J93: 1.6 | K93: cat | L93: cat | M93: Thun MJ, Apicella LF, Henley SJ. Smoking vs other risk factors as the cause of smoking-attributable deaths: confounding in the courtroom. JAMA. 2000 Aug 9;284(6):706-12.
A94: Stroke relative risk >65y females former smokers | B94: 0.1823215568 | C94: 0.08583475424 | D94: Lognormal | E94: =IF('Baseline & Counterfactual'!$AD$4="Yes",IF(D94="Lognormal",LOGINV(RAND(),H94,I94),IF(D94="Normal",NORMINV(RAND(),H94,I94),"Error")), IF('Baseline & Counterfactual'!$AD$4="No", J94, "Error")) -> 1.2 | F94: 1 | G94: 1.4 | H94: 0.1823215568 | I94: 0.08583475424 | J94: 1.2 | K94: cat | L94: cat | M94: Thun MJ, Apicella LF, Henley SJ. Smoking vs other risk factors as the cause of smoking-attributable deaths: confounding in the courtroom. JAMA. 2000 Aug 9;284(6):706-12.
A95: Diabetes relative risk current smokers | B95: 0.3646431136 | C95: 0.04780553822 | D95: Lognormal | E95: =IF('Baseline & Counterfactual'!$AD$4="Yes",IF(D95="Lognormal",LOGINV(RAND(),H95,I95),IF(D95="Normal",NORMINV(RAND(),H95,I95),"Error")), IF('Baseline & Counterfactual'!$AD$4="No", J95, "Error")) -> 1.44 | F95: 1.31 | G95: 1.58 | H95: 0.3646431136 | I95: 0.04780553822 | J95: 1.44 | K95: cat | L95: cat | M95: Willi C, Bodenmann P, Ghali WA, Faris PD, Cornuz J. Active smoking and the risk of type 2 diabetes: a systematic review and meta-analysis. JAMA. 2007 Dec 12;298(22):2654-64.
A96: Diabetes relative risk former smokers | B96: 0.2070141694 | C96: 0.03932415302 | D96: Lognormal | E96: =IF('Baseline & Counterfactual'!$AD$4="Yes",IF(D96="Lognormal",LOGINV(RAND(),H96,I96),IF(D96="Normal",NORMINV(RAND(),H96,I96),"Error")), IF('Baseline & Counterfactual'!$AD$4="No", J96, "Error")) -> 1.23 | F96: 1.14 | G96: 1.33 | H96: 0.2070141694 | I96: 0.03932415302 | J96: 1.23 | K96: cat | L96: cat | M96: Willi C, Bodenmann P, Ghali WA, Faris PD, Cornuz J. Active smoking and the risk of type 2 diabetes: a systematic review and meta-analysis. JAMA. 2007 Dec 12;298(22):2654-64.
A97: Ca Lung relative risk current smokers | B97: 2.192770227 | C97: 0.149650589 | D97: Lognormal | E97: =IF('Baseline & Counterfactual'!$AD$4="Yes",IF(D97="Lognormal",LOGINV(RAND(),H97,I97),IF(D97="Normal",NORMINV(RAND(),H97,I97),"Error")), IF('Baseline & Counterfactual'!$AD$4="No", J97, "Error")) -> 8.96 | F97: 6.73 | G97: 12.1 | H97: 2.192770227 | I97: 0.149650589 | J97: 8.96 | K97: cat | L97: cat | M97: Gandini S, Botteri E, Iodice S, Boniol M, Lowenfels AB, Maisonneuve P, Boyle P. Tobacco smoking and cancer: a meta-analysis. Int J Cancer. 2008 Jan 1;122(1):155-64.
A98: Ca Lung relative risk former smokers | B98: 1.348073148 | C98: 0.1674434522 | D98: Lognormal | E98: =IF('Baseline & Counterfactual'!$AD$4="Yes",IF(D98="Lognormal",LOGINV(RAND(),H98,I98),IF(D98="Normal",NORMINV(RAND(),H98,I98),"Error")), IF('Baseline & Counterfactual'!$AD$4="No", J98, "Error")) -> 3.85 | F98: 2.77 | G98: 5.34 | H98: 1.348073148 | I98: 0.1674434522 | J98: 3.85 | K98: cat | L98: cat | M98: Gandini S, Botteri E, Iodice S, Boniol M, Lowenfels AB, Maisonneuve P, Boyle P. Tobacco smoking and cancer: a meta-analysis. Int J Cancer. 2008 Jan 1;122(1):155-64.
A99: Ca Upper digestive relative risk current smokers | B99: 1.272565596 | C99: 0.135877347 | D99: Lognormal | E99: =IF('Baseline & Counterfactual'!$AD$4="Yes",IF(D99="Lognormal",LOGINV(RAND(),H99,I99),IF(D99="Normal",NORMINV(RAND(),H99,I99),"Error")), IF('Baseline & Counterfactual'!$AD$4="No", J99, "Error")) -> 3.57 | F99: 2.63 | G99: 4.48 | H99: 1.272565596 | I99: 0.135877347 | J99: 3.57 | K99: cat | L99: cat | M99: Gandini S, Botteri E, Iodice S, Boniol M, Lowenfels AB, Maisonneuve P, Boyle P. Tobacco smoking and cancer: a meta-analysis. Int J Cancer. 2008 Jan 1;122(1):155-64.
A100: Ca Upper digestive relative risk former smokers | B100: 0.1655144385 | C100: 0.2453607109 | D100: Lognormal | E100: =IF('Baseline & Counterfactual'!$AD$4="Yes",IF(D100="Lognormal",LOGINV(RAND(),H100,I100),IF(D100="Normal",NORMINV(RAND(),H100,I100),"Error")), IF('Baseline & Counterfactual'!$AD$4="No", J100, "Error")) -> 1.18 | F100: 0.73 | G100: 1.91 | H100: 0.1655144385 | I100: 0.2453607109 | J100: 1.18 | K100: cat | L100: cat | M100: Gandini S, Botteri E, Iodice S, Boniol M, Lowenfels AB, Maisonneuve P, Boyle P. Tobacco smoking and cancer: a meta-analysis. Int J Cancer. 2008 Jan 1;122(1):155-64.
A101: Ca Larynx relative risk current smokers | B101: 1.943048917 | C101: 0.4073003122 | D101: Lognormal | E101: =IF('Baseline & Counterfactual'!$AD$4="Yes",IF(D101="Lognormal",LOGINV(RAND(),H101,I101),IF(D101="Normal",NORMINV(RAND(),H101,I101),"Error")), IF('Baseline & Counterfactual'!$AD$4="No", J101, "Error")) -> 6.98 | F101: 3.14 | G101: 15.5 | H101: 1.943048917 | I101: 0.4073003122 | J101: 6.98 | K101: cat | L101: cat | M101: Gandini S, Botteri E, Iodice S, Boniol M, Lowenfels AB, Maisonneuve P, Boyle P. Tobacco smoking and cancer: a meta-analysis. Int J Cancer. 2008 Jan 1;122(1):155-64.
A102: Ca Larynx relative risk former smokers | B102: 1.53686722 | C102: 0.1671223941 | D102: Lognormal | E102: =IF('Baseline & Counterfactual'!$AD$4="Yes",IF(D102="Lognormal",LOGINV(RAND(),H102,I102),IF(D102="Normal",NORMINV(RAND(),H102,I102),"Error")), IF('Baseline & Counterfactual'!$AD$4="No", J102, "Error")) -> 4.65 | F102: 3.35 | G102: 6.45 | H102: 1.53686722 | I102: 0.1671223941 | J102: 4.65 | K102: cat | L102: cat | M102: Gandini S, Botteri E, Iodice S, Boniol M, Lowenfels AB, Maisonneuve P, Boyle P. Tobacco smoking and cancer: a meta-analysis. Int J Cancer. 2008 Jan 1;122(1):155-64.
A103: Ca Stomach relative risk current smokers | B103: 0.4946962418 | C103: 0.09005577366 | D103: Lognormal | E103: =IF('Baseline & Counterfactual'!$AD$4="Yes",IF(D103="Lognormal",LOGINV(RAND(),H103,I103),IF(D103="Normal",NORMINV(RAND(),H103,I103),"Error")), IF('Baseline & Counterfactual'!$AD$4="No", J103, "Error")) -> 1.64 | F103: 1.37 | G103: 1.95 | H103: 0.4946962418 | I103: 0.09005577366 | J103: 1.64 | K103: cat | L103: cat | M103: Gandini S, Botteri E, Iodice S, Boniol M, Lowenfels AB, Maisonneuve P, Boyle P. Tobacco smoking and cancer: a meta-analysis. Int J Cancer. 2008 Jan 1;122(1):155-64.
A104: Ca Stomach relative risk former smokers | B104: 0.2700271372 | C104: 0.05648793033 | D104: Lognormal | E104: =IF('Baseline & Counterfactual'!$AD$4="Yes",IF(D104="Lognormal",LOGINV(RAND(),H104,I104),IF(D104="Normal",NORMINV(RAND(),H104,I104),"Error")), IF('Baseline & Counterfactual'!$AD$4="No", J104, "Error")) -> 1.31 | F104: 1.17 | G104: 1.46 | H104: 0.2700271372 | I104: 0.05648793033 | J104: 1.31 | K104: cat | L104: cat | M104: Gandini S, Botteri E, Iodice S, Boniol M, Lowenfels AB, Maisonneuve P, Boyle P. Tobacco smoking and cancer: a meta-analysis. Int J Cancer. 2008 Jan 1;122(1):155-64.
A105: Ca Liver relative risk current smokers | B105: 0.4446858213 | C105: 0.09471842155 | D105: Lognormal | E105: =IF('Baseline & Counterfactual'!$AD$4="Yes",IF(D105="Lognormal",LOGINV(RAND(),H105,I105),IF(D105="Normal",NORMINV(RAND(),H105,I105),"Error")), IF('Baseline & Counterfactual'!$AD$4="No", J105, "Error")) -> 1.56 | F105: 1.29 | G105: 1.87 | H105: 0.4446858213 | I105: 0.09471842155 | J105: 1.56 | K105: cat | L105: cat | M105: Lee YC, Cohet C, Yang YC, Stayner L, Hashibe M, Straif K. Meta-analysis of epidemiologic studies on cigarette smoking and liver cancer. Int J Epidemiol. 2009 Dec;38(6):1497-511. doi: 10.1093/ije/dyp280. Epub 2009 Aug 31.
A106: Ca Liver relative risk former smokers | B106: 0.39877612 | C106: 0.1744052134 | D106: Lognormal | E106: =IF('Baseline & Counterfactual'!$AD$4="Yes",IF(D106="Lognormal",LOGINV(RAND(),H106,I106),IF(D106="Normal",NORMINV(RAND(),H106,I106),"Error")), IF('Baseline & Counterfactual'!$AD$4="No", J106, "Error")) -> 1.49 | F106: 1.06 | G106: 2.1 | H106: 0.39877612 | I106: 0.1744052134 | J106: 1.49 | K106: cat | L106: cat | M106: Lee YC, Cohet C, Yang YC, Stayner L, Hashibe M, Straif K. Meta-analysis of epidemiologic studies on cigarette smoking and liver cancer. Int J Epidemiol. 2009 Dec;38(6):1497-511. doi: 10.1093/ije/dyp280. Epub 2009 Aug 31.
A107: Ca Pancreas relative risk current smokers | B107: 0.5306282511 | C107: 0.0599473447 | D107: Lognormal | E107: =IF('Baseline & Counterfactual'!$AD$4="Yes",IF(D107="Lognormal",LOGINV(RAND(),H107,I107),IF(D107="Normal",NORMINV(RAND(),H107,I107),"Error")), IF('Baseline & Counterfactual'!$AD$4="No", J107, "Error")) -> 1.7 | F107: 1.51 | G107: 1.91 | H107: =IF(D107="Normal",J107,IF(D107="Lognormal",LN(J107),"ERROR")) -> 0.5306282511 | I107: =IF(D107="Normal",AVERAGE((J107-F107)/1.96,(G107-J107)/1.96),IF(D107="Lognormal",AVERAGE((LN(J107)-LN(F107))/1.96,(LN(G107)-LN(J107))/1.96),"ERROR")) -> 0.0599473447 | J107: 1.7 | K107: cat | L107: cat | M107: Gandini S, Botteri E, Iodice S, Boniol M, Lowenfels AB, Maisonneuve P, Boyle P. Tobacco smoking and cancer: a meta-analysis. Int J Cancer. 2008 Jan 1;122(1):155-64.
A108: Ca Pancreas relative risk former smokers | B108: 0.1655144385 | C108: 0.06274444619 | D108: Lognormal | E108: =IF('Baseline & Counterfactual'!$AD$4="Yes",IF(D108="Lognormal",LOGINV(RAND(),H108,I108),IF(D108="Normal",NORMINV(RAND(),H108,I108),"Error")), IF('Baseline & Counterfactual'!$AD$4="No", J108, "Error")) -> 1.18 | F108: 1.04 | G108: 1.33 | H108: 0.1655144385 | I108: 0.06274444619 | J108: 1.18 | K108: cat | L108: cat | M108: Gandini S, Botteri E, Iodice S, Boniol M, Lowenfels AB, Maisonneuve P, Boyle P. Tobacco smoking and cancer: a meta-analysis. Int J Cancer. 2008 Jan 1;122(1):155-64.
A109: Ca Endometrium relative risk current smokers | B109: -0.3011050928 | C109: 0.06937084579 | D109: Lognormal | E109: =IF('Baseline & Counterfactual'!$AD$4="Yes",IF(D109="Lognormal",LOGINV(RAND(),H109,I109),IF(D109="Normal",NORMINV(RAND(),H109,I109),"Error")), IF('Baseline & Counterfactual'!$AD$4="No", J109, "Error")) -> 0.74 | F109: 0.64 | G109: 0.84 | H109: -0.3011050928 | I109: 0.06937084579 | J109: 0.74 | K109: cat | L109: cat | M109: Zhou B, Yang L, Sun Q, Cong R, Gu H, Tang N, Zhu H, Wang B. Cigarette smoking and the risk of endometrial cancer: a meta-analysis. Am J Med. 2008 Jun;121(6):501-508.e3. doi: 10.1016/j.amjmed.2008.01.044.
A110: Ca Endometrium relative risk former smokers | B110: -0.1278333715 | C110: 0.06081913863 | D110: Lognormal | E110: =IF('Baseline & Counterfactual'!$AD$4="Yes",IF(D110="Lognormal",LOGINV(RAND(),H110,I110),IF(D110="Normal",NORMINV(RAND(),H110,I110),"Error")), IF('Baseline & Counterfactual'!$AD$4="No", J110, "Error")) -> 0.88 | F110: 0.78 | G110: 0.99 | H110: -0.1278333715 | I110: 0.06081913863 | J110: 0.88 | K110: cat | L110: cat | M110: Zhou B, Yang L, Sun Q, Cong R, Gu H, Tang N, Zhu H, Wang B. Cigarette smoking and the risk of endometrial cancer: a meta-analysis. Am J Med. 2008 Jun;121(6):501-508.e3. doi: 10.1016/j.amjmed.2008.01.044.
A111: Ca Kidney relative risk current smokers | B111: 0.4187103349 | C111: 0.0685474926 | D111: Lognormal | E111: =IF('Baseline & Counterfactual'!$AD$4="Yes",IF(D111="Lognormal",LOGINV(RAND(),H111,I111),IF(D111="Normal",NORMINV(RAND(),H111,I111),"Error")), IF('Baseline & Counterfactual'!$AD$4="No", J111, "Error")) -> 1.52 | F111: 1.33 | G111: 1.74 | H111: 0.4187103349 | I111: 0.0685474926 | J111: 1.52 | K111: cat | L111: cat | M111: Gandini S, Botteri E, Iodice S, Boniol M, Lowenfels AB, Maisonneuve P, Boyle P. Tobacco smoking and cancer: a meta-analysis. Int J Cancer. 2008 Jan 1;122(1):155-64.
A112: Ca Kidney relative risk former smokers | B112: 0.2231435513 | C112: 0.04688328506 | D112: Lognormal | E112: =IF('Baseline & Counterfactual'!$AD$4="Yes",IF(D112="Lognormal",LOGINV(RAND(),H112,I112),IF(D112="Normal",NORMINV(RAND(),H112,I112),"Error")), IF('Baseline & Counterfactual'!$AD$4="No", J112, "Error")) -> 1.25 | F112: 1.14 | G112: 1.37 | H112: 0.2231435513 | I112: 0.04688328506 | J112: 1.25 | K112: cat | L112: cat | M112: Gandini S, Botteri E, Iodice S, Boniol M, Lowenfels AB, Maisonneuve P, Boyle P. Tobacco smoking and cancer: a meta-analysis. Int J Cancer. 2008 Jan 1;122(1):155-64.
A113: Ca Cervix relative risk current smokers | B113: 0.6043159669 | C113: 0.0971639961 | D113: Lognormal | E113: =IF('Baseline & Counterfactual'!$AD$4="Yes",IF(D113="Lognormal",LOGINV(RAND(),H113,I113),IF(D113="Normal",NORMINV(RAND(),H113,I113),"Error")), IF('Baseline & Counterfactual'!$AD$4="No", J113, "Error")) -> 1.83 | F113: 1.51 | G113: 2.21 | H113: 0.6043159669 | I113: 0.0971639961 | J113: 1.83 | K113: cat | L113: cat | M113: Gandini S, Botteri E, Iodice S, Boniol M, Lowenfels AB, Maisonneuve P, Boyle P. Tobacco smoking and cancer: a meta-analysis. Int J Cancer. 2008 Jan 1;122(1):155-64.
A114: Ca Cervix relative risk former smokers | B114: 0.231111721 | C114: 0.06283083069 | D114: Lognormal | E114: =IF('Baseline & Counterfactual'!$AD$4="Yes",IF(D114="Lognormal",LOGINV(RAND(),H114,I114),IF(D114="Normal",NORMINV(RAND(),H114,I114),"Error")), IF('Baseline & Counterfactual'!$AD$4="No", J114, "Error")) -> 1.26 | F114: 1.11 | G114: 1.42 | H114: 0.231111721 | I114: 0.06283083069 | J114: 1.26 | K114: cat | L114: cat | M114: Gandini S, Botteri E, Iodice S, Boniol M, Lowenfels AB, Maisonneuve P, Boyle P. Tobacco smoking and cancer: a meta-analysis. Int J Cancer. 2008 Jan 1;122(1):155-64.
A115: Ca Lower urinary (bladder) relative risk current smokers | B115: 1.01884732 | C115: 0.1248468264 | D115: Lognormal | E115: =IF('Baseline & Counterfactual'!$AD$4="Yes",IF(D115="Lognormal",LOGINV(RAND(),H115,I115),IF(D115="Normal",NORMINV(RAND(),H115,I115),"Error")), IF('Baseline & Counterfactual'!$AD$4="No", J115, "Error")) -> 2.77 | F115: 2.17 | G115: 3.54 | H115: 1.01884732 | I115: 0.1248468264 | J115: 2.77 | K115: cat | L115: cat | M115: Gandini S, Botteri E, Iodice S, Boniol M, Lowenfels AB, Maisonneuve P, Boyle P. Tobacco smoking and cancer: a meta-analysis. Int J Cancer. 2008 Jan 1;122(1):155-64.
A116: Ca Lower urinary (bladder) relative risk former smokers | B116: 0.5423242908 | C116: 0.08533504391 | D116: Lognormal | E116: =IF('Baseline & Counterfactual'!$AD$4="Yes",IF(D116="Lognormal",LOGINV(RAND(),H116,I116),IF(D116="Normal",NORMINV(RAND(),H116,I116),"Error")), IF('Baseline & Counterfactual'!$AD$4="No", J116, "Error")) -> 1.72 | F116: 1.46 | G116: 2.04 | H116: 0.5423242908 | I116: 0.08533504391 | J116: 1.72 | K116: cat | L116: cat | M116: Gandini S, Botteri E, Iodice S, Boniol M, Lowenfels AB, Maisonneuve P, Boyle P. Tobacco smoking and cancer: a meta-analysis. Int J Cancer. 2008 Jan 1;122(1):155-64.
A117: ALCOHOL | E117: Estimate | F117: CI low | G117: CI high | H117: Mean | I117: SD | J117: Estimate
A118: CHD Mortality RR for 0-2.5g/day alcohol | B118: =H118 -> -0.08338160894 | C118: 0.07178889271 | D118: Lognormal | E118: =IF('Baseline & Counterfactual'!$AD$4="Yes",IF(D118="Lognormal",LOGINV(RAND(),H118,I118),IF(D118="Normal",NORMINV(RAND(),H118,I118),"Error")), IF('Baseline & Counterfactual'!$AD$4="No", J118, "Error")) -> 0.92 | F118: 0.8 | G118: 1.06 | H118: =IF(D118="Normal",J118,IF(D118="Lognormal",LN(J118),"ERROR")) -> -0.08338160894 | I118: =IF(D118="Normal",AVERAGE((J118-F118)/1.96,(G118-J118)/1.96),IF(D118="Lognormal",AVERAGE((LN(J118)-LN(F118))/1.96,(LN(G118)-LN(J118))/1.96),"ERROR")) -> 0.07178889271 | J118: 0.92 | K118: cat | L118: cat | M118: Ronksley PE, Brien SE, Turner BJ, Mukamal KJ, Ghali WA. Association of alcohol consumption with selected cardiovascular disease outcomes: a systematic review and meta-analysis. BMJ 2011;342.
A119: CHD Mortality RR for 2.5-15g/day alcohol | B119: -0.2357223335 | C119: 0.0418081263 | D119: Lognormal | E119: =IF('Baseline & Counterfactual'!$AD$4="Yes",IF(D119="Lognormal",LOGINV(RAND(),H119,I119),IF(D119="Normal",NORMINV(RAND(),H119,I119),"Error")), IF('Baseline & Counterfactual'!$AD$4="No", J119, "Error")) -> 0.79 | F119: 0.73 | G119: 0.86 | H119: =IF(D119="Normal",J119,IF(D119="Lognormal",LN(J119),"ERROR")) -> -0.2357223335 | I119: =IF(D119="Normal",AVERAGE((J119-F119)/1.96,(G119-J119)/1.96),IF(D119="Lognormal",AVERAGE((LN(J119)-LN(F119))/1.96,(LN(G119)-LN(J119))/1.96),"ERROR")) -> 0.0418081263 | J119: 0.79 | K119: cat | L119: cat | M119: Ronksley PE, Brien SE, Turner BJ, Mukamal KJ, Ghali WA. Association of alcohol consumption with selected cardiovascular disease outcomes: a systematic review and meta-analysis. BMJ 2011;342.
A120: CHD Mortality RR for 15-30g/day alcohol | B120: -0.2357223335 | C120: 0.05475942282 | D120: Lognormal | E120: =IF('Baseline & Counterfactual'!$AD$4="Yes",IF(D120="Lognormal",LOGINV(RAND(),H120,I120),IF(D120="Normal",NORMINV(RAND(),H120,I120),"Error")), IF('Baseline & Counterfactual'!$AD$4="No", J120, "Error")) -> 0.79 | F120: 0.71 | G120: 0.88 | H120: -0.2357223335 | I120: 0.05475942282 | J120: 0.79 | K120: cat | L120: cat | M120: Ronksley PE, Brien SE, Turner BJ, Mukamal KJ, Ghali WA. Association of alcohol consumption with selected cardiovascular disease outcomes: a systematic review and meta-analysis. BMJ 2011;342.
A121: CHD Mortality RR for 30-60g/day alcohol | B121: -0.2613647641 | C121: 0.03626900224 | D121: Lognormal | E121: =IF('Baseline & Counterfactual'!$AD$4="Yes",IF(D121="Lognormal",LOGINV(RAND(),H121,I121),IF(D121="Normal",NORMINV(RAND(),H121,I121),"Error")), IF('Baseline & Counterfactual'!$AD$4="No", J121, "Error")) -> 0.77 | F121: 0.72 | G121: 0.83 | H121: -0.2613647641 | I121: 0.03626900224 | J121: 0.77 | K121: cat | L121: cat | M121: Ronksley PE, Brien SE, Turner BJ, Mukamal KJ, Ghali WA. Association of alcohol consumption with selected cardiovascular disease outcomes: a systematic review and meta-analysis. BMJ 2011;342.
A122: CHD Mortality RR for >60g/day alcohol | B122: -0.2876820725 | C122: 0.1322307286 | D122: Lognormal | E122: =IF('Baseline & Counterfactual'!$AD$4="Yes",IF(D122="Lognormal",LOGINV(RAND(),H122,I122),IF(D122="Normal",NORMINV(RAND(),H122,I122),"Error")), IF('Baseline & Counterfactual'!$AD$4="No", J122, "Error")) -> 0.75 | F122: 0.53 | G122: 0.89 | H122: -0.2876820725 | I122: 0.1322307286 | J122: 0.75 | K122: cat | L122: cat | M122: Ronksley PE, Brien SE, Turner BJ, Mukamal KJ, Ghali WA. Association of alcohol consumption with selected cardiovascular disease outcomes: a systematic review and meta-analysis. BMJ 2011;342.
A123: Stroke Mortality RR for 0-2.5g/day alcohol | B123: 0 | C123: 0.1480488996 | D123: Lognormal | E123: =IF('Baseline & Counterfactual'!$AD$4="Yes",IF(D123="Lognormal",LOGINV(RAND(),H123,I123),IF(D123="Normal",NORMINV(RAND(),H123,I123),"Error")), IF('Baseline & Counterfactual'!$AD$4="No", J123, "Error")) -> 1 | F123: 0.75 | G123: 1.34 | H123: 0 | I123: 0.1480488996 | J123: 1 | K123: cat | L123: cat | M123: Ronksley PE, Brien SE, Turner BJ, Mukamal KJ, Ghali WA. Association of alcohol consumption with selected cardiovascular disease outcomes: a systematic review and meta-analysis. BMJ 2011;342.
A124: Stroke Mortality RR for 2.5-15g/day alcohol | B124: -0.1508228897 | C124: 0.0708244226 | D124: Lognormal | E124: =IF('Baseline & Counterfactual'!$AD$4="Yes",IF(D124="Lognormal",LOGINV(RAND(),H124,I124),IF(D124="Normal",NORMINV(RAND(),H124,I124),"Error")), IF('Baseline & Counterfactual'!$AD$4="No", J124, "Error")) -> 0.86 | F124: 0.75 | G124: 0.99 | H124: -0.1508228897 | I124: 0.0708244226 | J124: 0.86 | K124: cat | L124: cat | M124: Ronksley PE, Brien SE, Turner BJ, Mukamal KJ, Ghali WA. Association of alcohol consumption with selected cardiovascular disease outcomes: a systematic review and meta-analysis. BMJ 2011;342.
A125: Stroke Mortality RR for 15-30g/day alcohol | B125: 0.1397619424 | C125: 0.1486238026 | D125: Lognormal | E125: =IF('Baseline & Counterfactual'!$AD$4="Yes",IF(D125="Lognormal",LOGINV(RAND(),H125,I125),IF(D125="Normal",NORMINV(RAND(),H125,I125),"Error")), IF('Baseline & Counterfactual'!$AD$4="No", J125, "Error")) -> 1.15 | F125: 0.86 | G125: 1.54 | H125: 0.1397619424 | I125: 0.1486238026 | J125: 1.15 | K125: cat | L125: cat | M125: Ronksley PE, Brien SE, Turner BJ, Mukamal KJ, Ghali WA. Association of alcohol consumption with selected cardiovascular disease outcomes: a systematic review and meta-analysis. BMJ 2011;342.
A126: Stroke Mortality RR for 30-60g/day alcohol | B126: 0.0953101798 | C126: 0.1362455321 | D126: Lognormal | E126: =IF('Baseline & Counterfactual'!$AD$4="Yes",IF(D126="Lognormal",LOGINV(RAND(),H126,I126),IF(D126="Normal",NORMINV(RAND(),H126,I126),"Error")), IF('Baseline & Counterfactual'!$AD$4="No", J126, "Error")) -> 1.1 | F126: 0.85 | G126: 1.45 | H126: 0.0953101798 | I126: 0.1362455321 | J126: 1.1 | K126: cat | L126: cat | M126: Ronksley PE, Brien SE, Turner BJ, Mukamal KJ, Ghali WA. Association of alcohol consumption with selected cardiovascular disease outcomes: a systematic review and meta-analysis. BMJ 2011;342.
A127: Stroke Mortality RR for >60g/day alcohol | B127: 0.3646431136 | C127: 0.191833592 | D127: Lognormal | E127: =IF('Baseline & Counterfactual'!$AD$4="Yes",IF(D127="Lognormal",LOGINV(RAND(),H127,I127),IF(D127="Normal",NORMINV(RAND(),H127,I127),"Error")), IF('Baseline & Counterfactual'!$AD$4="No", J127, "Error")) -> 1.44 | F127: 0.99 | G127: 2.1 | H127: 0.3646431136 | I127: 0.191833592 | J127: 1.44 | K127: cat | L127: cat | M127: Ronksley PE, Brien SE, Turner BJ, Mukamal KJ, Ghali WA. Association of alcohol consumption with selected cardiovascular disease outcomes: a systematic review and meta-analysis. BMJ 2011;342.
A128: Diabetes RR for <6g/day alcohol | B128: -0.1278333715 | C128: 0.04383935126 | D128: Lognormal | E128: =IF('Baseline & Counterfactual'!$AD$4="Yes",IF(D128="Lognormal",LOGINV(RAND(),H128,I128),IF(D128="Normal",NORMINV(RAND(),H128,I128),"Error")), IF('Baseline & Counterfactual'!$AD$4="No", J128, "Error")) -> 0.88 | F128: 0.8 | G128: 0.95 | H128: -0.1278333715 | I128: 0.04383935126 | J128: 0.88 | K128: cat | L128: cat | M128: Baliunas DO, Taylor BJ, Irving H, Roerecke M, Patra J, Mohapatra S, Rehm J. Alcohol as a risk factor for type 2 diabetes: a systematic review and meta-analysis. Diabetes Care 2009; 32(11)
A129: Diabetes RR for 6-12g/day alcohol | B129: -0.3147107448 | C129: 0.08347268143 | D129: Lognormal | E129: =IF('Baseline & Counterfactual'!$AD$4="Yes",IF(D129="Lognormal",LOGINV(RAND(),H129,I129),IF(D129="Normal",NORMINV(RAND(),H129,I129),"Error")), IF('Baseline & Counterfactual'!$AD$4="No", J129, "Error")) -> 0.73 | F129: 0.62 | G129: 0.86 | H129: -0.3147107448 | I129: 0.08347268143 | J129: 0.73 | K129: cat | L129: cat | M129: Baliunas DO, Taylor BJ, Irving H, Roerecke M, Patra J, Mohapatra S, Rehm J. Alcohol as a risk factor for type 2 diabetes: a systematic review and meta-analysis. Diabetes Care 2009; 32(11)
A130: Diabetes RR for 12-24g/day alcohol | B130: -0.415515444 | C130: 0.06121190552 | D130: Lognormal | E130: =IF('Baseline & Counterfactual'!$AD$4="Yes",IF(D130="Lognormal",LOGINV(RAND(),H130,I130),IF(D130="Normal",NORMINV(RAND(),H130,I130),"Error")), IF('Baseline & Counterfactual'!$AD$4="No", J130, "Error")) -> 0.66 | F130: 0.59 | G130: 0.75 | H130: -0.415515444 | I130: 0.06121190552 | J130: 0.66 | K130: cat | L130: cat | M130: Baliunas DO, Taylor BJ, Irving H, Roerecke M, Patra J, Mohapatra S, Rehm J. Alcohol as a risk factor for type 2 diabetes: a systematic review and meta-analysis. Diabetes Care 2009; 32(11)
A131: Diabetes RR for 24-48g/day alcohol | B131: -0.3011050928 | C131: 0.08525563472 | D131: Lognormal | E131: =IF('Baseline & Counterfactual'!$AD$4="Yes",IF(D131="Lognormal",LOGINV(RAND(),H131,I131),IF(D131="Normal",NORMINV(RAND(),H131,I131),"Error")), IF('Baseline & Counterfactual'!$AD$4="No", J131, "Error")) -> 0.74 | F131: 0.63 | G131: 0.88 | H131: -0.3011050928 | I131: 0.08525563472 | J131: 0.74 | K131: cat | L131: cat | M131: Baliunas DO, Taylor BJ, Irving H, Roerecke M, Patra J, Mohapatra S, Rehm J. Alcohol as a risk factor for type 2 diabetes: a systematic review and meta-analysis. Diabetes Care 2009; 32(11)
A132: Diabetes RR for >48g/day alcohol | B132: -0.07257069283 | C132: 0.1190355947 | D132: Lognormal | E132: =IF('Baseline & Counterfactual'!$AD$4="Yes",IF(D132="Lognormal",LOGINV(RAND(),H132,I132),IF(D132="Normal",NORMINV(RAND(),H132,I132),"Error")), IF('Baseline & Counterfactual'!$AD$4="No", J132, "Error")) -> 0.93 | F132: 0.74 | G132: 1.18 | H132: -0.07257069283 | I132: 0.1190355947 | J132: 0.93 | K132: cat | L132: cat | M132: Baliunas DO, Taylor BJ, Irving H, Roerecke M, Patra J, Mohapatra S, Rehm J. Alcohol as a risk factor for type 2 diabetes: a systematic review and meta-analysis. Diabetes Care 2009; 32(11)
A133: Liver cirrhosis RR for <12g/day alcohol women | B133: 0.6418538862 | C133: 0.2643091662 | D133: Lognormal | E133: =IF('Baseline & Counterfactual'!$AD$4="Yes",IF(D133="Lognormal",LOGINV(RAND(),H133,I133),IF(D133="Normal",NORMINV(RAND(),H133,I133),"Error")), IF('Baseline & Counterfactual'!$AD$4="No", J133, "Error")) -> 1.9 | F133: 1.1 | G133: 3.1 | H133: 0.6418538862 | I133: 0.2643091662 | J133: 1.9 | K133: cat | L133: cat | M133: Rehm J, Taylor B, Mohapatra S, Irving H, Baliunas D, Patra J, Roerecke M. Alcohol as a risk factor for liver cirrhosis: a systematic review and meta-analysis. Drug and Alcohol Review 2010; 29:437-445
A134: Liver cirrhosis RR for 12-24g/day alcohol women | B134: 1.722766598 | C134: 0.1090418405 | D134: Lognormal | E134: =IF('Baseline & Counterfactual'!$AD$4="Yes",IF(D134="Lognormal",LOGINV(RAND(),H134,I134),IF(D134="Normal",NORMINV(RAND(),H134,I134),"Error")), IF('Baseline & Counterfactual'!$AD$4="No", J134, "Error")) -> 5.6 | F134: 4.5 | G134: 6.9 | H134: 1.722766598 | I134: 0.1090418405 | J134: 5.6 | K134: cat | L134: cat | M134: Rehm J, Taylor B, Mohapatra S, Irving H, Baliunas D, Patra J, Roerecke M. Alcohol as a risk factor for liver cirrhosis: a systematic review and meta-analysis. Drug and Alcohol Review 2010; 29:437-446
A135: Liver cirrhosis RR for 24-36g/day alcohol women | B135: 2.041220329 | C135: 0.1047811646 | D135: Lognormal | E135: =IF('Baseline & Counterfactual'!$AD$4="Yes",IF(D135="Lognormal",LOGINV(RAND(),H135,I135),IF(D135="Normal",NORMINV(RAND(),H135,I135),"Error")), IF('Baseline & Counterfactual'!$AD$4="No", J135, "Error")) -> 7.7 | F135: 6.3 | G135: 9.5 | H135: 2.041220329 | I135: 0.1047811646 | J135: 7.7 | K135: cat | L135: cat | M135: Rehm J, Taylor B, Mohapatra S, Irving H, Baliunas D, Patra J, Roerecke M. Alcohol as a risk factor for liver cirrhosis: a systematic review and meta-analysis. Drug and Alcohol Review 2010; 29:437-447
A136: Liver cirrhosis RR for 36-48g/day alcohol women | B136: 2.312535424 | C136: 0.1499455778 | D136: Lognormal | E136: =IF('Baseline & Counterfactual'!$AD$4="Yes",IF(D136="Lognormal",LOGINV(RAND(),H136,I136),IF(D136="Normal",NORMINV(RAND(),H136,I136),"Error")), IF('Baseline & Counterfactual'!$AD$4="No", J136, "Error")) -> 10.1 | F136: 7.5 | G136: 13.5 | H136: 2.312535424 | I136: 0.1499455778 | J136: 10.1 | K136: cat | L136: cat | M136: Rehm J, Taylor B, Mohapatra S, Irving H, Baliunas D, Patra J, Roerecke M. Alcohol as a risk factor for liver cirrhosis: a systematic review and meta-analysis. Drug and Alcohol Review 2010; 29:437-448
A137: Liver cirrhosis RR for 48-60g/day alcohol women | B137: 2.687847494 | C137: 0.1473556871 | D137: Lognormal | E137: =IF('Baseline & Counterfactual'!$AD$4="Yes",IF(D137="Lognormal",LOGINV(RAND(),H137,I137),IF(D137="Normal",NORMINV(RAND(),H137,I137),"Error")), IF('Baseline & Counterfactual'!$AD$4="No", J137, "Error")) -> 14.7 | F137: 11 | G137: 19.6 | H137: 2.687847494 | I137: 0.1473556871 | J137: 14.7 | K137: cat | L137: cat | M137: Rehm J, Taylor B, Mohapatra S, Irving H, Baliunas D, Patra J, Roerecke M. Alcohol as a risk factor for liver cirrhosis: a systematic review and meta-analysis. Drug and Alcohol Review 2010; 29:437-449
A138: Liver cirrhosis RR for >60g/day alcohol women | B138: 3.122364924 | C138: 0.1427591296 | D138: Lognormal | E138: =IF('Baseline & Counterfactual'!$AD$4="Yes",IF(D138="Lognormal",LOGINV(RAND(),H138,I138),IF(D138="Normal",NORMINV(RAND(),H138,I138),"Error")), IF('Baseline & Counterfactual'!$AD$4="No", J138, "Error")) -> 22.7 | F138: 17.2 | G138: 30.1 | H138: 3.122364924 | I138: 0.1427591296 | J138: 22.7 | K138: cat | L138: cat | M138: Rehm J, Taylor B, Mohapatra S, Irving H, Baliunas D, Patra J, Roerecke M. Alcohol as a risk factor for liver cirrhosis: a systematic review and meta-analysis. Drug and Alcohol Review 2010; 29:437-450
A139: Liver cirrhosis RR for <12g/day alcohol men | B139: 0 | C139: 0.2502115441 | D139: Lognormal | E139: =IF('Baseline & Counterfactual'!$AD$4="Yes",IF(D139="Lognormal",LOGINV(RAND(),H139,I139),IF(D139="Normal",NORMINV(RAND(),H139,I139),"Error")), IF('Baseline & Counterfactual'!$AD$4="No", J139, "Error")) -> 1 | F139: 0.6 | G139: 1.6 | H139: 0 | I139: 0.2502115441 | J139: 1 | K139: cat | L139: cat | M139: Rehm J, Taylor B, Mohapatra S, Irving H, Baliunas D, Patra J, Roerecke M. Alcohol as a risk factor for liver cirrhosis: a systematic review and meta-analysis. Drug and Alcohol Review 2010; 29:437-451
A140: Liver cirrhosis RR for 12-24g/day alcohol men | B140: 0.4700036292 | C140: 0.09098850611 | D140: Lognormal | E140: =IF('Baseline & Counterfactual'!$AD$4="Yes",IF(D140="Lognormal",LOGINV(RAND(),H140,I140),IF(D140="Normal",NORMINV(RAND(),H140,I140),"Error")), IF('Baseline & Counterfactual'!$AD$4="No", J140, "Error")) -> 1.6 | F140: 1.4 | G140: 2 | H140: 0.4700036292 | I140: 0.09098850611 | J140: 1.6 | K140: cat | L140: cat | M140: Rehm J, Taylor B, Mohapatra S, Irving H, Baliunas D, Patra J, Roerecke M. Alcohol as a risk factor for liver cirrhosis: a systematic review and meta-analysis. Drug and Alcohol Review 2010; 29:437-452
A141: Liver cirrhosis RR for 24-36g/day alcohol men | B141: 1.029619417 | C141: 0.09971079303 | D141: Lognormal | E141: =IF('Baseline & Counterfactual'!$AD$4="Yes",IF(D141="Lognormal",LOGINV(RAND(),H141,I141),IF(D141="Normal",NORMINV(RAND(),H141,I141),"Error")), IF('Baseline & Counterfactual'!$AD$4="No", J141, "Error")) -> 2.8 | F141: 2.3 | G141: 3.4 | H141: 1.029619417 | I141: 0.09971079303 | J141: 2.8 | K141: cat | L141: cat | M141: Rehm J, Taylor B, Mohapatra S, Irving H, Baliunas D, Patra J, Roerecke M. Alcohol as a risk factor for liver cirrhosis: a systematic review and meta-analysis. Drug and Alcohol Review 2010; 29:437-453
A142: Liver cirrhosis RR for 36-48g/day alcohol men | B142: 1.722766598 | C142: 0.1127124368 | D142: Lognormal | E142: =IF('Baseline & Counterfactual'!$AD$4="Yes",IF(D142="Lognormal",LOGINV(RAND(),H142,I142),IF(D142="Normal",NORMINV(RAND(),H142,I142),"Error")), IF('Baseline & Counterfactual'!$AD$4="No", J142, "Error")) -> 5.6 | F142: 4.5 | G142: 7 | H142: 1.722766598 | I142: 0.1127124368 | J142: 5.6 | K142: cat | L142: cat | M142: Rehm J, Taylor B, Mohapatra S, Irving H, Baliunas D, Patra J, Roerecke M. Alcohol as a risk factor for liver cirrhosis: a systematic review and meta-analysis. Drug and Alcohol Review 2010; 29:437-454
A143: Liver cirrhosis RR for 48-60g/day alcohol men | B143: 1.945910149 | C143: 0.09750210356 | D143: Lognormal | E143: =IF('Baseline & Counterfactual'!$AD$4="Yes",IF(D143="Lognormal",LOGINV(RAND(),H143,I143),IF(D143="Normal",NORMINV(RAND(),H143,I143),"Error")), IF('Baseline & Counterfactual'!$AD$4="No", J143, "Error")) -> 7 | F143: 5.8 | G143: 8.5 | H143: 1.945910149 | I143: 0.09750210356 | J143: 7 | K143: cat | L143: cat | M143: Rehm J, Taylor B, Mohapatra S, Irving H, Baliunas D, Patra J, Roerecke M. Alcohol as a risk factor for liver cirrhosis: a systematic review and meta-analysis. Drug and Alcohol Review 2010; 29:437-455
A144: Liver cirrhosis RR for >60g/day alcohol men | B144: 2.63905733 | C144: 0.09077037694 | D144: Lognormal | E144: =IF('Baseline & Counterfactual'!$AD$4="Yes",IF(D144="Lognormal",LOGINV(RAND(),H144,I144),IF(D144="Normal",NORMINV(RAND(),H144,I144),"Error")), IF('Baseline & Counterfactual'!$AD$4="No", J144, "Error")) -> 14 | F144: 11.7 | G144: 16.7 | H144: 2.63905733 | I144: 0.09077037694 | J144: 14 | K144: cat | L144: cat | M144: Rehm J, Taylor B, Mohapatra S, Irving H, Baliunas D, Patra J, Roerecke M. Alcohol as a risk factor for liver cirrhosis: a systematic review and meta-analysis. Drug and Alcohol Review 2010; 29:437-456
A145: Ca Liver RR per 10g/day alcohol | B145: 0.0953101798 | C145: 0.0350002861 | D145: Lognormal | E145: =IF('Baseline & Counterfactual'!$AD$4="Yes",IF(D145="Lognormal",LOGINV(RAND(),H145,I145),IF(D145="Normal",NORMINV(RAND(),H145,I145),"Error")), IF('Baseline & Counterfactual'!$AD$4="No", J145, "Error")) -> 1.1 | F145: 1.02 | G145: 1.17 | H145: =IF(D145="Normal",J145,IF(D145="Lognormal",LN(J145),"ERROR")) -> 0.0953101798 | I145: =IF(D145="Normal",AVERAGE((J145-F145)/1.96,(G145-J145)/1.96),IF(D145="Lognormal",AVERAGE((LN(J145)-LN(F145))/1.96,(LN(G145)-LN(J145))/1.96),"ERROR")) -> 0.0350002861 | J145: 1.1 | K145: 0 | L145: 100 | M145: World Cancer Research Fund/American Institute for Cancer Research. Food, Nutrition, Physical Activity, and the Prevention of Cancer: a Global Perspective. Washington DC: AICR, 2007. pg 168
A146: Ca Mouth, pharynx and larynx RR per drink per week | B146: 0.2151113796 | C146: 0.02470658826 | D146: Lognormal | E146: =IF('Baseline & Counterfactual'!$AD$4="Yes",IF(D146="Lognormal",LOGINV(RAND(),H146,I146),IF(D146="Normal",NORMINV(RAND(),H146,I146),"Error")), IF('Baseline & Counterfactual'!$AD$4="No", J146, "Error")) -> 1.24 | F146: 1.18 | G146: 1.3 | H146: 0.2151113796 | I146: 0.02470658826 | J146: 1.24 | K146: 0 | L146: 150 | M146: World Cancer Research Fund/American Institute for Cancer Research. Food, Nutrition, Physical Activity, and the Prevention of Cancer: a Global Perspective. Washington DC: AICR, 2007. pg 160
A147: Ca Colorectum RR per 10g/day alcohol | B147: 0.08617769624 | C147: 0.02588506637 | D147: Lognormal | E147: =IF('Baseline & Counterfactual'!$AD$4="Yes",IF(D147="Lognormal",LOGINV(RAND(),H147,I147),IF(D147="Normal",NORMINV(RAND(),H147,I147),"Error")), IF('Baseline & Counterfactual'!$AD$4="No", J147, "Error")) -> 1.09 | F147: 1.03 | G147: 1.14 | H147: 0.08617769624 | I147: 0.02588506637 | J147: 1.09 | K147: 0 | L147: 40 | M147: World Cancer Research Fund/American Institute for Cancer Research. Food, Nutrition, Physical Activity, and the Prevention of Cancer: a Global Perspective. Washington DC: AICR, 2007. pg 164
A148: Ca Breast RR per 10g/day alcohol | B148: 0.0953 | C148: 0.0186 | D148: Lognormal | E148: =IF('Baseline & Counterfactual'!$AD$4="Yes",IF(D148="Lognormal",LOGINV(RAND(),H148,I148),IF(D148="Normal",NORMINV(RAND(),H148,I148),"Error")), IF('Baseline & Counterfactual'!$AD$4="No", J148, "Error")) -> 1.1 | F148: 1.06 | G148: 1.14 | H148: 0.0953101798 | I148: 0.01856105977 | J148: 1.1 | K148: 0 | L148: 280 | M148: World Cancer Research Fund/American Institute for Cancer Research. Food, Nutrition, Physical Activity, and the Prevention of Cancer: a Global Perspective. Washington DC: AICR, 2007. pg 167
A149: PHYSICAL ACTIVITY | E149: Estimate | F149: CI low | G149: CI high | H149: Mean | I149: SD | J149: Estimate
A150: CHD incidence for 11.25METhrs/wk increase | D150: Lognormal | E150: =IF('Baseline & Counterfactual'!$AD$4="Yes",IF(D150="Lognormal",LOGINV(RAND(),H150,I150),IF(D150="Normal",NORMINV(RAND(),H150,I150),"Error")), IF('Baseline & Counterfactual'!$AD$4="No", J150, "Error")) -> 0.81 | F150: 0.75 | G150: 0.87 | H150: =IF(D150="Normal",J150,IF(D150="Lognormal",LN(J150),"ERROR")) -> -0.2107210313 | I150: =IF(D150="Normal",AVERAGE((J150-F150)/1.96,(G150-J150)/1.96),IF(D150="Lognormal",AVERAGE((LN(J150)-LN(F150))/1.96,(LN(G150)-LN(J150))/1.96),"ERROR")) -> 0.0378622462 | J150: 0.81 | K150: 0 | L150: 35 | M150: Manek N, Nichols M, Kelly P, Foster C, Webster P, Rayner M, Scarborough P. Quantifying the association between physical activity and cardiovascular disease, cancer and all-cause mortality: a systematic review and meta-analyses.
A151: Stroke incidence for 11.25METhrs/wk increase | D151: Lognormal | E151: =IF('Baseline & Counterfactual'!$AD$4="Yes",IF(D151="Lognormal",LOGINV(RAND(),H151,I151),IF(D151="Normal",NORMINV(RAND(),H151,I151),"Error")), IF('Baseline & Counterfactual'!$AD$4="No", J151, "Error")) -> 0.79 | F151: 0.68 | G151: 0.92 | H151: =IF(D151="Normal",J151,IF(D151="Lognormal",LN(J151),"ERROR")) -> -0.2357223335 | I151: =IF(D151="Normal",AVERAGE((J151-F151)/1.96,(G151-J151)/1.96),IF(D151="Lognormal",AVERAGE((LN(J151)-LN(F151))/1.96,(LN(G151)-LN(J151))/1.96),"ERROR")) -> 0.07711246731 | J151: 0.79 | K151: 0 | L151: 35 | M151: Manek N, Nichols M, Kelly P, Foster C, Webster P, Rayner M, Scarborough P. Quantifying the association between physical activity and cardiovascular disease, cancer and all-cause mortality: a systematic review and meta-analyses.
A152: Heart failure incidence for 11.25METhrs/wk increase | D152: Lognormal | E152: =IF('Baseline & Counterfactual'!$AD$4="Yes",IF(D152="Lognormal",LOGINV(RAND(),H152,I152),IF(D152="Normal",NORMINV(RAND(),H152,I152),"Error")), IF('Baseline & Counterfactual'!$AD$4="No", J152, "Error")) -> 0.86 | F152: 0.82 | G152: 0.89 | H152: -0.1508228897 | I152: 0.02089722512 | J152: 0.86 | K152: 0 | L152: 35 | M152: Manek N, Nichols M, Kelly P, Foster C, Webster P, Rayner M, Scarborough P. Quantifying the association between physical activity and cardiovascular disease, cancer and all-cause mortality: a systematic review and meta-analyses.
A153: Breast cancer incidence for 22.5METhrs/wk increase | D153: Lognormal | E153: =IF('Baseline & Counterfactual'!$AD$4="Yes",IF(D153="Lognormal",LOGINV(RAND(),H153,I153),IF(D153="Normal",NORMINV(RAND(),H153,I153),"Error")), IF('Baseline & Counterfactual'!$AD$4="No", J153, "Error")) -> 0.91 | F153: 0.87 | G153: 0.95 | H153: -0.09431067947 | I153: 0.02244101351 | J153: 0.91 | K153: 0 | L153: 35 | M153: Manek N, Nichols M, Kelly P, Foster C, Webster P, Rayner M, Scarborough P. Quantifying the association between physical activity and cardiovascular disease, cancer and all-cause mortality: a systematic review and meta-analyses.
A154: Lung cancer incidence for 22.5METhrs/wk increase | D154: Lognormal | E154: =IF('Baseline & Counterfactual'!$AD$4="Yes",IF(D154="Lognormal",LOGINV(RAND(),H154,I154),IF(D154="Normal",NORMINV(RAND(),H154,I154),"Error")), IF('Baseline & Counterfactual'!$AD$4="No", J154, "Error")) -> 0.74 | F154: 0.63 | G154: 0.86 | H154: -0.3011050928 | I154: 0.0793909617 | J154: 0.74 | K154: 0 | L154: 35 | M154: Manek N, Nichols M, Kelly P, Foster C, Webster P, Rayner M, Scarborough P. Quantifying the association between physical activity and cardiovascular disease, cancer and all-cause mortality: a systematic review and meta-analyses.
A155: Stomach cancer incidence for 22.5METhrs/wk increase | D155: Lognormal | E155: =IF('Baseline & Counterfactual'!$AD$4="Yes",IF(D155="Lognormal",LOGINV(RAND(),H155,I155),IF(D155="Normal",NORMINV(RAND(),H155,I155),"Error")), IF('Baseline & Counterfactual'!$AD$4="No", J155, "Error")) -> 0.74 | F155: 0.64 | G155: 0.85 | H155: -0.3011050928 | I155: 0.07238984008 | J155: 0.74 | K155: 0 | L155: 35 | M155: Manek N, Nichols M, Kelly P, Foster C, Webster P, Rayner M, Scarborough P. Quantifying the association between physical activity and cardiovascular disease, cancer and all-cause mortality: a systematic review and meta-analyses.

Sheet FruitVeg
A1: =Monte_Carlo_Answer -> No
B2: Population Characteristics
C4: Population | D4: Baseline | P4: Counterfactual | AB4: Baseline fruit distribution (g/day) | AW4: Counterfactual fruit distribution (g/day) | BR4: Baseline veg distribution (g/day) | CM4: Counterfactual veg distribution (g/day)
D5: Mean Fruit (g/d) Consumers | E5: SD Fruit (g/d) Consumers | F5: % consuming <1 fruit portion daily | G5: No. fruit non-consumers | H5: Mean log Fruit (g/d) Consumers | I5: SD log Fruit (g/d) Consumers | J5: Mean Veg (g/d) Consumers | K5: SD Veg (g/d) Consumers | L5: % consuming <1 veg portion daily | M5: No. non-veg consumers | N5: Mean log Veg (g/d) Consumers | O5: SD log Veg (g/d) Consumers | P5: Mean Fruit (g/d) Consumers | Q5: SD Fruit (g/d) Consumers | R5: % consuming <1 fruit portion daily | S5: No. non-fruit consumers | T5: Mean log Fruit (g/d) Consumers | U5: SD log Fruit (g/d) Consumers | V5: Mean Veg (g/d) Consumers | W5: SD Veg (g/d) Consumers | X5: % consuming <1 veg portion daily | Y5: No. non-veg consumers | Z5: Mean log Veg (g/d) Consumers | AA5: SD log Veg (g/d) Consumers | AB5: <80 | AC5: 80-120 | AD5: 120-160 | AE5: 160-200 | AF5: 200-240 | AG5: 240-280 | AH5: 280-320 | AI5: 320-360 | AJ5: 360-400 | AK5: 400-440 | AL5: 440-480 | AM5: 480-520 | AN5: 520-560 | AO5: 560-600 | AP5: 600-640 | AQ5: 640-680 | AR5: 680-720 | AS5: 720-760 | AT5: 760-800 | AU5: >800 | AV5: Check | AW5: <80 | AX5: 80-120 | AY5: 120-160 | AZ5: 160-200 | BA5: 200-240 | BB5: 240-280 | BC5: 280-320 | BD5: 320-360 | BE5: 360-400 | BF5: 400-440 | BG5: 440-480 | BH5: 480-520 | BI5: 520-560 | BJ5: 560-600 | BK5: 600-640 | BL5: 640-680 | BM5: 680-720 | BN5: 720-760 | BO5: 760-800 | BP5: >800 | BQ5: Check | BR5: <80 | BS5: 80-120 | BT5: 120-160 | BU5: 160-200 | BV5: 200-240 | BW5: 240-280 | BX5: 280-320 | BY5: 320-360 | BZ5: 360-400 | CA5: 400-440 | CB5: 440-480 | CC5: 480-520 | CD5: 520-560 | CE5: 560-600 | CF5: 600-640 | CG5: 640-680 | CH5: 680-720 | CI5: 720-760 | CJ5: 760-800 | CK5: >800 | CL5: Check | CM5: <80 | CN5: 80-120 | CO5: 120-160 | CP5: 160-200 | CQ5: 200-240 | CR5: 240-280 | CS5: 280-320 | CT5: 320-360 | CU5: 360-400 | CV5: 400-440 | CW5: 440-480 | CX5: 480-520 | CY5: 520-560 | CZ5: 560-600 | DA5: 600-640 | DB5: 640-680 | DC5: 680-720 | DD5: 720-760 | DE5: 760-800 | DF5: >800 | DG5: Check
B6: M15-19 | C6: =b_m_population -> 1000 | D6: =b_m_fruit_mean -> 188.6 | E6: =b_m_fruit_stdv -> 37.72 | F6: =b_m_fruit_pcnonconsumers -> 0 | G6: =b_m_population*b_m_fruit_pcnonconsumers/100 -> 0 | H6: =LN(D6)-(0.5*(I6^2)) -> 5.220018014 | I6: =SQRT((LN(1+((E6^2)/(D6^2))))) -> 0.1980422004 | J6: =b_m_veg_mean -> 168 | K6: =b_m_veg_stdv -> 33.6 | L6: =b_m_veg_pcnonconsumers -> 0 | M6: =b_m_population*b_m_veg_pcnonconsumers/100 -> 0 | N6: =LN(J6)-(0.5*(O6^2)) -> 5.104353623 | O6: =SQRT((LN(1+((K6^2)/(J6^2))))) -> 0.1980422004 | P6: =c_m_fruit_mean -> 188.6 | Q6: =c_m_fruit_stdv -> 37.72 | R6: =c_m_fruit_pcnonconsumers -> 0 | S6: =b_m_population*c_m_fruit_pcnonconsumers/100 -> 0 | T6: =LN(P6)-(0.5*(U6^2)) -> 5.220018014 | U6: =SQRT((LN(1+((Q6^2)/(P6^2))))) -> 0.1980422004 | V6: =c_m_veg_mean -> 168 | W6: =c_m_veg_stdv -> 33.6 | X6: =c_m_veg_pcnonconsumers -> 0 | Y6: =b_m_population*c_m_veg_pcnonconsumers/100 -> 0 | Z6: =LN(V6)-(0.5*(AA6^2)) -> 5.104353623 | AA6: =SQRT((LN(1+((W6^2)/(V6^2))))) -> 0.1980422004 | AB6: =(($C6-$G6)*(LOGNORMDIST(80,$H6,$I6)))+G6 -> 0.01161320624 | AC6: =($C6-$G6)*(LOGNORMDIST(120,$H6,$I6)-LOGNORMDIST(80,$H6,$I6)) -> 14.46912029 | AD6: =($C6-$G6)*(LOGNORMDIST(160,$H6,$I6)-LOGNORMDIST(120,$H6,$I6)) -> 217.7926608 | AE6: =($C6-$G6)*(LOGNORMDIST(200,$H6,$I6)-LOGNORMDIST(160,$H6,$I6)) -> 421.4405801 | AF6: =($C6-$G6)*(LOGNORMDIST(240,$H6,$I6)-LOGNORMDIST(200,$H6,$I6)) -> 252.1967789 | AG6: =($C6-$G6)*(LOGNORMDIST(280,$H6,$I6)-LOGNORMDIST(240,$H6,$I6)) -> 75.97526858 | AH6: =($C6-$G6)*(LOGNORMDIST(320,$H6,$I6)-LOGNORMDIST(280,$H6,$I6)) -> 15.29923873 | AI6: =($C6-$G6)*(LOGNORMDIST(360,$H6,$I6)-LOGNORMDIST(320,$H6,$I6)) -> 2.429731513 | AJ6: =($C6-$G6)*(LOGNORMDIST(400,$H6,$I6)-LOGNORMDIST(360,$H6,$I6)) -> 0.3359822284 | AK6: =($C6-$G6)*(LOGNORMDIST(440,$H6,$I6)-LOGNORMDIST(400,$H6,$I6)) -> 0.04299908987 | AL6: =($C6-$G6)*(LOGNORMDIST(480,$H6,$I6)-LOGNORMDIST(440,$H6,$I6)) -> 0.005294135749 | AM6: =($C6-$G6)*(LOGNORMDIST(520,$H6,$I6)-LOGNORMDIST(480,$H6,$I6)) -> 0.0006429937301 | AN6: =($C6-$G6)*(LOGNORMDIST(560,$H6,$I6)-LOGNORMDIST(520,$H6,$I6)) -> 7.831512816e-05 | AO6: =($C6-$G6)*(LOGNORMDIST(600,$H6,$I6)-LOGNORMDIST(560,$H6,$I6)) -> 9.670488632e-06 | AP6: =($C6-$G6)*(LOGNORMDIST(640,$H6,$I6)-LOGNORMDIST(600,$H6,$I6)) -> 1.219418455e-06 | AQ6: =($C6-$G6)*(LOGNORMDIST(680,$H6,$I6)-LOGNORMDIST(640,$H6,$I6)) -> 1.577675768e-07 | AR6: =($C6-$G6)*(LOGNORMDIST(720,$H6,$I6)-LOGNORMDIST(680,$H6,$I6)) -> 2.100686292e-08 | AS6: =($C6-$G6)*(LOGNORMDIST(760,$H6,$I6)-LOGNORMDIST(720,$H6,$I6)) -> 2.884026351e-09 | AT6: =($C6-$G6)*(LOGNORMDIST(800,$H6,$I6)-LOGNORMDIST(760,$H6,$I6)) -> 4.086730954e-10 | AU6: =($C6-$G6)*(1-LOGNORMDIST(800,$H6,$I6)) -> 7.049916206e-11 | AV6: =IF(SUM(AB6:AU6)=ROUND($C6,0), ".","Error") -> . | AW6: =(($C6-$S6)*(LOGNORMDIST(80,$T6,$U6)))+S6 -> 0.01161320624 | AX6: =($C6-$S6)*(LOGNORMDIST(120,$T6,$U6)-LOGNORMDIST(80,$T6,$U6)) -> 14.46912029 | AY6: =($C6-$S6)*(LOGNORMDIST(160,$T6,$U6)-LOGNORMDIST(120,$T6,$U6)) -> 217.7926608 | AZ6: =($C6-$S6)*(LOGNORMDIST(200,$T6,$U6)-LOGNORMDIST(160,$T6,$U6)) -> 421.4405801 | BA6: =($C6-$S6)*(LOGNORMDIST(240,$T6,$U6)-LOGNORMDIST(200,$T6,$U6)) -> 252.1967789 | BB6: =($C6-$S6)*(LOGNORMDIST(280,$T6,$U6)-LOGNORMDIST(240,$T6,$U6)) -> 75.97526858 | BC6: =($C6-$S6)*(LOGNORMDIST(320,$T6,$U6)-LOGNORMDIST(280,$T6,$U6)) -> 15.29923873 | BD6: =($C6-$S6)*(LOGNORMDIST(360,$T6,$U6)-LOGNORMDIST(320,$T6,$U6)) -> 2.429731513 | BE6: =($C6-$S6)*(LOGNORMDIST(400,$T6,$U6)-LOGNORMDIST(360,$T6,$U6)) -> 0.3359822284 | BF6: =($C6-$S6)*(LOGNORMDIST(440,$T6,$U6)-LOGNORMDIST(400,$T6,$U6)) -> 0.04299908987 | BG6: =($C6-$S6)*(LOGNORMDIST(480,$T6,$U6)-LOGNORMDIST(440,$T6,$U6)) -> 0.005294135749 | BH6: =($C6-$S6)*(LOGNORMDIST(520,$T6,$U6)-LOGNORMDIST(480,$T6,$U6)) -> 0.0006429937301 | BI6: =($C6-$S6)*(LOGNORMDIST(560,$T6,$U6)-LOGNORMDIST(520,$T6,$U6)) -> 7.831512816e-05 | BJ6: =($C6-$S6)*(LOGNORMDIST(600,$T6,$U6)-LOGNORMDIST(560,$T6,$U6)) -> 9.670488632e-06 | BK6: =($C6-$S6)*(LOGNORMDIST(640,$T6,$U6)-LOGNORMDIST(600,$T6,$U6)) -> 1.219418455e-06 | BL6: =($C6-$S6)*(LOGNORMDIST(680,$T6,$U6)-LOGNORMDIST(640,$T6,$U6)) -> 1.577675768e-07 | BM6: =($C6-$S6)*(LOGNORMDIST(720,$T6,$U6)-LOGNORMDIST(680,$T6,$U6)) -> 2.100686292e-08 | BN6: =($C6-$S6)*(LOGNORMDIST(760,$T6,$U6)-LOGNORMDIST(720,$T6,$U6)) -> 2.884026351e-09 | BO6: =($C6-$S6)*(LOGNORMDIST(800,$T6,$U6)-LOGNORMDIST(760,$T6,$U6)) -> 4.086730954e-10 | BP6: =($C6-$S6)*(1-LOGNORMDIST(800,$T6,$U6)) -> 7.049916206e-11 | BQ6: =IF(SUM(AW6:BP6)=ROUND($C6,0), ".","Error") -> . | BR6: =(($C6-$M6)*(LOGNORMDIST(80,$N6,$O6)))+M6 -> 0.1324852564 | BS6: =($C6-$M6)*(LOGNORMDIST(120,$N6,$O6)-LOGNORMDIST(80,$N6,$O6)) -> 54.66996577 | BT6: =($C6-$M6)*(LOGNORMDIST(160,$N6,$O6)-LOGNORMDIST(120,$N6,$O6)) -> 386.6288422 | BU6: =($C6-$M6)*(LOGNORMDIST(200,$N6,$O6)-LOGNORMDIST(160,$N6,$O6)) -> 394.8790304 | BV6: =($C6-$M6)*(LOGNORMDIST(240,$N6,$O6)-LOGNORMDIST(200,$N6,$O6)) -> 134.9748129 | BW6: =($C6-$M6)*(LOGNORMDIST(280,$N6,$O6)-LOGNORMDIST(240,$N6,$O6)) -> 25.01610881 | BX6: =($C6-$M6)*(LOGNORMDIST(320,$N6,$O6)-LOGNORMDIST(280,$N6,$O6)) -> 3.298554189 | BY6: =($C6-$M6)*(LOGNORMDIST(360,$N6,$O6)-LOGNORMDIST(320,$N6,$O6)) -> 0.3606971986 | BZ6: =($C6-$M6)*(LOGNORMDIST(400,$N6,$O6)-LOGNORMDIST(360,$N6,$O6)) -> 0.0357607976 | CA6: =($C6-$M6)*(LOGNORMDIST(440,$N6,$O6)-LOGNORMDIST(400,$N6,$O6)) -> 0.003391335692 | CB6: =($C6-$M6)*(LOGNORMDIST(480,$N6,$O6)-LOGNORMDIST(440,$N6,$O6)) -> 0.0003179443147 | CC6: =($C6-$M6)*(LOGNORMDIST(520,$N6,$O6)-LOGNORMDIST(480,$N6,$O6)) -> 3.008230198e-05 | CD6: =($C6-$M6)*(LOGNORMDIST(560,$N6,$O6)-LOGNORMDIST(520,$N6,$O6)) -> 2.91005342e-06 | CE6: =($C6-$M6)*(LOGNORMDIST(600,$N6,$O6)-LOGNORMDIST(560,$N6,$O6)) -> 2.901788809e-07 | CF6: =($C6-$M6)*(LOGNORMDIST(640,$N6,$O6)-LOGNORMDIST(600,$N6,$O6)) -> 2.997679882e-08 | CG6: =($C6-$M6)*(LOGNORMDIST(680,$N6,$O6)-LOGNORMDIST(640,$N6,$O6)) -> 3.21764837e-09 | CH6: =($C6-$M6)*(LOGNORMDIST(720,$N6,$O6)-LOGNORMDIST(680,$N6,$O6)) -> 3.593791931e-10 | CI6: =($C6-$M6)*(LOGNORMDIST(760,$N6,$O6)-LOGNORMDIST(720,$N6,$O6)) -> 4.185540803e-11 | CJ6: =($C6-$M6)*(LOGNORMDIST(800,$N6,$O6)-LOGNORMDIST(760,$N6,$O6)) -> 4.996003611e-12 | CK6: =($C6-$M6)*(1-LOGNORMDIST(800,$N6,$O6)) -> 7.771561172e-13 | CL6: =IF(SUM(BR6:CK6)=ROUND($C6,0), ".","Error") -> . | CM6: =(($C6-$Y6)*(LOGNORMDIST(80,$Z6,$AA6)))+Y6 -> 0.1324852564 | CN6: =($C6-$Y6)*(LOGNORMDIST(120,$Z6,$AA6)-LOGNORMDIST(80,$Z6,$AA6)) -> 54.66996577 | CO6: =($C6-$Y6)*(LOGNORMDIST(160,$Z6,$AA6)-LOGNORMDIST(120,$Z6,$AA6)) -> 386.6288422 | CP6: =($C6-$Y6)*(LOGNORMDIST(200,$Z6,$AA6)-LOGNORMDIST(160,$Z6,$AA6)) -> 394.8790304 | CQ6: =($C6-$Y6)*(LOGNORMDIST(240,$Z6,$AA6)-LOGNORMDIST(200,$Z6,$AA6)) -> 134.9748129 | CR6: =($C6-$Y6)*(LOGNORMDIST(280,$Z6,$AA6)-LOGNORMDIST(240,$Z6,$AA6)) -> 25.01610881 | CS6: =($C6-$Y6)*(LOGNORMDIST(320,$Z6,$AA6)-LOGNORMDIST(280,$Z6,$AA6)) -> 3.298554189 | CT6: =($C6-$Y6)*(LOGNORMDIST(360,$Z6,$AA6)-LOGNORMDIST(320,$Z6,$AA6)) -> 0.3606971986 | CU6: =($C6-$Y6)*(LOGNORMDIST(400,$Z6,$AA6)-LOGNORMDIST(360,$Z6,$AA6)) -> 0.0357607976 | CV6: =($C6-$Y6)*(LOGNORMDIST(440,$Z6,$AA6)-LOGNORMDIST(400,$Z6,$AA6)) -> 0.003391335692 | CW6: =($C6-$Y6)*(LOGNORMDIST(480,$Z6,$AA6)-LOGNORMDIST(440,$Z6,$AA6)) -> 0.0003179443147 | CX6: =($C6-$Y6)*(LOGNORMDIST(520,$Z6,$AA6)-LOGNORMDIST(480,$Z6,$AA6)) -> 3.008230198e-05 | CY6: =($C6-$Y6)*(LOGNORMDIST(560,$Z6,$AA6)-LOGNORMDIST(520,$Z6,$AA6)) -> 2.91005342e-06 | CZ6: =($C6-$Y6)*(LOGNORMDIST(600,$Z6,$AA6)-LOGNORMDIST(560,$Z6,$AA6)) -> 2.901788809e-07 | DA6: =($C6-$Y6)*(LOGNORMDIST(640,$Z6,$AA6)-LOGNORMDIST(600,$Z6,$AA6)) -> 2.997679882e-08 | DB6: =($C6-$Y6)*(LOGNORMDIST(680,$Z6,$AA6)-LOGNORMDIST(640,$Z6,$AA6)) -> 3.21764837e-09 | DC6: =($C6-$Y6)*(LOGNORMDIST(720,$Z6,$AA6)-LOGNORMDIST(680,$Z6,$AA6)) -> 3.593791931e-10 | DD6: =($C6-$Y6)*(LOGNORMDIST(760,$Z6,$AA6)-LOGNORMDIST(720,$Z6,$AA6)) -> 4.185540803e-11 | DE6: =($C6-$Y6)*(LOGNORMDIST(800,$Z6,$AA6)-LOGNORMDIST(760,$Z6,$AA6)) -> 4.996003611e-12 | DF6: =($C6-$Y6)*(1-LOGNORMDIST(800,$Z6,$AA6)) -> 7.771561172e-13 | DG6: =IF(SUM(CM6:DF6)=ROUND($C6,0), ".","Error") -> .
B7: M20-24 | C7: 1000 | D7: 188.6 | E7: 37.72 | F7: 0 | G7: 0 | H7: 5.220018014 | I7: 0.1980422004 | J7: 168 | K7: 33.6 | L7: 0 | M7: 0 | N7: 5.104353623 | O7: 0.1980422004 | P7: 188.6 | Q7: 37.72 | R7: 0 | S7: 0 | T7: 5.220018014 | U7: 0.1980422004 | V7: 168 | W7: 33.6 | X7: 0 | Y7: 0 | Z7: 5.104353623 | AA7: 0.1980422004 | AB7: 0.01161320624 | AC7: =($C7-$G7)*(LOGNORMDIST(120,$H7,$I7)-LOGNORMDIST(80,$H7,$I7)) -> 14.46912029 | AD7: =($C7-$G7)*(LOGNORMDIST(160,$H7,$I7)-LOGNORMDIST(120,$H7,$I7)) -> 217.7926608 | AE7: =($C7-$G7)*(LOGNORMDIST(200,$H7,$I7)-LOGNORMDIST(160,$H7,$I7)) -> 421.4405801 | AF7: =($C7-$G7)*(LOGNORMDIST(240,$H7,$I7)-LOGNORMDIST(200,$H7,$I7)) -> 252.1967789 | AG7: =($C7-$G7)*(LOGNORMDIST(280,$H7,$I7)-LOGNORMDIST(240,$H7,$I7)) -> 75.97526858 | AH7: =($C7-$G7)*(LOGNORMDIST(320,$H7,$I7)-LOGNORMDIST(280,$H7,$I7)) -> 15.29923873 | AI7: =($C7-$G7)*(LOGNORMDIST(360,$H7,$I7)-LOGNORMDIST(320,$H7,$I7)) -> 2.429731513 | AJ7: =($C7-$G7)*(LOGNORMDIST(400,$H7,$I7)-LOGNORMDIST(360,$H7,$I7)) -> 0.3359822284 | AK7: =($C7-$G7)*(LOGNORMDIST(440,$H7,$I7)-LOGNORMDIST(400,$H7,$I7)) -> 0.04299908987 | AL7: =($C7-$G7)*(LOGNORMDIST(480,$H7,$I7)-LOGNORMDIST(440,$H7,$I7)) -> 0.005294135749 | AM7: =($C7-$G7)*(LOGNORMDIST(520,$H7,$I7)-LOGNORMDIST(480,$H7,$I7)) -> 0.0006429937301 | AN7: =($C7-$G7)*(LOGNORMDIST(560,$H7,$I7)-LOGNORMDIST(520,$H7,$I7)) -> 7.831512816e-05 | AO7: =($C7-$G7)*(LOGNORMDIST(600,$H7,$I7)-LOGNORMDIST(560,$H7,$I7)) -> 9.670488632e-06 | AP7: =($C7-$G7)*(LOGNORMDIST(640,$H7,$I7)-LOGNORMDIST(600,$H7,$I7)) -> 1.219418455e-06 | AQ7: =($C7-$G7)*(LOGNORMDIST(680,$H7,$I7)-LOGNORMDIST(640,$H7,$I7)) -> 1.577675768e-07 | AR7: =($C7-$G7)*(LOGNORMDIST(720,$H7,$I7)-LOGNORMDIST(680,$H7,$I7)) -> 2.100686292e-08 | AS7: =($C7-$G7)*(LOGNORMDIST(760,$H7,$I7)-LOGNORMDIST(720,$H7,$I7)) -> 2.884026351e-09 | AT7: =($C7-$G7)*(LOGNORMDIST(800,$H7,$I7)-LOGNORMDIST(760,$H7,$I7)) -> 4.086730954e-10 | AU7: =($C7-$G7)*(1-LOGNORMDIST(800,$H7,$I7)) -> 7.049916206e-11 | AV7: =IF(SUM(AB7:AU7)=ROUND($C7,0), ".","Error") -> . | AW7: 0.01161320624 | AX7: 14.46912029 | AY7: 217.7926608 | AZ7: 421.4405801 | BA7: 252.1967789 | BB7: 75.97526858 | BC7: 15.29923873 | BD7: 2.429731513 | BE7: 0.3359822284 | BF7: 0.04299908987 | BG7: 0.005294135749 | BH7: 0.0006429937301 | BI7: 7.831512816e-05 | BJ7: 9.670488632e-06 | BK7: 1.219418455e-06 | BL7: 1.577675768e-07 | BM7: 2.100686292e-08 | BN7: 2.884026351e-09 | BO7: 4.086730954e-10 | BP7: 7.049916206e-11 | BQ7: =IF(SUM(AW7:BP7)=ROUND($C7,0), ".","Error") -> . | BR7: 0.1324852564 | BS7: =($C7-$M7)*(LOGNORMDIST(120,$N7,$O7)-LOGNORMDIST(80,$N7,$O7)) -> 54.66996577 | BT7: =($C7-$M7)*(LOGNORMDIST(160,$N7,$O7)-LOGNORMDIST(120,$N7,$O7)) -> 386.6288422 | BU7: =($C7-$M7)*(LOGNORMDIST(200,$N7,$O7)-LOGNORMDIST(160,$N7,$O7)) -> 394.8790304 | BV7: =($C7-$M7)*(LOGNORMDIST(240,$N7,$O7)-LOGNORMDIST(200,$N7,$O7)) -> 134.9748129 | BW7: =($C7-$M7)*(LOGNORMDIST(280,$N7,$O7)-LOGNORMDIST(240,$N7,$O7)) -> 25.01610881 | BX7: =($C7-$M7)*(LOGNORMDIST(320,$N7,$O7)-LOGNORMDIST(280,$N7,$O7)) -> 3.298554189 | BY7: =($C7-$M7)*(LOGNORMDIST(360,$N7,$O7)-LOGNORMDIST(320,$N7,$O7)) -> 0.3606971986 | BZ7: =($C7-$M7)*(LOGNORMDIST(400,$N7,$O7)-LOGNORMDIST(360,$N7,$O7)) -> 0.0357607976 | CA7: =($C7-$M7)*(LOGNORMDIST(440,$N7,$O7)-LOGNORMDIST(400,$N7,$O7)) -> 0.003391335692 | CB7: =($C7-$M7)*(LOGNORMDIST(480,$N7,$O7)-LOGNORMDIST(440,$N7,$O7)) -> 0.0003179443147 | CC7: =($C7-$M7)*(LOGNORMDIST(520,$N7,$O7)-LOGNORMDIST(480,$N7,$O7)) -> 3.008230198e-05 | CD7: =($C7-$M7)*(LOGNORMDIST(560,$N7,$O7)-LOGNORMDIST(520,$N7,$O7)) -> 2.91005342e-06 | CE7: =($C7-$M7)*(LOGNORMDIST(600,$N7,$O7)-LOGNORMDIST(560,$N7,$O7)) -> 2.901788809e-07 | CF7: =($C7-$M7)*(LOGNORMDIST(640,$N7,$O7)-LOGNORMDIST(600,$N7,$O7)) -> 2.997679882e-08 | CG7: =($C7-$M7)*(LOGNORMDIST(680,$N7,$O7)-LOGNORMDIST(640,$N7,$O7)) -> 3.21764837e-09 | CH7: =($C7-$M7)*(LOGNORMDIST(720,$N7,$O7)-LOGNORMDIST(680,$N7,$O7)) -> 3.593791931e-10 | CI7: =($C7-$M7)*(LOGNORMDIST(760,$N7,$O7)-LOGNORMDIST(720,$N7,$O7)) -> 4.185540803e-11 | CJ7: =($C7-$M7)*(LOGNORMDIST(800,$N7,$O7)-LOGNORMDIST(760,$N7,$O7)) -> 4.996003611e-12 | CK7: =($C7-$M7)*(1-LOGNORMDIST(800,$N7,$O7)) -> 7.771561172e-13 | CL7: =IF(SUM(BR7:CK7)=ROUND($C7,0), ".","Error") -> . | CM7: 0.1324852564 | CN7: 54.66996577 | CO7: 386.6288422 | CP7: 394.8790304 | CQ7: 134.9748129 | CR7: 25.01610881 | CS7: 3.298554189 | CT7: 0.3606971986 | CU7: 0.0357607976 | CV7: 0.003391335692 | CW7: 0.0003179443147 | CX7: 3.008230198e-05 | CY7: 2.91005342e-06 | CZ7: 2.901788809e-07 | DA7: 2.997679882e-08 | DB7: 3.21764837e-09 | DC7: 3.593791931e-10 | DD7: 4.185540803e-11 | DE7: 4.996003611e-12 | DF7: 7.771561172e-13 | DG7: =IF(SUM(CM7:DF7)=ROUND($C7,0), ".","Error") -> .
B8: M25-29 | C8: 1000 | D8: 188.6 | E8: 37.72 | F8: 0 | G8: 0 | H8: 5.220018014 | I8: 0.1980422004 | J8: 168 | K8: 33.6 | L8: 0 | M8: 0 | N8: 5.104353623 | O8: 0.1980422004 | P8: 188.6 | Q8: 37.72 | R8: 0 | S8: 0 | T8: 5.220018014 | U8: 0.1980422004 | V8: 168 | W8: 33.6 | X8: 0 | Y8: 0 | Z8: 5.104353623 | AA8: 0.1980422004 | AB8: 0.01161320624 | AC8: 14.46912029 | AD8: 217.7926608 | AE8: 421.4405801 | AF8: 252.1967789 | AG8: 75.97526858 | AH8: 15.29923873 | AI8: 2.429731513 | AJ8: 0.3359822284 | AK8: =($C8-$G8)*(LOGNORMDIST(440,$H8,$I8)-LOGNORMDIST(400,$H8,$I8)) -> 0.04299908987 | AL8: 0.005294135749 | AM8: 0.0006429937301 | AN8: 7.831512816e-05 | AO8: 9.670488632e-06 | AP8: 1.219418455e-06 | AQ8: 1.577675768e-07 | AR8: 2.100686292e-08 | AS8: 2.884026351e-09 | AT8: 4.086730954e-10 | AU8: 7.049916206e-11 | AV8: . | AW8: 0.01161320624 | AX8: 14.46912029 | AY8: 217.7926608 | AZ8: 421.4405801 | BA8: 252.1967789 | BB8: 75.97526858 | BC8: 15.29923873 | BD8: 2.429731513 | BE8: 0.3359822284 | BF8: 0.04299908987 | BG8: 0.005294135749 | BH8: 0.0006429937301 | BI8: 7.831512816e-05 | BJ8: 9.670488632e-06 | BK8: 1.219418455e-06 | BL8: 1.577675768e-07 | BM8: 2.100686292e-08 | BN8: 2.884026351e-09 | BO8: 4.086730954e-10 | BP8: 7.049916206e-11 | BQ8: . | BR8: 0.1324852564 | BS8: 54.66996577 | BT8: 386.6288422 | BU8: 394.8790304 | BV8: 134.9748129 | BW8: 25.01610881 | BX8: 3.298554189 | BY8: 0.3606971986 | BZ8: 0.0357607976 | CA8: 0.003391335692 | CB8: 0.0003179443147 | CC8: 3.008230198e-05 | CD8: 2.91005342e-06 | CE8: 2.901788809e-07 | CF8: 2.997679882e-08 | CG8: 3.21764837e-09 | CH8: 3.593791931e-10 | CI8: 4.185540803e-11 | CJ8: 4.996003611e-12 | CK8: 7.771561172e-13 | CL8: . | CM8: 0.1324852564 | CN8: 54.66996577 | CO8: 386.6288422 | CP8: 394.8790304 | CQ8: 134.9748129 | CR8: 25.01610881 | CS8: 3.298554189 | CT8: 0.3606971986 | CU8: 0.0357607976 | CV8: 0.003391335692 | CW8: 0.0003179443147 | CX8: 3.008230198e-05 | CY8: 2.91005342e-06 | CZ8: 2.901788809e-07 | DA8: 2.997679882e-08 | DB8: 3.21764837e-09 | DC8: 3.593791931e-10 | DD8: 4.185540803e-11 | DE8: 4.996003611e-12 | DF8: 7.771561172e-13 | DG8: .
B9: M30-34 | C9: 1000 | D9: 188.6 | E9: 37.72 | F9: 0 | G9: 0 | H9: 5.220018014 | I9: 0.1980422004 | J9: 168 | K9: 33.6 | L9: 0 | M9: 0 | N9: 5.104353623 | O9: 0.1980422004 | P9: 188.6 | Q9: 37.72 | R9: 0 | S9: 0 | T9: 5.220018014 | U9: 0.1980422004 | V9: 168 | W9: 33.6 | X9: 0 | Y9: 0 | Z9: 5.104353623 | AA9: 0.1980422004 | AB9: 0.01161320624 | AC9: 14.46912029 | AD9: 217.7926608 | AE9: 421.4405801 | AF9: 252.1967789 | AG9: 75.97526858 | AH9: 15.29923873 | AI9: 2.429731513 | AJ9: 0.3359822284 | AK9: 0.04299908987 | AL9: 0.005294135749 | AM9: 0.0006429937301 | AN9: 7.831512816e-05 | AO9: 9.670488632e-06 | AP9: 1.219418455e-06 | AQ9: 1.577675768e-07 | AR9: 2.100686292e-08 | AS9: 2.884026351e-09 | AT9: 4.086730954e-10 | AU9: 7.049916206e-11 | AV9: . | AW9: 0.01161320624 | AX9: 14.46912029 | AY9: 217.7926608 | AZ9: 421.4405801 | BA9: 252.1967789 | BB9: 75.97526858 | BC9: 15.29923873 | BD9: 2.429731513 | BE9: 0.3359822284 | BF9: 0.04299908987 | BG9: 0.005294135749 | BH9: 0.0006429937301 | BI9: 7.831512816e-05 | BJ9: 9.670488632e-06 | BK9: 1.219418455e-06 | BL9: 1.577675768e-07 | BM9: 2.100686292e-08 | BN9: 2.884026351e-09 | BO9: 4.086730954e-10 | BP9: 7.049916206e-11 | BQ9: . | BR9: 0.1324852564 | BS9: 54.66996577 | BT9: 386.6288422 | BU9: 394.8790304 | BV9: 134.9748129 | BW9: 25.01610881 | BX9: 3.298554189 | BY9: 0.3606971986 | BZ9: 0.0357607976 | CA9: 0.003391335692 | CB9: 0.0003179443147 | CC9: 3.008230198e-05 | CD9: 2.91005342e-06 | CE9: 2.901788809e-07 | CF9: 2.997679882e-08 | CG9: 3.21764837e-09 | CH9: 3.593791931e-10 | CI9: 4.185540803e-11 | CJ9: 4.996003611e-12 | CK9: 7.771561172e-13 | CL9: . | CM9: 0.1324852564 | CN9: 54.66996577 | CO9: 386.6288422 | CP9: 394.8790304 | CQ9: 134.9748129 | CR9: 25.01610881 | CS9: 3.298554189 | CT9: 0.3606971986 | CU9: 0.0357607976 | CV9: 0.003391335692 | CW9: 0.0003179443147 | CX9: 3.008230198e-05 | CY9: 2.91005342e-06 | CZ9: 2.901788809e-07 | DA9: 2.997679882e-08 | DB9: 3.21764837e-09 | DC9: 3.593791931e-10 | DD9: 4.185540803e-11 | DE9: 4.996003611e-12 | DF9: 7.771561172e-13 | DG9: .
B10: M35-39 | C10: 1000 | D10: 188.6 | E10: 37.72 | F10: 0 | G10: 0 | H10: 5.220018014 | I10: 0.1980422004 | J10: 168 | K10: 33.6 | L10: 0 | M10: 0 | N10: 5.104353623 | O10: 0.1980422004 | P10: 188.6 | Q10: 37.72 | R10: 0 | S10: 0 | T10: 5.220018014 | U10: 0.1980422004 | V10: 168 | W10: 33.6 | X10: 0 | Y10: 0 | Z10: 5.104353623 | AA10: 0.1980422004 | AB10: 0.01161320624 | AC10: 14.46912029 | AD10: 217.7926608 | AE10: 421.4405801 | AF10: 252.1967789 | AG10: 75.97526858 | AH10: 15.29923873 | AI10: 2.429731513 | AJ10: 0.3359822284 | AK10: 0.04299908987 | AL10: 0.005294135749 | AM10: 0.0006429937301 | AN10: 7.831512816e-05 | AO10: 9.670488632e-06 | AP10: 1.219418455e-06 | AQ10: 1.577675768e-07 | AR10: 2.100686292e-08 | AS10: 2.884026351e-09 | AT10: 4.086730954e-10 | AU10: 7.049916206e-11 | AV10: . | AW10: 0.01161320624 | AX10: 14.46912029 | AY10: 217.7926608 | AZ10: 421.4405801 | BA10: 252.1967789 | BB10: 75.97526858 | BC10: 15.29923873 | BD10: 2.429731513 | BE10: 0.3359822284 | BF10: 0.04299908987 | BG10: 0.005294135749 | BH10: 0.0006429937301 | BI10: 7.831512816e-05 | BJ10: 9.670488632e-06 | BK10: 1.219418455e-06 | BL10: 1.577675768e-07 | BM10: 2.100686292e-08 | BN10: 2.884026351e-09 | BO10: 4.086730954e-10 | BP10: 7.049916206e-11 | BQ10: . | BR10: 0.1324852564 | BS10: 54.66996577 | BT10: 386.6288422 | BU10: 394.8790304 | BV10: 134.9748129 | BW10: 25.01610881 | BX10: 3.298554189 | BY10: 0.3606971986 | BZ10: 0.0357607976 | CA10: 0.003391335692 | CB10: 0.0003179443147 | CC10: 3.008230198e-05 | CD10: 2.91005342e-06 | CE10: 2.901788809e-07 | CF10: 2.997679882e-08 | CG10: 3.21764837e-09 | CH10: 3.593791931e-10 | CI10: 4.185540803e-11 | CJ10: 4.996003611e-12 | CK10: 7.771561172e-13 | CL10: . | CM10: 0.1324852564 | CN10: 54.66996577 | CO10: 386.6288422 | CP10: 394.8790304 | CQ10: 134.9748129 | CR10: 25.01610881 | CS10: 3.298554189 | CT10: 0.3606971986 | CU10: 0.0357607976 | CV10: 0.003391335692 | CW10: 0.0003179443147 | CX10: 3.008230198e-05 | CY10: 2.91005342e-06 | CZ10: 2.901788809e-07 | DA10: 2.997679882e-08 | DB10: 3.21764837e-09 | DC10: 3.593791931e-10 | DD10: 4.185540803e-11 | DE10: 4.996003611e-12 | DF10: 7.771561172e-13 | DG10: .
B11: M40-44 | C11: 1000 | D11: 188.6 | E11: 37.72 | F11: 0 | G11: 0 | H11: 5.220018014 | I11: 0.1980422004 | J11: 168 | K11: 33.6 | L11: 0 | M11: 0 | N11: 5.104353623 | O11: 0.1980422004 | P11: 188.6 | Q11: 37.72 | R11: 0 | S11: 0 | T11: 5.220018014 | U11: 0.1980422004 | V11: 168 | W11: 33.6 | X11: 0 | Y11: 0 | Z11: 5.104353623 | AA11: 0.1980422004 | AB11: 0.01161320624 | AC11: 14.46912029 | AD11: 217.7926608 | AE11: 421.4405801 | AF11: 252.1967789 | AG11: 75.97526858 | AH11: 15.29923873 | AI11: 2.429731513 | AJ11: 0.3359822284 | AK11: 0.04299908987 | AL11: 0.005294135749 | AM11: 0.0006429937301 | AN11: 7.831512816e-05 | AO11: 9.670488632e-06 | AP11: 1.219418455e-06 | AQ11: 1.577675768e-07 | AR11: 2.100686292e-08 | AS11: 2.884026351e-09 | AT11: 4.086730954e-10 | AU11: 7.049916206e-11 | AV11: . | AW11: 0.01161320624 | AX11: 14.46912029 | AY11: 217.7926608 | AZ11: 421.4405801 | BA11: 252.1967789 | BB11: 75.97526858 | BC11: 15.29923873 | BD11: 2.429731513 | BE11: 0.3359822284 | BF11: 0.04299908987 | BG11: 0.005294135749 | BH11: 0.0006429937301 | BI11: 7.831512816e-05 | BJ11: 9.670488632e-06 | BK11: 1.219418455e-06 | BL11: 1.577675768e-07 | BM11: 2.100686292e-08 | BN11: 2.884026351e-09 | BO11: 4.086730954e-10 | BP11: 7.049916206e-11 | BQ11: . | BR11: 0.1324852564 | BS11: 54.66996577 | BT11: 386.6288422 | BU11: 394.8790304 | BV11: 134.9748129 | BW11: 25.01610881 | BX11: 3.298554189 | BY11: 0.3606971986 | BZ11: 0.0357607976 | CA11: 0.003391335692 | CB11: 0.0003179443147 | CC11: 3.008230198e-05 | CD11: 2.91005342e-06 | CE11: 2.901788809e-07 | CF11: 2.997679882e-08 | CG11: 3.21764837e-09 | CH11: 3.593791931e-10 | CI11: 4.185540803e-11 | CJ11: 4.996003611e-12 | CK11: 7.771561172e-13 | CL11: . | CM11: 0.1324852564 | CN11: 54.66996577 | CO11: 386.6288422 | CP11: 394.8790304 | CQ11: 134.9748129 | CR11: 25.01610881 | CS11: 3.298554189 | CT11: 0.3606971986 | CU11: 0.0357607976 | CV11: 0.003391335692 | CW11: 0.0003179443147 | CX11: 3.008230198e-05 | CY11: 2.91005342e-06 | CZ11: 2.901788809e-07 | DA11: 2.997679882e-08 | DB11: 3.21764837e-09 | DC11: 3.593791931e-10 | DD11: 4.185540803e-11 | DE11: 4.996003611e-12 | DF11: 7.771561172e-13 | DG11: .
B12: M45-49 | C12: 1000 | D12: 188.6 | E12: 37.72 | F12: 0 | G12: 0 | H12: 5.220018014 | I12: 0.1980422004 | J12: 168 | K12: 33.6 | L12: 0 | M12: 0 | N12: 5.104353623 | O12: 0.1980422004 | P12: 188.6 | Q12: 37.72 | R12: 0 | S12: 0 | T12: 5.220018014 | U12: 0.1980422004 | V12: 168 | W12: 33.6 | X12: 0 | Y12: 0 | Z12: 5.104353623 | AA12: 0.1980422004 | AB12: 0.01161320624 | AC12: 14.46912029 | AD12: 217.7926608 | AE12: 421.4405801 | AF12: 252.1967789 | AG12: 75.97526858 | AH12: 15.29923873 | AI12: 2.429731513 | AJ12: 0.3359822284 | AK12: 0.04299908987 | AL12: 0.005294135749 | AM12: 0.0006429937301 | AN12: 7.831512816e-05 | AO12: 9.670488632e-06 | AP12: 1.219418455e-06 | AQ12: 1.577675768e-07 | AR12: 2.100686292e-08 | AS12: 2.884026351e-09 | AT12: 4.086730954e-10 | AU12: 7.049916206e-11 | AV12: . | AW12: 0.01161320624 | AX12: 14.46912029 | AY12: 217.7926608 | AZ12: 421.4405801 | BA12: 252.1967789 | BB12: 75.97526858 | BC12: 15.29923873 | BD12: 2.429731513 | BE12: 0.3359822284 | BF12: 0.04299908987 | BG12: 0.005294135749 | BH12: 0.0006429937301 | BI12: 7.831512816e-05 | BJ12: 9.670488632e-06 | BK12: 1.219418455e-06 | BL12: 1.577675768e-07 | BM12: 2.100686292e-08 | BN12: 2.884026351e-09 | BO12: 4.086730954e-10 | BP12: 7.049916206e-11 | BQ12: . | BR12: 0.1324852564 | BS12: 54.66996577 | BT12: 386.6288422 | BU12: 394.8790304 | BV12: 134.9748129 | BW12: 25.01610881 | BX12: 3.298554189 | BY12: 0.3606971986 | BZ12: 0.0357607976 | CA12: 0.003391335692 | CB12: 0.0003179443147 | CC12: 3.008230198e-05 | CD12: 2.91005342e-06 | CE12: 2.901788809e-07 | CF12: 2.997679882e-08 | CG12: 3.21764837e-09 | CH12: 3.593791931e-10 | CI12: 4.185540803e-11 | CJ12: 4.996003611e-12 | CK12: 7.771561172e-13 | CL12: . | CM12: 0.1324852564 | CN12: 54.66996577 | CO12: 386.6288422 | CP12: 394.8790304 | CQ12: 134.9748129 | CR12: 25.01610881 | CS12: 3.298554189 | CT12: 0.3606971986 | CU12: 0.0357607976 | CV12: 0.003391335692 | CW12: 0.0003179443147 | CX12: 3.008230198e-05 | CY12: 2.91005342e-06 | CZ12: 2.901788809e-07 | DA12: 2.997679882e-08 | DB12: 3.21764837e-09 | DC12: 3.593791931e-10 | DD12: 4.185540803e-11 | DE12: 4.996003611e-12 | DF12: 7.771561172e-13 | DG12: .
B13: M50-54 | C13: 1000 | D13: 188.6 | E13: 37.72 | F13: 0 | G13: 0 | H13: 5.220018014 | I13: 0.1980422004 | J13: 168 | K13: 33.6 | L13: 0 | M13: 0 | N13: 5.104353623 | O13: 0.1980422004 | P13: 188.6 | Q13: 37.72 | R13: 0 | S13: 0 | T13: 5.220018014 | U13: 0.1980422004 | V13: 168 | W13: 33.6 | X13: 0 | Y13: 0 | Z13: 5.104353623 | AA13: 0.1980422004 | AB13: 0.01161320624 | AC13: 14.46912029 | AD13: 217.7926608 | AE13: 421.4405801 | AF13: 252.1967789 | AG13: 75.97526858 | AH13: 15.29923873 | AI13: 2.429731513 | AJ13: 0.3359822284 | AK13: 0.04299908987 | AL13: 0.005294135749 | AM13: 0.0006429937301 | AN13: 7.831512816e-05 | AO13: 9.670488632e-06 | AP13: 1.219418455e-06 | AQ13: 1.577675768e-07 | AR13: 2.100686292e-08 | AS13: 2.884026351e-09 | AT13: 4.086730954e-10 | AU13: 7.049916206e-11 | AV13: . | AW13: 0.01161320624 | AX13: 14.46912029 | AY13: 217.7926608 | AZ13: 421.4405801 | BA13: 252.1967789 | BB13: 75.97526858 | BC13: 15.29923873 | BD13: 2.429731513 | BE13: 0.3359822284 | BF13: 0.04299908987 | BG13: 0.005294135749 | BH13: 0.0006429937301 | BI13: 7.831512816e-05 | BJ13: 9.670488632e-06 | BK13: 1.219418455e-06 | BL13: 1.577675768e-07 | BM13: 2.100686292e-08 | BN13: 2.884026351e-09 | BO13: 4.086730954e-10 | BP13: 7.049916206e-11 | BQ13: . | BR13: 0.1324852564 | BS13: 54.66996577 | BT13: 386.6288422 | BU13: 394.8790304 | BV13: 134.9748129 | BW13: 25.01610881 | BX13: 3.298554189 | BY13: 0.3606971986 | BZ13: 0.0357607976 | CA13: 0.003391335692 | CB13: 0.0003179443147 | CC13: 3.008230198e-05 | CD13: 2.91005342e-06 | CE13: 2.901788809e-07 | CF13: 2.997679882e-08 | CG13: 3.21764837e-09 | CH13: 3.593791931e-10 | CI13: 4.185540803e-11 | CJ13: 4.996003611e-12 | CK13: 7.771561172e-13 | CL13: . | CM13: 0.1324852564 | CN13: 54.66996577 | CO13: 386.6288422 | CP13: 394.8790304 | CQ13: 134.9748129 | CR13: 25.01610881 | CS13: 3.298554189 | CT13: 0.3606971986 | CU13: 0.0357607976 | CV13: 0.003391335692 | CW13: 0.0003179443147 | CX13: 3.008230198e-05 | CY13: 2.91005342e-06 | CZ13: 2.901788809e-07 | DA13: 2.997679882e-08 | DB13: 3.21764837e-09 | DC13: 3.593791931e-10 | DD13: 4.185540803e-11 | DE13: 4.996003611e-12 | DF13: 7.771561172e-13 | DG13: .
B14: M55-59 | C14: 1000 | D14: 188.6 | E14: 37.72 | F14: 0 | G14: 0 | H14: 5.220018014 | I14: 0.1980422004 | J14: 168 | K14: 33.6 | L14: 0 | M14: 0 | N14: 5.104353623 | O14: 0.1980422004 | P14: 188.6 | Q14: 37.72 | R14: 0 | S14: 0 | T14: 5.220018014 | U14: 0.1980422004 | V14: 168 | W14: 33.6 | X14: 0 | Y14: 0 | Z14: 5.104353623 | AA14: 0.1980422004 | AB14: 0.01161320624 | AC14: 14.46912029 | AD14: 217.7926608 | AE14: 421.4405801 | AF14: 252.1967789 | AG14: 75.97526858 | AH14: 15.29923873 | AI14: 2.429731513 | AJ14: 0.3359822284 | AK14: 0.04299908987 | AL14: 0.005294135749 | AM14: 0.0006429937301 | AN14: 7.831512816e-05 | AO14: 9.670488632e-06 | AP14: 1.219418455e-06 | AQ14: 1.577675768e-07 | AR14: 2.100686292e-08 | AS14: 2.884026351e-09 | AT14: 4.086730954e-10 | AU14: 7.049916206e-11 | AV14: . | AW14: 0.01161320624 | AX14: 14.46912029 | AY14: 217.7926608 | AZ14: 421.4405801 | BA14: 252.1967789 | BB14: 75.97526858 | BC14: 15.29923873 | BD14: 2.429731513 | BE14: 0.3359822284 | BF14: 0.04299908987 | BG14: 0.005294135749 | BH14: 0.0006429937301 | BI14: 7.831512816e-05 | BJ14: 9.670488632e-06 | BK14: 1.219418455e-06 | BL14: 1.577675768e-07 | BM14: 2.100686292e-08 | BN14: 2.884026351e-09 | BO14: 4.086730954e-10 | BP14: 7.049916206e-11 | BQ14: . | BR14: 0.1324852564 | BS14: 54.66996577 | BT14: 386.6288422 | BU14: 394.8790304 | BV14: 134.9748129 | BW14: 25.01610881 | BX14: 3.298554189 | BY14: 0.3606971986 | BZ14: 0.0357607976 | CA14: 0.003391335692 | CB14: 0.0003179443147 | CC14: 3.008230198e-05 | CD14: 2.91005342e-06 | CE14: 2.901788809e-07 | CF14: 2.997679882e-08 | CG14: 3.21764837e-09 | CH14: 3.593791931e-10 | CI14: 4.185540803e-11 | CJ14: 4.996003611e-12 | CK14: 7.771561172e-13 | CL14: . | CM14: 0.1324852564 | CN14: 54.66996577 | CO14: 386.6288422 | CP14: 394.8790304 | CQ14: 134.9748129 | CR14: 25.01610881 | CS14: 3.298554189 | CT14: 0.3606971986 | CU14: 0.0357607976 | CV14: 0.003391335692 | CW14: 0.0003179443147 | CX14: 3.008230198e-05 | CY14: 2.91005342e-06 | CZ14: 2.901788809e-07 | DA14: 2.997679882e-08 | DB14: 3.21764837e-09 | DC14: 3.593791931e-10 | DD14: 4.185540803e-11 | DE14: 4.996003611e-12 | DF14: 7.771561172e-13 | DG14: .
B15: M60-64 | C15: 1000 | D15: 188.6 | E15: 37.72 | F15: 0 | G15: 0 | H15: 5.220018014 | I15: 0.1980422004 | J15: 168 | K15: 33.6 | L15: 0 | M15: 0 | N15: 5.104353623 | O15: 0.1980422004 | P15: 188.6 | Q15: 37.72 | R15: 0 | S15: 0 | T15: 5.220018014 | U15: 0.1980422004 | V15: 168 | W15: 33.6 | X15: 0 | Y15: 0 | Z15: 5.104353623 | AA15: 0.1980422004 | AB15: 0.01161320624 | AC15: 14.46912029 | AD15: 217.7926608 | AE15: 421.4405801 | AF15: 252.1967789 | AG15: 75.97526858 | AH15: 15.29923873 | AI15: 2.429731513 | AJ15: 0.3359822284 | AK15: 0.04299908987 | AL15: 0.005294135749 | AM15: 0.0006429937301 | AN15: 7.831512816e-05 | AO15: 9.670488632e-06 | AP15: 1.219418455e-06 | AQ15: 1.577675768e-07 | AR15: 2.100686292e-08 | AS15: 2.884026351e-09 | AT15: 4.086730954e-10 | AU15: 7.049916206e-11 | AV15: . | AW15: 0.01161320624 | AX15: 14.46912029 | AY15: 217.7926608 | AZ15: 421.4405801 | BA15: 252.1967789 | BB15: 75.97526858 | BC15: 15.29923873 | BD15: 2.429731513 | BE15: 0.3359822284 | BF15: 0.04299908987 | BG15: 0.005294135749 | BH15: 0.0006429937301 | BI15: 7.831512816e-05 | BJ15: 9.670488632e-06 | BK15: 1.219418455e-06 | BL15: 1.577675768e-07 | BM15: 2.100686292e-08 | BN15: 2.884026351e-09 | BO15: 4.086730954e-10 | BP15: 7.049916206e-11 | BQ15: . | BR15: 0.1324852564 | BS15: 54.66996577 | BT15: 386.6288422 | BU15: 394.8790304 | BV15: 134.9748129 | BW15: 25.01610881 | BX15: 3.298554189 | BY15: 0.3606971986 | BZ15: 0.0357607976 | CA15: 0.003391335692 | CB15: 0.0003179443147 | CC15: 3.008230198e-05 | CD15: 2.91005342e-06 | CE15: 2.901788809e-07 | CF15: 2.997679882e-08 | CG15: 3.21764837e-09 | CH15: 3.593791931e-10 | CI15: 4.185540803e-11 | CJ15: 4.996003611e-12 | CK15: 7.771561172e-13 | CL15: . | CM15: 0.1324852564 | CN15: 54.66996577 | CO15: 386.6288422 | CP15: 394.8790304 | CQ15: 134.9748129 | CR15: 25.01610881 | CS15: 3.298554189 | CT15: 0.3606971986 | CU15: 0.0357607976 | CV15: 0.003391335692 | CW15: 0.0003179443147 | CX15: 3.008230198e-05 | CY15: 2.91005342e-06 | CZ15: 2.901788809e-07 | DA15: 2.997679882e-08 | DB15: 3.21764837e-09 | DC15: 3.593791931e-10 | DD15: 4.185540803e-11 | DE15: 4.996003611e-12 | DF15: 7.771561172e-13 | DG15: .
B16: M65-69 | C16: 1000 | D16: 188.6 | E16: 37.72 | F16: 0 | G16: 0 | H16: 5.220018014 | I16: 0.1980422004 | J16: 168 | K16: 33.6 | L16: 0 | M16: 0 | N16: 5.104353623 | O16: 0.1980422004 | P16: 188.6 | Q16: 37.72 | R16: 0 | S16: 0 | T16: 5.220018014 | U16: 0.1980422004 | V16: 168 | W16: 33.6 | X16: 0 | Y16: 0 | Z16: 5.104353623 | AA16: 0.1980422004 | AB16: 0.01161320624 | AC16: 14.46912029 | AD16: 217.7926608 | AE16: 421.4405801 | AF16: 252.1967789 | AG16: 75.97526858 | AH16: 15.29923873 | AI16: 2.429731513 | AJ16: 0.3359822284 | AK16: 0.04299908987 | AL16: 0.005294135749 | AM16: 0.0006429937301 | AN16: 7.831512816e-05 | AO16: 9.670488632e-06 | AP16: 1.219418455e-06 | AQ16: 1.577675768e-07 | AR16: 2.100686292e-08 | AS16: 2.884026351e-09 | AT16: 4.086730954e-10 | AU16: 7.049916206e-11 | AV16: . | AW16: 0.01161320624 | AX16: 14.46912029 | AY16: 217.7926608 | AZ16: 421.4405801 | BA16: 252.1967789 | BB16: 75.97526858 | BC16: 15.29923873 | BD16: 2.429731513 | BE16: 0.3359822284 | BF16: 0.04299908987 | BG16: 0.005294135749 | BH16: 0.0006429937301 | BI16: 7.831512816e-05 | BJ16: 9.670488632e-06 | BK16: 1.219418455e-06 | BL16: 1.577675768e-07 | BM16: 2.100686292e-08 | BN16: 2.884026351e-09 | BO16: 4.086730954e-10 | BP16: 7.049916206e-11 | BQ16: . | BR16: 0.1324852564 | BS16: 54.66996577 | BT16: 386.6288422 | BU16: 394.8790304 | BV16: 134.9748129 | BW16: 25.01610881 | BX16: 3.298554189 | BY16: 0.3606971986 | BZ16: 0.0357607976 | CA16: 0.003391335692 | CB16: 0.0003179443147 | CC16: 3.008230198e-05 | CD16: 2.91005342e-06 | CE16: 2.901788809e-07 | CF16: 2.997679882e-08 | CG16: 3.21764837e-09 | CH16: 3.593791931e-10 | CI16: 4.185540803e-11 | CJ16: 4.996003611e-12 | CK16: 7.771561172e-13 | CL16: . | CM16: 0.1324852564 | CN16: 54.66996577 | CO16: 386.6288422 | CP16: 394.8790304 | CQ16: 134.9748129 | CR16: 25.01610881 | CS16: 3.298554189 | CT16: 0.3606971986 | CU16: 0.0357607976 | CV16: 0.003391335692 | CW16: 0.0003179443147 | CX16: 3.008230198e-05 | CY16: 2.91005342e-06 | CZ16: 2.901788809e-07 | DA16: 2.997679882e-08 | DB16: 3.21764837e-09 | DC16: 3.593791931e-10 | DD16: 4.185540803e-11 | DE16: 4.996003611e-12 | DF16: 7.771561172e-13 | DG16: .
B17: M70-74 | C17: 1000 | D17: 188.6 | E17: 37.72 | F17: 0 | G17: 0 | H17: 5.220018014 | I17: 0.1980422004 | J17: 168 | K17: 33.6 | L17: 0 | M17: 0 | N17: 5.104353623 | O17: 0.1980422004 | P17: 188.6 | Q17: 37.72 | R17: 0 | S17: 0 | T17: 5.220018014 | U17: 0.1980422004 | V17: 168 | W17: 33.6 | X17: 0 | Y17: 0 | Z17: 5.104353623 | AA17: 0.1980422004 | AB17: 0.01161320624 | AC17: 14.46912029 | AD17: 217.7926608 | AE17: 421.4405801 | AF17: 252.1967789 | AG17: 75.97526858 | AH17: 15.29923873 | AI17: 2.429731513 | AJ17: 0.3359822284 | AK17: 0.04299908987 | AL17: 0.005294135749 | AM17: 0.0006429937301 | AN17: 7.831512816e-05 | AO17: 9.670488632e-06 | AP17: 1.219418455e-06 | AQ17: 1.577675768e-07 | AR17: 2.100686292e-08 | AS17: 2.884026351e-09 | AT17: 4.086730954e-10 | AU17: 7.049916206e-11 | AV17: . | AW17: 0.01161320624 | AX17: 14.46912029 | AY17: 217.7926608 | AZ17: 421.4405801 | BA17: 252.1967789 | BB17: 75.97526858 | BC17: 15.29923873 | BD17: 2.429731513 | BE17: 0.3359822284 | BF17: 0.04299908987 | BG17: 0.005294135749 | BH17: 0.0006429937301 | BI17: 7.831512816e-05 | BJ17: 9.670488632e-06 | BK17: 1.219418455e-06 | BL17: 1.577675768e-07 | BM17: 2.100686292e-08 | BN17: 2.884026351e-09 | BO17: 4.086730954e-10 | BP17: 7.049916206e-11 | BQ17: . | BR17: 0.1324852564 | BS17: 54.66996577 | BT17: 386.6288422 | BU17: 394.8790304 | BV17: 134.9748129 | BW17: 25.01610881 | BX17: 3.298554189 | BY17: 0.3606971986 | BZ17: 0.0357607976 | CA17: 0.003391335692 | CB17: 0.0003179443147 | CC17: 3.008230198e-05 | CD17: 2.91005342e-06 | CE17: 2.901788809e-07 | CF17: 2.997679882e-08 | CG17: 3.21764837e-09 | CH17: 3.593791931e-10 | CI17: 4.185540803e-11 | CJ17: 4.996003611e-12 | CK17: 7.771561172e-13 | CL17: . | CM17: 0.1324852564 | CN17: 54.66996577 | CO17: 386.6288422 | CP17: 394.8790304 | CQ17: 134.9748129 | CR17: 25.01610881 | CS17: 3.298554189 | CT17: 0.3606971986 | CU17: 0.0357607976 | CV17: 0.003391335692 | CW17: 0.0003179443147 | CX17: 3.008230198e-05 | CY17: 2.91005342e-06 | CZ17: 2.901788809e-07 | DA17: 2.997679882e-08 | DB17: 3.21764837e-09 | DC17: 3.593791931e-10 | DD17: 4.185540803e-11 | DE17: 4.996003611e-12 | DF17: 7.771561172e-13 | DG17: .
B18: M75-79 | C18: 1000 | D18: 188.6 | E18: 37.72 | F18: 0 | G18: 0 | H18: 5.220018014 | I18: 0.1980422004 | J18: 168 | K18: 33.6 | L18: 0 | M18: 0 | N18: 5.104353623 | O18: 0.1980422004 | P18: 188.6 | Q18: 37.72 | R18: 0 | S18: 0 | T18: 5.220018014 | U18: 0.1980422004 | V18: 168 | W18: 33.6 | X18: 0 | Y18: 0 | Z18: 5.104353623 | AA18: 0.1980422004 | AB18: 0.01161320624 | AC18: 14.46912029 | AD18: 217.7926608 | AE18: 421.4405801 | AF18: 252.1967789 | AG18: 75.97526858 | AH18: 15.29923873 | AI18: 2.429731513 | AJ18: 0.3359822284 | AK18: 0.04299908987 | AL18: 0.005294135749 | AM18: 0.0006429937301 | AN18: 7.831512816e-05 | AO18: 9.670488632e-06 | AP18: 1.219418455e-06 | AQ18: 1.577675768e-07 | AR18: 2.100686292e-08 | AS18: 2.884026351e-09 | AT18: 4.086730954e-10 | AU18: 7.049916206e-11 | AV18: . | AW18: 0.01161320624 | AX18: 14.46912029 | AY18: 217.7926608 | AZ18: 421.4405801 | BA18: 252.1967789 | BB18: 75.97526858 | BC18: 15.29923873 | BD18: 2.429731513 | BE18: 0.3359822284 | BF18: 0.04299908987 | BG18: 0.005294135749 | BH18: 0.0006429937301 | BI18: 7.831512816e-05 | BJ18: 9.670488632e-06 | BK18: 1.219418455e-06 | BL18: 1.577675768e-07 | BM18: 2.100686292e-08 | BN18: 2.884026351e-09 | BO18: 4.086730954e-10 | BP18: 7.049916206e-11 | BQ18: . | BR18: 0.1324852564 | BS18: 54.66996577 | BT18: 386.6288422 | BU18: 394.8790304 | BV18: 134.9748129 | BW18: 25.01610881 | BX18: 3.298554189 | BY18: 0.3606971986 | BZ18: 0.0357607976 | CA18: 0.003391335692 | CB18: 0.0003179443147 | CC18: 3.008230198e-05 | CD18: 2.91005342e-06 | CE18: 2.901788809e-07 | CF18: 2.997679882e-08 | CG18: 3.21764837e-09 | CH18: 3.593791931e-10 | CI18: 4.185540803e-11 | CJ18: 4.996003611e-12 | CK18: 7.771561172e-13 | CL18: . | CM18: 0.1324852564 | CN18: 54.66996577 | CO18: 386.6288422 | CP18: 394.8790304 | CQ18: 134.9748129 | CR18: 25.01610881 | CS18: 3.298554189 | CT18: 0.3606971986 | CU18: 0.0357607976 | CV18: 0.003391335692 | CW18: 0.0003179443147 | CX18: 3.008230198e-05 | CY18: 2.91005342e-06 | CZ18: 2.901788809e-07 | DA18: 2.997679882e-08 | DB18: 3.21764837e-09 | DC18: 3.593791931e-10 | DD18: 4.185540803e-11 | DE18: 4.996003611e-12 | DF18: 7.771561172e-13 | DG18: .
B19: M80-84 | C19: 1000 | D19: 188.6 | E19: 37.72 | F19: 0 | G19: 0 | H19: 5.220018014 | I19: 0.1980422004 | J19: 168 | K19: 33.6 | L19: 0 | M19: 0 | N19: 5.104353623 | O19: 0.1980422004 | P19: 188.6 | Q19: 37.72 | R19: 0 | S19: 0 | T19: 5.220018014 | U19: 0.1980422004 | V19: 168 | W19: 33.6 | X19: 0 | Y19: 0 | Z19: 5.104353623 | AA19: 0.1980422004 | AB19: 0.01161320624 | AC19: 14.46912029 | AD19: 217.7926608 | AE19: 421.4405801 | AF19: 252.1967789 | AG19: 75.97526858 | AH19: 15.29923873 | AI19: 2.429731513 | AJ19: 0.3359822284 | AK19: 0.04299908987 | AL19: 0.005294135749 | AM19: 0.0006429937301 | AN19: 7.831512816e-05 | AO19: 9.670488632e-06 | AP19: 1.219418455e-06 | AQ19: 1.577675768e-07 | AR19: 2.100686292e-08 | AS19: 2.884026351e-09 | AT19: 4.086730954e-10 | AU19: 7.049916206e-11 | AV19: . | AW19: 0.01161320624 | AX19: 14.46912029 | AY19: 217.7926608 | AZ19: 421.4405801 | BA19: 252.1967789 | BB19: 75.97526858 | BC19: 15.29923873 | BD19: 2.429731513 | BE19: 0.3359822284 | BF19: 0.04299908987 | BG19: 0.005294135749 | BH19: 0.0006429937301 | BI19: 7.831512816e-05 | BJ19: 9.670488632e-06 | BK19: 1.219418455e-06 | BL19: 1.577675768e-07 | BM19: 2.100686292e-08 | BN19: 2.884026351e-09 | BO19: 4.086730954e-10 | BP19: 7.049916206e-11 | BQ19: . | BR19: 0.1324852564 | BS19: 54.66996577 | BT19: 386.6288422 | BU19: 394.8790304 | BV19: 134.9748129 | BW19: 25.01610881 | BX19: 3.298554189 | BY19: 0.3606971986 | BZ19: 0.0357607976 | CA19: 0.003391335692 | CB19: 0.0003179443147 | CC19: 3.008230198e-05 | CD19: 2.91005342e-06 | CE19: 2.901788809e-07 | CF19: 2.997679882e-08 | CG19: 3.21764837e-09 | CH19: 3.593791931e-10 | CI19: 4.185540803e-11 | CJ19: 4.996003611e-12 | CK19: 7.771561172e-13 | CL19: . | CM19: 0.1324852564 | CN19: 54.66996577 | CO19: 386.6288422 | CP19: 394.8790304 | CQ19: 134.9748129 | CR19: 25.01610881 | CS19: 3.298554189 | CT19: 0.3606971986 | CU19: 0.0357607976 | CV19: 0.003391335692 | CW19: 0.0003179443147 | CX19: 3.008230198e-05 | CY19: 2.91005342e-06 | CZ19: 2.901788809e-07 | DA19: 2.997679882e-08 | DB19: 3.21764837e-09 | DC19: 3.593791931e-10 | DD19: 4.185540803e-11 | DE19: 4.996003611e-12 | DF19: 7.771561172e-13 | DG19: .
B20: M85+ | C20: 1000 | D20: 188.6 | E20: 37.72 | F20: 0 | G20: 0 | H20: 5.220018014 | I20: 0.1980422004 | J20: 168 | K20: 33.6 | L20: 0 | M20: 0 | N20: 5.104353623 | O20: 0.1980422004 | P20: 188.6 | Q20: 37.72 | R20: 0 | S20: 0 | T20: 5.220018014 | U20: 0.1980422004 | V20: 168 | W20: 33.6 | X20: 0 | Y20: 0 | Z20: 5.104353623 | AA20: 0.1980422004 | AB20: 0.01161320624 | AC20: 14.46912029 | AD20: 217.7926608 | AE20: 421.4405801 | AF20: 252.1967789 | AG20: 75.97526858 | AH20: 15.29923873 | AI20: 2.429731513 | AJ20: 0.3359822284 | AK20: 0.04299908987 | AL20: 0.005294135749 | AM20: 0.0006429937301 | AN20: 7.831512816e-05 | AO20: 9.670488632e-06 | AP20: 1.219418455e-06 | AQ20: 1.577675768e-07 | AR20: 2.100686292e-08 | AS20: 2.884026351e-09 | AT20: 4.086730954e-10 | AU20: 7.049916206e-11 | AV20: . | AW20: 0.01161320624 | AX20: 14.46912029 | AY20: 217.7926608 | AZ20: 421.4405801 | BA20: 252.1967789 | BB20: 75.97526858 | BC20: 15.29923873 | BD20: 2.429731513 | BE20: 0.3359822284 | BF20: 0.04299908987 | BG20: 0.005294135749 | BH20: 0.0006429937301 | BI20: 7.831512816e-05 | BJ20: 9.670488632e-06 | BK20: 1.219418455e-06 | BL20: 1.577675768e-07 | BM20: 2.100686292e-08 | BN20: 2.884026351e-09 | BO20: 4.086730954e-10 | BP20: 7.049916206e-11 | BQ20: . | BR20: 0.1324852564 | BS20: 54.66996577 | BT20: 386.6288422 | BU20: 394.8790304 | BV20: 134.9748129 | BW20: 25.01610881 | BX20: 3.298554189 | BY20: 0.3606971986 | BZ20: 0.0357607976 | CA20: 0.003391335692 | CB20: 0.0003179443147 | CC20: 3.008230198e-05 | CD20: 2.91005342e-06 | CE20: 2.901788809e-07 | CF20: 2.997679882e-08 | CG20: 3.21764837e-09 | CH20: 3.593791931e-10 | CI20: 4.185540803e-11 | CJ20: 4.996003611e-12 | CK20: 7.771561172e-13 | CL20: . | CM20: 0.1324852564 | CN20: 54.66996577 | CO20: 386.6288422 | CP20: 394.8790304 | CQ20: 134.9748129 | CR20: 25.01610881 | CS20: 3.298554189 | CT20: 0.3606971986 | CU20: 0.0357607976 | CV20: 0.003391335692 | CW20: 0.0003179443147 | CX20: 3.008230198e-05 | CY20: 2.91005342e-06 | CZ20: 2.901788809e-07 | DA20: 2.997679882e-08 | DB20: 3.21764837e-09 | DC20: 3.593791931e-10 | DD20: 4.185540803e-11 | DE20: 4.996003611e-12 | DF20: 7.771561172e-13 | DG20: .
B23: F15-19 | C23: =b_f_population -> 1000 | D23: =b_f_fruit_mean -> 188.6 | E23: =b_f_fruit_stdv -> 37.72 | F23: =b_f_fruit_pcnonconsumers -> 0 | G23: =b_f_population*b_f_fruit_pcnonconsumers/100 -> 0 | H23: =LN(D23)-(0.5*(I23^2)) -> 5.220018014 | I23: =SQRT((LN(1+((E23^2)/(D23^2))))) -> 0.1980422004 | J23: =b_f_veg_mean -> 168 | K23: =b_f_veg_stdv -> 33.6 | L23: =b_f_veg_pcnonconsumers -> 0 | M23: =b_f_population*b_f_veg_pcnonconsumers/100 -> 0 | N23: =LN(J23)-(0.5*(O23^2)) -> 5.104353623 | O23: =SQRT((LN(1+((K23^2)/(J23^2))))) -> 0.1980422004 | P23: =c_f_fruit_mean -> 188.6 | Q23: =c_f_fruit_stdv -> 37.72 | R23: =c_f_fruit_pcnonconsumers -> 0 | S23: =b_f_population*c_f_fruit_pcnonconsumers/100 -> 0 | T23: =LN(P23)-(0.5*(U23^2)) -> 5.220018014 | U23: =SQRT((LN(1+((Q23^2)/(P23^2))))) -> 0.1980422004 | V23: =c_f_veg_mean -> 168 | W23: =c_f_veg_stdv -> 33.6 | X23: =c_f_veg_pcnonconsumers -> 0 | Y23: =b_f_population*c_f_veg_pcnonconsumers/100 -> 0 | Z23: =LN(V23)-(0.5*(AA23^2)) -> 5.104353623 | AA23: =SQRT((LN(1+((W23^2)/(V23^2))))) -> 0.1980422004 | AB23: =(($C23-$G23)*(LOGNORMDIST(80,$H23,$I23)))+G23 -> 0.01161320624 | AC23: =($C23-$G23)*(LOGNORMDIST(120,$H23,$I23)-LOGNORMDIST(80,$H23,$I23)) -> 14.46912029 | AD23: =($C23-$G23)*(LOGNORMDIST(160,$H23,$I23)-LOGNORMDIST(120,$H23,$I23)) -> 217.7926608 | AE23: =($C23-$G23)*(LOGNORMDIST(200,$H23,$I23)-LOGNORMDIST(160,$H23,$I23)) -> 421.4405801 | AF23: =($C23-$G23)*(LOGNORMDIST(240,$H23,$I23)-LOGNORMDIST(200,$H23,$I23)) -> 252.1967789 | AG23: =($C23-$G23)*(LOGNORMDIST(280,$H23,$I23)-LOGNORMDIST(240,$H23,$I23)) -> 75.97526858 | AH23: =($C23-$G23)*(LOGNORMDIST(320,$H23,$I23)-LOGNORMDIST(280,$H23,$I23)) -> 15.29923873 | AI23: =($C23-$G23)*(LOGNORMDIST(360,$H23,$I23)-LOGNORMDIST(320,$H23,$I23)) -> 2.429731513 | AJ23: =($C23-$G23)*(LOGNORMDIST(400,$H23,$I23)-LOGNORMDIST(360,$H23,$I23)) -> 0.3359822284 | AK23: =($C23-$G23)*(LOGNORMDIST(440,$H23,$I23)-LOGNORMDIST(400,$H23,$I23)) -> 0.04299908987 | AL23: =($C23-$G23)*(LOGNORMDIST(480,$H23,$I23)-LOGNORMDIST(440,$H23,$I23)) -> 0.005294135749 | AM23: =($C23-$G23)*(LOGNORMDIST(520,$H23,$I23)-LOGNORMDIST(480,$H23,$I23)) -> 0.0006429937301 | AN23: =($C23-$G23)*(LOGNORMDIST(560,$H23,$I23)-LOGNORMDIST(520,$H23,$I23)) -> 7.831512816e-05 | AO23: =($C23-$G23)*(LOGNORMDIST(600,$H23,$I23)-LOGNORMDIST(560,$H23,$I23)) -> 9.670488632e-06 | AP23: =($C23-$G23)*(LOGNORMDIST(640,$H23,$I23)-LOGNORMDIST(600,$H23,$I23)) -> 1.219418455e-06 | AQ23: =($C23-$G23)*(LOGNORMDIST(680,$H23,$I23)-LOGNORMDIST(640,$H23,$I23)) -> 1.577675768e-07 | AR23: =($C23-$G23)*(LOGNORMDIST(720,$H23,$I23)-LOGNORMDIST(680,$H23,$I23)) -> 2.100686292e-08 | AS23: =($C23-$G23)*(LOGNORMDIST(760,$H23,$I23)-LOGNORMDIST(720,$H23,$I23)) -> 2.884026351e-09 | AT23: =($C23-$G23)*(LOGNORMDIST(800,$H23,$I23)-LOGNORMDIST(760,$H23,$I23)) -> 4.086730954e-10 | AU23: =($C23-$G23)*(1-LOGNORMDIST(800,$H23,$I23)) -> 7.049916206e-11 | AV23: =IF(SUM(AB23:AU23)=ROUND($C23,0), ".","Error") -> . | AW23: =(($C23-$S23)*(LOGNORMDIST(80,$T23,$U23)))+S23 -> 0.01161320624 | AX23: =($C23-$S23)*(LOGNORMDIST(120,$T23,$U23)-LOGNORMDIST(80,$T23,$U23)) -> 14.46912029 | AY23: =($C23-$S23)*(LOGNORMDIST(160,$T23,$U23)-LOGNORMDIST(120,$T23,$U23)) -> 217.7926608 | AZ23: =($C23-$S23)*(LOGNORMDIST(200,$T23,$U23)-LOGNORMDIST(160,$T23,$U23)) -> 421.4405801 | BA23: =($C23-$S23)*(LOGNORMDIST(240,$T23,$U23)-LOGNORMDIST(200,$T23,$U23)) -> 252.1967789 | BB23: =($C23-$S23)*(LOGNORMDIST(280,$T23,$U23)-LOGNORMDIST(240,$T23,$U23)) -> 75.97526858 | BC23: =($C23-$S23)*(LOGNORMDIST(320,$T23,$U23)-LOGNORMDIST(280,$T23,$U23)) -> 15.29923873 | BD23: =($C23-$S23)*(LOGNORMDIST(360,$T23,$U23)-LOGNORMDIST(320,$T23,$U23)) -> 2.429731513 | BE23: =($C23-$S23)*(LOGNORMDIST(400,$T23,$U23)-LOGNORMDIST(360,$T23,$U23)) -> 0.3359822284 | BF23: =($C23-$S23)*(LOGNORMDIST(440,$T23,$U23)-LOGNORMDIST(400,$T23,$U23)) -> 0.04299908987 | BG23: =($C23-$S23)*(LOGNORMDIST(480,$T23,$U23)-LOGNORMDIST(440,$T23,$U23)) -> 0.005294135749 | BH23: =($C23-$S23)*(LOGNORMDIST(520,$T23,$U23)-LOGNORMDIST(480,$T23,$U23)) -> 0.0006429937301 | BI23: =($C23-$S23)*(LOGNORMDIST(560,$T23,$U23)-LOGNORMDIST(520,$T23,$U23)) -> 7.831512816e-05 | BJ23: =($C23-$S23)*(LOGNORMDIST(600,$T23,$U23)-LOGNORMDIST(560,$T23,$U23)) -> 9.670488632e-06 | BK23: =($C23-$S23)*(LOGNORMDIST(640,$T23,$U23)-LOGNORMDIST(600,$T23,$U23)) -> 1.219418455e-06 | BL23: =($C23-$S23)*(LOGNORMDIST(680,$T23,$U23)-LOGNORMDIST(640,$T23,$U23)) -> 1.577675768e-07 | BM23: =($C23-$S23)*(LOGNORMDIST(720,$T23,$U23)-LOGNORMDIST(680,$T23,$U23)) -> 2.100686292e-08 | BN23: =($C23-$S23)*(LOGNORMDIST(760,$T23,$U23)-LOGNORMDIST(720,$T23,$U23)) -> 2.884026351e-09 | BO23: =($C23-$S23)*(LOGNORMDIST(800,$T23,$U23)-LOGNORMDIST(760,$T23,$U23)) -> 4.086730954e-10 | BP23: =($C23-$S23)*(1-LOGNORMDIST(800,$T23,$U23)) -> 7.049916206e-11 | BQ23: =IF(SUM(AW23:BP23)=ROUND($C23,0), ".","Error") -> . | BR23: =(($C23-$M23)*(LOGNORMDIST(80,$N23,$O23)))+M23 -> 0.1324852564 | BS23: =($C23-$M23)*(LOGNORMDIST(120,$N23,$O23)-LOGNORMDIST(80,$N23,$O23)) -> 54.66996577 | BT23: =($C23-$M23)*(LOGNORMDIST(160,$N23,$O23)-LOGNORMDIST(120,$N23,$O23)) -> 386.6288422 | BU23: =($C23-$M23)*(LOGNORMDIST(200,$N23,$O23)-LOGNORMDIST(160,$N23,$O23)) -> 394.8790304 | BV23: =($C23-$M23)*(LOGNORMDIST(240,$N23,$O23)-LOGNORMDIST(200,$N23,$O23)) -> 134.9748129 | BW23: =($C23-$M23)*(LOGNORMDIST(280,$N23,$O23)-LOGNORMDIST(240,$N23,$O23)) -> 25.01610881 | BX23: =($C23-$M23)*(LOGNORMDIST(320,$N23,$O23)-LOGNORMDIST(280,$N23,$O23)) -> 3.298554189 | BY23: =($C23-$M23)*(LOGNORMDIST(360,$N23,$O23)-LOGNORMDIST(320,$N23,$O23)) -> 0.3606971986 | BZ23: =($C23-$M23)*(LOGNORMDIST(400,$N23,$O23)-LOGNORMDIST(360,$N23,$O23)) -> 0.0357607976 | CA23: =($C23-$M23)*(LOGNORMDIST(440,$N23,$O23)-LOGNORMDIST(400,$N23,$O23)) -> 0.003391335692 | CB23: =($C23-$M23)*(LOGNORMDIST(480,$N23,$O23)-LOGNORMDIST(440,$N23,$O23)) -> 0.0003179443147 | CC23: =($C23-$M23)*(LOGNORMDIST(520,$N23,$O23)-LOGNORMDIST(480,$N23,$O23)) -> 3.008230198e-05 | CD23: =($C23-$M23)*(LOGNORMDIST(560,$N23,$O23)-LOGNORMDIST(520,$N23,$O23)) -> 2.91005342e-06 | CE23: =($C23-$M23)*(LOGNORMDIST(600,$N23,$O23)-LOGNORMDIST(560,$N23,$O23)) -> 2.901788809e-07 | CF23: =($C23-$M23)*(LOGNORMDIST(640,$N23,$O23)-LOGNORMDIST(600,$N23,$O23)) -> 2.997679882e-08 | CG23: =($C23-$M23)*(LOGNORMDIST(680,$N23,$O23)-LOGNORMDIST(640,$N23,$O23)) -> 3.21764837e-09 | CH23: =($C23-$M23)*(LOGNORMDIST(720,$N23,$O23)-LOGNORMDIST(680,$N23,$O23)) -> 3.593791931e-10 | CI23: =($C23-$M23)*(LOGNORMDIST(760,$N23,$O23)-LOGNORMDIST(720,$N23,$O23)) -> 4.185540803e-11 | CJ23: =($C23-$M23)*(LOGNORMDIST(800,$N23,$O23)-LOGNORMDIST(760,$N23,$O23)) -> 4.996003611e-12 | CK23: =($C23-$M23)*(1-LOGNORMDIST(800,$N23,$O23)) -> 7.771561172e-13 | CL23: =IF(SUM(BR23:CK23)=ROUND($C23,0), ".","Error") -> . | CM23: =(($C23-$Y23)*(LOGNORMDIST(80,$Z23,$AA23)))+Y23 -> 0.1324852564 | CN23: =($C23-$Y23)*(LOGNORMDIST(120,$Z23,$AA23)-LOGNORMDIST(80,$Z23,$AA23)) -> 54.66996577 | CO23: =($C23-$Y23)*(LOGNORMDIST(160,$Z23,$AA23)-LOGNORMDIST(120,$Z23,$AA23)) -> 386.6288422 | CP23: =($C23-$Y23)*(LOGNORMDIST(200,$Z23,$AA23)-LOGNORMDIST(160,$Z23,$AA23)) -> 394.8790304 | CQ23: =($C23-$Y23)*(LOGNORMDIST(240,$Z23,$AA23)-LOGNORMDIST(200,$Z23,$AA23)) -> 134.9748129 | CR23: =($C23-$Y23)*(LOGNORMDIST(280,$Z23,$AA23)-LOGNORMDIST(240,$Z23,$AA23)) -> 25.01610881 | CS23: =($C23-$Y23)*(LOGNORMDIST(320,$Z23,$AA23)-LOGNORMDIST(280,$Z23,$AA23)) -> 3.298554189 | CT23: =($C23-$Y23)*(LOGNORMDIST(360,$Z23,$AA23)-LOGNORMDIST(320,$Z23,$AA23)) -> 0.3606971986 | CU23: =($C23-$Y23)*(LOGNORMDIST(400,$Z23,$AA23)-LOGNORMDIST(360,$Z23,$AA23)) -> 0.0357607976 | CV23: =($C23-$Y23)*(LOGNORMDIST(440,$Z23,$AA23)-LOGNORMDIST(400,$Z23,$AA23)) -> 0.003391335692 | CW23: =($C23-$Y23)*(LOGNORMDIST(480,$Z23,$AA23)-LOGNORMDIST(440,$Z23,$AA23)) -> 0.0003179443147 | CX23: =($C23-$Y23)*(LOGNORMDIST(520,$Z23,$AA23)-LOGNORMDIST(480,$Z23,$AA23)) -> 3.008230198e-05 | CY23: =($C23-$Y23)*(LOGNORMDIST(560,$Z23,$AA23)-LOGNORMDIST(520,$Z23,$AA23)) -> 2.91005342e-06 | CZ23: =($C23-$Y23)*(LOGNORMDIST(600,$Z23,$AA23)-LOGNORMDIST(560,$Z23,$AA23)) -> 2.901788809e-07 | DA23: =($C23-$Y23)*(LOGNORMDIST(640,$Z23,$AA23)-LOGNORMDIST(600,$Z23,$AA23)) -> 2.997679882e-08 | DB23: =($C23-$Y23)*(LOGNORMDIST(680,$Z23,$AA23)-LOGNORMDIST(640,$Z23,$AA23)) -> 3.21764837e-09 | DC23: =($C23-$Y23)*(LOGNORMDIST(720,$Z23,$AA23)-LOGNORMDIST(680,$Z23,$AA23)) -> 3.593791931e-10 | DD23: =($C23-$Y23)*(LOGNORMDIST(760,$Z23,$AA23)-LOGNORMDIST(720,$Z23,$AA23)) -> 4.185540803e-11 | DE23: =($C23-$Y23)*(LOGNORMDIST(800,$Z23,$AA23)-LOGNORMDIST(760,$Z23,$AA23)) -> 4.996003611e-12 | DF23: =($C23-$Y23)*(1-LOGNORMDIST(800,$Z23,$AA23)) -> 7.771561172e-13 | DG23: =IF(SUM(CM23:DF23)=ROUND($C23,0), ".","Error") -> .
B24: F20-24 | C24: 1000 | D24: 188.6 | E24: 37.72 | F24: 0 | G24: 0 | H24: 5.220018014 | I24: 0.1980422004 | J24: 168 | K24: 33.6 | L24: 0 | M24: 0 | N24: 5.104353623 | O24: 0.1980422004 | P24: 188.6 | Q24: 37.72 | R24: 0 | S24: 0 | T24: 5.220018014 | U24: 0.1980422004 | V24: 168 | W24: 33.6 | X24: 0 | Y24: 0 | Z24: 5.104353623 | AA24: 0.1980422004 | AB24: 0.01161320624 | AC24: =($C24-$G24)*(LOGNORMDIST(120,$H24,$I24)-LOGNORMDIST(80,$H24,$I24)) -> 14.46912029 | AD24: =($C24-$G24)*(LOGNORMDIST(160,$H24,$I24)-LOGNORMDIST(120,$H24,$I24)) -> 217.7926608 | AE24: =($C24-$G24)*(LOGNORMDIST(200,$H24,$I24)-LOGNORMDIST(160,$H24,$I24)) -> 421.4405801 | AF24: =($C24-$G24)*(LOGNORMDIST(240,$H24,$I24)-LOGNORMDIST(200,$H24,$I24)) -> 252.1967789 | AG24: =($C24-$G24)*(LOGNORMDIST(280,$H24,$I24)-LOGNORMDIST(240,$H24,$I24)) -> 75.97526858 | AH24: =($C24-$G24)*(LOGNORMDIST(320,$H24,$I24)-LOGNORMDIST(280,$H24,$I24)) -> 15.29923873 | AI24: =($C24-$G24)*(LOGNORMDIST(360,$H24,$I24)-LOGNORMDIST(320,$H24,$I24)) -> 2.429731513 | AJ24: =($C24-$G24)*(LOGNORMDIST(400,$H24,$I24)-LOGNORMDIST(360,$H24,$I24)) -> 0.3359822284 | AK24: =($C24-$G24)*(LOGNORMDIST(440,$H24,$I24)-LOGNORMDIST(400,$H24,$I24)) -> 0.04299908987 | AL24: =($C24-$G24)*(LOGNORMDIST(480,$H24,$I24)-LOGNORMDIST(440,$H24,$I24)) -> 0.005294135749 | AM24: =($C24-$G24)*(LOGNORMDIST(520,$H24,$I24)-LOGNORMDIST(480,$H24,$I24)) -> 0.0006429937301 | AN24: =($C24-$G24)*(LOGNORMDIST(560,$H24,$I24)-LOGNORMDIST(520,$H24,$I24)) -> 7.831512816e-05 | AO24: =($C24-$G24)*(LOGNORMDIST(600,$H24,$I24)-LOGNORMDIST(560,$H24,$I24)) -> 9.670488632e-06 | AP24: =($C24-$G24)*(LOGNORMDIST(640,$H24,$I24)-LOGNORMDIST(600,$H24,$I24)) -> 1.219418455e-06 | AQ24: =($C24-$G24)*(LOGNORMDIST(680,$H24,$I24)-LOGNORMDIST(640,$H24,$I24)) -> 1.577675768e-07 | AR24: =($C24-$G24)*(LOGNORMDIST(720,$H24,$I24)-LOGNORMDIST(680,$H24,$I24)) -> 2.100686292e-08 | AS24: =($C24-$G24)*(LOGNORMDIST(760,$H24,$I24)-LOGNORMDIST(720,$H24,$I24)) -> 2.884026351e-09 | AT24: =($C24-$G24)*(LOGNORMDIST(800,$H24,$I24)-LOGNORMDIST(760,$H24,$I24)) -> 4.086730954e-10 | AU24: =($C24-$G24)*(1-LOGNORMDIST(800,$H24,$I24)) -> 7.049916206e-11 | AV24: =IF(SUM(AB24:AU24)=ROUND($C24,0), ".","Error") -> . | AW24: 0.01161320624 | AX24: 14.46912029 | AY24: 217.7926608 | AZ24: 421.4405801 | BA24: 252.1967789 | BB24: 75.97526858 | BC24: 15.29923873 | BD24: 2.429731513 | BE24: 0.3359822284 | BF24: 0.04299908987 | BG24: 0.005294135749 | BH24: 0.0006429937301 | BI24: 7.831512816e-05 | BJ24: 9.670488632e-06 | BK24: 1.219418455e-06 | BL24: 1.577675768e-07 | BM24: 2.100686292e-08 | BN24: 2.884026351e-09 | BO24: 4.086730954e-10 | BP24: 7.049916206e-11 | BQ24: =IF(SUM(AW24:BP24)=ROUND($C24,0), ".","Error") -> . | BR24: 0.1324852564 | BS24: =($C24-$M24)*(LOGNORMDIST(120,$N24,$O24)-LOGNORMDIST(80,$N24,$O24)) -> 54.66996577 | BT24: =($C24-$M24)*(LOGNORMDIST(160,$N24,$O24)-LOGNORMDIST(120,$N24,$O24)) -> 386.6288422 | BU24: =($C24-$M24)*(LOGNORMDIST(200,$N24,$O24)-LOGNORMDIST(160,$N24,$O24)) -> 394.8790304 | BV24: =($C24-$M24)*(LOGNORMDIST(240,$N24,$O24)-LOGNORMDIST(200,$N24,$O24)) -> 134.9748129 | BW24: =($C24-$M24)*(LOGNORMDIST(280,$N24,$O24)-LOGNORMDIST(240,$N24,$O24)) -> 25.01610881 | BX24: =($C24-$M24)*(LOGNORMDIST(320,$N24,$O24)-LOGNORMDIST(280,$N24,$O24)) -> 3.298554189 | BY24: =($C24-$M24)*(LOGNORMDIST(360,$N24,$O24)-LOGNORMDIST(320,$N24,$O24)) -> 0.3606971986 | BZ24: =($C24-$M24)*(LOGNORMDIST(400,$N24,$O24)-LOGNORMDIST(360,$N24,$O24)) -> 0.0357607976 | CA24: =($C24-$M24)*(LOGNORMDIST(440,$N24,$O24)-LOGNORMDIST(400,$N24,$O24)) -> 0.003391335692 | CB24: =($C24-$M24)*(LOGNORMDIST(480,$N24,$O24)-LOGNORMDIST(440,$N24,$O24)) -> 0.0003179443147 | CC24: =($C24-$M24)*(LOGNORMDIST(520,$N24,$O24)-LOGNORMDIST(480,$N24,$O24)) -> 3.008230198e-05 | CD24: =($C24-$M24)*(LOGNORMDIST(560,$N24,$O24)-LOGNORMDIST(520,$N24,$O24)) -> 2.91005342e-06 | CE24: =($C24-$M24)*(LOGNORMDIST(600,$N24,$O24)-LOGNORMDIST(560,$N24,$O24)) -> 2.901788809e-07 | CF24: =($C24-$M24)*(LOGNORMDIST(640,$N24,$O24)-LOGNORMDIST(600,$N24,$O24)) -> 2.997679882e-08 | CG24: =($C24-$M24)*(LOGNORMDIST(680,$N24,$O24)-LOGNORMDIST(640,$N24,$O24)) -> 3.21764837e-09 | CH24: =($C24-$M24)*(LOGNORMDIST(720,$N24,$O24)-LOGNORMDIST(680,$N24,$O24)) -> 3.593791931e-10 | CI24: =($C24-$M24)*(LOGNORMDIST(760,$N24,$O24)-LOGNORMDIST(720,$N24,$O24)) -> 4.185540803e-11 | CJ24: =($C24-$M24)*(LOGNORMDIST(800,$N24,$O24)-LOGNORMDIST(760,$N24,$O24)) -> 4.996003611e-12 | CK24: =($C24-$M24)*(1-LOGNORMDIST(800,$N24,$O24)) -> 7.771561172e-13 | CL24: =IF(SUM(BR24:CK24)=ROUND($C24,0), ".","Error") -> . | CM24: 0.1324852564 | CN24: 54.66996577 | CO24: 386.6288422 | CP24: 394.8790304 | CQ24: 134.9748129 | CR24: 25.01610881 | CS24: 3.298554189 | CT24: 0.3606971986 | CU24: 0.0357607976 | CV24: 0.003391335692 | CW24: 0.0003179443147 | CX24: 3.008230198e-05 | CY24: 2.91005342e-06 | CZ24: 2.901788809e-07 | DA24: 2.997679882e-08 | DB24: 3.21764837e-09 | DC24: 3.593791931e-10 | DD24: 4.185540803e-11 | DE24: 4.996003611e-12 | DF24: 7.771561172e-13 | DG24: =IF(SUM(CM24:DF24)=ROUND($C24,0), ".","Error") -> .
B25: F25-29 | C25: 1000 | D25: 188.6 | E25: 37.72 | F25: 0 | G25: 0 | H25: 5.220018014 | I25: 0.1980422004 | J25: 168 | K25: 33.6 | L25: 0 | M25: 0 | N25: 5.104353623 | O25: 0.1980422004 | P25: 188.6 | Q25: 37.72 | R25: 0 | S25: 0 | T25: 5.220018014 | U25: 0.1980422004 | V25: 168 | W25: 33.6 | X25: 0 | Y25: 0 | Z25: 5.104353623 | AA25: 0.1980422004 | AB25: 0.01161320624 | AC25: 14.46912029 | AD25: 217.7926608 | AE25: 421.4405801 | AF25: 252.1967789 | AG25: 75.97526858 | AH25: 15.29923873 | AI25: 2.429731513 | AJ25: 0.3359822284 | AK25: 0.04299908987 | AL25: 0.005294135749 | AM25: 0.0006429937301 | AN25: 7.831512816e-05 | AO25: 9.670488632e-06 | AP25: 1.219418455e-06 | AQ25: 1.577675768e-07 | AR25: 2.100686292e-08 | AS25: 2.884026351e-09 | AT25: 4.086730954e-10 | AU25: 7.049916206e-11 | AV25: . | AW25: 0.01161320624 | AX25: 14.46912029 | AY25: 217.7926608 | AZ25: 421.4405801 | BA25: 252.1967789 | BB25: 75.97526858 | BC25: 15.29923873 | BD25: 2.429731513 | BE25: 0.3359822284 | BF25: 0.04299908987 | BG25: 0.005294135749 | BH25: 0.0006429937301 | BI25: 7.831512816e-05 | BJ25: 9.670488632e-06 | BK25: 1.219418455e-06 | BL25: 1.577675768e-07 | BM25: 2.100686292e-08 | BN25: 2.884026351e-09 | BO25: 4.086730954e-10 | BP25: 7.049916206e-11 | BQ25: . | BR25: 0.1324852564 | BS25: 54.66996577 | BT25: 386.6288422 | BU25: 394.8790304 | BV25: 134.9748129 | BW25: 25.01610881 | BX25: 3.298554189 | BY25: 0.3606971986 | BZ25: 0.0357607976 | CA25: 0.003391335692 | CB25: 0.0003179443147 | CC25: 3.008230198e-05 | CD25: 2.91005342e-06 | CE25: 2.901788809e-07 | CF25: 2.997679882e-08 | CG25: 3.21764837e-09 | CH25: 3.593791931e-10 | CI25: 4.185540803e-11 | CJ25: 4.996003611e-12 | CK25: 7.771561172e-13 | CL25: . | CM25: 0.1324852564 | CN25: 54.66996577 | CO25: 386.6288422 | CP25: 394.8790304 | CQ25: 134.9748129 | CR25: 25.01610881 | CS25: 3.298554189 | CT25: 0.3606971986 | CU25: 0.0357607976 | CV25: 0.003391335692 | CW25: 0.0003179443147 | CX25: 3.008230198e-05 | CY25: 2.91005342e-06 | CZ25: 2.901788809e-07 | DA25: 2.997679882e-08 | DB25: 3.21764837e-09 | DC25: 3.593791931e-10 | DD25: 4.185540803e-11 | DE25: 4.996003611e-12 | DF25: 7.771561172e-13 | DG25: .
B26: F30-34 | C26: 1000 | D26: 188.6 | E26: 37.72 | F26: 0 | G26: 0 | H26: 5.220018014 | I26: 0.1980422004 | J26: 168 | K26: 33.6 | L26: 0 | M26: 0 | N26: 5.104353623 | O26: 0.1980422004 | P26: 188.6 | Q26: 37.72 | R26: 0 | S26: 0 | T26: 5.220018014 | U26: 0.1980422004 | V26: 168 | W26: 33.6 | X26: 0 | Y26: 0 | Z26: 5.104353623 | AA26: 0.1980422004 | AB26: 0.01161320624 | AC26: 14.46912029 | AD26: 217.7926608 | AE26: 421.4405801 | AF26: 252.1967789 | AG26: 75.97526858 | AH26: 15.29923873 | AI26: 2.429731513 | AJ26: 0.3359822284 | AK26: 0.04299908987 | AL26: 0.005294135749 | AM26: 0.0006429937301 | AN26: 7.831512816e-05 | AO26: 9.670488632e-06 | AP26: 1.219418455e-06 | AQ26: 1.577675768e-07 | AR26: 2.100686292e-08 | AS26: 2.884026351e-09 | AT26: 4.086730954e-10 | AU26: 7.049916206e-11 | AV26: . | AW26: 0.01161320624 | AX26: 14.46912029 | AY26: 217.7926608 | AZ26: 421.4405801 | BA26: 252.1967789 | BB26: 75.97526858 | BC26: 15.29923873 | BD26: 2.429731513 | BE26: 0.3359822284 | BF26: 0.04299908987 | BG26: 0.005294135749 | BH26: 0.0006429937301 | BI26: 7.831512816e-05 | BJ26: 9.670488632e-06 | BK26: 1.219418455e-06 | BL26: 1.577675768e-07 | BM26: 2.100686292e-08 | BN26: 2.884026351e-09 | BO26: 4.086730954e-10 | BP26: 7.049916206e-11 | BQ26: . | BR26: 0.1324852564 | BS26: 54.66996577 | BT26: 386.6288422 | BU26: 394.8790304 | BV26: 134.9748129 | BW26: 25.01610881 | BX26: 3.298554189 | BY26: 0.3606971986 | BZ26: 0.0357607976 | CA26: 0.003391335692 | CB26: 0.0003179443147 | CC26: 3.008230198e-05 | CD26: 2.91005342e-06 | CE26: 2.901788809e-07 | CF26: 2.997679882e-08 | CG26: 3.21764837e-09 | CH26: 3.593791931e-10 | CI26: 4.185540803e-11 | CJ26: 4.996003611e-12 | CK26: 7.771561172e-13 | CL26: . | CM26: 0.1324852564 | CN26: 54.66996577 | CO26: 386.6288422 | CP26: 394.8790304 | CQ26: 134.9748129 | CR26: 25.01610881 | CS26: 3.298554189 | CT26: 0.3606971986 | CU26: 0.0357607976 | CV26: 0.003391335692 | CW26: 0.0003179443147 | CX26: 3.008230198e-05 | CY26: 2.91005342e-06 | CZ26: 2.901788809e-07 | DA26: 2.997679882e-08 | DB26: 3.21764837e-09 | DC26: 3.593791931e-10 | DD26: 4.185540803e-11 | DE26: 4.996003611e-12 | DF26: 7.771561172e-13 | DG26: .
B27: F35-39 | C27: 1000 | D27: 188.6 | E27: 37.72 | F27: 0 | G27: 0 | H27: 5.220018014 | I27: 0.1980422004 | J27: 168 | K27: 33.6 | L27: 0 | M27: 0 | N27: 5.104353623 | O27: 0.1980422004 | P27: 188.6 | Q27: 37.72 | R27: 0 | S27: 0 | T27: 5.220018014 | U27: 0.1980422004 | V27: 168 | W27: 33.6 | X27: 0 | Y27: 0 | Z27: 5.104353623 | AA27: 0.1980422004 | AB27: 0.01161320624 | AC27: 14.46912029 | AD27: 217.7926608 | AE27: 421.4405801 | AF27: 252.1967789 | AG27: 75.97526858 | AH27: 15.29923873 | AI27: 2.429731513 | AJ27: 0.3359822284 | AK27: 0.04299908987 | AL27: 0.005294135749 | AM27: 0.0006429937301 | AN27: 7.831512816e-05 | AO27: 9.670488632e-06 | AP27: 1.219418455e-06 | AQ27: 1.577675768e-07 | AR27: 2.100686292e-08 | AS27: 2.884026351e-09 | AT27: 4.086730954e-10 | AU27: 7.049916206e-11 | AV27: . | AW27: 0.01161320624 | AX27: 14.46912029 | AY27: 217.7926608 | AZ27: 421.4405801 | BA27: 252.1967789 | BB27: 75.97526858 | BC27: 15.29923873 | BD27: 2.429731513 | BE27: 0.3359822284 | BF27: 0.04299908987 | BG27: 0.005294135749 | BH27: 0.0006429937301 | BI27: 7.831512816e-05 | BJ27: 9.670488632e-06 | BK27: 1.219418455e-06 | BL27: 1.577675768e-07 | BM27: 2.100686292e-08 | BN27: 2.884026351e-09 | BO27: 4.086730954e-10 | BP27: 7.049916206e-11 | BQ27: . | BR27: 0.1324852564 | BS27: 54.66996577 | BT27: 386.6288422 | BU27: 394.8790304 | BV27: 134.9748129 | BW27: 25.01610881 | BX27: 3.298554189 | BY27: 0.3606971986 | BZ27: 0.0357607976 | CA27: 0.003391335692 | CB27: 0.0003179443147 | CC27: 3.008230198e-05 | CD27: 2.91005342e-06 | CE27: 2.901788809e-07 | CF27: 2.997679882e-08 | CG27: 3.21764837e-09 | CH27: 3.593791931e-10 | CI27: 4.185540803e-11 | CJ27: 4.996003611e-12 | CK27: 7.771561172e-13 | CL27: . | CM27: 0.1324852564 | CN27: 54.66996577 | CO27: 386.6288422 | CP27: 394.8790304 | CQ27: 134.9748129 | CR27: 25.01610881 | CS27: 3.298554189 | CT27: 0.3606971986 | CU27: 0.0357607976 | CV27: 0.003391335692 | CW27: 0.0003179443147 | CX27: 3.008230198e-05 | CY27: 2.91005342e-06 | CZ27: 2.901788809e-07 | DA27: 2.997679882e-08 | DB27: 3.21764837e-09 | DC27: 3.593791931e-10 | DD27: 4.185540803e-11 | DE27: 4.996003611e-12 | DF27: 7.771561172e-13 | DG27: .
B28: F40-44 | C28: 1000 | D28: 188.6 | E28: 37.72 | F28: 0 | G28: 0 | H28: 5.220018014 | I28: 0.1980422004 | J28: 168 | K28: 33.6 | L28: 0 | M28: 0 | N28: 5.104353623 | O28: 0.1980422004 | P28: 188.6 | Q28: 37.72 | R28: 0 | S28: 0 | T28: 5.220018014 | U28: 0.1980422004 | V28: 168 | W28: 33.6 | X28: 0 | Y28: 0 | Z28: 5.104353623 | AA28: 0.1980422004 | AB28: 0.01161320624 | AC28: 14.46912029 | AD28: 217.7926608 | AE28: 421.4405801 | AF28: 252.1967789 | AG28: 75.97526858 | AH28: 15.29923873 | AI28: 2.429731513 | AJ28: 0.3359822284 | AK28: 0.04299908987 | AL28: 0.005294135749 | AM28: 0.0006429937301 | AN28: 7.831512816e-05 | AO28: 9.670488632e-06 | AP28: 1.219418455e-06 | AQ28: 1.577675768e-07 | AR28: 2.100686292e-08 | AS28: 2.884026351e-09 | AT28: 4.086730954e-10 | AU28: 7.049916206e-11 | AV28: . | AW28: 0.01161320624 | AX28: 14.46912029 | AY28: 217.7926608 | AZ28: 421.4405801 | BA28: 252.1967789 | BB28: 75.97526858 | BC28: 15.29923873 | BD28: 2.429731513 | BE28: 0.3359822284 | BF28: 0.04299908987 | BG28: 0.005294135749 | BH28: 0.0006429937301 | BI28: 7.831512816e-05 | BJ28: 9.670488632e-06 | BK28: 1.219418455e-06 | BL28: 1.577675768e-07 | BM28: 2.100686292e-08 | BN28: 2.884026351e-09 | BO28: 4.086730954e-10 | BP28: 7.049916206e-11 | BQ28: . | BR28: 0.1324852564 | BS28: 54.66996577 | BT28: 386.6288422 | BU28: 394.8790304 | BV28: 134.9748129 | BW28: 25.01610881 | BX28: 3.298554189 | BY28: 0.3606971986 | BZ28: 0.0357607976 | CA28: 0.003391335692 | CB28: 0.0003179443147 | CC28: 3.008230198e-05 | CD28: 2.91005342e-06 | CE28: 2.901788809e-07 | CF28: 2.997679882e-08 | CG28: 3.21764837e-09 | CH28: 3.593791931e-10 | CI28: 4.185540803e-11 | CJ28: 4.996003611e-12 | CK28: 7.771561172e-13 | CL28: . | CM28: 0.1324852564 | CN28: 54.66996577 | CO28: 386.6288422 | CP28: 394.8790304 | CQ28: 134.9748129 | CR28: 25.01610881 | CS28: 3.298554189 | CT28: 0.3606971986 | CU28: 0.0357607976 | CV28: 0.003391335692 | CW28: 0.0003179443147 | CX28: 3.008230198e-05 | CY28: 2.91005342e-06 | CZ28: 2.901788809e-07 | DA28: 2.997679882e-08 | DB28: 3.21764837e-09 | DC28: 3.593791931e-10 | DD28: 4.185540803e-11 | DE28: 4.996003611e-12 | DF28: 7.771561172e-13 | DG28: .
B29: F45-49 | C29: 1000 | D29: 188.6 | E29: 37.72 | F29: 0 | G29: 0 | H29: 5.220018014 | I29: 0.1980422004 | J29: 168 | K29: 33.6 | L29: 0 | M29: 0 | N29: 5.104353623 | O29: 0.1980422004 | P29: 188.6 | Q29: 37.72 | R29: 0 | S29: 0 | T29: 5.220018014 | U29: 0.1980422004 | V29: 168 | W29: 33.6 | X29: 0 | Y29: 0 | Z29: 5.104353623 | AA29: 0.1980422004 | AB29: 0.01161320624 | AC29: 14.46912029 | AD29: 217.7926608 | AE29: 421.4405801 | AF29: 252.1967789 | AG29: 75.97526858 | AH29: 15.29923873 | AI29: 2.429731513 | AJ29: 0.3359822284 | AK29: 0.04299908987 | AL29: 0.005294135749 | AM29: 0.0006429937301 | AN29: 7.831512816e-05 | AO29: 9.670488632e-06 | AP29: 1.219418455e-06 | AQ29: 1.577675768e-07 | AR29: 2.100686292e-08 | AS29: 2.884026351e-09 | AT29: 4.086730954e-10 | AU29: 7.049916206e-11 | AV29: . | AW29: 0.01161320624 | AX29: 14.46912029 | AY29: 217.7926608 | AZ29: 421.4405801 | BA29: 252.1967789 | BB29: 75.97526858 | BC29: 15.29923873 | BD29: 2.429731513 | BE29: 0.3359822284 | BF29: 0.04299908987 | BG29: 0.005294135749 | BH29: 0.0006429937301 | BI29: 7.831512816e-05 | BJ29: 9.670488632e-06 | BK29: 1.219418455e-06 | BL29: 1.577675768e-07 | BM29: 2.100686292e-08 | BN29: 2.884026351e-09 | BO29: 4.086730954e-10 | BP29: 7.049916206e-11 | BQ29: . | BR29: 0.1324852564 | BS29: 54.66996577 | BT29: 386.6288422 | BU29: 394.8790304 | BV29: 134.9748129 | BW29: 25.01610881 | BX29: 3.298554189 | BY29: 0.3606971986 | BZ29: 0.0357607976 | CA29: 0.003391335692 | CB29: 0.0003179443147 | CC29: 3.008230198e-05 | CD29: 2.91005342e-06 | CE29: 2.901788809e-07 | CF29: 2.997679882e-08 | CG29: 3.21764837e-09 | CH29: 3.593791931e-10 | CI29: 4.185540803e-11 | CJ29: 4.996003611e-12 | CK29: 7.771561172e-13 | CL29: . | CM29: 0.1324852564 | CN29: 54.66996577 | CO29: 386.6288422 | CP29: 394.8790304 | CQ29: 134.9748129 | CR29: 25.01610881 | CS29: 3.298554189 | CT29: 0.3606971986 | CU29: 0.0357607976 | CV29: 0.003391335692 | CW29: 0.0003179443147 | CX29: 3.008230198e-05 | CY29: 2.91005342e-06 | CZ29: 2.901788809e-07 | DA29: 2.997679882e-08 | DB29: 3.21764837e-09 | DC29: 3.593791931e-10 | DD29: 4.185540803e-11 | DE29: 4.996003611e-12 | DF29: 7.771561172e-13 | DG29: .
B30: F50-54 | C30: 1000 | D30: 188.6 | E30: 37.72 | F30: 0 | G30: 0 | H30: 5.220018014 | I30: 0.1980422004 | J30: 168 | K30: 33.6 | L30: 0 | M30: 0 | N30: 5.104353623 | O30: 0.1980422004 | P30: 188.6 | Q30: 37.72 | R30: 0 | S30: 0 | T30: 5.220018014 | U30: 0.1980422004 | V30: 168 | W30: 33.6 | X30: 0 | Y30: 0 | Z30: 5.104353623 | AA30: 0.1980422004 | AB30: 0.01161320624 | AC30: 14.46912029 | AD30: 217.7926608 | AE30: 421.4405801 | AF30: 252.1967789 | AG30: 75.97526858 | AH30: 15.29923873 | AI30: 2.429731513 | AJ30: 0.3359822284 | AK30: 0.04299908987 | AL30: 0.005294135749 | AM30: 0.0006429937301 | AN30: 7.831512816e-05 | AO30: 9.670488632e-06 | AP30: 1.219418455e-06 | AQ30: 1.577675768e-07 | AR30: 2.100686292e-08 | AS30: 2.884026351e-09 | AT30: 4.086730954e-10 | AU30: 7.049916206e-11 | AV30: . | AW30: 0.01161320624 | AX30: 14.46912029 | AY30: 217.7926608 | AZ30: 421.4405801 | BA30: 252.1967789 | BB30: 75.97526858 | BC30: 15.29923873 | BD30: 2.429731513 | BE30: 0.3359822284 | BF30: 0.04299908987 | BG30: 0.005294135749 | BH30: 0.0006429937301 | BI30: 7.831512816e-05 | BJ30: 9.670488632e-06 | BK30: 1.219418455e-06 | BL30: 1.577675768e-07 | BM30: 2.100686292e-08 | BN30: 2.884026351e-09 | BO30: 4.086730954e-10 | BP30: 7.049916206e-11 | BQ30: . | BR30: 0.1324852564 | BS30: 54.66996577 | BT30: 386.6288422 | BU30: 394.8790304 | BV30: 134.9748129 | BW30: 25.01610881 | BX30: 3.298554189 | BY30: 0.3606971986 | BZ30: 0.0357607976 | CA30: 0.003391335692 | CB30: 0.0003179443147 | CC30: 3.008230198e-05 | CD30: 2.91005342e-06 | CE30: 2.901788809e-07 | CF30: 2.997679882e-08 | CG30: 3.21764837e-09 | CH30: 3.593791931e-10 | CI30: 4.185540803e-11 | CJ30: 4.996003611e-12 | CK30: 7.771561172e-13 | CL30: . | CM30: 0.1324852564 | CN30: 54.66996577 | CO30: 386.6288422 | CP30: 394.8790304 | CQ30: 134.9748129 | CR30: 25.01610881 | CS30: 3.298554189 | CT30: 0.3606971986 | CU30: 0.0357607976 | CV30: 0.003391335692 | CW30: 0.0003179443147 | CX30: 3.008230198e-05 | CY30: 2.91005342e-06 | CZ30: 2.901788809e-07 | DA30: 2.997679882e-08 | DB30: 3.21764837e-09 | DC30: 3.593791931e-10 | DD30: 4.185540803e-11 | DE30: 4.996003611e-12 | DF30: 7.771561172e-13 | DG30: .
B31: F55-59 | C31: 1000 | D31: 188.6 | E31: 37.72 | F31: 0 | G31: 0 | H31: 5.220018014 | I31: 0.1980422004 | J31: 168 | K31: 33.6 | L31: 0 | M31: 0 | N31: 5.104353623 | O31: 0.1980422004 | P31: 188.6 | Q31: 37.72 | R31: 0 | S31: 0 | T31: 5.220018014 | U31: 0.1980422004 | V31: 168 | W31: 33.6 | X31: 0 | Y31: 0 | Z31: 5.104353623 | AA31: 0.1980422004 | AB31: 0.01161320624 | AC31: 14.46912029 | AD31: 217.7926608 | AE31: 421.4405801 | AF31: 252.1967789 | AG31: 75.97526858 | AH31: 15.29923873 | AI31: 2.429731513 | AJ31: 0.3359822284 | AK31: 0.04299908987 | AL31: 0.005294135749 | AM31: 0.0006429937301 | AN31: 7.831512816e-05 | AO31: 9.670488632e-06 | AP31: 1.219418455e-06 | AQ31: 1.577675768e-07 | AR31: 2.100686292e-08 | AS31: 2.884026351e-09 | AT31: 4.086730954e-10 | AU31: 7.049916206e-11 | AV31: . | AW31: 0.01161320624 | AX31: 14.46912029 | AY31: 217.7926608 | AZ31: 421.4405801 | BA31: 252.1967789 | BB31: 75.97526858 | BC31: 15.29923873 | BD31: 2.429731513 | BE31: 0.3359822284 | BF31: 0.04299908987 | BG31: 0.005294135749 | BH31: 0.0006429937301 | BI31: 7.831512816e-05 | BJ31: 9.670488632e-06 | BK31: 1.219418455e-06 | BL31: 1.577675768e-07 | BM31: 2.100686292e-08 | BN31: 2.884026351e-09 | BO31: 4.086730954e-10 | BP31: 7.049916206e-11 | BQ31: . | BR31: 0.1324852564 | BS31: 54.66996577 | BT31: 386.6288422 | BU31: 394.8790304 | BV31: 134.9748129 | BW31: 25.01610881 | BX31: 3.298554189 | BY31: 0.3606971986 | BZ31: 0.0357607976 | CA31: 0.003391335692 | CB31: 0.0003179443147 | CC31: 3.008230198e-05 | CD31: 2.91005342e-06 | CE31: 2.901788809e-07 | CF31: 2.997679882e-08 | CG31: 3.21764837e-09 | CH31: 3.593791931e-10 | CI31: 4.185540803e-11 | CJ31: 4.996003611e-12 | CK31: 7.771561172e-13 | CL31: . | CM31: 0.1324852564 | CN31: 54.66996577 | CO31: 386.6288422 | CP31: 394.8790304 | CQ31: 134.9748129 | CR31: 25.01610881 | CS31: 3.298554189 | CT31: 0.3606971986 | CU31: 0.0357607976 | CV31: 0.003391335692 | CW31: 0.0003179443147 | CX31: 3.008230198e-05 | CY31: 2.91005342e-06 | CZ31: 2.901788809e-07 | DA31: 2.997679882e-08 | DB31: 3.21764837e-09 | DC31: 3.593791931e-10 | DD31: 4.185540803e-11 | DE31: 4.996003611e-12 | DF31: 7.771561172e-13 | DG31: .
B32: F60-64 | C32: 1000 | D32: 188.6 | E32: 37.72 | F32: 0 | G32: 0 | H32: 5.220018014 | I32: 0.1980422004 | J32: 168 | K32: 33.6 | L32: 0 | M32: 0 | N32: 5.104353623 | O32: 0.1980422004 | P32: 188.6 | Q32: 37.72 | R32: 0 | S32: 0 | T32: 5.220018014 | U32: 0.1980422004 | V32: 168 | W32: 33.6 | X32: 0 | Y32: 0 | Z32: 5.104353623 | AA32: 0.1980422004 | AB32: 0.01161320624 | AC32: 14.46912029 | AD32: 217.7926608 | AE32: 421.4405801 | AF32: 252.1967789 | AG32: 75.97526858 | AH32: 15.29923873 | AI32: 2.429731513 | AJ32: 0.3359822284 | AK32: 0.04299908987 | AL32: 0.005294135749 | AM32: 0.0006429937301 | AN32: 7.831512816e-05 | AO32: 9.670488632e-06 | AP32: 1.219418455e-06 | AQ32: 1.577675768e-07 | AR32: 2.100686292e-08 | AS32: 2.884026351e-09 | AT32: 4.086730954e-10 | AU32: 7.049916206e-11 | AV32: . | AW32: 0.01161320624 | AX32: 14.46912029 | AY32: 217.7926608 | AZ32: 421.4405801 | BA32: 252.1967789 | BB32: 75.97526858 | BC32: 15.29923873 | BD32: 2.429731513 | BE32: 0.3359822284 | BF32: 0.04299908987 | BG32: 0.005294135749 | BH32: 0.0006429937301 | BI32: 7.831512816e-05 | BJ32: 9.670488632e-06 | BK32: 1.219418455e-06 | BL32: 1.577675768e-07 | BM32: 2.100686292e-08 | BN32: 2.884026351e-09 | BO32: 4.086730954e-10 | BP32: 7.049916206e-11 | BQ32: . | BR32: 0.1324852564 | BS32: 54.66996577 | BT32: 386.6288422 | BU32: 394.8790304 | BV32: 134.9748129 | BW32: 25.01610881 | BX32: 3.298554189 | BY32: 0.3606971986 | BZ32: 0.0357607976 | CA32: 0.003391335692 | CB32: 0.0003179443147 | CC32: 3.008230198e-05 | CD32: 2.91005342e-06 | CE32: 2.901788809e-07 | CF32: 2.997679882e-08 | CG32: 3.21764837e-09 | CH32: 3.593791931e-10 | CI32: 4.185540803e-11 | CJ32: 4.996003611e-12 | CK32: 7.771561172e-13 | CL32: . | CM32: 0.1324852564 | CN32: 54.66996577 | CO32: 386.6288422 | CP32: 394.8790304 | CQ32: 134.9748129 | CR32: 25.01610881 | CS32: 3.298554189 | CT32: 0.3606971986 | CU32: 0.0357607976 | CV32: 0.003391335692 | CW32: 0.0003179443147 | CX32: 3.008230198e-05 | CY32: 2.91005342e-06 | CZ32: 2.901788809e-07 | DA32: 2.997679882e-08 | DB32: 3.21764837e-09 | DC32: 3.593791931e-10 | DD32: 4.185540803e-11 | DE32: 4.996003611e-12 | DF32: 7.771561172e-13 | DG32: .
B33: F65-69 | C33: 1000 | D33: 188.6 | E33: 37.72 | F33: 0 | G33: 0 | H33: 5.220018014 | I33: 0.1980422004 | J33: 168 | K33: 33.6 | L33: 0 | M33: 0 | N33: 5.104353623 | O33: 0.1980422004 | P33: 188.6 | Q33: 37.72 | R33: 0 | S33: 0 | T33: 5.220018014 | U33: 0.1980422004 | V33: 168 | W33: 33.6 | X33: 0 | Y33: 0 | Z33: 5.104353623 | AA33: 0.1980422004 | AB33: 0.01161320624 | AC33: 14.46912029 | AD33: 217.7926608 | AE33: 421.4405801 | AF33: 252.1967789 | AG33: 75.97526858 | AH33: 15.29923873 | AI33: 2.429731513 | AJ33: 0.3359822284 | AK33: 0.04299908987 | AL33: 0.005294135749 | AM33: 0.0006429937301 | AN33: 7.831512816e-05 | AO33: 9.670488632e-06 | AP33: 1.219418455e-06 | AQ33: 1.577675768e-07 | AR33: 2.100686292e-08 | AS33: 2.884026351e-09 | AT33: 4.086730954e-10 | AU33: 7.049916206e-11 | AV33: . | AW33: 0.01161320624 | AX33: 14.46912029 | AY33: 217.7926608 | AZ33: 421.4405801 | BA33: 252.1967789 | BB33: 75.97526858 | BC33: 15.29923873 | BD33: 2.429731513 | BE33: 0.3359822284 | BF33: 0.04299908987 | BG33: 0.005294135749 | BH33: 0.0006429937301 | BI33: 7.831512816e-05 | BJ33: 9.670488632e-06 | BK33: 1.219418455e-06 | BL33: 1.577675768e-07 | BM33: 2.100686292e-08 | BN33: 2.884026351e-09 | BO33: 4.086730954e-10 | BP33: 7.049916206e-11 | BQ33: . | BR33: 0.1324852564 | BS33: 54.66996577 | BT33: 386.6288422 | BU33: 394.8790304 | BV33: 134.9748129 | BW33: 25.01610881 | BX33: 3.298554189 | BY33: 0.3606971986 | BZ33: 0.0357607976 | CA33: 0.003391335692 | CB33: 0.0003179443147 | CC33: 3.008230198e-05 | CD33: 2.91005342e-06 | CE33: 2.901788809e-07 | CF33: 2.997679882e-08 | CG33: 3.21764837e-09 | CH33: 3.593791931e-10 | CI33: 4.185540803e-11 | CJ33: 4.996003611e-12 | CK33: 7.771561172e-13 | CL33: . | CM33: 0.1324852564 | CN33: 54.66996577 | CO33: 386.6288422 | CP33: 394.8790304 | CQ33: 134.9748129 | CR33: 25.01610881 | CS33: 3.298554189 | CT33: 0.3606971986 | CU33: 0.0357607976 | CV33: 0.003391335692 | CW33: 0.0003179443147 | CX33: 3.008230198e-05 | CY33: 2.91005342e-06 | CZ33: 2.901788809e-07 | DA33: 2.997679882e-08 | DB33: 3.21764837e-09 | DC33: 3.593791931e-10 | DD33: 4.185540803e-11 | DE33: 4.996003611e-12 | DF33: 7.771561172e-13 | DG33: .
B34: F70-74 | C34: 1000 | D34: 188.6 | E34: 37.72 | F34: 0 | G34: 0 | H34: 5.220018014 | I34: 0.1980422004 | J34: 168 | K34: 33.6 | L34: 0 | M34: 0 | N34: 5.104353623 | O34: 0.1980422004 | P34: 188.6 | Q34: 37.72 | R34: 0 | S34: 0 | T34: 5.220018014 | U34: 0.1980422004 | V34: 168 | W34: 33.6 | X34: 0 | Y34: 0 | Z34: 5.104353623 | AA34: 0.1980422004 | AB34: 0.01161320624 | AC34: 14.46912029 | AD34: 217.7926608 | AE34: 421.4405801 | AF34: 252.1967789 | AG34: 75.97526858 | AH34: 15.29923873 | AI34: 2.429731513 | AJ34: 0.3359822284 | AK34: 0.04299908987 | AL34: 0.005294135749 | AM34: 0.0006429937301 | AN34: 7.831512816e-05 | AO34: 9.670488632e-06 | AP34: 1.219418455e-06 | AQ34: 1.577675768e-07 | AR34: 2.100686292e-08 | AS34: 2.884026351e-09 | AT34: 4.086730954e-10 | AU34: 7.049916206e-11 | AV34: . | AW34: 0.01161320624 | AX34: 14.46912029 | AY34: 217.7926608 | AZ34: 421.4405801 | BA34: 252.1967789 | BB34: 75.97526858 | BC34: 15.29923873 | BD34: 2.429731513 | BE34: 0.3359822284 | BF34: 0.04299908987 | BG34: 0.005294135749 | BH34: 0.0006429937301 | BI34: 7.831512816e-05 | BJ34: 9.670488632e-06 | BK34: 1.219418455e-06 | BL34: 1.577675768e-07 | BM34: 2.100686292e-08 | BN34: 2.884026351e-09 | BO34: 4.086730954e-10 | BP34: 7.049916206e-11 | BQ34: . | BR34: 0.1324852564 | BS34: 54.66996577 | BT34: 386.6288422 | BU34: 394.8790304 | BV34: 134.9748129 | BW34: 25.01610881 | BX34: 3.298554189 | BY34: 0.3606971986 | BZ34: 0.0357607976 | CA34: 0.003391335692 | CB34: 0.0003179443147 | CC34: 3.008230198e-05 | CD34: 2.91005342e-06 | CE34: 2.901788809e-07 | CF34: 2.997679882e-08 | CG34: 3.21764837e-09 | CH34: 3.593791931e-10 | CI34: 4.185540803e-11 | CJ34: 4.996003611e-12 | CK34: 7.771561172e-13 | CL34: . | CM34: 0.1324852564 | CN34: 54.66996577 | CO34: 386.6288422 | CP34: 394.8790304 | CQ34: 134.9748129 | CR34: 25.01610881 | CS34: 3.298554189 | CT34: 0.3606971986 | CU34: 0.0357607976 | CV34: 0.003391335692 | CW34: 0.0003179443147 | CX34: 3.008230198e-05 | CY34: 2.91005342e-06 | CZ34: 2.901788809e-07 | DA34: 2.997679882e-08 | DB34: 3.21764837e-09 | DC34: 3.593791931e-10 | DD34: 4.185540803e-11 | DE34: 4.996003611e-12 | DF34: 7.771561172e-13 | DG34: .
B35: F75-79 | C35: 1000 | D35: 188.6 | E35: 37.72 | F35: 0 | G35: 0 | H35: 5.220018014 | I35: 0.1980422004 | J35: 168 | K35: 33.6 | L35: 0 | M35: 0 | N35: 5.104353623 | O35: 0.1980422004 | P35: 188.6 | Q35: 37.72 | R35: 0 | S35: 0 | T35: 5.220018014 | U35: 0.1980422004 | V35: 168 | W35: 33.6 | X35: 0 | Y35: 0 | Z35: 5.104353623 | AA35: 0.1980422004 | AB35: 0.01161320624 | AC35: 14.46912029 | AD35: 217.7926608 | AE35: 421.4405801 | AF35: 252.1967789 | AG35: 75.97526858 | AH35: 15.29923873 | AI35: 2.429731513 | AJ35: 0.3359822284 | AK35: 0.04299908987 | AL35: 0.005294135749 | AM35: 0.0006429937301 | AN35: 7.831512816e-05 | AO35: 9.670488632e-06 | AP35: 1.219418455e-06 | AQ35: 1.577675768e-07 | AR35: 2.100686292e-08 | AS35: 2.884026351e-09 | AT35: 4.086730954e-10 | AU35: 7.049916206e-11 | AV35: . | AW35: 0.01161320624 | AX35: 14.46912029 | AY35: 217.7926608 | AZ35: 421.4405801 | BA35: 252.1967789 | BB35: 75.97526858 | BC35: 15.29923873 | BD35: 2.429731513 | BE35: 0.3359822284 | BF35: 0.04299908987 | BG35: 0.005294135749 | BH35: 0.0006429937301 | BI35: 7.831512816e-05 | BJ35: 9.670488632e-06 | BK35: 1.219418455e-06 | BL35: 1.577675768e-07 | BM35: 2.100686292e-08 | BN35: 2.884026351e-09 | BO35: 4.086730954e-10 | BP35: 7.049916206e-11 | BQ35: . | BR35: 0.1324852564 | BS35: 54.66996577 | BT35: 386.6288422 | BU35: 394.8790304 | BV35: 134.9748129 | BW35: 25.01610881 | BX35: 3.298554189 | BY35: 0.3606971986 | BZ35: 0.0357607976 | CA35: 0.003391335692 | CB35: 0.0003179443147 | CC35: 3.008230198e-05 | CD35: 2.91005342e-06 | CE35: 2.901788809e-07 | CF35: 2.997679882e-08 | CG35: 3.21764837e-09 | CH35: 3.593791931e-10 | CI35: 4.185540803e-11 | CJ35: 4.996003611e-12 | CK35: 7.771561172e-13 | CL35: . | CM35: 0.1324852564 | CN35: 54.66996577 | CO35: 386.6288422 | CP35: 394.8790304 | CQ35: 134.9748129 | CR35: 25.01610881 | CS35: 3.298554189 | CT35: 0.3606971986 | CU35: 0.0357607976 | CV35: 0.003391335692 | CW35: 0.0003179443147 | CX35: 3.008230198e-05 | CY35: 2.91005342e-06 | CZ35: 2.901788809e-07 | DA35: 2.997679882e-08 | DB35: 3.21764837e-09 | DC35: 3.593791931e-10 | DD35: 4.185540803e-11 | DE35: 4.996003611e-12 | DF35: 7.771561172e-13 | DG35: .
B36: F80-84 | C36: 1000 | D36: 188.6 | E36: 37.72 | F36: 0 | G36: 0 | H36: 5.220018014 | I36: 0.1980422004 | J36: 168 | K36: 33.6 | L36: 0 | M36: 0 | N36: 5.104353623 | O36: 0.1980422004 | P36: 188.6 | Q36: 37.72 | R36: 0 | S36: 0 | T36: 5.220018014 | U36: 0.1980422004 | V36: 168 | W36: 33.6 | X36: 0 | Y36: 0 | Z36: 5.104353623 | AA36: 0.1980422004 | AB36: 0.01161320624 | AC36: 14.46912029 | AD36: 217.7926608 | AE36: 421.4405801 | AF36: 252.1967789 | AG36: 75.97526858 | AH36: 15.29923873 | AI36: 2.429731513 | AJ36: 0.3359822284 | AK36: 0.04299908987 | AL36: 0.005294135749 | AM36: 0.0006429937301 | AN36: 7.831512816e-05 | AO36: 9.670488632e-06 | AP36: 1.219418455e-06 | AQ36: 1.577675768e-07 | AR36: 2.100686292e-08 | AS36: 2.884026351e-09 | AT36: 4.086730954e-10 | AU36: 7.049916206e-11 | AV36: . | AW36: 0.01161320624 | AX36: 14.46912029 | AY36: 217.7926608 | AZ36: 421.4405801 | BA36: 252.1967789 | BB36: 75.97526858 | BC36: 15.29923873 | BD36: 2.429731513 | BE36: 0.3359822284 | BF36: 0.04299908987 | BG36: 0.005294135749 | BH36: 0.0006429937301 | BI36: 7.831512816e-05 | BJ36: 9.670488632e-06 | BK36: 1.219418455e-06 | BL36: 1.577675768e-07 | BM36: 2.100686292e-08 | BN36: 2.884026351e-09 | BO36: 4.086730954e-10 | BP36: 7.049916206e-11 | BQ36: . | BR36: 0.1324852564 | BS36: 54.66996577 | BT36: 386.6288422 | BU36: 394.8790304 | BV36: 134.9748129 | BW36: 25.01610881 | BX36: 3.298554189 | BY36: 0.3606971986 | BZ36: 0.0357607976 | CA36: 0.003391335692 | CB36: 0.0003179443147 | CC36: 3.008230198e-05 | CD36: 2.91005342e-06 | CE36: 2.901788809e-07 | CF36: 2.997679882e-08 | CG36: 3.21764837e-09 | CH36: 3.593791931e-10 | CI36: 4.185540803e-11 | CJ36: 4.996003611e-12 | CK36: 7.771561172e-13 | CL36: . | CM36: 0.1324852564 | CN36: 54.66996577 | CO36: 386.6288422 | CP36: 394.8790304 | CQ36: 134.9748129 | CR36: 25.01610881 | CS36: 3.298554189 | CT36: 0.3606971986 | CU36: 0.0357607976 | CV36: 0.003391335692 | CW36: 0.0003179443147 | CX36: 3.008230198e-05 | CY36: 2.91005342e-06 | CZ36: 2.901788809e-07 | DA36: 2.997679882e-08 | DB36: 3.21764837e-09 | DC36: 3.593791931e-10 | DD36: 4.185540803e-11 | DE36: 4.996003611e-12 | DF36: 7.771561172e-13 | DG36: .
B37: F85+ | C37: 1000 | D37: 188.6 | E37: 37.72 | F37: 0 | G37: 0 | H37: 5.220018014 | I37: 0.1980422004 | J37: 168 | K37: 33.6 | L37: 0 | M37: 0 | N37: 5.104353623 | O37: 0.1980422004 | P37: 188.6 | Q37: 37.72 | R37: 0 | S37: 0 | T37: 5.220018014 | U37: 0.1980422004 | V37: 168 | W37: 33.6 | X37: 0 | Y37: 0 | Z37: 5.104353623 | AA37: 0.1980422004 | AB37: 0.01161320624 | AC37: 14.46912029 | AD37: 217.7926608 | AE37: 421.4405801 | AF37: 252.1967789 | AG37: 75.97526858 | AH37: 15.29923873 | AI37: 2.429731513 | AJ37: 0.3359822284 | AK37: 0.04299908987 | AL37: 0.005294135749 | AM37: 0.0006429937301 | AN37: 7.831512816e-05 | AO37: 9.670488632e-06 | AP37: 1.219418455e-06 | AQ37: 1.577675768e-07 | AR37: 2.100686292e-08 | AS37: 2.884026351e-09 | AT37: 4.086730954e-10 | AU37: 7.049916206e-11 | AV37: . | AW37: 0.01161320624 | AX37: 14.46912029 | AY37: 217.7926608 | AZ37: 421.4405801 | BA37: 252.1967789 | BB37: 75.97526858 | BC37: 15.29923873 | BD37: 2.429731513 | BE37: 0.3359822284 | BF37: 0.04299908987 | BG37: 0.005294135749 | BH37: 0.0006429937301 | BI37: 7.831512816e-05 | BJ37: 9.670488632e-06 | BK37: 1.219418455e-06 | BL37: 1.577675768e-07 | BM37: 2.100686292e-08 | BN37: 2.884026351e-09 | BO37: 4.086730954e-10 | BP37: 7.049916206e-11 | BQ37: . | BR37: 0.1324852564 | BS37: 54.66996577 | BT37: 386.6288422 | BU37: 394.8790304 | BV37: 134.9748129 | BW37: 25.01610881 | BX37: 3.298554189 | BY37: 0.3606971986 | BZ37: 0.0357607976 | CA37: 0.003391335692 | CB37: 0.0003179443147 | CC37: 3.008230198e-05 | CD37: 2.91005342e-06 | CE37: 2.901788809e-07 | CF37: 2.997679882e-08 | CG37: 3.21764837e-09 | CH37: 3.593791931e-10 | CI37: 4.185540803e-11 | CJ37: 4.996003611e-12 | CK37: 7.771561172e-13 | CL37: . | CM37: 0.1324852564 | CN37: 54.66996577 | CO37: 386.6288422 | CP37: 394.8790304 | CQ37: 134.9748129 | CR37: 25.01610881 | CS37: 3.298554189 | CT37: 0.3606971986 | CU37: 0.0357607976 | CV37: 0.003391335692 | CW37: 0.0003179443147 | CX37: 3.008230198e-05 | CY37: 2.91005342e-06 | CZ37: 2.901788809e-07 | DA37: 2.997679882e-08 | DB37: 3.21764837e-09 | DC37: 3.593791931e-10 | DD37: 4.185540803e-11 | DE37: 4.996003611e-12 | DF37: 7.771561172e-13 | DG37: .
B41: CHD
B42: fruit
E43: 0 | F43: 100 | G43: 140 | H43: 180 | I43: 220 | J43: 260 | K43: 300 | L43: 340 | M43: 380 | N43: 420 | O43: 460 | P43: 500 | Q43: 540 | R43: 580 | S43: 620 | T43: 660 | U43: 700 | V43: 740 | W43: 780 | X43: 800
E44: Relative risk of CHD by fruit consumption | Y44: Death rate per 1000 from CHD by fruit consumption | AS44: Baseline CHD deaths (fruit) | BN44: Counterfactual CHD deaths (fruit) | CJ44: CHD deaths averted from change in fruit consumption | CK44: Total deaths averted fruit and veg combined (CHD)
C45: CHD mortality | D45: CHD RR for 106g increase in fruit intake | E45: <80 | F45: 80-120 | G45: 120-160 | H45: 160-200 | I45: 200-240 | J45: 240-280 | K45: 280-320 | L45: 320-360 | M45: 360-400 | N45: 400-440 | O45: 440-480 | P45: 480-520 | Q45: 520-560 | R45: 560-600 | S45: 600-640 | T45: 640-680 | U45: 680-720 | V45: 720-760 | W45: 760-800 | X45: >800 | Y45: <80 | Z45: 80-120 | AA45: 120-160 | AB45: 160-200 | AC45: 200-240 | AD45: 240-280 | AE45: 280-320 | AF45: 320-360 | AG45: 360-400 | AH45: 400-440 | AI45: 440-480 | AJ45: 480-520 | AK45: 520-560 | AL45: 560-600 | AM45: 600-640 | AN45: 640-680 | AO45: 680-720 | AP45: 720-760 | AQ45: 760-800 | AR45: >800 | AS45: <80 | AT45: 80-120 | AU45: 120-160 | AV45: 160-200 | AW45: 200-240 | AX45: 240-280 | AY45: 280-320 | AZ45: 320-360 | BA45: 360-400 | BB45: 400-440 | BC45: 440-480 | BD45: 480-520 | BE45: 520-560 | BF45: 560-600 | BG45: 600-640 | BH45: 640-680 | BI45: 680-720 | BJ45: 720-760 | BK45: 760-800 | BL45: >800 | BM45: Check | BN45: <80 | BO45: 80-120 | BP45: 120-160 | BQ45: 160-200 | BR45: 200-240 | BS45: 240-280 | BT45: 280-320 | BU45: 320-360 | BV45: 360-400 | BW45: 400-440 | BX45: 440-480 | BY45: 480-520 | BZ45: 520-560 | CA45: 560-600 | CB45: 600-640 | CC45: 640-680 | CD45: 680-720 | CE45: 720-760 | CF45: 760-800 | CG45: >800 | CH45: Total | CI45: Check | CL45: Total counterfactual deaths, fruit and veg combined
B46: M15-19 | C46: =b_m_ischaemic_heart_diseases_deaths -> 1 | D46: =MC_CHD_RR_for_106g_fruit_increase -> 0.93 | E46: 1 | F46: =($D46)^((F$43-$E$43)/106) -> 0.9338280879 | G46: =($D46)^((G$43-$E$43)/106) -> 0.908602036 | H46: =($D46)^((H$43-$E$43)/106) -> 0.8840574304 | I46: 0.8601758627 | J46: 0.8369394221 | K46: 0.8143306811 | L46: 0.7923326835 | M46: 0.7709289309 | N46: 0.7501033705 | O46: 0.7298403833 | P46: 0.7101247722 | Q46: 0.6909417506 | R46: =$Q46 -> 0.6909417506 | S46: =$Q46 -> 0.6909417506 | T46: 0.6909417506 | U46: 0.6909417506 | V46: 0.6909417506 | W46: 0.6909417506 | X46: 0.6909417506 | Y46: =($C46*1000)/((AB6*E46)+(AC6*F46)+(AD6*G46)+(AE6*H46)+(AF6*I46)+(AG6*J46)+(AH6*K46)+(AI6*L46)+(AJ6*M46)+(AK6*N46)+(AL6*O46)+(AM6*P46)+(AN6*Q46)+(AO6*R46)+(AP6*S46)+(AQ6*T46)+(AR6*U46)+(AS6*V46)+(AT6*W46)+(AU6*X46)) -> 1.137413748 | Z46: =$Y46*F46 -> 1.062148905 | AA46: =$Y46*G46 -> 1.033456447 | AB46: 1.005539075 | AC46: 0.978375852 | AD46: 0.9519464049 | AE46: 0.9262309121 | AF46: 0.9012100872 | AG46: 0.8768651647 | AH46: 0.853177886 | AI46: 0.8301304858 | AJ46: 0.8077056787 | AK46: 0.7858866462 | AL46: 0.7858866462 | AM46: 0.7858866462 | AN46: 0.7858866462 | AO46: 0.7858866462 | AP46: 0.7858866462 | AQ46: 0.7858866462 | AR46: 0.7858866462 | AS46: =(b_m_fruit_actual_distribution*m_fruit_actual_CHD_deathrate)/1000 -> 1.320902044e-05 | AT46: 0.01536836028 | AU46: 0.2250792295 | AV46: 0.4237749712 | AW46: 0.2467432384 | AX46: 0.07232438378 | AY46: 0.01417062784 | AZ46: 0.002189698549 | BA46: 0.000294611112 | BB46: 3.66858726e-05 | BC46: 4.394823481e-06 | BD46: 5.193496872e-07 | BE46: 6.154681342e-08 | BF46: 7.599907879e-09 | BG46: 9.5832468e-10 | BH46: 1.239874318e-10 | BI46: 1.650901304e-11 | BJ46: 2.266517797e-12 | BK46: 3.211707283e-13 | BL46: 5.540435004e-14 | BM46: =IF(ROUND(SUM(AS46:BL46),0)=ROUND($C46,0)," . ","Error") -> . | BN46: =(c_m_fruit_actual_distribution*m_fruit_actual_CHD_deathrate)/1000 -> 1.320902044e-05 | BO46: 0.01536836028 | BP46: 0.2250792295 | BQ46: 0.4237749712 | BR46: 0.2467432384 | BS46: 0.07232438378 | BT46: 0.01417062784 | BU46: 0.002189698549 | BV46: 0.000294611112 | BW46: 3.66858726e-05 | BX46: 4.394823481e-06 | BY46: 5.193496872e-07 | BZ46: 6.154681342e-08 | CA46: 7.599907879e-09 | CB46: 9.5832468e-10 | CC46: 1.239874318e-10 | CD46: 1.650901304e-11 | CE46: 2.266517797e-12 | CF46: 3.211707283e-13 | CG46: 5.540435004e-14 | CH46: =SUM(BN46:CG46) -> 1 | CI46: =IF(ROUND(SUM(BN46:CG46),0)=ROUND($C46,0)," . ","Error") -> . | CJ46: =SUM(AS46:BL46)-SUM(BN46:CG46) -> 0 | CK46: =CJ46+CJ87 -> 0 | CL46: =C46-CK46 -> 1
B47: M20-24 | C47: 1 | D47: =$D$46 -> 0.93 | E47: 1 | F47: =($D47)^((F$43-$E$43)/106) -> 0.9338280879 | G47: 0.908602036 | H47: 0.8840574304 | I47: 0.8601758627 | J47: 0.8369394221 | K47: 0.8143306811 | L47: 0.7923326835 | M47: =($D47)^((M$43-$E$43)/106) -> 0.7709289309 | N47: 0.7501033705 | O47: 0.7298403833 | P47: 0.7101247722 | Q47: 0.6909417506 | R47: =$Q47 -> 0.6909417506 | S47: 0.6909417506 | T47: 0.6909417506 | U47: 0.6909417506 | V47: 0.6909417506 | W47: 0.6909417506 | X47: 0.6909417506 | Y47: 1.137413748 | Z47: =$Y47*F47 -> 1.062148905 | AA47: =$Y47*G47 -> 1.033456447 | AB47: =$Y47*H47 -> 1.005539075 | AC47: =$Y47*I47 -> 0.978375852 | AD47: =$Y47*J47 -> 0.9519464049 | AE47: =$Y47*K47 -> 0.9262309121 | AF47: =$Y47*L47 -> 0.9012100872 | AG47: =$Y47*M47 -> 0.8768651647 | AH47: =$Y47*N47 -> 0.853177886 | AI47: =$Y47*O47 -> 0.8301304858 | AJ47: =$Y47*P47 -> 0.8077056787 | AK47: =$Y47*Q47 -> 0.7858866462 | AL47: =$Y47*R47 -> 0.7858866462 | AM47: =$Y47*S47 -> 0.7858866462 | AN47: =$Y47*T47 -> 0.7858866462 | AO47: =$Y47*U47 -> 0.7858866462 | AP47: =$Y47*V47 -> 0.7858866462 | AQ47: =$Y47*W47 -> 0.7858866462 | AR47: =$Y47*X47 -> 0.7858866462 | AS47: 1.320902044e-05 | AT47: 0.01536836028 | AU47: 0.2250792295 | AV47: 0.4237749712 | AW47: 0.2467432384 | AX47: 0.07232438378 | AY47: 0.01417062784 | AZ47: 0.002189698549 | BA47: 0.000294611112 | BB47: 3.66858726e-05 | BC47: 4.394823481e-06 | BD47: 5.193496872e-07 | BE47: 6.154681342e-08 | BF47: 7.599907879e-09 | BG47: 9.5832468e-10 | BH47: 1.239874318e-10 | BI47: 1.650901304e-11 | BJ47: 2.266517797e-12 | BK47: 3.211707283e-13 | BL47: 5.540435004e-14 | BM47: =IF(ROUND(SUM(AS47:BL47),0)=ROUND($C47,0)," . ","Error") -> . | BN47: 1.320902044e-05 | BO47: 0.01536836028 | BP47: 0.2250792295 | BQ47: 0.4237749712 | BR47: 0.2467432384 | BS47: 0.07232438378 | BT47: 0.01417062784 | BU47: 0.002189698549 | BV47: 0.000294611112 | BW47: 3.66858726e-05 | BX47: 4.394823481e-06 | BY47: 5.193496872e-07 | BZ47: 6.154681342e-08 | CA47: 7.599907879e-09 | CB47: 9.5832468e-10 | CC47: 1.239874318e-10 | CD47: 1.650901304e-11 | CE47: 2.266517797e-12 | CF47: 3.211707283e-13 | CG47: 5.540435004e-14 | CH47: =SUM(BN47:CG47) -> 1 | CI47: =IF(ROUND(SUM(BN47:CG47),0)=ROUND($C47,0)," . ","Error") -> . | CJ47: =SUM(AS47:BL47)-SUM(BN47:CG47) -> 0 | CK47: =CJ47+CJ88 -> 0 | CL47: =C47-CK47 -> 1
B48: M25-29 | C48: 1 | D48: =$D$46 -> 0.93 | E48: 1 | F48: 0.9338280879 | G48: 0.908602036 | H48: 0.8840574304 | I48: 0.8601758627 | J48: 0.8369394221 | K48: 0.8143306811 | L48: 0.7923326835 | M48: 0.7709289309 | N48: 0.7501033705 | O48: 0.7298403833 | P48: 0.7101247722 | Q48: 0.6909417506 | R48: 0.6909417506 | S48: 0.6909417506 | T48: 0.6909417506 | U48: 0.6909417506 | V48: 0.6909417506 | W48: 0.6909417506 | X48: 0.6909417506 | Y48: 1.137413748 | Z48: 1.062148905 | AA48: 1.033456447 | AB48: 1.005539075 | AC48: 0.978375852 | AD48: 0.9519464049 | AE48: 0.9262309121 | AF48: 0.9012100872 | AG48: 0.8768651647 | AH48: 0.853177886 | AI48: 0.8301304858 | AJ48: 0.8077056787 | AK48: 0.7858866462 | AL48: 0.7858866462 | AM48: 0.7858866462 | AN48: 0.7858866462 | AO48: 0.7858866462 | AP48: 0.7858866462 | AQ48: 0.7858866462 | AR48: 0.7858866462 | AS48: 1.320902044e-05 | AT48: 0.01536836028 | AU48: 0.2250792295 | AV48: 0.4237749712 | AW48: 0.2467432384 | AX48: 0.07232438378 | AY48: 0.01417062784 | AZ48: 0.002189698549 | BA48: 0.000294611112 | BB48: 3.66858726e-05 | BC48: 4.394823481e-06 | BD48: 5.193496872e-07 | BE48: 6.154681342e-08 | BF48: 7.599907879e-09 | BG48: 9.5832468e-10 | BH48: 1.239874318e-10 | BI48: 1.650901304e-11 | BJ48: 2.266517797e-12 | BK48: 3.211707283e-13 | BL48: 5.540435004e-14 | BM48: . | BN48: 1.320902044e-05 | BO48: 0.01536836028 | BP48: 0.2250792295 | BQ48: 0.4237749712 | BR48: 0.2467432384 | BS48: 0.07232438378 | BT48: 0.01417062784 | BU48: 0.002189698549 | BV48: 0.000294611112 | BW48: 3.66858726e-05 | BX48: 4.394823481e-06 | BY48: 5.193496872e-07 | BZ48: 6.154681342e-08 | CA48: 7.599907879e-09 | CB48: 9.5832468e-10 | CC48: 1.239874318e-10 | CD48: 1.650901304e-11 | CE48: 2.266517797e-12 | CF48: 3.211707283e-13 | CG48: 5.540435004e-14 | CH48: 1 | CI48: . | CJ48: 0 | CK48: 0 | CL48: 1
B49: M30-34 | C49: 1 | D49: 0.93 | E49: 1 | F49: 0.9338280879 | G49: 0.908602036 | H49: 0.8840574304 | I49: 0.8601758627 | J49: 0.8369394221 | K49: 0.8143306811 | L49: 0.7923326835 | M49: 0.7709289309 | N49: 0.7501033705 | O49: 0.7298403833 | P49: 0.7101247722 | Q49: 0.6909417506 | R49: 0.6909417506 | S49: 0.6909417506 | T49: 0.6909417506 | U49: 0.6909417506 | V49: 0.6909417506 | W49: 0.6909417506 | X49: 0.6909417506 | Y49: 1.137413748 | Z49: 1.062148905 | AA49: 1.033456447 | AB49: 1.005539075 | AC49: 0.978375852 | AD49: 0.9519464049 | AE49: 0.9262309121 | AF49: 0.9012100872 | AG49: 0.8768651647 | AH49: 0.853177886 | AI49: 0.8301304858 | AJ49: 0.8077056787 | AK49: 0.7858866462 | AL49: 0.7858866462 | AM49: 0.7858866462 | AN49: 0.7858866462 | AO49: 0.7858866462 | AP49: 0.7858866462 | AQ49: 0.7858866462 | AR49: 0.7858866462 | AS49: 1.320902044e-05 | AT49: 0.01536836028 | AU49: 0.2250792295 | AV49: 0.4237749712 | AW49: 0.2467432384 | AX49: 0.07232438378 | AY49: 0.01417062784 | AZ49: 0.002189698549 | BA49: 0.000294611112 | BB49: 3.66858726e-05 | BC49: 4.394823481e-06 | BD49: 5.193496872e-07 | BE49: 6.154681342e-08 | BF49: 7.599907879e-09 | BG49: 9.5832468e-10 | BH49: 1.239874318e-10 | BI49: 1.650901304e-11 | BJ49: 2.266517797e-12 | BK49: 3.211707283e-13 | BL49: 5.540435004e-14 | BM49: . | BN49: 1.320902044e-05 | BO49: 0.01536836028 | BP49: 0.2250792295 | BQ49: 0.4237749712 | BR49: 0.2467432384 | BS49: 0.07232438378 | BT49: 0.01417062784 | BU49: 0.002189698549 | BV49: 0.000294611112 | BW49: 3.66858726e-05 | BX49: 4.394823481e-06 | BY49: 5.193496872e-07 | BZ49: 6.154681342e-08 | CA49: 7.599907879e-09 | CB49: 9.5832468e-10 | CC49: 1.239874318e-10 | CD49: 1.650901304e-11 | CE49: 2.266517797e-12 | CF49: 3.211707283e-13 | CG49: 5.540435004e-14 | CH49: 1 | CI49: . | CJ49: 0 | CK49: 0 | CL49: =C49-CK49 -> 1
B50: M35-39 | C50: 1 | D50: 0.93 | E50: 1 | F50: 0.9338280879 | G50: 0.908602036 | H50: 0.8840574304 | I50: 0.8601758627 | J50: 0.8369394221 | K50: 0.8143306811 | L50: 0.7923326835 | M50: 0.7709289309 | N50: 0.7501033705 | O50: 0.7298403833 | P50: 0.7101247722 | Q50: 0.6909417506 | R50: 0.6909417506 | S50: 0.6909417506 | T50: 0.6909417506 | U50: 0.6909417506 | V50: 0.6909417506 | W50: 0.6909417506 | X50: 0.6909417506 | Y50: 1.137413748 | Z50: 1.062148905 | AA50: 1.033456447 | AB50: 1.005539075 | AC50: 0.978375852 | AD50: 0.9519464049 | AE50: 0.9262309121 | AF50: 0.9012100872 | AG50: 0.8768651647 | AH50: 0.853177886 | AI50: 0.8301304858 | AJ50: 0.8077056787 | AK50: 0.7858866462 | AL50: 0.7858866462 | AM50: 0.7858866462 | AN50: 0.7858866462 | AO50: 0.7858866462 | AP50: 0.7858866462 | AQ50: 0.7858866462 | AR50: 0.7858866462 | AS50: 1.320902044e-05 | AT50: 0.01536836028 | AU50: 0.2250792295 | AV50: 0.4237749712 | AW50: 0.2467432384 | AX50: 0.07232438378 | AY50: 0.01417062784 | AZ50: 0.002189698549 | BA50: 0.000294611112 | BB50: 3.66858726e-05 | BC50: 4.394823481e-06 | BD50: 5.193496872e-07 | BE50: 6.154681342e-08 | BF50: 7.599907879e-09 | BG50: 9.5832468e-10 | BH50: 1.239874318e-10 | BI50: 1.650901304e-11 | BJ50: 2.266517797e-12 | BK50: 3.211707283e-13 | BL50: 5.540435004e-14 | BM50: . | BN50: 1.320902044e-05 | BO50: 0.01536836028 | BP50: 0.2250792295 | BQ50: 0.4237749712 | BR50: 0.2467432384 | BS50: 0.07232438378 | BT50: 0.01417062784 | BU50: 0.002189698549 | BV50: 0.000294611112 | BW50: 3.66858726e-05 | BX50: 4.394823481e-06 | BY50: 5.193496872e-07 | BZ50: 6.154681342e-08 | CA50: 7.599907879e-09 | CB50: 9.5832468e-10 | CC50: 1.239874318e-10 | CD50: 1.650901304e-11 | CE50: 2.266517797e-12 | CF50: 3.211707283e-13 | CG50: 5.540435004e-14 | CH50: 1 | CI50: . | CJ50: 0 | CK50: 0 | CL50: 1
B51: M40-44 | C51: 1 | D51: 0.93 | E51: 1 | F51: 0.9338280879 | G51: 0.908602036 | H51: 0.8840574304 | I51: 0.8601758627 | J51: 0.8369394221 | K51: 0.8143306811 | L51: 0.7923326835 | M51: 0.7709289309 | N51: 0.7501033705 | O51: 0.7298403833 | P51: 0.7101247722 | Q51: 0.6909417506 | R51: 0.6909417506 | S51: 0.6909417506 | T51: 0.6909417506 | U51: 0.6909417506 | V51: 0.6909417506 | W51: 0.6909417506 | X51: 0.6909417506 | Y51: 1.137413748 | Z51: 1.062148905 | AA51: 1.033456447 | AB51: 1.005539075 | AC51: 0.978375852 | AD51: 0.9519464049 | AE51: 0.9262309121 | AF51: 0.9012100872 | AG51: 0.8768651647 | AH51: 0.853177886 | AI51: 0.8301304858 | AJ51: 0.8077056787 | AK51: 0.7858866462 | AL51: 0.7858866462 | AM51: 0.7858866462 | AN51: 0.7858866462 | AO51: 0.7858866462 | AP51: 0.7858866462 | AQ51: 0.7858866462 | AR51: 0.7858866462 | AS51: 1.320902044e-05 | AT51: 0.01536836028 | AU51: 0.2250792295 | AV51: 0.4237749712 | AW51: 0.2467432384 | AX51: 0.07232438378 | AY51: 0.01417062784 | AZ51: 0.002189698549 | BA51: 0.000294611112 | BB51: 3.66858726e-05 | BC51: 4.394823481e-06 | BD51: 5.193496872e-07 | BE51: 6.154681342e-08 | BF51: 7.599907879e-09 | BG51: 9.5832468e-10 | BH51: 1.239874318e-10 | BI51: 1.650901304e-11 | BJ51: 2.266517797e-12 | BK51: 3.211707283e-13 | BL51: 5.540435004e-14 | BM51: . | BN51: 1.320902044e-05 | BO51: 0.01536836028 | BP51: 0.2250792295 | BQ51: 0.4237749712 | BR51: 0.2467432384 | BS51: 0.07232438378 | BT51: 0.01417062784 | BU51: 0.002189698549 | BV51: 0.000294611112 | BW51: 3.66858726e-05 | BX51: 4.394823481e-06 | BY51: 5.193496872e-07 | BZ51: 6.154681342e-08 | CA51: 7.599907879e-09 | CB51: 9.5832468e-10 | CC51: 1.239874318e-10 | CD51: 1.650901304e-11 | CE51: 2.266517797e-12 | CF51: 3.211707283e-13 | CG51: 5.540435004e-14 | CH51: 1 | CI51: . | CJ51: 0 | CK51: 0 | CL51: =C51-CK51 -> 1
B52: M45-49 | C52: 1 | D52: 0.93 | E52: 1 | F52: 0.9338280879 | G52: 0.908602036 | H52: 0.8840574304 | I52: 0.8601758627 | J52: 0.8369394221 | K52: 0.8143306811 | L52: 0.7923326835 | M52: 0.7709289309 | N52: 0.7501033705 | O52: 0.7298403833 | P52: 0.7101247722 | Q52: 0.6909417506 | R52: 0.6909417506 | S52: 0.6909417506 | T52: 0.6909417506 | U52: 0.6909417506 | V52: 0.6909417506 | W52: 0.6909417506 | X52: 0.6909417506 | Y52: 1.137413748 | Z52: 1.062148905 | AA52: 1.033456447 | AB52: 1.005539075 | AC52: 0.978375852 | AD52: 0.9519464049 | AE52: 0.9262309121 | AF52: 0.9012100872 | AG52: 0.8768651647 | AH52: 0.853177886 | AI52: 0.8301304858 | AJ52: 0.8077056787 | AK52: 0.7858866462 | AL52: 0.7858866462 | AM52: 0.7858866462 | AN52: 0.7858866462 | AO52: 0.7858866462 | AP52: 0.7858866462 | AQ52: 0.7858866462 | AR52: 0.7858866462 | AS52: 1.320902044e-05 | AT52: 0.01536836028 | AU52: 0.2250792295 | AV52: 0.4237749712 | AW52: 0.2467432384 | AX52: 0.07232438378 | AY52: 0.01417062784 | AZ52: 0.002189698549 | BA52: 0.000294611112 | BB52: 3.66858726e-05 | BC52: 4.394823481e-06 | BD52: 5.193496872e-07 | BE52: 6.154681342e-08 | BF52: 7.599907879e-09 | BG52: 9.5832468e-10 | BH52: 1.239874318e-10 | BI52: 1.650901304e-11 | BJ52: 2.266517797e-12 | BK52: 3.211707283e-13 | BL52: 5.540435004e-14 | BM52: . | BN52: 1.320902044e-05 | BO52: 0.01536836028 | BP52: 0.2250792295 | BQ52: 0.4237749712 | BR52: 0.2467432384 | BS52: 0.07232438378 | BT52: 0.01417062784 | BU52: 0.002189698549 | BV52: 0.000294611112 | BW52: 3.66858726e-05 | BX52: 4.394823481e-06 | BY52: 5.193496872e-07 | BZ52: 6.154681342e-08 | CA52: 7.599907879e-09 | CB52: 9.5832468e-10 | CC52: 1.239874318e-10 | CD52: 1.650901304e-11 | CE52: 2.266517797e-12 | CF52: 3.211707283e-13 | CG52: 5.540435004e-14 | CH52: 1 | CI52: . | CJ52: 0 | CK52: 0 | CL52: 1
B53: M50-54 | C53: 1 | D53: 0.93 | E53: 1 | F53: 0.9338280879 | G53: 0.908602036 | H53: 0.8840574304 | I53: 0.8601758627 | J53: 0.8369394221 | K53: 0.8143306811 | L53: 0.7923326835 | M53: 0.7709289309 | N53: 0.7501033705 | O53: 0.7298403833 | P53: 0.7101247722 | Q53: 0.6909417506 | R53: 0.6909417506 | S53: 0.6909417506 | T53: 0.6909417506 | U53: 0.6909417506 | V53: 0.6909417506 | W53: 0.6909417506 | X53: 0.6909417506 | Y53: 1.137413748 | Z53: 1.062148905 | AA53: 1.033456447 | AB53: 1.005539075 | AC53: 0.978375852 | AD53: 0.9519464049 | AE53: 0.9262309121 | AF53: 0.9012100872 | AG53: 0.8768651647 | AH53: 0.853177886 | AI53: 0.8301304858 | AJ53: 0.8077056787 | AK53: 0.7858866462 | AL53: 0.7858866462 | AM53: 0.7858866462 | AN53: 0.7858866462 | AO53: 0.7858866462 | AP53: 0.7858866462 | AQ53: 0.7858866462 | AR53: 0.7858866462 | AS53: 1.320902044e-05 | AT53: 0.01536836028 | AU53: 0.2250792295 | AV53: 0.4237749712 | AW53: 0.2467432384 | AX53: 0.07232438378 | AY53: 0.01417062784 | AZ53: 0.002189698549 | BA53: 0.000294611112 | BB53: 3.66858726e-05 | BC53: 4.394823481e-06 | BD53: 5.193496872e-07 | BE53: 6.154681342e-08 | BF53: 7.599907879e-09 | BG53: 9.5832468e-10 | BH53: 1.239874318e-10 | BI53: 1.650901304e-11 | BJ53: 2.266517797e-12 | BK53: 3.211707283e-13 | BL53: 5.540435004e-14 | BM53: . | BN53: 1.320902044e-05 | BO53: 0.01536836028 | BP53: 0.2250792295 | BQ53: 0.4237749712 | BR53: 0.2467432384 | BS53: 0.07232438378 | BT53: 0.01417062784 | BU53: 0.002189698549 | BV53: 0.000294611112 | BW53: 3.66858726e-05 | BX53: 4.394823481e-06 | BY53: 5.193496872e-07 | BZ53: 6.154681342e-08 | CA53: 7.599907879e-09 | CB53: 9.5832468e-10 | CC53: 1.239874318e-10 | CD53: 1.650901304e-11 | CE53: 2.266517797e-12 | CF53: 3.211707283e-13 | CG53: 5.540435004e-14 | CH53: 1 | CI53: . | CJ53: 0 | CK53: 0 | CL53: 1
B54: M55-59 | C54: 1 | D54: 0.93 | E54: 1 | F54: 0.9338280879 | G54: 0.908602036 | H54: 0.8840574304 | I54: 0.8601758627 | J54: 0.8369394221 | K54: 0.8143306811 | L54: 0.7923326835 | M54: 0.7709289309 | N54: 0.7501033705 | O54: 0.7298403833 | P54: 0.7101247722 | Q54: 0.6909417506 | R54: 0.6909417506 | S54: 0.6909417506 | T54: 0.6909417506 | U54: 0.6909417506 | V54: 0.6909417506 | W54: 0.6909417506 | X54: 0.6909417506 | Y54: 1.137413748 | Z54: 1.062148905 | AA54: 1.033456447 | AB54: 1.005539075 | AC54: 0.978375852 | AD54: 0.9519464049 | AE54: 0.9262309121 | AF54: 0.9012100872 | AG54: 0.8768651647 | AH54: 0.853177886 | AI54: 0.8301304858 | AJ54: 0.8077056787 | AK54: 0.7858866462 | AL54: 0.7858866462 | AM54: 0.7858866462 | AN54: 0.7858866462 | AO54: 0.7858866462 | AP54: 0.7858866462 | AQ54: 0.7858866462 | AR54: 0.7858866462 | AS54: 1.320902044e-05 | AT54: 0.01536836028 | AU54: 0.2250792295 | AV54: 0.4237749712 | AW54: 0.2467432384 | AX54: 0.07232438378 | AY54: 0.01417062784 | AZ54: 0.002189698549 | BA54: 0.000294611112 | BB54: 3.66858726e-05 | BC54: 4.394823481e-06 | BD54: 5.193496872e-07 | BE54: 6.154681342e-08 | BF54: 7.599907879e-09 | BG54: 9.5832468e-10 | BH54: 1.239874318e-10 | BI54: 1.650901304e-11 | BJ54: 2.266517797e-12 | BK54: 3.211707283e-13 | BL54: 5.540435004e-14 | BM54: . | BN54: 1.320902044e-05 | BO54: 0.01536836028 | BP54: 0.2250792295 | BQ54: 0.4237749712 | BR54: 0.2467432384 | BS54: 0.07232438378 | BT54: 0.01417062784 | BU54: 0.002189698549 | BV54: 0.000294611112 | BW54: 3.66858726e-05 | BX54: 4.394823481e-06 | BY54: 5.193496872e-07 | BZ54: 6.154681342e-08 | CA54: 7.599907879e-09 | CB54: 9.5832468e-10 | CC54: 1.239874318e-10 | CD54: 1.650901304e-11 | CE54: 2.266517797e-12 | CF54: 3.211707283e-13 | CG54: 5.540435004e-14 | CH54: 1 | CI54: . | CJ54: 0 | CK54: 0 | CL54: 1
B55: M60-64 | C55: 1 | D55: 0.93 | E55: 1 | F55: 0.9338280879 | G55: 0.908602036 | H55: 0.8840574304 | I55: 0.8601758627 | J55: 0.8369394221 | K55: 0.8143306811 | L55: 0.7923326835 | M55: 0.7709289309 | N55: 0.7501033705 | O55: 0.7298403833 | P55: 0.7101247722 | Q55: 0.6909417506 | R55: 0.6909417506 | S55: 0.6909417506 | T55: 0.6909417506 | U55: 0.6909417506 | V55: 0.6909417506 | W55: 0.6909417506 | X55: 0.6909417506 | Y55: 1.137413748 | Z55: 1.062148905 | AA55: 1.033456447 | AB55: 1.005539075 | AC55: 0.978375852 | AD55: 0.9519464049 | AE55: 0.9262309121 | AF55: 0.9012100872 | AG55: 0.8768651647 | AH55: 0.853177886 | AI55: 0.8301304858 | AJ55: 0.8077056787 | AK55: 0.7858866462 | AL55: 0.7858866462 | AM55: 0.7858866462 | AN55: 0.7858866462 | AO55: 0.7858866462 | AP55: 0.7858866462 | AQ55: 0.7858866462 | AR55: 0.7858866462 | AS55: 1.320902044e-05 | AT55: 0.01536836028 | AU55: 0.2250792295 | AV55: 0.4237749712 | AW55: 0.2467432384 | AX55: 0.07232438378 | AY55: 0.01417062784 | AZ55: 0.002189698549 | BA55: 0.000294611112 | BB55: 3.66858726e-05 | BC55: 4.394823481e-06 | BD55: 5.193496872e-07 | BE55: 6.154681342e-08 | BF55: 7.599907879e-09 | BG55: 9.5832468e-10 | BH55: 1.239874318e-10 | BI55: 1.650901304e-11 | BJ55: 2.266517797e-12 | BK55: 3.211707283e-13 | BL55: 5.540435004e-14 | BM55: . | BN55: 1.320902044e-05 | BO55: 0.01536836028 | BP55: 0.2250792295 | BQ55: 0.4237749712 | BR55: 0.2467432384 | BS55: 0.07232438378 | BT55: 0.01417062784 | BU55: 0.002189698549 | BV55: 0.000294611112 | BW55: 3.66858726e-05 | BX55: 4.394823481e-06 | BY55: 5.193496872e-07 | BZ55: 6.154681342e-08 | CA55: 7.599907879e-09 | CB55: 9.5832468e-10 | CC55: 1.239874318e-10 | CD55: 1.650901304e-11 | CE55: 2.266517797e-12 | CF55: 3.211707283e-13 | CG55: 5.540435004e-14 | CH55: 1 | CI55: . | CJ55: 0 | CK55: 0 | CL55: 1
B56: M65-69 | C56: 1 | D56: 0.93 | E56: 1 | F56: 0.9338280879 | G56: 0.908602036 | H56: 0.8840574304 | I56: 0.8601758627 | J56: 0.8369394221 | K56: 0.8143306811 | L56: 0.7923326835 | M56: 0.7709289309 | N56: 0.7501033705 | O56: 0.7298403833 | P56: 0.7101247722 | Q56: 0.6909417506 | R56: 0.6909417506 | S56: 0.6909417506 | T56: 0.6909417506 | U56: 0.6909417506 | V56: 0.6909417506 | W56: 0.6909417506 | X56: 0.6909417506 | Y56: 1.137413748 | Z56: 1.062148905 | AA56: 1.033456447 | AB56: 1.005539075 | AC56: 0.978375852 | AD56: 0.9519464049 | AE56: 0.9262309121 | AF56: 0.9012100872 | AG56: 0.8768651647 | AH56: 0.853177886 | AI56: 0.8301304858 | AJ56: 0.8077056787 | AK56: 0.7858866462 | AL56: 0.7858866462 | AM56: 0.7858866462 | AN56: 0.7858866462 | AO56: 0.7858866462 | AP56: 0.7858866462 | AQ56: 0.7858866462 | AR56: 0.7858866462 | AS56: 1.320902044e-05 | AT56: 0.01536836028 | AU56: 0.2250792295 | AV56: 0.4237749712 | AW56: 0.2467432384 | AX56: 0.07232438378 | AY56: 0.01417062784 | AZ56: 0.002189698549 | BA56: 0.000294611112 | BB56: 3.66858726e-05 | BC56: 4.394823481e-06 | BD56: 5.193496872e-07 | BE56: 6.154681342e-08 | BF56: 7.599907879e-09 | BG56: 9.5832468e-10 | BH56: 1.239874318e-10 | BI56: 1.650901304e-11 | BJ56: 2.266517797e-12 | BK56: 3.211707283e-13 | BL56: 5.540435004e-14 | BM56: . | BN56: 1.320902044e-05 | BO56: 0.01536836028 | BP56: 0.2250792295 | BQ56: 0.4237749712 | BR56: 0.2467432384 | BS56: 0.07232438378 | BT56: 0.01417062784 | BU56: 0.002189698549 | BV56: 0.000294611112 | BW56: 3.66858726e-05 | BX56: 4.394823481e-06 | BY56: 5.193496872e-07 | BZ56: 6.154681342e-08 | CA56: 7.599907879e-09 | CB56: 9.5832468e-10 | CC56: 1.239874318e-10 | CD56: 1.650901304e-11 | CE56: 2.266517797e-12 | CF56: 3.211707283e-13 | CG56: 5.540435004e-14 | CH56: 1 | CI56: . | CJ56: 0 | CK56: 0 | CL56: 1
B57: M70-74 | C57: 1 | D57: 0.93 | E57: 1 | F57: 0.9338280879 | G57: 0.908602036 | H57: 0.8840574304 | I57: 0.8601758627 | J57: 0.8369394221 | K57: 0.8143306811 | L57: 0.7923326835 | M57: 0.7709289309 | N57: 0.7501033705 | O57: 0.7298403833 | P57: 0.7101247722 | Q57: 0.6909417506 | R57: 0.6909417506 | S57: 0.6909417506 | T57: 0.6909417506 | U57: 0.6909417506 | V57: 0.6909417506 | W57: 0.6909417506 | X57: 0.6909417506 | Y57: 1.137413748 | Z57: 1.062148905 | AA57: 1.033456447 | AB57: 1.005539075 | AC57: 0.978375852 | AD57: 0.9519464049 | AE57: 0.9262309121 | AF57: 0.9012100872 | AG57: 0.8768651647 | AH57: 0.853177886 | AI57: 0.8301304858 | AJ57: 0.8077056787 | AK57: 0.7858866462 | AL57: 0.7858866462 | AM57: 0.7858866462 | AN57: 0.7858866462 | AO57: 0.7858866462 | AP57: 0.7858866462 | AQ57: 0.7858866462 | AR57: 0.7858866462 | AS57: 1.320902044e-05 | AT57: 0.01536836028 | AU57: 0.2250792295 | AV57: 0.4237749712 | AW57: 0.2467432384 | AX57: 0.07232438378 | AY57: 0.01417062784 | AZ57: 0.002189698549 | BA57: 0.000294611112 | BB57: 3.66858726e-05 | BC57: 4.394823481e-06 | BD57: 5.193496872e-07 | BE57: 6.154681342e-08 | BF57: 7.599907879e-09 | BG57: 9.5832468e-10 | BH57: 1.239874318e-10 | BI57: 1.650901304e-11 | BJ57: 2.266517797e-12 | BK57: 3.211707283e-13 | BL57: 5.540435004e-14 | BM57: . | BN57: 1.320902044e-05 | BO57: 0.01536836028 | BP57: 0.2250792295 | BQ57: 0.4237749712 | BR57: 0.2467432384 | BS57: 0.07232438378 | BT57: 0.01417062784 | BU57: 0.002189698549 | BV57: 0.000294611112 | BW57: 3.66858726e-05 | BX57: 4.394823481e-06 | BY57: 5.193496872e-07 | BZ57: 6.154681342e-08 | CA57: 7.599907879e-09 | CB57: 9.5832468e-10 | CC57: 1.239874318e-10 | CD57: 1.650901304e-11 | CE57: 2.266517797e-12 | CF57: 3.211707283e-13 | CG57: 5.540435004e-14 | CH57: 1 | CI57: . | CJ57: 0 | CK57: 0 | CL57: 1
B58: M75-79 | C58: 1 | D58: 0.93 | E58: 1 | F58: 0.9338280879 | G58: 0.908602036 | H58: 0.8840574304 | I58: 0.8601758627 | J58: 0.8369394221 | K58: 0.8143306811 | L58: 0.7923326835 | M58: 0.7709289309 | N58: 0.7501033705 | O58: 0.7298403833 | P58: 0.7101247722 | Q58: 0.6909417506 | R58: 0.6909417506 | S58: 0.6909417506 | T58: 0.6909417506 | U58: 0.6909417506 | V58: 0.6909417506 | W58: 0.6909417506 | X58: 0.6909417506 | Y58: 1.137413748 | Z58: 1.062148905 | AA58: 1.033456447 | AB58: 1.005539075 | AC58: 0.978375852 | AD58: 0.9519464049 | AE58: 0.9262309121 | AF58: 0.9012100872 | AG58: 0.8768651647 | AH58: 0.853177886 | AI58: 0.8301304858 | AJ58: 0.8077056787 | AK58: 0.7858866462 | AL58: 0.7858866462 | AM58: 0.7858866462 | AN58: 0.7858866462 | AO58: 0.7858866462 | AP58: 0.7858866462 | AQ58: 0.7858866462 | AR58: 0.7858866462 | AS58: 1.320902044e-05 | AT58: 0.01536836028 | AU58: 0.2250792295 | AV58: 0.4237749712 | AW58: 0.2467432384 | AX58: 0.07232438378 | AY58: 0.01417062784 | AZ58: 0.002189698549 | BA58: 0.000294611112 | BB58: 3.66858726e-05 | BC58: 4.394823481e-06 | BD58: 5.193496872e-07 | BE58: 6.154681342e-08 | BF58: 7.599907879e-09 | BG58: 9.5832468e-10 | BH58: 1.239874318e-10 | BI58: 1.650901304e-11 | BJ58: 2.266517797e-12 | BK58: 3.211707283e-13 | BL58: 5.540435004e-14 | BM58: . | BN58: 1.320902044e-05 | BO58: 0.01536836028 | BP58: 0.2250792295 | BQ58: 0.4237749712 | BR58: 0.2467432384 | BS58: 0.07232438378 | BT58: 0.01417062784 | BU58: 0.002189698549 | BV58: 0.000294611112 | BW58: 3.66858726e-05 | BX58: 4.394823481e-06 | BY58: 5.193496872e-07 | BZ58: 6.154681342e-08 | CA58: 7.599907879e-09 | CB58: 9.5832468e-10 | CC58: 1.239874318e-10 | CD58: 1.650901304e-11 | CE58: 2.266517797e-12 | CF58: 3.211707283e-13 | CG58: 5.540435004e-14 | CH58: 1 | CI58: . | CJ58: 0 | CK58: 0 | CL58: 1
B59: M80-84 | C59: 1 | D59: 0.93 | E59: 1 | F59: 0.9338280879 | G59: 0.908602036 | H59: 0.8840574304 | I59: 0.8601758627 | J59: 0.8369394221 | K59: 0.8143306811 | L59: 0.7923326835 | M59: 0.7709289309 | N59: 0.7501033705 | O59: 0.7298403833 | P59: 0.7101247722 | Q59: 0.6909417506 | R59: 0.6909417506 | S59: 0.6909417506 | T59: 0.6909417506 | U59: 0.6909417506 | V59: 0.6909417506 | W59: 0.6909417506 | X59: 0.6909417506 | Y59: 1.137413748 | Z59: 1.062148905 | AA59: 1.033456447 | AB59: 1.005539075 | AC59: 0.978375852 | AD59: 0.9519464049 | AE59: 0.9262309121 | AF59: 0.9012100872 | AG59: 0.8768651647 | AH59: 0.853177886 | AI59: 0.8301304858 | AJ59: 0.8077056787 | AK59: 0.7858866462 | AL59: 0.7858866462 | AM59: 0.7858866462 | AN59: 0.7858866462 | AO59: 0.7858866462 | AP59: 0.7858866462 | AQ59: 0.7858866462 | AR59: 0.7858866462 | AS59: 1.320902044e-05 | AT59: 0.01536836028 | AU59: 0.2250792295 | AV59: 0.4237749712 | AW59: 0.2467432384 | AX59: 0.07232438378 | AY59: 0.01417062784 | AZ59: 0.002189698549 | BA59: 0.000294611112 | BB59: 3.66858726e-05 | BC59: 4.394823481e-06 | BD59: 5.193496872e-07 | BE59: 6.154681342e-08 | BF59: 7.599907879e-09 | BG59: 9.5832468e-10 | BH59: 1.239874318e-10 | BI59: 1.650901304e-11 | BJ59: 2.266517797e-12 | BK59: 3.211707283e-13 | BL59: 5.540435004e-14 | BM59: . | BN59: 1.320902044e-05 | BO59: 0.01536836028 | BP59: 0.2250792295 | BQ59: 0.4237749712 | BR59: 0.2467432384 | BS59: 0.07232438378 | BT59: 0.01417062784 | BU59: 0.002189698549 | BV59: 0.000294611112 | BW59: 3.66858726e-05 | BX59: 4.394823481e-06 | BY59: 5.193496872e-07 | BZ59: 6.154681342e-08 | CA59: 7.599907879e-09 | CB59: 9.5832468e-10 | CC59: 1.239874318e-10 | CD59: 1.650901304e-11 | CE59: 2.266517797e-12 | CF59: 3.211707283e-13 | CG59: 5.540435004e-14 | CH59: 1 | CI59: . | CJ59: 0 | CK59: 0 | CL59: 1
B60: M85+ | C60: 1 | D60: 0.93 | E60: 1 | F60: 0.9338280879 | G60: 0.908602036 | H60: 0.8840574304 | I60: 0.8601758627 | J60: 0.8369394221 | K60: 0.8143306811 | L60: 0.7923326835 | M60: 0.7709289309 | N60: 0.7501033705 | O60: 0.7298403833 | P60: 0.7101247722 | Q60: 0.6909417506 | R60: 0.6909417506 | S60: 0.6909417506 | T60: 0.6909417506 | U60: 0.6909417506 | V60: 0.6909417506 | W60: 0.6909417506 | X60: 0.6909417506 | Y60: 1.137413748 | Z60: 1.062148905 | AA60: 1.033456447 | AB60: 1.005539075 | AC60: 0.978375852 | AD60: 0.9519464049 | AE60: 0.9262309121 | AF60: 0.9012100872 | AG60: 0.8768651647 | AH60: 0.853177886 | AI60: 0.8301304858 | AJ60: 0.8077056787 | AK60: 0.7858866462 | AL60: 0.7858866462 | AM60: 0.7858866462 | AN60: 0.7858866462 | AO60: 0.7858866462 | AP60: 0.7858866462 | AQ60: 0.7858866462 | AR60: 0.7858866462 | AS60: 1.320902044e-05 | AT60: 0.01536836028 | AU60: 0.2250792295 | AV60: 0.4237749712 | AW60: 0.2467432384 | AX60: 0.07232438378 | AY60: 0.01417062784 | AZ60: 0.002189698549 | BA60: 0.000294611112 | BB60: 3.66858726e-05 | BC60: 4.394823481e-06 | BD60: 5.193496872e-07 | BE60: 6.154681342e-08 | BF60: 7.599907879e-09 | BG60: 9.5832468e-10 | BH60: 1.239874318e-10 | BI60: 1.650901304e-11 | BJ60: 2.266517797e-12 | BK60: 3.211707283e-13 | BL60: 5.540435004e-14 | BM60: . | BN60: 1.320902044e-05 | BO60: 0.01536836028 | BP60: 0.2250792295 | BQ60: 0.4237749712 | BR60: 0.2467432384 | BS60: 0.07232438378 | BT60: 0.01417062784 | BU60: 0.002189698549 | BV60: 0.000294611112 | BW60: 3.66858726e-05 | BX60: 4.394823481e-06 | BY60: 5.193496872e-07 | BZ60: 6.154681342e-08 | CA60: 7.599907879e-09 | CB60: 9.5832468e-10 | CC60: 1.239874318e-10 | CD60: 1.650901304e-11 | CE60: 2.266517797e-12 | CF60: 3.211707283e-13 | CG60: 5.540435004e-14 | CH60: 1 | CI60: . | CJ60: 0 | CK60: 0 | CL60: 1
B63: F15-19 | C63: =b_f_ischaemic_heart_diseases_deaths -> 1 | D63: =$D$46 -> 0.93 | E63: 1 | F63: =($D63)^((F$43-$E$43)/106) -> 0.9338280879 | G63: =($D63)^((G$43-$E$43)/106) -> 0.908602036 | H63: 0.8840574304 | I63: 0.8601758627 | J63: 0.8369394221 | K63: 0.8143306811 | L63: 0.7923326835 | M63: 0.7709289309 | N63: 0.7501033705 | O63: 0.7298403833 | P63: 0.7101247722 | Q63: 0.6909417506 | R63: =$Q63 -> 0.6909417506 | S63: 0.6909417506 | T63: 0.6909417506 | U63: 0.6909417506 | V63: 0.6909417506 | W63: 0.6909417506 | X63: 0.6909417506 | Y63: =($C63*1000)/((AB23*E63)+(AC23*F63)+(AD23*G63)+(AE23*H63)+(AF23*I63)+(AG23*J63)+(AH23*K63)+(AI23*L63)+(AJ23*M63)+(AK23*N63)+(AL23*O63)+(AM23*P63)+(AN23*Q63)+(AO23*R63)+(AP23*S63)+(AQ23*T63)+(AR23*U63)+(AS23*V63)+(AT23*W63)+(AU23*X63)) -> 1.137413748 | Z63: =$Y63*F63 -> 1.062148905 | AA63: =$Y63*G63 -> 1.033456447 | AB63: =$Y63*H63 -> 1.005539075 | AC63: =$Y63*I63 -> 0.978375852 | AD63: =$Y63*J63 -> 0.9519464049 | AE63: =$Y63*K63 -> 0.9262309121 | AF63: =$Y63*L63 -> 0.9012100872 | AG63: =$Y63*M63 -> 0.8768651647 | AH63: =$Y63*N63 -> 0.853177886 | AI63: =$Y63*O63 -> 0.8301304858 | AJ63: =$Y63*P63 -> 0.8077056787 | AK63: =$Y63*Q63 -> 0.7858866462 | AL63: =$Y63*R63 -> 0.7858866462 | AM63: =$Y63*S63 -> 0.7858866462 | AN63: =$Y63*T63 -> 0.7858866462 | AO63: =$Y63*U63 -> 0.7858866462 | AP63: =$Y63*V63 -> 0.7858866462 | AQ63: =$Y63*W63 -> 0.7858866462 | AR63: =$Y63*X63 -> 0.7858866462 | AS63: =(b_f_fruit_actual_distribution*f_fruit_actual_CHD_deathrate)/1000 -> 1.320902044e-05 | AT63: 0.01536836028 | AU63: 0.2250792295 | AV63: 0.4237749712 | AW63: 0.2467432384 | AX63: 0.07232438378 | AY63: 0.01417062784 | AZ63: 0.002189698549 | BA63: 0.000294611112 | BB63: 3.66858726e-05 | BC63: 4.394823481e-06 | BD63: 5.193496872e-07 | BE63: 6.154681342e-08 | BF63: 7.599907879e-09 | BG63: 9.5832468e-10 | BH63: 1.239874318e-10 | BI63: 1.650901304e-11 | BJ63: 2.266517797e-12 | BK63: 3.211707283e-13 | BL63: 5.540435004e-14 | BM63: =IF(ROUND(SUM(AS63:BL63),0)=ROUND($C63,0)," . ","Error") -> . | BN63: =(c_f_fruit_actual_distribution*f_fruit_actual_CHD_deathrate)/1000 -> 1.320902044e-05 | BO63: 0.01536836028 | BP63: 0.2250792295 | BQ63: 0.4237749712 | BR63: 0.2467432384 | BS63: 0.07232438378 | BT63: 0.01417062784 | BU63: 0.002189698549 | BV63: 0.000294611112 | BW63: 3.66858726e-05 | BX63: 4.394823481e-06 | BY63: 5.193496872e-07 | BZ63: 6.154681342e-08 | CA63: 7.599907879e-09 | CB63: 9.5832468e-10 | CC63: 1.239874318e-10 | CD63: 1.650901304e-11 | CE63: 2.266517797e-12 | CF63: 3.211707283e-13 | CG63: 5.540435004e-14 | CH63: =SUM(BN63:CG63) -> 1 | CI63: =IF(ROUND(SUM(BN63:CG63),0)=ROUND($C63,0)," . ","Error") -> . | CJ63: =SUM(AS63:BL63)-SUM(BN63:CG63) -> 0 | CK63: =CJ63+CJ104 -> 0 | CL63: =C63-CK63 -> 1
B64: F20-24 | C64: 1 | D64: 0.93 | E64: 1 | F64: =($D64)^((F$43-$E$43)/106) -> 0.9338280879 | G64: 0.908602036 | H64: 0.8840574304 | I64: 0.8601758627 | J64: 0.8369394221 | K64: 0.8143306811 | L64: 0.7923326835 | M64: 0.7709289309 | N64: 0.7501033705 | O64: 0.7298403833 | P64: 0.7101247722 | Q64: 0.6909417506 | R64: 0.6909417506 | S64: 0.6909417506 | T64: 0.6909417506 | U64: 0.6909417506 | V64: 0.6909417506 | W64: 0.6909417506 | X64: 0.6909417506 | Y64: 1.137413748 | Z64: =$Y64*F64 -> 1.062148905 | AA64: 1.033456447 | AB64: 1.005539075 | AC64: 0.978375852 | AD64: 0.9519464049 | AE64: 0.9262309121 | AF64: 0.9012100872 | AG64: 0.8768651647 | AH64: 0.853177886 | AI64: 0.8301304858 | AJ64: 0.8077056787 | AK64: 0.7858866462 | AL64: 0.7858866462 | AM64: 0.7858866462 | AN64: 0.7858866462 | AO64: 0.7858866462 | AP64: 0.7858866462 | AQ64: 0.7858866462 | AR64: 0.7858866462 | AS64: 1.320902044e-05 | AT64: 0.01536836028 | AU64: 0.2250792295 | AV64: 0.4237749712 | AW64: 0.2467432384 | AX64: 0.07232438378 | AY64: 0.01417062784 | AZ64: 0.002189698549 | BA64: 0.000294611112 | BB64: 3.66858726e-05 | BC64: 4.394823481e-06 | BD64: 5.193496872e-07 | BE64: 6.154681342e-08 | BF64: 7.599907879e-09 | BG64: 9.5832468e-10 | BH64: 1.239874318e-10 | BI64: 1.650901304e-11 | BJ64: 2.266517797e-12 | BK64: 3.211707283e-13 | BL64: 5.540435004e-14 | BM64: =IF(ROUND(SUM(AS64:BL64),0)=ROUND($C64,0)," . ","Error") -> . | BN64: 1.320902044e-05 | BO64: 0.01536836028 | BP64: 0.2250792295 | BQ64: 0.4237749712 | BR64: 0.2467432384 | BS64: 0.07232438378 | BT64: 0.01417062784 | BU64: 0.002189698549 | BV64: 0.000294611112 | BW64: 3.66858726e-05 | BX64: 4.394823481e-06 | BY64: 5.193496872e-07 | BZ64: 6.154681342e-08 | CA64: 7.599907879e-09 | CB64: 9.5832468e-10 | CC64: 1.239874318e-10 | CD64: 1.650901304e-11 | CE64: 2.266517797e-12 | CF64: 3.211707283e-13 | CG64: 5.540435004e-14 | CH64: =SUM(BN64:CG64) -> 1 | CI64: =IF(ROUND(SUM(BN64:CG64),0)=ROUND($C64,0)," . ","Error") -> . | CJ64: 0 | CK64: =CJ64+CJ105 -> 0 | CL64: =C64-CK64 -> 1
B65: F25-29 | C65: 1 | D65: 0.93 | E65: 1 | F65: 0.9338280879 | G65: 0.908602036 | H65: 0.8840574304 | I65: 0.8601758627 | J65: 0.8369394221 | K65: 0.8143306811 | L65: 0.7923326835 | M65: 0.7709289309 | N65: 0.7501033705 | O65: 0.7298403833 | P65: 0.7101247722 | Q65: 0.6909417506 | R65: 0.6909417506 | S65: 0.6909417506 | T65: 0.6909417506 | U65: 0.6909417506 | V65: 0.6909417506 | W65: 0.6909417506 | X65: 0.6909417506 | Y65: 1.137413748 | Z65: 1.062148905 | AA65: 1.033456447 | AB65: 1.005539075 | AC65: =$Y65*I65 -> 0.978375852 | AD65: 0.9519464049 | AE65: 0.9262309121 | AF65: 0.9012100872 | AG65: 0.8768651647 | AH65: 0.853177886 | AI65: 0.8301304858 | AJ65: 0.8077056787 | AK65: 0.7858866462 | AL65: 0.7858866462 | AM65: 0.7858866462 | AN65: 0.7858866462 | AO65: 0.7858866462 | AP65: 0.7858866462 | AQ65: 0.7858866462 | AR65: 0.7858866462 | AS65: 1.320902044e-05 | AT65: 0.01536836028 | AU65: 0.2250792295 | AV65: 0.4237749712 | AW65: 0.2467432384 | AX65: 0.07232438378 | AY65: 0.01417062784 | AZ65: 0.002189698549 | BA65: 0.000294611112 | BB65: 3.66858726e-05 | BC65: 4.394823481e-06 | BD65: 5.193496872e-07 | BE65: 6.154681342e-08 | BF65: 7.599907879e-09 | BG65: 9.5832468e-10 | BH65: 1.239874318e-10 | BI65: 1.650901304e-11 | BJ65: 2.266517797e-12 | BK65: 3.211707283e-13 | BL65: 5.540435004e-14 | BM65: . | BN65: 1.320902044e-05 | BO65: 0.01536836028 | BP65: 0.2250792295 | BQ65: 0.4237749712 | BR65: 0.2467432384 | BS65: 0.07232438378 | BT65: 0.01417062784 | BU65: 0.002189698549 | BV65: 0.000294611112 | BW65: 3.66858726e-05 | BX65: 4.394823481e-06 | BY65: 5.193496872e-07 | BZ65: 6.154681342e-08 | CA65: 7.599907879e-09 | CB65: 9.5832468e-10 | CC65: 1.239874318e-10 | CD65: 1.650901304e-11 | CE65: 2.266517797e-12 | CF65: 3.211707283e-13 | CG65: 5.540435004e-14 | CH65: 1 | CI65: . | CJ65: 0 | CK65: 0 | CL65: 1
B66: F30-34 | C66: 1 | D66: 0.93 | E66: 1 | F66: 0.9338280879 | G66: 0.908602036 | H66: 0.8840574304 | I66: 0.8601758627 | J66: 0.8369394221 | K66: 0.8143306811 | L66: 0.7923326835 | M66: 0.7709289309 | N66: 0.7501033705 | O66: 0.7298403833 | P66: 0.7101247722 | Q66: 0.6909417506 | R66: 0.6909417506 | S66: 0.6909417506 | T66: 0.6909417506 | U66: 0.6909417506 | V66: 0.6909417506 | W66: 0.6909417506 | X66: 0.6909417506 | Y66: 1.137413748 | Z66: 1.062148905 | AA66: 1.033456447 | AB66: 1.005539075 | AC66: 0.978375852 | AD66: 0.9519464049 | AE66: 0.9262309121 | AF66: 0.9012100872 | AG66: 0.8768651647 | AH66: 0.853177886 | AI66: 0.8301304858 | AJ66: 0.8077056787 | AK66: 0.7858866462 | AL66: 0.7858866462 | AM66: 0.7858866462 | AN66: 0.7858866462 | AO66: 0.7858866462 | AP66: 0.7858866462 | AQ66: 0.7858866462 | AR66: 0.7858866462 | AS66: 1.320902044e-05 | AT66: 0.01536836028 | AU66: 0.2250792295 | AV66: 0.4237749712 | AW66: 0.2467432384 | AX66: 0.07232438378 | AY66: 0.01417062784 | AZ66: 0.002189698549 | BA66: 0.000294611112 | BB66: 3.66858726e-05 | BC66: 4.394823481e-06 | BD66: 5.193496872e-07 | BE66: 6.154681342e-08 | BF66: 7.599907879e-09 | BG66: 9.5832468e-10 | BH66: 1.239874318e-10 | BI66: 1.650901304e-11 | BJ66: 2.266517797e-12 | BK66: 3.211707283e-13 | BL66: 5.540435004e-14 | BM66: . | BN66: 1.320902044e-05 | BO66: 0.01536836028 | BP66: 0.2250792295 | BQ66: 0.4237749712 | BR66: 0.2467432384 | BS66: 0.07232438378 | BT66: 0.01417062784 | BU66: 0.002189698549 | BV66: 0.000294611112 | BW66: 3.66858726e-05 | BX66: 4.394823481e-06 | BY66: 5.193496872e-07 | BZ66: 6.154681342e-08 | CA66: 7.599907879e-09 | CB66: 9.5832468e-10 | CC66: 1.239874318e-10 | CD66: 1.650901304e-11 | CE66: 2.266517797e-12 | CF66: 3.211707283e-13 | CG66: 5.540435004e-14 | CH66: =SUM(BN66:CG66) -> 1 | CI66: . | CJ66: 0 | CK66: 0 | CL66: =C66-CK66 -> 1
B67: F35-39 | C67: 1 | D67: 0.93 | E67: 1 | F67: 0.9338280879 | G67: 0.908602036 | H67: 0.8840574304 | I67: 0.8601758627 | J67: 0.8369394221 | K67: 0.8143306811 | L67: 0.7923326835 | M67: 0.7709289309 | N67: 0.7501033705 | O67: 0.7298403833 | P67: 0.7101247722 | Q67: 0.6909417506 | R67: 0.6909417506 | S67: 0.6909417506 | T67: 0.6909417506 | U67: 0.6909417506 | V67: 0.6909417506 | W67: 0.6909417506 | X67: 0.6909417506 | Y67: 1.137413748 | Z67: 1.062148905 | AA67: 1.033456447 | AB67: 1.005539075 | AC67: 0.978375852 | AD67: 0.9519464049 | AE67: =$Y67*K67 -> 0.9262309121 | AF67: 0.9012100872 | AG67: 0.8768651647 | AH67: 0.853177886 | AI67: 0.8301304858 | AJ67: 0.8077056787 | AK67: 0.7858866462 | AL67: 0.7858866462 | AM67: 0.7858866462 | AN67: 0.7858866462 | AO67: 0.7858866462 | AP67: 0.7858866462 | AQ67: 0.7858866462 | AR67: 0.7858866462 | AS67: 1.320902044e-05 | AT67: 0.01536836028 | AU67: 0.2250792295 | AV67: 0.4237749712 | AW67: 0.2467432384 | AX67: 0.07232438378 | AY67: 0.01417062784 | AZ67: 0.002189698549 | BA67: 0.000294611112 | BB67: 3.66858726e-05 | BC67: 4.394823481e-06 | BD67: 5.193496872e-07 | BE67: 6.154681342e-08 | BF67: 7.599907879e-09 | BG67: 9.5832468e-10 | BH67: 1.239874318e-10 | BI67: 1.650901304e-11 | BJ67: 2.266517797e-12 | BK67: 3.211707283e-13 | BL67: 5.540435004e-14 | BM67: . | BN67: 1.320902044e-05 | BO67: 0.01536836028 | BP67: 0.2250792295 | BQ67: 0.4237749712 | BR67: 0.2467432384 | BS67: 0.07232438378 | BT67: 0.01417062784 | BU67: 0.002189698549 | BV67: 0.000294611112 | BW67: 3.66858726e-05 | BX67: 4.394823481e-06 | BY67: 5.193496872e-07 | BZ67: 6.154681342e-08 | CA67: 7.599907879e-09 | CB67: 9.5832468e-10 | CC67: 1.239874318e-10 | CD67: 1.650901304e-11 | CE67: 2.266517797e-12 | CF67: 3.211707283e-13 | CG67: 5.540435004e-14 | CH67: 1 | CI67: . | CJ67: 0 | CK67: 0 | CL67: 1
B68: F40-44 | C68: 1 | D68: 0.93 | E68: 1 | F68: 0.9338280879 | G68: 0.908602036 | H68: 0.8840574304 | I68: 0.8601758627 | J68: 0.8369394221 | K68: 0.8143306811 | L68: 0.7923326835 | M68: 0.7709289309 | N68: 0.7501033705 | O68: 0.7298403833 | P68: 0.7101247722 | Q68: 0.6909417506 | R68: 0.6909417506 | S68: 0.6909417506 | T68: 0.6909417506 | U68: 0.6909417506 | V68: 0.6909417506 | W68: 0.6909417506 | X68: 0.6909417506 | Y68: 1.137413748 | Z68: 1.062148905 | AA68: 1.033456447 | AB68: 1.005539075 | AC68: 0.978375852 | AD68: 0.9519464049 | AE68: 0.9262309121 | AF68: 0.9012100872 | AG68: 0.8768651647 | AH68: 0.853177886 | AI68: 0.8301304858 | AJ68: 0.8077056787 | AK68: 0.7858866462 | AL68: 0.7858866462 | AM68: 0.7858866462 | AN68: 0.7858866462 | AO68: 0.7858866462 | AP68: 0.7858866462 | AQ68: 0.7858866462 | AR68: 0.7858866462 | AS68: 1.320902044e-05 | AT68: 0.01536836028 | AU68: 0.2250792295 | AV68: 0.4237749712 | AW68: 0.2467432384 | AX68: 0.07232438378 | AY68: 0.01417062784 | AZ68: 0.002189698549 | BA68: 0.000294611112 | BB68: 3.66858726e-05 | BC68: 4.394823481e-06 | BD68: 5.193496872e-07 | BE68: 6.154681342e-08 | BF68: 7.599907879e-09 | BG68: 9.5832468e-10 | BH68: 1.239874318e-10 | BI68: 1.650901304e-11 | BJ68: 2.266517797e-12 | BK68: 3.211707283e-13 | BL68: 5.540435004e-14 | BM68: . | BN68: 1.320902044e-05 | BO68: 0.01536836028 | BP68: 0.2250792295 | BQ68: 0.4237749712 | BR68: 0.2467432384 | BS68: 0.07232438378 | BT68: 0.01417062784 | BU68: 0.002189698549 | BV68: 0.000294611112 | BW68: 3.66858726e-05 | BX68: 4.394823481e-06 | BY68: 5.193496872e-07 | BZ68: 6.154681342e-08 | CA68: 7.599907879e-09 | CB68: 9.5832468e-10 | CC68: 1.239874318e-10 | CD68: 1.650901304e-11 | CE68: 2.266517797e-12 | CF68: 3.211707283e-13 | CG68: 5.540435004e-14 | CH68: 1 | CI68: . | CJ68: 0 | CK68: 0 | CL68: 1
B69: F45-49 | C69: 1 | D69: 0.93 | E69: 1 | F69: 0.9338280879 | G69: 0.908602036 | H69: 0.8840574304 | I69: 0.8601758627 | J69: 0.8369394221 | K69: 0.8143306811 | L69: 0.7923326835 | M69: 0.7709289309 | N69: 0.7501033705 | O69: 0.7298403833 | P69: 0.7101247722 | Q69: 0.6909417506 | R69: 0.6909417506 | S69: 0.6909417506 | T69: 0.6909417506 | U69: 0.6909417506 | V69: 0.6909417506 | W69: 0.6909417506 | X69: 0.6909417506 | Y69: 1.137413748 | Z69: 1.062148905 | AA69: 1.033456447 | AB69: 1.005539075 | AC69: 0.978375852 | AD69: 0.9519464049 | AE69: 0.9262309121 | AF69: 0.9012100872 | AG69: 0.8768651647 | AH69: 0.853177886 | AI69: 0.8301304858 | AJ69: 0.8077056787 | AK69: 0.7858866462 | AL69: 0.7858866462 | AM69: 0.7858866462 | AN69: 0.7858866462 | AO69: 0.7858866462 | AP69: 0.7858866462 | AQ69: 0.7858866462 | AR69: 0.7858866462 | AS69: 1.320902044e-05 | AT69: 0.01536836028 | AU69: 0.2250792295 | AV69: 0.4237749712 | AW69: 0.2467432384 | AX69: 0.07232438378 | AY69: 0.01417062784 | AZ69: 0.002189698549 | BA69: 0.000294611112 | BB69: 3.66858726e-05 | BC69: 4.394823481e-06 | BD69: 5.193496872e-07 | BE69: 6.154681342e-08 | BF69: 7.599907879e-09 | BG69: 9.5832468e-10 | BH69: 1.239874318e-10 | BI69: 1.650901304e-11 | BJ69: 2.266517797e-12 | BK69: 3.211707283e-13 | BL69: 5.540435004e-14 | BM69: . | BN69: 1.320902044e-05 | BO69: 0.01536836028 | BP69: 0.2250792295 | BQ69: 0.4237749712 | BR69: 0.2467432384 | BS69: 0.07232438378 | BT69: 0.01417062784 | BU69: 0.002189698549 | BV69: 0.000294611112 | BW69: 3.66858726e-05 | BX69: 4.394823481e-06 | BY69: 5.193496872e-07 | BZ69: 6.154681342e-08 | CA69: 7.599907879e-09 | CB69: 9.5832468e-10 | CC69: 1.239874318e-10 | CD69: 1.650901304e-11 | CE69: 2.266517797e-12 | CF69: 3.211707283e-13 | CG69: 5.540435004e-14 | CH69: 1 | CI69: . | CJ69: 0 | CK69: 0 | CL69: 1
B70: F50-54 | C70: 1 | D70: 0.93 | E70: 1 | F70: 0.9338280879 | G70: 0.908602036 | H70: 0.8840574304 | I70: 0.8601758627 | J70: 0.8369394221 | K70: 0.8143306811 | L70: 0.7923326835 | M70: 0.7709289309 | N70: 0.7501033705 | O70: 0.7298403833 | P70: 0.7101247722 | Q70: 0.6909417506 | R70: 0.6909417506 | S70: 0.6909417506 | T70: 0.6909417506 | U70: 0.6909417506 | V70: 0.6909417506 | W70: 0.6909417506 | X70: 0.6909417506 | Y70: 1.137413748 | Z70: 1.062148905 | AA70: 1.033456447 | AB70: 1.005539075 | AC70: 0.978375852 | AD70: 0.9519464049 | AE70: 0.9262309121 | AF70: 0.9012100872 | AG70: 0.8768651647 | AH70: 0.853177886 | AI70: 0.8301304858 | AJ70: 0.8077056787 | AK70: 0.7858866462 | AL70: 0.7858866462 | AM70: 0.7858866462 | AN70: 0.7858866462 | AO70: 0.7858866462 | AP70: 0.7858866462 | AQ70: 0.7858866462 | AR70: 0.7858866462 | AS70: 1.320902044e-05 | AT70: 0.01536836028 | AU70: 0.2250792295 | AV70: 0.4237749712 | AW70: 0.2467432384 | AX70: 0.07232438378 | AY70: 0.01417062784 | AZ70: 0.002189698549 | BA70: 0.000294611112 | BB70: 3.66858726e-05 | BC70: 4.394823481e-06 | BD70: 5.193496872e-07 | BE70: 6.154681342e-08 | BF70: 7.599907879e-09 | BG70: 9.5832468e-10 | BH70: 1.239874318e-10 | BI70: 1.650901304e-11 | BJ70: 2.266517797e-12 | BK70: 3.211707283e-13 | BL70: 5.540435004e-14 | BM70: . | BN70: 1.320902044e-05 | BO70: 0.01536836028 | BP70: 0.2250792295 | BQ70: 0.4237749712 | BR70: 0.2467432384 | BS70: 0.07232438378 | BT70: 0.01417062784 | BU70: 0.002189698549 | BV70: 0.000294611112 | BW70: 3.66858726e-05 | BX70: 4.394823481e-06 | BY70: 5.193496872e-07 | BZ70: 6.154681342e-08 | CA70: 7.599907879e-09 | CB70: 9.5832468e-10 | CC70: 1.239874318e-10 | CD70: 1.650901304e-11 | CE70: 2.266517797e-12 | CF70: 3.211707283e-13 | CG70: 5.540435004e-14 | CH70: 1 | CI70: . | CJ70: 0 | CK70: 0 | CL70: 1
